Workbook

Sheet To Do (hidden)
A5: General
B6: 1. Embed user's manual in the spreadsheet comments. Button on each sheet to expand all comments
B7: 2. Show and hide rows for simplified version. Make sure hidden rows aren't included in totals. White out unused sensitivity factors
B8: 3. Write brief Overview sheet
B9: 4. Hiding if HeatMap is not selected
B10: 5. Blanker and defaults
B11: 6. Change True/False to Yes/No throughout
B12: 7. Protection macro. Red message about ensuring macros are enabled. Button to lock and unlock.

Sheet Overview
C1: RELCOST
C2: Financial Analysis of Energy Projects
C3: ©2009 Washington State University Extension Energy Program
B8: About RELCOST | F8: Getting Around...
B9: The RELCOST Financial model is spreadsheet template used to evaluate the financial viability of energy projects. RELCOST provides three general methods to evaluate the viability of a project: life cycle cost analysis, use of pro forma statements, and use of financial ratios. | F9: Tabs that are primarily used for data input are Yellow
B10: Input tabs (Yellow): Flexible user inputs include capital costs for construction, funding (equity, grants, and loans), operating costs (purchased fuels, labor, materials/expendables, etc.), taxes and fees (depreciation, tax credits, franchise costs, tax rates, etc.), cost escalation factors, revenues from from sales and savings, production-based incentives. | F10: Tabs and cells primarily used for results are Green. Reports and pro formas begin with O_
B11: Inputs can be made in any year of the project with project lives of up to 30 years. Space is provided for detailed, comprehensive analysis of complex projects, although preliminary analyses with a minimum of inputs can be performed. | F11: See Index
B12: WhatIf tab: Life cycle cost results and financial ratios are displayed on a Financial Scorecard in a stop-light chart (Red-Yellow-Green) for quick assessment. A palette of sensitivity factors for inputs is side by side with the Financial Scorecard to facilitate conducting “What If” evaluations. The “WhatIf” tab also contains graphs of information from pro forma statements.
B13: Pro formas and Reports (Green tabs beginning with O_): Pro forma financial statements (Income Statement, Cash Flow Statement, Balance Sheet, and Sources/Uses of Funds Statement) show financial details over a 30-year analysis period. | F13: Tool Tips...
B14: Spider Diagram: A “spider diagram” is a useful way to explore the sensitivity of project viability to uncertainty. A measure of life cycle cost (such as internal rate of return) is plotted as selected inputs (e.g. capital costs) are varied one by one. The more sensitive a project is to a parameter, the more attention that should be paid to narrowing its uncertainty. | F14: To open all comments to see tips on using this tool and background on topics, click...
B15: Decision Matrix: The Decision Matrix tab allows you to view life cycle cost results when up to three parameters at a time are varied. The Spider Diagram, in contrast, allows you to vary only one at a time. | F15: ... or hover your mouse over cells with a red triangle to see tool tips one at a time.
B16: Incentive Summary: Financial incentives that may be modeled are: grants, loans and equity investments, production-based incentives, investment tax credits and production tax credits. These are tabulated by source on the Incentve Summary tab.
B17: Scenarios
B18: Inputs for up to 10 scenarios can be defined on the Scenarios tab (optional feature). On most input sheets and on the WhatIf tab, a drop down "Scenario" menu allows you to easily switch between the scenarios you have defined.
B19: Note entries on the Scenarios tab do not automatically load into your input tabs. On each tab, you must make references that set up how you want inputs to vary in each scenario. For more, click on the "Show Tips" button at the top of the Scenarios sheet. | F19: Viewing Options...
B20: If you are considering only one case, we suggest you click the button "Hide Scenarios Option" on the General tab. This button will hide the Scenarios tab and hide all the scenario sections on input sheets. | F20: Buttons on the General tab are:
B21: Updates | F21: To hide or show the Scenarios tab and scenarios sections on input sheets, click...
B22: RELCOST is updated frequently. Start each project with the latest version available at:
B23: http://www.northwestchptap.org/ResourcesSoftwareLinks/Software.aspx
B24: Getting Started | F24: To change the zoom of all sheets and go to the top of each sheet, click...
B25: Enable Macros
B26: By default macros are disabled in Excel unless you choose to enable them. Operation of RELCOST requres macros to be enabled. | F26: To select alternative cell colors, toggling between yellow or blue inputs and green or orange outputs, click...
B27: Each time you open RELCOST, you should see a message in red reminding you to enable macros and telling you how. This message will disappear once macros are enabled. When you close RELCOST, the reminder will reappear. Save again so the reminder will be there when you next open.
B29: Input Tabs | E29: Top | F29: To protect calculations from being overwritten (recommended), click...
B30: WORKSHEET | C30: INPUTS | D30: CALCULATED VALUES ON SHEET...
B31: General | C31: Enter project description, project life, discount rate, and inflation rate. | D31: Plant operating factors
C32: Enter dispatch factor and availabilty to determine plant operating factors for each year of the project.
B33: Capital Expenditures | C33: Enter capital expenditures in up to three user-defined categories in any year. | D33: Sub-totals of expenditures by category | F33: Utilities...
C34: Enter below-the-line expenses (contractor profit factor, contingency, value-added taxes) for each category as percents. | D34: Total expenditures , including inflation, escalation, plant operating factors, and sensitivity factor | F34: Buttons at the top of many sheets are:
B35: Funding Plan | C35: Enter amounts, source, schedule and other details for borrowed funds, equity investments, and grants. | D35: Funding totals by source | F35: To copy number formats from those you chose on the Scenarios tab to the scenarios sections on input sheets, click...
B36: Purchases | C36: Enter quantities and unit costs of purchases and if quantities should be multiplied by the operating factor. Identify quantities as fuel or non-fuel purchases for reporting. | D36: Purchase costs
B37: Sales & Savings | C37: Enter revenues (sales or savings) in up to nine user-defined categories. Identify if revenues are taxable and if quantities should be multiplied by the plant operating factor. | D37: Revenues from sales, including inflation, escalation, plant operating factors, and sensitivity factor | F37: To print pro formas and other forms over the life of the project, click...
B38: Production Incentives | C38: Enter production-based incentives (not tax credits), such as carbon offsets and renewable energy credits | D38: Revenues from production incentives, including inflation, escalation, plant operating factors | F38: To hide and show workspace near the top of the sheet for your custom calculations, click...
B39: O&M | C39: Enter non-fuel operation and maintenance expenses in up to fFour user-defined categories. | D39: Total O&M costs, including inflation, escalation, plant operating factors, and sensitivity factor | E39: Top
C40: Costs of operating labor, insurance, and property taxes may be entered separately. | F40: Workspace is also available below input areas.
C41: Enter deposits and withdrawals from the operating reserve account for accounting on the "Cash Accounts" tab
B42: Major Expenses | C42: Enter periodic expenses such as major overhauls | D42: Total major expenses, including inflation, escalation, plant operating factors, and sensitivity factor | F42: Hot Keys for Copying Between Files...
B43: Taxes & Fees | C43: Enter federal, state and local tax rates | D43: Income tax payments | F43: CTRL+N Paste copied formulas and number formats to a range.
C44: Enter franchise fees and royalty payments | F44: Removes any links to other files in formulas.
B45: Tax Credits | C45: Enter information on investment and production tax credits | F45: CTRL+M Paste copied values to a range
B46: Depreciation | C46: Enter depreciation base and salvage value. Select depreciation schedule from menu. | D46: Annual depreciation for tax and shareholder purposes | F46: CTRL+O Copy number format of a cell
C47: Depreciation schedules are defined on "Depreciation Factors" tab. | F47: CTRL+P Paste copied number format to a cell
C48: U.S. MACRS factors are built-in. Custom schedules can be defined on Depreciation Factors. | F48: CTRL+R Remove all links to other files in formulas.
B49: Dividends | C49: Enter maximum payout of dividends | D49: Dividend payments
C50: and percent of net profit after taxes
B51: Cost Escalation | C51: Enter escalation factors for likely, conservative and aggressive forecasts | D51: Total escalation factors including forecast factors & general inflation | F51: When Closing...
B52: Cost Allocation | C52: Enter allocation of costs to multiple revenue streams (used in calculating levelized costs on the WhatIf tab) | D52: -- | F52: Why does the red ENABLE MACROS message reappear when I close?
B53: Depreciation Factors | C53: Optionally enter depreciation factors of user-defined depreciation schedules. U.S. MACRS and straight-line factors are built-in. | F53: This reminder is restored when your file is closed, so it will be there the next time you open the file.
F54: Save the file again to save the reminder.
B56: Analyzing Results | E56: Top
B57: WORKSHEET | C57: RESULTS
B58: WhatIf | C58: The financial scorecard shows life cycle cost results, financial ratios and financial margins...
C59: Sensitivity factors on the palette to the left of results are used to easily change inputs and view results immediately to play "What If" sensitivity studies
C60: Save life cycle cost results using "Save As" buttons.
C61: The WhatIf tab includes graphs of data from pro-formas (such as the cash flow statement) and forms (such as the operating costs summary)
B62: Stop-Light Indicators | C62: Values at which the red-yellow-green stoplight colors change are set on the "Stop-Light Indicators" tab.
B63: Spider Diagram | C63: In a spider diagram, the selected measure of viability (e.g. internal rate of return) appears on the horizontal axis and the percent variation in parameters (e.g. capital costs) on the vertical axis. The flatter a line, the more sensitive project performance is to changes in that parameter and the more attention that should be paid to it. | E63: Top
C64: In the work area below the diagram select the performance measure used to assess project viability and up to five parameters to vary.
C65: Enter sensitivity factors for each parameter to determine how they vary from the most likely values entered elsewhere in the workbook.
B66: Decision Matrix | C66: The Decision Matrix allows investigating project performance when up to three parameters are varied at a time. | E66: Top
B68: Incentive Summary | C68: A summary of incentives by source gathered from several locations in the workbook...Grants and loans from the Funding Plan tab; Renewable Energy Credits, Carbon Offsets and other production-based incentives from the Prod Incentives tab. Investment and production tax credits from the Tax Credits tab. | E68: Top
B69: Funding Schedule | C69: • Amounts borrowed and annual payments on interest and principal of borrowed funds
C70: • Amounts of equity investments and grants
B71: Cash Accounts | C71: • Deposits, withdrawals and balances of cash account and operating reserve account
B74: Pro Formas and Reports | E74: Top
B75: WORKSHEET | C75: RESULTS
B76: Purchases Report | C76: Quantities and costs of purchases
C77: (escalated and non-escalated)
B78: Operating Costs Report | C78: Variable and fixed operating costs, including fuel purchases
C79: (escalated and non-escalated)
B80: Operating Income Report | C80: Income from sales, environmental credits and production incentives (escalated and non-escalated, with and without sensitivity factors)
B81: Income Statement (Tax) | C81: Income statement: gross income, operating income, net profit before and after tax with:
B82: Income Statement (Shareholders) | C82: • Sales income detail
C83: • Cost of sales detail
C84: • Operating expenses detail
B85: Balance Sheet (Tax) | C85: Assets, liabilities and shareholder funds
B86: BalanceSheet (Shareholders)
B87: Use of Funds | C87: Sources of funds
C88: Uses of funds
B89: Cash Flow | C89: Cash flow summary for operations and financing activities
B90: * The names of worksheets intended to be printed out as forms begin with “O_”.
B94: References | E94: Top
B95: "Financial Intelligence for Entrepreneurs" by Karen Berman and Joe Knight, Harvard Business Review Press, 2008
B97: "Finance" by A.A. Gropppelli and Ehsan Nikbakht, Barron's, 2006
B99: FAQs, Energy Information Agency, U.S. DOE
B100: http://www.eia.gov/tools/faqs/
B102: Online References on Financial Terms:
B103: Investopedia | C103: www.investopedia.com
B104: Business Dictionary | C104: http://www.businessdictionary.com/
B106: "Investment Analysis", Energy Star Building Manual: Chapter 3, U.S. Environmental Protection Agency, Revised July 2007
B107: A good summary of the fundamentals of financial analysis of energy projects.
B108: www.energystar.gov/buildings/sites/default/uploads/tools/EPA_BUM_CH3_InvestAnalysis.pdf
B110: "Best Practices Guide: Economic & Financial Evaluation of Renewable Energy Projects", United States Agency for International Development , June 2002
B111: http://pdf.usaid.gov/pdf_docs/PNADB613.pdf
B113: "Renewable Energy Cost Modeling: A Toolkit for Establishing Cost-Based Incentives in the United States", National Renewable Energy Laboratory, May 2011
B114: http://www.nrel.gov/docs/fy11osti/51093.pdf
B116: Database of State Incentives for Renewables and Efficiency (DSIRE)
B117: www.dsireusa.org
B119: "How to Depreciate Property", U.S. Internal Revenue Service
B120: http://www.irs.gov/publications/p946/index.html
B121: http://www.irs.gov/publications/p946/ar02.html
B123: Cost allocation for energy projects can be calculated in the same manner as emissions allocation.
B124: "Cogeneration: Options to Calculate Facility-Specific Efficiency Values", California Air Resources Board
B125: http://www.arb.ca.gov/cc/ccei/presentations/CogenerationOptions.pdf
B127: "Comparative Costs of California Central Station Electricity Generation", California Energy Commision, 2009
B128: Includes good review of cost analysis of energy projects, in addition to cost data
B129: http://www.energy.ca.gov/2009publications/CEC-200-2009-017/CEC-200-2009-017-SD.PDF
B131: "A Guide to Funding Resources", The U.S. Department of Agriculture
B132: www.nal.usda.gov/ric/ricpubs/fundguide.html
B134: "FASB Learning Guide", Financial Accounting Standards Board
B135: https://asc.fasb.org/cs/ContentServer?site=FAF&c=Document_C&sitepfx=FAF&pagename=FAF/Document_C/CodDocumentPage&cid=1175805121281
B137: "Development of Distributed Generation in the United States" , November 20, 2012
B138: http://www.hks.harvard.edu/hepg/Papers/2013/EPEBritEmb111912(JO)-2.pdf
B140: "Distributed Generation Primer", U.S. Department of Energy, May 2002
B141: http://www.casfcc.org/2/StationaryFuelCells/PDF/Distributed%20Generation%20Primer.pdf
B143: Renewable Energy Certificates website, U.S. Department of Energy
B144: http://apps3.eere.energy.gov/greenpower/markets/certificates.shtml?page=0
B146: GHG Offset Marketers website, U.S. Department of Energy
B147: http://apps3.eere.energy.gov/greenpower/markets/carbon.shtml?page=2
B171: Copied | C171: No
B172: Project

Sheet General
D1: RELCOST
D2: Financial Analysis of Energy Projects
D3: Updated March 13, 2014
D4: ©2009 Washington State University Extension Energy Program
C5: INPUT (Edit) | P5: CTRL-N = Paste formulas & number formats (without links to other sheets)
C6: RESULTS (No Edits)
C8: PROJECT SUMMARY | T8: =IF(Toggle_Scenario="Hidden","SCENARIOS - Click Show Scenarios button to show this option","SCENARIOS") -> SCENARIOS
C9: Plant Name | D9: Rural Hospital | T9: =IF(Scenarios!B9="","",IFERROR(CONCATENATE(Scenarios!A9," ",VLOOKUP(Scenarios!A9,Scenarios!$A$9:$B$18,2,FALSE)),"")) -> 1 Heat recovery from industrial facility, main hospital building only
C10: Location | D10: Northwest, USA | T10: =IF(Scenarios!B10="","",IFERROR(CONCATENATE(Scenarios!A10," ",VLOOKUP(Scenarios!A10,Scenarios!$A$9:$B$18,2,FALSE)),"")) -> 2 Heat recovery from industrial facility, medical campus
C11: Project Description | D11: Non-profit 28-bed 38,000 sf hospital with two adjacent electrically heated office buildings. Existing fuel oil boiler is 3.2 MMBtu/h. | T11: =IF(Scenarios!B11="","",IFERROR(CONCATENATE(Scenarios!A11," ",VLOOKUP(Scenarios!A11,Scenarios!$A$9:$B$18,2,FALSE)),"")) -> 3 Biomass heating, main hospital building only, wood pellets
D12: Possible heat recovery from nearby biomass processing facility | T12: =IF(Scenarios!B12="","",IFERROR(CONCATENATE(Scenarios!A12," ",VLOOKUP(Scenarios!A12,Scenarios!$A$9:$B$18,2,FALSE)),"")) -> 4 Biomass heating, main hospital building only, wood chips
T13: =IF(Scenarios!B13="","",IFERROR(CONCATENATE(Scenarios!A13," ",VLOOKUP(Scenarios!A13,Scenarios!$A$9:$B$18,2,FALSE)),"")) -> 5 Biomass heating, medical campus, wood pellets
C14: Model Notes: | T14: =IF(Scenarios!B14="","",IFERROR(CONCATENATE(Scenarios!A14," ",VLOOKUP(Scenarios!A14,Scenarios!$A$9:$B$18,2,FALSE)),"")) -> 6 Biomass heating, medical campus, wood chips
T15: =IF(Scenarios!B15="","",IFERROR(CONCATENATE(Scenarios!A15," ",VLOOKUP(Scenarios!A15,Scenarios!$A$9:$B$18,2,FALSE)),"")) -> 
T16: =IF(Scenarios!B16="","",IFERROR(CONCATENATE(Scenarios!A16," ",VLOOKUP(Scenarios!A16,Scenarios!$A$9:$B$18,2,FALSE)),"")) -> 
T17: =IF(Scenarios!B17="","",IFERROR(CONCATENATE(Scenarios!A17," ",VLOOKUP(Scenarios!A17,Scenarios!$A$9:$B$18,2,FALSE)),"")) -> 
T18: =IF(Scenarios!B18="","",IFERROR(CONCATENATE(Scenarios!A18," ",VLOOKUP(Scenarios!A18,Scenarios!$A$9:$B$18,2,FALSE)),"")) -> 
C19: GENERAL
C20: Project Life | D20: 20 | E20: years
C21: First Year of Project | D21: 2014
C24: FINANCIAL ASSUMPTIONS
C25: Discount rate | D25: 0.05
C26: General inflation rate | D26: 0.027
D28: =+D21 -> 2014 | E28: =+D28+1 -> 2015 | F28: =+E28+1 -> 2016 | G28: 2017 | H28: 2018 | I28: 2019 | J28: 2020 | K28: 2021 | L28: 2022 | M28: 2023 | N28: 2024 | O28: 2025 | P28: 2026 | Q28: 2027 | R28: 2028 | S28: 2029 | T28: 2030 | U28: 2031 | V28: =+U28+1 -> 2032 | W28: 2033 | X28: 2034 | Y28: 2035 | Z28: 2036 | AA28: 2037 | AB28: 2038 | AC28: 2039 | AD28: 2040 | AE28: 2041 | AF28: 2042 | AG28: 2043 | AH28: 2044
C29: Project Year | D29: 1 | E29: =+D29+1 -> 2 | F29: 3 | G29: 4 | H29: 5 | I29: 6 | J29: 7 | K29: 8 | L29: 9 | M29: 10 | N29: 11 | O29: 12 | P29: 13 | Q29: 14 | R29: 15 | S29: 16 | T29: 17 | U29: 18 | V29: 19 | W29: 20 | X29: 21 | Y29: 22 | Z29: 23 | AA29: 24 | AB29: 25 | AC29: 26 | AD29: 27 | AE29: 28 | AF29: 29 | AG29: 30 | AH29: 31
C30: PLANT OPERATING FACTOR
C31: Dispatch Factor (a) | D31: 1 | E31: =D31 -> 1 | F31: 1 | G31: 1 | H31: 1 | I31: 1 | J31: 1 | K31: 1 | L31: 1 | M31: 1 | N31: 1 | O31: 1 | P31: 1 | Q31: 1 | R31: 1 | S31: 1 | T31: 1 | U31: =T31 -> 1 | V31: 1 | W31: 1 | X31: 1 | Y31: 1 | Z31: 1 | AA31: 1 | AB31: 1 | AC31: 1 | AD31: 1 | AE31: 1 | AF31: 1 | AG31: 1 | AH31: 1
C32: Availability (capacity) Factor (b) | D32: 1 | E32: 1 | F32: 1 | G32: 1 | H32: 1 | I32: 1 | J32: 1 | K32: 1 | L32: 1 | M32: 1 | N32: 1 | O32: 1 | P32: 1 | Q32: 1 | R32: 1 | S32: 1 | T32: 1 | U32: 1 | V32: 1 | W32: 1 | X32: 1 | Y32: 1 | Z32: 1 | AA32: 1 | AB32: 1 | AC32: 1 | AD32: 1 | AE32: 1 | AF32: 1 | AG32: 1 | AH32: 1
C33: Plant Operating Factor | D33: =+D31*D32*Sens_PlantOpFactor -> 1 | E33: =+E31*E32*Sens_PlantOpFactor -> 1 | F33: 1 | G33: 1 | H33: 1 | I33: 1 | J33: 1 | K33: 1 | L33: =+L31*L32*Sens_PlantOpFactor -> 1 | M33: 1 | N33: 1 | O33: =+O31*O32*Sens_PlantOpFactor -> 1 | P33: 1 | Q33: 1 | R33: 1 | S33: 1 | T33: 1 | U33: 1 | V33: 1 | W33: 1 | X33: 1 | Y33: 1 | Z33: 1 | AA33: 1 | AB33: 1 | AC33: 1 | AD33: 1 | AE33: 1 | AF33: 1 | AG33: 1 | AH33: =+AH31*AH32*Sens_PlantOpFactor -> 1
C35: Notes
A38: S | C38: FACTORS AFFECTING DISPATCH FACTOR (Optional, use in formulas above)
A39: S | C39: Curtailment factor (a)
A40: S
A41: S | C41: FACTORS AFFECTING AVAILABILITY (Optional, use in formulas above)
A42: S | C42: Parasitic plant losses (b)
A43: S | C43: Partial year operation factor (b)
A44: S | C44: Resource depletion (b)
A45: S | C45: Transmission loss (b)
A46: S | C46: Scheduled maintenance (b)
A47: S | C47: Dispatch Factor = 1- Curtailment Factor
A48: S | C48: Availability = (1-Parasitic Plant Losses) * Partial Year Operation Factor * Resource Depletion * Transmission Loss * Scheduled Maintenance
C51: LIFE CYCLE COST ANALYSIS - Summary
C52: Net Present Value | D52: =IFERROR(+WhatIf!H16,"") -> 522149.7568
C53: Project IRR | D53: =IFERROR(+WhatIf!H15,"") -> 0.1862746754
C54: Discounted Payback (After-Tax, years) | D54: =IFERROR(+WhatIf!H18,"") -> 7.620242035
C55: Benefit-to-Cost Ratio (After Tax) | D55: =IFERROR(+WhatIf!H17,"") -> 2.355134068
C58: REFERENCES
C59: Construction times: Comparative Costs of California Central Station Electricity Generation, California Energy Commission, August 2009, | E59: http://www.energy.ca.gov/2009publications/CEC-200-2009-017/CEC-200-2009-017-SD.PDF
C60: Plant operating factors of community scale RE projects: Building and Community Scale Renewable Technology Costs, KEMA, 2009, | E60: http://www.energy.ca.gov/2009_energypolicy/documents/2009-08-25_workshop/presentations/05_KEMA_Building_and_Community_Scale_Renewable_Technology_Costs.PDF
C61: Federal discount rate | E61: www.newyorkfed.org/markets/statistics/dlyrates/fedrate.html
C62: General inflation rate | E62: ftp://ftp.bls.gov/pub/special.requests/cpi/cpiai.txt
C63: Availability: Technology Characterization: Gas Turbines", EPA, 2013, p. 15 | E63: http://www.meede.org/wp-content/uploads/Commercial-and-Industrial-CHP-Technology-Cost-and-Performance-Data-Analysis-for-EIA_June-2010.pdf
C64: Availability: Technology Characterization: Reciprocating Engines", EPA, 2008, p. 19 | E64: http://www.epa.gov/chp/documents/catalog_chptech_reciprocating_engines.pdf
C68: WORKSPACE & MODEL NOTES
C70: Assumptions
C71: · Variation in biomass fuel use impacts electricity generation and ash disposal. It does not impact back-up natural gas use because I am assuming reduced biomass consumption is due to reduced heating needs, not due to outages that would require greater back-up heat. Biomass fuel use is assumed to be directly proportional to electricity generation, so only one sensitivity factor is needed for these two.
C72: · Variation in natural gas price impacts avoided cost of operating existing system and future purchases of natural gas for back-up heat.
C73: · Escalation of biomass price is equal to escalation of natural gas.
C133: CALCULATION AREA
C134: Toggle_Comments | D134: Hidden
C135: Toggle_Scenario | D135: Showing
C136: Toggle_ProtectIntermediateCalcs | D136: Unprotected
C137: Copied | D137: No
D138: MacroRunning_ProjectOrOption
C139: Project or Option Macro Running | D139: Not Running
C142: Discount rate | D142: =D25*WhatIf!B66 -> 0.05
C143: General inflation rate | D143: =D26*WhatIf!B67 -> 0.027
C144: Project Life | D144: =ROUND(D20*WhatIf!B68,0) -> 20

Sheet WhatIf
A1: Format Scenario | F1: =IF(ErrorLine1="","","ENABLE MACROS") ->  | N1: INPUT (Edit) | O1: RESULTS (No Edits)
A2: =+General!C9 -> Plant Name | B2: =+General!D9 -> Rural Hospital
A3: Project Description | B3: =IF(+General!$D$11="","",General!$D$11) -> Non-profit 28-bed 38,000 sf hospital with two adjacent electrically heated office buildings. Existing fuel oil boiler is 3.2 MMBtu/h. | AH3: Project Year | AJ3: =+Scorecard_Year -> 10
A4: Scenario Description | B4: =IF(Scenarios!$B$19=""," ",Scenarios!$B$19) -> 3 Biomass heating, main hospital building only, wood pellets
A6: SENSITIVITY FACTORS | F6: SELECT SCENARIO | K6: SAVE LCCA RESULTS OF SCENARIOS
A7: Escalation Forecast Type | B7: Likely | F7: Description | G7: =IFERROR(VLOOKUP(WhatIf!Project,Scenarios!$A$9:$C$18,2,FALSE),General!D11) -> Biomass heating, main hospital building only, wood pellets
A8: Environmental Credits | C8: 1st Yr Unit Costs | E8: Notes | F8: Scenario | G8: 3 | K8: SCENARIO A | P8: SCENARIO G
A9: =A350 -> State Production Incentive, Electricity | B9: 1 | C9: =+'Prod Incentives'!G18*Sens_CarbonCredit -> 0 | D9: =+'Prod Incentives'!F18 -> $/kWh
A10: State Production Incentive, Thermal Savings | B10: 1 | C10: =+'Prod Incentives'!G26*B10 -> 0 | D10: =+'Prod Incentives'!F26 -> $/MMBtu | K10: 1B Biomass steam generation with extraction/condensing turbine (Alternate Scenario) | P10: 1B Biomass steam generation with extraction/condensing turbine (Alternate Scenario)
A11: Production Tax Credits | C11: 1st Yr Unit Costs | F11: LIFE CYCLE COST RESULTS | K11: Equity IRR | P11: Equity IRR
A12: Federal PTC | B12: 1 | C12: ='Tax Credits'!D33*Sens_FedTaxCreditPTC -> 0 | D12: =+'Tax Credits'!C34 -> $/kWh | F12: Project Life | G12: =+General!D144 -> 20 | H12: Years | K12: Project IRR | P12: Project IRR
A13: State PTC Electricity | B13: 1 | C13: ='Tax Credits'!D43*Sens_StateTaxCreditPTC1 -> 0 | D13: =+'Tax Credits'!C43 -> $/kWh/yr | F13: Life Cycle Cost Analysis | H13: Value | K13: Net Present Value | P13: Net Present Value
A14: State PTC Thermal | B14: 1 | C14: ='Tax Credits'!D52*Sens_StateTaxCreditPTC2 -> 0 | D14: ='Tax Credits'!C51 -> MMBtu/yr | F14: Equity IRR | G14: =IFERROR('Stop-Light Indicators'!C10,"") -> G | H14: =IFERROR('_Calcs_Life_Cycle_Cost (2)'!B11,"") -> 0.1514549951 | K14: Benefit Cost Ratio (After Tax) | P14: Benefit Cost Ratio (After Tax)
A15: Investment Tax Credits | C15: Total | F15: Project IRR | G15: =+'Stop-Light Indicators'!C11 -> G | H15: =IFERROR('_Calcs_Life_Cycle_Cost (2)'!B12,"") -> 0.1862746754 | K15: After-Tax Discounted Payback | P15: After-Tax Discounted Payback
A16: Federal ITC | B16: 1 | C16: =SUM('Tax Credits'!D63:M63)*Sens_FedTaxCredit -> 0 | F16: Net Present Value | G16: =+'Stop-Light Indicators'!C12 -> Y | H16: =IFERROR('_Calcs_Life_Cycle_Cost (2)'!B9,"") -> 522149.7568 | K16: Non-Discounted Payback | P16: Non-Discounted Payback
A17: State ITC | B17: 1 | C17: =SUM('Tax Credits'!D64:M64)*Sens_StateTaxCredit -> 0 | F17: Benefit Cost Ratio (After Tax) | G17: =IFERROR(+'Stop-Light Indicators'!C15,"") -> G | H17: =IFERROR('_Calcs_Life_Cycle_Cost (2)'!B7,"") -> 2.355134068 | K17: Simple Payback, First Year Operation | P17: Simple Payback, First Year Operation
A18: Local ITC | B18: 1 | C18: =SUM('Tax Credits'!D65:M65)*Sens_LocalTaxCredit -> 0 | F18: After-Tax Discounted Payback | G18: =+'Stop-Light Indicators'!C13 -> Y | H18: =IFERROR('_Calcs_Life_Cycle_Cost (2)'!B8,"") -> 7.620242035 | I18: =IF(H18="Exceeds Life","","years") -> years
A19: Income | C19: 1st Yr Unit Costs | F19: Simple Payback | H19: Value | K19: SCENARIO B | P19: SCENARIO H
B20: 1 | C20: =+'Sales & Savings'!G18*B20 -> 0 | D20: =+'Sales & Savings'!F18 -> $/MWh | F20: Non-Discounted Payback | G20: =+'Stop-Light Indicators'!$C$14 -> Y | H20: =IFERROR('_Calcs_Life_Cycle_Cost (2)'!B13,"") -> 5.576769141 | I20: years
B21: 1 | C21: =IF(A21<>"",+'Sales & Savings'!G25*B21,"") ->  | D21: =IF(A21<>"",+'Sales & Savings'!F25,"") ->  | F21: Simple Payback, First Year Operation | G21: =+'Stop-Light Indicators'!$C$14 -> Y | H21: ='_Calcs_Life_Cycle_Cost (2)'!K101 -> 7.414471267 | I21: years | K21: 1B Biomass steam generation with extraction/condensing turbine (Alternate Scenario) | P21: 1B Biomass steam generation with extraction/condensing turbine (Alternate Scenario)
B22: 1 | C22: =IF(A22<>"",+'Sales & Savings'!G32*B22,"") ->  | D22: =IF(A22<>"",+'Sales & Savings'!F32,"") ->  | K22: Equity IRR | P22: Equity IRR
B23: 1 | C23: =IF(A23<>"",+'Sales & Savings'!G39*B23,"") ->  | D23: =IF(A23<>"",+'Sales & Savings'!F39,"") ->  | F23: FINANCIAL SCORECARD | K23: Project IRR | P23: Project IRR
B24: 1 | C24: =IF(A24<>"",+'Sales & Savings'!G46*B24,"") ->  | D24: =IF(A24<>"",'Sales & Savings'!F46,"") ->  | F24: Scorecard Year | G24: 10 | K24: Net Present Value | P24: Net Present Value
B25: 1 | C25: =IF(A25<>"",+'Sales & Savings'!G53*B25,"") ->  | D25: =IF(A25<>"",'Sales & Savings'!F53,"") ->  | F25: Profitability Ratios (Margins) | H25: Value | K25: Benefit Cost Ratio (After Tax) | P25: Benefit Cost Ratio (After Tax)
B26: 1 | C26: =IF(A26<>"",+'Sales & Savings'!G60*Sens_CogenSales,"") ->  | D26: =IF(A26<>"",+'Sales & Savings'!F60,"") ->  | F26: Gross Margin | G26: =IFERROR(+'Stop-Light Indicators'!C17,"") -> N/A | H26: =IFERROR(+'Stop-Light Indicators'!B17,"") -> N/A | K26: After-Tax Discounted Payback | P26: After-Tax Discounted Payback
B27: 1 | C27: =IF(A27<>"",+'Sales & Savings'!G67*Sens_CoolSales,"") ->  | D27: =IF(A27<>"",+'Sales & Savings'!F67,"") ->  | F27: Operating Margin | G27: =IFERROR(+'Stop-Light Indicators'!C18,"") -> N/A | H27: =IFERROR(+'Stop-Light Indicators'!B18,"") -> N/A | K27: Non-Discounted Payback | P27: Non-Discounted Payback
B28: 1 | C28: =IF(A28<>"",+'Sales & Savings'!G74*Sens_HeatSales,"") ->  | D28: =IF(A28<>"",+'Sales & Savings'!F74,"") ->  | F28: Pre - Tax Margin | G28: =IFERROR(+'Stop-Light Indicators'!C19,"") -> N/A | H28: =IFERROR(+'Stop-Light Indicators'!B19,"") -> N/A | K28: Simple Payback, First Year Operation | P28: Simple Payback, First Year Operation
A29: Purchased Quantities | C29: 1st Yr Unit Costs | F29: After - Tax Margin | G29: =IFERROR(+'Stop-Light Indicators'!C20,"") -> N/A | H29: =IFERROR(+'Stop-Light Indicators'!B20,"") -> N/A
A30: Diesel, Hospital HTG (savings) | B30: 1 | C30: =+IF(Purchases!$E$16="False",Purchases!F31*B30, Purchases!F66) -> 3.4 | D30: =+IF(Purchases!$E$16="False",Purchases!E31,Purchases!E53) -> $/ gallons | F30: Liquidity Measures | H30: Value
A31: Electricity, Medical Offices HTG (savings) | B31: 1 | C31: =+IF(Purchases!$E$16="False",Purchases!F32*B31, Purchases!F67) -> 0.040963 | D31: =+IF(Purchases!$E$16="False",Purchases!E32,Purchases!E54) -> $/ kWh | F31: Current Ratio | G31: =IFERROR(+'Stop-Light Indicators'!C22,"") -> N/A | H31: =IFERROR(+'Stop-Light Indicators'!B22,"") -> N/A
A32: Heat Recovered from Industrial Facility | B32: 1 | C32: =+IF(Purchases!$E$16="False",Purchases!F33*B32, Purchases!F68) -> 13.65 | D32: =+IF(Purchases!$E$16="False",Purchases!E33,Purchases!E55) -> $/MMBtu | F32: Acid Test Ratio | G32: =IFERROR(+'Stop-Light Indicators'!C23,"") -> N/A | H32: =IFERROR(+'Stop-Light Indicators'!B23,"") -> N/A
A33: Biomass Fuel | B33: 1 | C33: =+IF(Purchases!$E$16="False",Purchases!F34*B33, Purchases!F69) -> 185 | D33: =+IF(Purchases!$E$16="False",Purchases!E34,Purchases!E56) -> $/bdt | F33: Cash Flow Ratios | H33: Value
B34: 1 | C34: =+IF(Purchases!$E$16="False",Purchases!F35*B34, Purchases!F70) -> 0 | D34: =+IF(Purchases!$E$16="False",Purchases!E35,Purchases!E57) ->  | F34: Debt Service Coverage Ratio | G34: =+'Stop-Light Indicators'!C25 -> N/A | H34: =+'Stop-Light Indicators'!B25 -> N/A
B35: 1 | C35: =+IF(Purchases!$E$16="False",Purchases!F36*B35, Purchases!F71) -> 0 | D35: =+IF(Purchases!$E$16="False",Purchases!E36,Purchases!E58) ->  | F35: Leverage Ratios | H35: Value
B36: 1 | C36: =+IF(Purchases!$E$16="False",Purchases!F37*B36, Purchases!F72) -> 0 | D36: =+IF(Purchases!$E$16="False",Purchases!E37,Purchases!E59) ->  | F36: Debt to Equity | G36: =IFERROR('Stop-Light Indicators'!C27,"") -> N/A | H36: =IFERROR('Stop-Light Indicators'!B27,"") -> N/A
B37: 1 | C37: =+IF(Purchases!$E$16="False",Purchases!F38*B37, Purchases!F73) -> 0 | D37: =+IF(Purchases!$E$16="False",Purchases!E38,Purchases!E60) ->  | F37: Debt Ratio | G37: =IFERROR(+'Stop-Light Indicators'!C28,"N/A") -> R | H37: =IFERROR(+'Stop-Light Indicators'!B28,"N/A ") -> NA
B38: 1 | C38: =+IF(Purchases!$E$16="False",Purchases!F39*B38, Purchases!F74) -> 0 | D38: =+IF(Purchases!$E$16="False",Purchases!E39,Purchases!E61) ->  | F38: Equity Ratio | G38: =IFERROR(+'Stop-Light Indicators'!C29,"N/A") -> G | H38: =IFERROR(+'Stop-Light Indicators'!B29,"N/A ") -> NA
B39: 1 | C39: =+IF(Purchases!$E$16="False",Purchases!F40*B39, Purchases!F75) -> 0 | D39: =+IF(Purchases!$E$16="False",Purchases!E40,Purchases!E62) ->  | F39: Debt-Asset Ratio | G39: =IFERROR(+'Stop-Light Indicators'!C30,"") -> G | H39: =IFERROR(+'Stop-Light Indicators'!B30,"") -> -3.129381161e-17
A40: Expenses | C40: 1st 5 Years | F40: =+'Stop-Light Indicators'!A31 -> Interest Coverage | G40: =+'Stop-Light Indicators'!C31 -> N/A | H40: =+'Stop-Light Indicators'!B31 -> N/A
A41: =A382 -> Capital Expenses | B41: 1 | C41: =+'Capital Expenditures'!H83 -> 708743 | D41: Total | F41: Cash Flow and Profit in Scorecard Year | H41: Value
A42: Major Expenses | B42: 1 | C42: =+SUM('Major Expenses'!C36:G36) -> 0 | D42: Total | F42: =O_CashFlow!B29 -> Net Cash Flow (Discounted) | H42: =HLOOKUP(Scorecard_Year,CashFlowStatement,24,FALSE) -> 45576.42321
A43: O&M Expenses (Cost of Sales) | B43: 1 | C43: =IFERROR(+AVERAGE(O_Operating_Costs!C10:G10),"") -> -54774.44486 | D43: Ave. | F43: =O_CashFlow!B31 -> Cash Balance | H43: =HLOOKUP(Scorecard_Year,CashFlowStatement,26,FALSE) -> 221275.7149
A44: Operating Expenses, Other | B44: 1 | C44: =IFERROR(+AVERAGE(O_Operating_Costs!C11:G11),"") ->  | D44: Ave. | F44: ='O_IncomeStatement (Tax)'!B11 -> Gross Income (Profit) | H44: =HLOOKUP(Scorecard_Year,IncomeStatementSH,5,FALSE) -> 70703.99131
A45: Operating Labor | B45: 1 | C45: =+AVERAGE(O_Operating_Costs!C23:G23) -> 0 | D45: Ave. | F45: ='O_IncomeStatement (Tax)'!B15 -> Operating Income (EBIT) | H45: =HLOOKUP(Scorecard_Year,IncomeStatementSH,9,FALSE) -> 70703.99131
A46: Insurance Expense | B46: 1 | C46: =+AVERAGE(O_Operating_Costs!C25:G25) -> 0 | D46: Ave | F46: ='O_IncomeStatement (SH)'!B20 -> Net Profit After Taxes | H46: =HLOOKUP(Scorecard_Year,IncomeStatementSH,15,FALSE) -> 70703.99131
A47: Property Taxes | B47: 1 | C47: =+AVERAGE(O_Operating_Costs!C24:G24) -> 0 | D47: Ave. | F47: Levelized Costs (Taxes + franchise fees included)
A48: Operation | C48: 1st 5 Years | F48: =IF(A20="","",CONCATENATE("Levelized Cost: ",A20)) ->  | G48: =IFERROR(+'Stop-Light Indicators'!C38,"") -> G | H48: =IFERROR(+'Stop-Light Indicators'!B38,"") -> 0 | I48: =IF(+'Calcs_Financial Indicators'!B38=0,"",'Calcs_Financial Indicators'!B38) -> $/MWh
A49: Plant Operating Factor | B49: 1 | C49: =AVERAGE(General!D33:W33) -> 1 | D49: Ave. | G49: =IFERROR(+'Stop-Light Indicators'!C39,"") -> Y | H49: =IFERROR(+'Stop-Light Indicators'!B39,"") -> 0 | I49: =IF(+'Calcs_Financial Indicators'!B39=0,"",'Calcs_Financial Indicators'!B39) -> $/1000 lb
A50: Borrowed Funds | G50: =IFERROR(+'Stop-Light Indicators'!C40,"") -> Y | H50: =IFERROR(+'Stop-Light Indicators'!B40,"") -> 0 | I50: =IF(+'Calcs_Financial Indicators'!B40=0,"",'Calcs_Financial Indicators'!B40) -> $/total
A51: Low Interest Loan | B51: 1 | C51: =+'Funding Plan'!C71 -> 100000 | D51: =IF('Funding Plan'!C$20<>"",'Funding Plan'!C$20,"") -> Low Interest Loan | G51: =IFERROR(+'Stop-Light Indicators'!C41,"") -> Y | H51: =IFERROR(+'Stop-Light Indicators'!B41,"") -> 0 | I51: =IF(+'Calcs_Financial Indicators'!B41=0,"",'Calcs_Financial Indicators'!B41) -> $/kW
A52: Loan 2 | B52: 1 | C52: =+'Funding Plan'!D71 -> 0 | D52: =IF('Funding Plan'!D$20<>"",'Funding Plan'!D$20,"") ->  | G52: =IFERROR(+'Stop-Light Indicators'!C42,"") -> Y | H52: =IFERROR(+'Stop-Light Indicators'!B42,"") -> 0 | I52: =IF(+'Calcs_Financial Indicators'!B42=0,"",'Calcs_Financial Indicators'!B42) -> $/MMBtu
A53: Loan 3 | B53: 1 | C53: ='Funding Plan'!E71 -> 0 | D53: =IF('Funding Plan'!E$20<>"",'Funding Plan'!E$20,"") ->  | G53: =+'Stop-Light Indicators'!C43 -> Y | H53: =+'Stop-Light Indicators'!B43 -> 0 | I53: =IF(+'Calcs_Financial Indicators'!B46=0,"",'Calcs_Financial Indicators'!B46) -> 
A54: Interest Rate, Low Interest Loan | B54: 1 | C54: =+'Funding Plan'!C74 -> 0.04 | D54: =IF(+'Funding Plan'!C$20<>"",+'Funding Plan'!C$20,"") -> Low Interest Loan | G54: =+'Stop-Light Indicators'!C44 -> Y | H54: =+'Stop-Light Indicators'!B44 -> 0
A55: Interest Rate, Loan 2 | B55: 1 | C55: =+'Funding Plan'!D74 -> 0 | D55: =IF(+'Funding Plan'!D$20<>"",+'Funding Plan'!D$20,"") ->  | G55: =+'Stop-Light Indicators'!C45 -> Y | H55: =+'Stop-Light Indicators'!B45 -> 0
A56: Interest Rate, Loan 3 | B56: 1 | C56: ='Funding Plan'!E74 -> 0 | D56: =IF(+'Funding Plan'!E$20<>"",+'Funding Plan'!E$20,"") ->  | G56: =+'Stop-Light Indicators'!C46 -> Y | H56: =+'Stop-Light Indicators'!B46 -> 0
A57: Equity Investments | F57: Define red, yellow and green indicators on "Stop-Light Colors" tab
A58: Equity Investment | B58: 1 | C58: ='Funding Plan'!C72 -> 0 | D58: =IF('Funding Plan'!C$32<>"",'Funding Plan'!C$32,"") -> Equity Investment
A59: Equity Investment 2 | B59: 1 | C59: =+'Funding Plan'!D72 -> 0 | D59: =IF('Funding Plan'!D$32<>"",'Funding Plan'!D$32,"") -> 
A60: Equity Investment 3 | B60: 1 | C60: ='Funding Plan'!E72 -> 0 | D60: =IF('Funding Plan'!E$32<>"",'Funding Plan'!E$32,"") -> 
A61: Grants
A62: USDA REAP Grant | B62: 1 | C62: ='Funding Plan'!C73 -> 177185.75 | D62: =IF(+'Funding Plan'!C$40<>"",+'Funding Plan'!C$40,"") -> USDA REAP Grant
A63: SEP Grant | B63: 1 | C63: ='Funding Plan'!D73 -> 100000 | D63: =IF(+'Funding Plan'!D$40<>"",+'Funding Plan'!D$40,"") -> SEP Grant
A64: USFS Biomass Utilization Study Grant | B64: 1 | C64: ='Funding Plan'!E73 -> 46245 | D64: =IF(+'Funding Plan'!E$40<>"",+'Funding Plan'!E$40,"") -> USFS Biomass Utilization Study Grant
A65: Financial Assumptions | G65: =IF(AND(A70<>"",C70=""),"Value must be entered in 3rd column to appear on spider diagram. Link to where used.","") -> 
A66: Discount Rate | B66: 1 | C66: =Discount_rate -> 0.05
A67: Inflation Rate | B67: 1 | C67: =Inflation -> 0.027
A68: Project Life | B68: 1 | C68: =ProjectLife -> 20 | D68: years
A69: User-Defined Sensitivity Factors (Optional) | C69: 1st Year | E69: Notes
A78: User-Defined Multipliers and Values (Optional)
A86: Project | B86: 1
A87: Option | B87: B | C87: =IFERROR(IF(OR(MainOption<>Option,MainProject<>Project),"Update menu",""),"") -> 
A88: SAVE LCCA RESULTS OF SCENARIOS - ADDITIONAL SPACE
A92: SCENARIO A | F92: SCENARIO G | I92: Save at top
B94: =IF(L10<>"",L10,"") ->  | C94: =IF(M10<>"",M10,"") ->  | D94: =IF(N10<>"",N10,"") ->  | E94: =IF(O10<>"",O10,"") ->  | G94: =IF(Q10<>"",Q10,"") ->  | H94: =IF(R10<>"",R10,"") -> 
A95: =IF(K11<>"",K11,"") -> Equity IRR | F95: =IF(P11<>"",P11,"") -> Equity IRR
A96: Project IRR | F96: Project IRR
A97: Net Present Value | F97: Net Present Value
A98: Benefit Cost Ratio (After Tax) | F98: Benefit Cost Ratio (After Tax)
A99: After-Tax Discounted Payback | F99: After-Tax Discounted Payback
A100: Non-Discounted Payback | F100: Non-Discounted Payback
A101: Simple Payback, First Year Operation | F101: Simple Payback, First Year Operation
A103: SCENARIO B | F103: SCENARIO H
A106: =IF(K22<>"",K22,"") -> Equity IRR | F106: =IF(P22<>"",P22,"") -> Equity IRR
A107: Project IRR | F107: Project IRR
A108: Net Present Value | F108: Net Present Value
A109: Benefit Cost Ratio (After Tax) | F109: Benefit Cost Ratio (After Tax)
A110: After-Tax Discounted Payback | F110: After-Tax Discounted Payback
A111: Non-Discounted Payback | F111: Non-Discounted Payback
A112: Simple Payback, First Year Operation | F112: Simple Payback, First Year Operation
A114: SCENARIO C | F114: SCENARIO I
A117: Equity IRR | F117: Equity IRR
A118: Project IRR | F118: Project IRR
A119: Net Present Value | F119: Net Present Value
A120: Benefit Cost Ratio (After Tax) | F120: Benefit Cost Ratio (After Tax)
A121: After-Tax Discounted Payback | F121: After-Tax Discounted Payback
A122: Non-Discounted Payback | F122: Non-Discounted Payback
A123: Simple Payback, First Year | F123: Simple Payback, First Year
A125: SCENARIO D | F125: SCENARIO J
A128: Equity IRR | F128: Equity IRR
A129: Project IRR | F129: Project IRR
A130: Net Present Value | F130: Net Present Value
A131: Benefit Cost Ratio (After Tax) | F131: Benefit Cost Ratio (After Tax)
A132: After-Tax Discounted Payback | F132: After-Tax Discounted Payback
A133: Non-Discounted Payback | F133: Non-Discounted Payback
A134: Simple Payback, First Year | F134: Simple Payback, First Year
A136: SCENARIO E | F136: SCENARIO K
A139: Equity IRR | F139: Equity IRR
A140: Project IRR | F140: Project IRR
A141: Net Present Value | F141: Net Present Value
A142: Benefit Cost Ratio (After Tax) | F142: Benefit Cost Ratio (After Tax)
A143: After-Tax Discounted Payback | F143: After-Tax Discounted Payback
A144: Non-Discounted Payback | F144: Non-Discounted Payback
A145: Simple Payback, First Year | F145: Simple Payback, First Year
A147: SCENARIO F | F147: SCENARIO L
A150: Equity IRR | F150: Equity IRR
A151: Project IRR | F151: Project IRR
A152: Net Present Value | F152: Net Present Value
A153: Benefit Cost Ratio (After Tax) | F153: Benefit Cost Ratio (After Tax)
A154: After-Tax Discounted Payback | F154: After-Tax Discounted Payback
A155: Non-Discounted Payback | F155: Non-Discounted Payback
A156: Simple Payback, First Year | F156: Simple Payback, First Year | G156: Y | H156: 3.880012879
A177: REFERENCES
A178: Levelized Costs | B178: http://www.eia.gov/conference/2013/pdf/presentations/namovicz.pdf
A214: Chart Data Below this line
A215: Toggle_Comments | B215: Hidden
A216: CopyingEverywhere | B216: No
A217: Copied | B217: No
B232: 0 | C232: =+B232+1 -> 1 | D232: 2 | E232: =+D232+1 -> 3 | F232: =+E232+1 -> 4 | G232: 5 | H232: 6 | I232: =+H232+1 -> 7 | J232: =+I232+1 -> 8 | K232: =+J232+1 -> 9 | L232: =+K232+1 -> 10 | M232: 11 | N232: 12 | O232: 13 | P232: 14 | Q232: 15 | R232: 16 | S232: 17 | T232: =+S232+1 -> 18 | U232: 19 | V232: 20 | W232: 21 | X232: 22 | Y232: 23 | Z232: 24 | AA232: 25 | AB232: 26 | AC232: 27 | AD232: =+AC232+1 -> 28 | AE232: 29 | AF232: 30
A233: Discounted cash flow ($1000) | B233: =+O_CashFlow!C29/1000 -> -243.74747 | C233: =+O_CashFlow!D29/1000 -> 31.5813631 | D233: =+O_CashFlow!E29/1000 -> 31.64685004 | E233: =+O_CashFlow!F29/1000 -> 31.67878894 | F233: =+O_CashFlow!G29/1000 -> 31.67925941 | G233: =+O_CashFlow!H29/1000 -> 40.33234194 | H233: =+O_CashFlow!I29/1000 -> 48.14174935 | I233: =+O_CashFlow!J29/1000 -> 47.27346026 | J233: =+O_CashFlow!K29/1000 -> 46.41841208 | K233: =+O_CashFlow!L29/1000 -> 45.57642321 | L233: =+O_CashFlow!M29/1000 -> 44.74731428 | M233: =+O_CashFlow!N29/1000 -> 43.93090812 | N233: =+O_CashFlow!O29/1000 -> 43.12702977 | O233: =+O_CashFlow!P29/1000 -> 42.33550642 | P233: =+O_CashFlow!Q29/1000 -> 41.5561674 | Q233: =+O_CashFlow!R29/1000 -> 40.78884418 | R233: =+O_CashFlow!S29/1000 -> 40.03337031 | S233: =+O_CashFlow!T29/1000 -> 39.28958141 | T233: =+O_CashFlow!U29/1000 -> 38.55731518 | U233: =+O_CashFlow!V29/1000 -> 37.83641133 | V233: =+O_CashFlow!W29/1000 -> 37.12671159 | W233: =+O_CashFlow!X29/1000 -> 36.42805969 | X233: =+O_CashFlow!Y29/1000 -> 35.7403013 | Y233: =+O_CashFlow!Z29/1000 -> 35.06328406 | Z233: =+O_CashFlow!AA29/1000 -> 34.39685754 | AA233: =+O_CashFlow!AB29/1000 -> 33.74087319 | AB233: =+O_CashFlow!AC29/1000 -> 33.09518438 | AC233: =+O_CashFlow!AD29/1000 -> 32.4596463 | AD233: =+O_CashFlow!AE29/1000 -> 31.83411602 | AE233: =+O_CashFlow!AF29/1000 -> 31.21845243 | AF233: =+O_CashFlow!AG29/1000 -> 30.61251619
B234: =+B232 -> 0 | C234: 1 | D234: 2 | E234: 3 | F234: 4 | G234: 5 | H234: 6 | I234: =+I232 -> 7 | J234: 8 | K234: 9 | L234: 10 | M234: 11 | N234: 12 | O234: 13 | P234: 14 | Q234: 15 | R234: 16 | S234: 17 | T234: =+T232 -> 18 | U234: 19 | V234: 20 | W234: 21 | X234: 22 | Y234: 23 | Z234: 24 | AA234: 25 | AB234: 26 | AC234: 27 | AD234: 28 | AE234: 29 | AF234: =+AF232 -> 30
A235: Fixed Cost ($1000) | B235: =+O_Operating_Costs!C9/1000 -> 8.249554834 | C235: =+O_Operating_Costs!D9/1000 -> 8.798243642 | D235: =+O_Operating_Costs!E9/1000 -> 8.181520042 | E235: =+O_Operating_Costs!F9/1000 -> 7.537650663 | F235: =+O_Operating_Costs!G9/1000 -> 6.865475018 | G235: =+O_Operating_Costs!H9/1000 -> 6.225377242 | H235: =+O_Operating_Costs!I9/1000 -> 6.218684606 | I235: =+O_Operating_Costs!J9/1000 -> 6.38658909 | J235: =+O_Operating_Costs!K9/1000 -> 6.559026996 | K235: =+O_Operating_Costs!L9/1000 -> 6.736120725 | L235: =+O_Operating_Costs!M9/1000 -> 6.917995984 | M235: =+O_Operating_Costs!N9/1000 -> 7.104781876 | N235: =+O_Operating_Costs!O9/1000 -> 7.296610986 | O235: =+O_Operating_Costs!P9/1000 -> 7.493619483 | P235: =+O_Operating_Costs!Q9/1000 -> 7.695947209 | Q235: =+O_Operating_Costs!R9/1000 -> 7.903737784 | R235: =+O_Operating_Costs!S9/1000 -> 8.117138704 | S235: =+O_Operating_Costs!T9/1000 -> 8.336301449 | T235: =+O_Operating_Costs!U9/1000 -> 8.561381588 | U235: =+O_Operating_Costs!V9/1000 -> 8.792538891 | V235: =+O_Operating_Costs!W9/1000 -> 9.029937441 | W235: =+O_Operating_Costs!X9/1000 -> 9.273745752 | X235: =+O_Operating_Costs!Y9/1000 -> 9.524136887 | Y235: =+O_Operating_Costs!Z9/1000 -> 9.781288583 | Z235: =+O_Operating_Costs!AA9/1000 -> 10.04538337 | AA235: =+O_Operating_Costs!AB9/1000 -> 10.31660873 | AB235: =+O_Operating_Costs!AC9/1000 -> 10.59515716 | AC235: =+O_Operating_Costs!AD9/1000 -> 10.8812264 | AD235: =+O_Operating_Costs!AE9/1000 -> 11.17501952 | AE235: =+O_Operating_Costs!AF9/1000 -> 11.47674504 | AF235: =+O_Operating_Costs!AG9/1000 -> 11.78661716
A236: Variable Cost ($1000) | B236: =+O_Operating_Costs!C8/1000 -> -58.94 | C236: =+O_Operating_Costs!D8/1000 -> -60.76584 | D236: =+O_Operating_Costs!E8/1000 -> -62.64557024 | E236: =+O_Operating_Costs!F8/1000 -> -64.58065717 | F236: =+O_Operating_Costs!G8/1000 -> -66.57260108 | G236: =+O_Operating_Costs!H8/1000 -> -68.62293659 | H236: =+O_Operating_Costs!I8/1000 -> -70.73323305 | I236: =+O_Operating_Costs!J8/1000 -> -72.90509501 | J236: =+O_Operating_Costs!K8/1000 -> -75.14016262 | K236: =+O_Operating_Costs!L8/1000 -> -77.44011204 | L236: =+O_Operating_Costs!M8/1000 -> -79.80665577 | M236: =+O_Operating_Costs!N8/1000 -> -82.24154307 | N236: =+O_Operating_Costs!O8/1000 -> -84.74656022 | O236: =+O_Operating_Costs!P8/1000 -> -87.32353085 | P236: =+O_Operating_Costs!Q8/1000 -> -89.97431621 | Q236: =+O_Operating_Costs!R8/1000 -> -92.70081536 | R236: =+O_Operating_Costs!S8/1000 -> -95.50496544 | S236: =+O_Operating_Costs!T8/1000 -> -98.38874174 | T236: =+O_Operating_Costs!U8/1000 -> -101.3541579 | U236: =+O_Operating_Costs!V8/1000 -> -104.4032659 | V236: =+O_Operating_Costs!W8/1000 -> -107.5381561 | W236: =+O_Operating_Costs!X8/1000 -> -110.7609573 | X236: =+O_Operating_Costs!Y8/1000 -> -114.0738364 | Y236: =+O_Operating_Costs!Z8/1000 -> -117.4789985 | Z236: =+O_Operating_Costs!AA8/1000 -> -120.9786867 | AA236: =+O_Operating_Costs!AB8/1000 -> -124.5751814 | AB236: =+O_Operating_Costs!AC8/1000 -> -128.2708004 | AC236: =+O_Operating_Costs!AD8/1000 -> -132.0678981 | AD236: =+O_Operating_Costs!AE8/1000 -> -135.9688653 | AE236: =+O_Operating_Costs!AF8/1000 -> -139.9761283 | AF236: =+O_Operating_Costs!AG8/1000 -> -144.0921481
B238: 1 | C238: 2 | D238: 3 | E238: 4 | F238: 5 | G238: 6 | H238: 7 | I238: 8 | J238: 9 | K238: 10 | L238: 11 | M238: 12 | N238: 13 | O238: 14 | P238: 15 | Q238: 16 | R238: 17 | S238: 18 | T238: 18 | U238: 18 | V238: 18 | W238: 18 | X238: 18 | Y238: 18 | Z238: 18 | AA238: 18 | AB238: 18 | AC238: 18 | AD238: 18 | AE238: 18 | AF238: 18
A239: =A313 -> Purchased Fuels | B239: =B313/1000 -> -58.94 | C239: =C313/1000 -> -60.76584 | D239: -62.64557024 | E239: -64.58065717 | F239: -66.57260108 | G239: -68.62293659 | H239: -70.73323305 | I239: -72.90509501 | J239: -75.14016262 | K239: -77.44011204 | L239: -79.80665577 | M239: -82.24154307 | N239: -84.74656022 | O239: -87.32353085 | P239: -89.97431621 | Q239: -92.70081536 | R239: -95.50496544 | S239: -98.38874174 | T239: -101.3541579 | U239: -104.4032659 | V239: -107.5381561 | W239: -110.7609573 | X239: -114.0738364 | Y239: -117.4789985 | Z239: -120.9786867 | AA239: -124.5751814 | AB239: -128.2708004 | AC239: -132.0678981 | AD239: =AD313/1000 -> -135.9688653 | AE239: -139.9761283 | AF239: -144.0921481
A240: =A314 -> Non-Fuel Purchases | B240: =B314/1000 -> 0 | C240: 0 | D240: 0 | E240: 0 | F240: 0 | G240: 0 | H240: 0 | I240: 0 | J240: 0 | K240: 0 | L240: 0 | M240: 0 | N240: 0 | O240: 0 | P240: 0 | Q240: 0 | R240: 0 | S240: 0 | T240: 0 | U240: 0 | V240: 0 | W240: 0 | X240: 0 | Y240: 0 | Z240: 0 | AA240: 0 | AB240: 0 | AC240: 0 | AD240: 0 | AE240: 0 | AF240: 0
A242: Purchased Fuels
A243: =IF(Purchases!D223="","",Purchases!D223) -> Diesel, Hospital HTG (savings) | B243: =Purchases!E223/1000 -> -132.94 | C243: =Purchases!F223/1000 -> -137.72584 | D243: =Purchases!G223/1000 -> -142.6839702 | E243: =Purchases!H223/1000 -> -147.8205932 | F243: =Purchases!I223/1000 -> -153.1421345 | G243: =Purchases!J223/1000 -> -158.6552514 | H243: =Purchases!K223/1000 -> -164.3668404 | I243: =Purchases!L223/1000 -> -170.2840467 | J243: =Purchases!M223/1000 -> -176.4142723 | K243: =Purchases!N223/1000 -> -182.7651862 | L243: =Purchases!O223/1000 -> -189.3447329 | M243: =Purchases!P223/1000 -> -196.1611432 | N243: =Purchases!Q223/1000 -> -203.2229444 | O243: =Purchases!R223/1000 -> -210.5389704 | P243: =Purchases!S223/1000 -> -218.1183733 | Q243: =Purchases!T223/1000 -> -225.9706348 | R243: =Purchases!U223/1000 -> -234.1055776 | S243: =Purchases!V223/1000 -> -242.5333784 | T243: =Purchases!W223/1000 -> -251.26458 | U243: =Purchases!X223/1000 -> -260.3101049 | V243: =Purchases!Y223/1000 -> -269.6812687 | W243: =Purchases!Z223/1000 -> -279.3897944 | X243: =Purchases!AA223/1000 -> -289.447827 | Y243: =Purchases!AB223/1000 -> -299.8679487 | Z243: =Purchases!AC223/1000 -> -310.6631949 | AA243: =Purchases!AD223/1000 -> -321.8470699 | AB243: =Purchases!AE223/1000 -> -333.4335644 | AC243: =Purchases!AF223/1000 -> -345.4371727 | AD243: =Purchases!AG223/1000 -> -357.872911 | AE243: =Purchases!AH223/1000 -> -370.7563358 | AF243: =Purchases!AI223/1000 -> -384.1035638
A244: =IF(Purchases!D224="","",Purchases!D224) ->  | B244: =Purchases!E224/1000 -> 0 | C244: =Purchases!F224/1000 -> 0 | D244: =Purchases!G224/1000 -> 0 | E244: =Purchases!H224/1000 -> 0 | F244: =Purchases!I224/1000 -> 0 | G244: =Purchases!J224/1000 -> 0 | H244: =Purchases!K224/1000 -> 0 | I244: =Purchases!L224/1000 -> 0 | J244: =Purchases!M224/1000 -> 0 | K244: =Purchases!N224/1000 -> 0 | L244: =Purchases!O224/1000 -> 0 | M244: =Purchases!P224/1000 -> 0 | N244: =Purchases!Q224/1000 -> 0 | O244: =Purchases!R224/1000 -> 0 | P244: =Purchases!S224/1000 -> 0 | Q244: =Purchases!T224/1000 -> 0 | R244: =Purchases!U224/1000 -> 0 | S244: =Purchases!V224/1000 -> 0 | T244: =Purchases!W224/1000 -> 0 | U244: =Purchases!X224/1000 -> 0 | V244: =Purchases!Y224/1000 -> 0 | W244: =Purchases!Z224/1000 -> 0 | X244: =Purchases!AA224/1000 -> 0 | Y244: =Purchases!AB224/1000 -> 0 | Z244: =Purchases!AC224/1000 -> 0 | AA244: =Purchases!AD224/1000 -> 0 | AB244: =Purchases!AE224/1000 -> 0 | AC244: =Purchases!AF224/1000 -> 0 | AD244: =Purchases!AG224/1000 -> 0 | AE244: =Purchases!AH224/1000 -> 0 | AF244: =Purchases!AI224/1000 -> 0
A245: =IF(Purchases!D225="","",Purchases!D225) ->  | B245: =Purchases!E225/1000 -> 0 | C245: =Purchases!F225/1000 -> 0 | D245: =Purchases!G225/1000 -> 0 | E245: =Purchases!H225/1000 -> 0 | F245: =Purchases!I225/1000 -> 0 | G245: =Purchases!J225/1000 -> 0 | H245: =Purchases!K225/1000 -> 0 | I245: =Purchases!L225/1000 -> 0 | J245: =Purchases!M225/1000 -> 0 | K245: =Purchases!N225/1000 -> 0 | L245: =Purchases!O225/1000 -> 0 | M245: =Purchases!P225/1000 -> 0 | N245: =Purchases!Q225/1000 -> 0 | O245: =Purchases!R225/1000 -> 0 | P245: =Purchases!S225/1000 -> 0 | Q245: =Purchases!T225/1000 -> 0 | R245: =Purchases!U225/1000 -> 0 | S245: =Purchases!V225/1000 -> 0 | T245: =Purchases!W225/1000 -> 0 | U245: =Purchases!X225/1000 -> 0 | V245: =Purchases!Y225/1000 -> 0 | W245: =Purchases!Z225/1000 -> 0 | X245: =Purchases!AA225/1000 -> 0 | Y245: =Purchases!AB225/1000 -> 0 | Z245: =Purchases!AC225/1000 -> 0 | AA245: =Purchases!AD225/1000 -> 0 | AB245: =Purchases!AE225/1000 -> 0 | AC245: =Purchases!AF225/1000 -> 0 | AD245: =Purchases!AG225/1000 -> 0 | AE245: =Purchases!AH225/1000 -> 0 | AF245: =Purchases!AI225/1000 -> 0
A246: =IF(Purchases!D226="","",Purchases!D226) -> Biomass Fuel | B246: =Purchases!E226/1000 -> 74 | C246: =Purchases!F226/1000 -> 76.96 | D246: =Purchases!G226/1000 -> 80.0384 | E246: =Purchases!H226/1000 -> 83.239936 | F246: =Purchases!I226/1000 -> 86.56953344 | G246: =Purchases!J226/1000 -> 90.03231478 | H246: =Purchases!K226/1000 -> 93.63360737 | I246: =Purchases!L226/1000 -> 97.37895166 | J246: =Purchases!M226/1000 -> 101.2741097 | K246: =Purchases!N226/1000 -> 105.3250741 | L246: =Purchases!O226/1000 -> 109.5380771 | M246: =Purchases!P226/1000 -> 113.9196002 | N246: =Purchases!Q226/1000 -> 118.4763842 | O246: =Purchases!R226/1000 -> 123.2154395 | P246: =Purchases!S226/1000 -> 128.1440571 | Q246: =Purchases!T226/1000 -> 133.2698194 | R246: =Purchases!U226/1000 -> 138.6006122 | S246: =Purchases!V226/1000 -> 144.1446367 | T246: =Purchases!W226/1000 -> 149.9104221 | U246: =Purchases!X226/1000 -> 155.906839 | V246: =Purchases!Y226/1000 -> 162.1431126 | W246: =Purchases!Z226/1000 -> 168.6288371 | X246: =Purchases!AA226/1000 -> 175.3739906 | Y246: =Purchases!AB226/1000 -> 182.3889502 | Z246: =Purchases!AC226/1000 -> 189.6845082 | AA246: =Purchases!AD226/1000 -> 197.2718885 | AB246: =Purchases!AE226/1000 -> 205.1627641 | AC246: =Purchases!AF226/1000 -> 213.3692746 | AD246: =Purchases!AG226/1000 -> 221.9040456 | AE246: =Purchases!AH226/1000 -> 230.7802074 | AF246: =Purchases!AI226/1000 -> 240.0114157
A247: =IF(Purchases!D227="","",Purchases!D227) ->  | B247: =Purchases!E227/1000 -> 0 | C247: =Purchases!F227/1000 -> 0 | D247: =Purchases!G227/1000 -> 0 | E247: =Purchases!H227/1000 -> 0 | F247: =Purchases!I227/1000 -> 0 | G247: =Purchases!J227/1000 -> 0 | H247: =Purchases!K227/1000 -> 0 | I247: =Purchases!L227/1000 -> 0 | J247: =Purchases!M227/1000 -> 0 | K247: =Purchases!N227/1000 -> 0 | L247: =Purchases!O227/1000 -> 0 | M247: =Purchases!P227/1000 -> 0 | N247: =Purchases!Q227/1000 -> 0 | O247: =Purchases!R227/1000 -> 0 | P247: =Purchases!S227/1000 -> 0 | Q247: =Purchases!T227/1000 -> 0 | R247: =Purchases!U227/1000 -> 0 | S247: =Purchases!V227/1000 -> 0 | T247: =Purchases!W227/1000 -> 0 | U247: =Purchases!X227/1000 -> 0 | V247: =Purchases!Y227/1000 -> 0 | W247: =Purchases!Z227/1000 -> 0 | X247: =Purchases!AA227/1000 -> 0 | Y247: =Purchases!AB227/1000 -> 0 | Z247: =Purchases!AC227/1000 -> 0 | AA247: =Purchases!AD227/1000 -> 0 | AB247: =Purchases!AE227/1000 -> 0 | AC247: =Purchases!AF227/1000 -> 0 | AD247: =Purchases!AG227/1000 -> 0 | AE247: =Purchases!AH227/1000 -> 0 | AF247: =Purchases!AI227/1000 -> 0
A248: =IF(OR(Purchases!D228="",Purchases!D228=0),"",Purchases!D228) ->  | B248: =Purchases!E228/1000 -> 0 | C248: =Purchases!F228/1000 -> 0 | D248: =Purchases!G228/1000 -> 0 | E248: =Purchases!H228/1000 -> 0 | F248: =Purchases!I228/1000 -> 0 | G248: =Purchases!J228/1000 -> 0 | H248: =Purchases!K228/1000 -> 0 | I248: =Purchases!L228/1000 -> 0 | J248: =Purchases!M228/1000 -> 0 | K248: =Purchases!N228/1000 -> 0 | L248: =Purchases!O228/1000 -> 0 | M248: =Purchases!P228/1000 -> 0 | N248: =Purchases!Q228/1000 -> 0 | O248: =Purchases!R228/1000 -> 0 | P248: =Purchases!S228/1000 -> 0 | Q248: =Purchases!T228/1000 -> 0 | R248: =Purchases!U228/1000 -> 0 | S248: =Purchases!V228/1000 -> 0 | T248: =Purchases!W228/1000 -> 0 | U248: =Purchases!X228/1000 -> 0 | V248: =Purchases!Y228/1000 -> 0 | W248: =Purchases!Z228/1000 -> 0 | X248: =Purchases!AA228/1000 -> 0 | Y248: =Purchases!AB228/1000 -> 0 | Z248: =Purchases!AC228/1000 -> 0 | AA248: =Purchases!AD228/1000 -> 0 | AB248: =Purchases!AE228/1000 -> 0 | AC248: =Purchases!AF228/1000 -> 0 | AD248: =Purchases!AG228/1000 -> 0 | AE248: =Purchases!AH228/1000 -> 0 | AF248: =Purchases!AI228/1000 -> 0
A249: =IF(OR(Purchases!D229="",Purchases!D229=0),"",Purchases!D229) ->  | B249: =Purchases!E229/1000 -> 0 | C249: =Purchases!F229/1000 -> 0 | D249: =Purchases!G229/1000 -> 0 | E249: =Purchases!H229/1000 -> 0 | F249: =Purchases!I229/1000 -> 0 | G249: =Purchases!J229/1000 -> 0 | H249: =Purchases!K229/1000 -> 0 | I249: =Purchases!L229/1000 -> 0 | J249: =Purchases!M229/1000 -> 0 | K249: =Purchases!N229/1000 -> 0 | L249: =Purchases!O229/1000 -> 0 | M249: =Purchases!P229/1000 -> 0 | N249: =Purchases!Q229/1000 -> 0 | O249: =Purchases!R229/1000 -> 0 | P249: =Purchases!S229/1000 -> 0 | Q249: =Purchases!T229/1000 -> 0 | R249: =Purchases!U229/1000 -> 0 | S249: =Purchases!V229/1000 -> 0 | T249: =Purchases!W229/1000 -> 0 | U249: =Purchases!X229/1000 -> 0 | V249: =Purchases!Y229/1000 -> 0 | W249: =Purchases!Z229/1000 -> 0 | X249: =Purchases!AA229/1000 -> 0 | Y249: =Purchases!AB229/1000 -> 0 | Z249: =Purchases!AC229/1000 -> 0 | AA249: =Purchases!AD229/1000 -> 0 | AB249: =Purchases!AE229/1000 -> 0 | AC249: =Purchases!AF229/1000 -> 0 | AD249: =Purchases!AG229/1000 -> 0 | AE249: =Purchases!AH229/1000 -> 0 | AF249: =Purchases!AI229/1000 -> 0
A250: =IF(OR(Purchases!D230="",Purchases!D230=0),"",Purchases!D230) ->  | B250: =Purchases!E230/1000 -> 0 | C250: =Purchases!F230/1000 -> 0 | D250: =Purchases!G230/1000 -> 0 | E250: =Purchases!H230/1000 -> 0 | F250: =Purchases!I230/1000 -> 0 | G250: =Purchases!J230/1000 -> 0 | H250: =Purchases!K230/1000 -> 0 | I250: =Purchases!L230/1000 -> 0 | J250: =Purchases!M230/1000 -> 0 | K250: =Purchases!N230/1000 -> 0 | L250: =Purchases!O230/1000 -> 0 | M250: =Purchases!P230/1000 -> 0 | N250: =Purchases!Q230/1000 -> 0 | O250: =Purchases!R230/1000 -> 0 | P250: =Purchases!S230/1000 -> 0 | Q250: =Purchases!T230/1000 -> 0 | R250: =Purchases!U230/1000 -> 0 | S250: =Purchases!V230/1000 -> 0 | T250: =Purchases!W230/1000 -> 0 | U250: =Purchases!X230/1000 -> 0 | V250: =Purchases!Y230/1000 -> 0 | W250: =Purchases!Z230/1000 -> 0 | X250: =Purchases!AA230/1000 -> 0 | Y250: =Purchases!AB230/1000 -> 0 | Z250: =Purchases!AC230/1000 -> 0 | AA250: =Purchases!AD230/1000 -> 0 | AB250: =Purchases!AE230/1000 -> 0 | AC250: =Purchases!AF230/1000 -> 0 | AD250: =Purchases!AG230/1000 -> 0 | AE250: =Purchases!AH230/1000 -> 0 | AF250: =Purchases!AI230/1000 -> 0
A251: =IF(OR(Purchases!D231="",Purchases!D231=0),"",Purchases!D231) ->  | B251: =Purchases!E231/1000 -> 0 | C251: =Purchases!F231/1000 -> 0 | D251: =Purchases!G231/1000 -> 0 | E251: =Purchases!H231/1000 -> 0 | F251: =Purchases!I231/1000 -> 0 | G251: =Purchases!J231/1000 -> 0 | H251: =Purchases!K231/1000 -> 0 | I251: =Purchases!L231/1000 -> 0 | J251: =Purchases!M231/1000 -> 0 | K251: =Purchases!N231/1000 -> 0 | L251: =Purchases!O231/1000 -> 0 | M251: =Purchases!P231/1000 -> 0 | N251: =Purchases!Q231/1000 -> 0 | O251: =Purchases!R231/1000 -> 0 | P251: =Purchases!S231/1000 -> 0 | Q251: =Purchases!T231/1000 -> 0 | R251: =Purchases!U231/1000 -> 0 | S251: =Purchases!V231/1000 -> 0 | T251: =Purchases!W231/1000 -> 0 | U251: =Purchases!X231/1000 -> 0 | V251: =Purchases!Y231/1000 -> 0 | W251: =Purchases!Z231/1000 -> 0 | X251: =Purchases!AA231/1000 -> 0 | Y251: =Purchases!AB231/1000 -> 0 | Z251: =Purchases!AC231/1000 -> 0 | AA251: =Purchases!AD231/1000 -> 0 | AB251: =Purchases!AE231/1000 -> 0 | AC251: =Purchases!AF231/1000 -> 0 | AD251: =Purchases!AG231/1000 -> 0 | AE251: =Purchases!AH231/1000 -> 0 | AF251: =Purchases!AI231/1000 -> 0
A252: =IF(OR(Purchases!D232="",Purchases!D232=0),"",Purchases!D232) ->  | B252: =Purchases!E232/1000 -> 0 | C252: =Purchases!F232/1000 -> 0 | D252: =Purchases!G232/1000 -> 0 | E252: =Purchases!H232/1000 -> 0 | F252: =Purchases!I232/1000 -> 0 | G252: =Purchases!J232/1000 -> 0 | H252: =Purchases!K232/1000 -> 0 | I252: =Purchases!L232/1000 -> 0 | J252: =Purchases!M232/1000 -> 0 | K252: =Purchases!N232/1000 -> 0 | L252: =Purchases!O232/1000 -> 0 | M252: =Purchases!P232/1000 -> 0 | N252: =Purchases!Q232/1000 -> 0 | O252: =Purchases!R232/1000 -> 0 | P252: =Purchases!S232/1000 -> 0 | Q252: =Purchases!T232/1000 -> 0 | R252: =Purchases!U232/1000 -> 0 | S252: =Purchases!V232/1000 -> 0 | T252: =Purchases!W232/1000 -> 0 | U252: =Purchases!X232/1000 -> 0 | V252: =Purchases!Y232/1000 -> 0 | W252: =Purchases!Z232/1000 -> 0 | X252: =Purchases!AA232/1000 -> 0 | Y252: =Purchases!AB232/1000 -> 0 | Z252: =Purchases!AC232/1000 -> 0 | AA252: =Purchases!AD232/1000 -> 0 | AB252: =Purchases!AE232/1000 -> 0 | AC252: =Purchases!AF232/1000 -> 0 | AD252: =Purchases!AG232/1000 -> 0 | AE252: =Purchases!AH232/1000 -> 0 | AF252: =Purchases!AI232/1000 -> 0
A254: Revenues
A255: =IF(O_Operating_Income!B36="","",O_Operating_Income!B36) ->  | B255: =IF(O_Operating_Income!D21="",0,O_Operating_Income!D21)/1000 -> 0 | C255: =IF(O_Operating_Income!E21="",0,O_Operating_Income!E21)/1000 -> 0 | D255: =IF(O_Operating_Income!F21="",0,O_Operating_Income!F21)/1000 -> 0 | E255: =IF(O_Operating_Income!G21="",0,O_Operating_Income!G21)/1000 -> 0 | F255: =IF(O_Operating_Income!H21="",0,O_Operating_Income!H21)/1000 -> 0 | G255: =IF(O_Operating_Income!I21="",0,O_Operating_Income!I21)/1000 -> 0 | H255: =IF(O_Operating_Income!J21="",0,O_Operating_Income!J21)/1000 -> 0 | I255: =IF(O_Operating_Income!K21="",0,O_Operating_Income!K21)/1000 -> 0 | J255: =IF(O_Operating_Income!L21="",0,O_Operating_Income!L21)/1000 -> 0 | K255: =IF(O_Operating_Income!M21="",0,O_Operating_Income!M21)/1000 -> 0 | L255: =IF(O_Operating_Income!N21="",0,O_Operating_Income!N21)/1000 -> 0 | M255: =IF(O_Operating_Income!O21="",0,O_Operating_Income!O21)/1000 -> 0 | N255: =IF(O_Operating_Income!P21="",0,O_Operating_Income!P21)/1000 -> 0 | O255: =IF(O_Operating_Income!Q21="",0,O_Operating_Income!Q21)/1000 -> 0 | P255: =IF(O_Operating_Income!R21="",0,O_Operating_Income!R21)/1000 -> 0 | Q255: =IF(O_Operating_Income!S21="",0,O_Operating_Income!S21)/1000 -> 0 | R255: =IF(O_Operating_Income!T21="",0,O_Operating_Income!T21)/1000 -> 0 | S255: =IF(O_Operating_Income!U21="",0,O_Operating_Income!U21)/1000 -> 0 | T255: =IF(O_Operating_Income!V21="",0,O_Operating_Income!V21)/1000 -> 0 | U255: =IF(O_Operating_Income!W21="",0,O_Operating_Income!W21)/1000 -> 0 | V255: =IF(O_Operating_Income!X21="",0,O_Operating_Income!X21)/1000 -> 0 | W255: =IF(O_Operating_Income!Y21="",0,O_Operating_Income!Y21)/1000 -> 0 | X255: =IF(O_Operating_Income!Z21="",0,O_Operating_Income!Z21)/1000 -> 0 | Y255: =IF(O_Operating_Income!AA21="",0,O_Operating_Income!AA21)/1000 -> 0 | Z255: =IF(O_Operating_Income!AB21="",0,O_Operating_Income!AB21)/1000 -> 0 | AA255: =IF(O_Operating_Income!AC21="",0,O_Operating_Income!AC21)/1000 -> 0 | AB255: =IF(O_Operating_Income!AD21="",0,O_Operating_Income!AD21)/1000 -> 0 | AC255: =IF(O_Operating_Income!AE21="",0,O_Operating_Income!AE21)/1000 -> 0 | AD255: =IF(O_Operating_Income!AF21="",0,O_Operating_Income!AF21)/1000 -> 0 | AE255: =IF(O_Operating_Income!AG21="",0,O_Operating_Income!AG21)/1000 -> 0 | AF255: =IF(O_Operating_Income!AH21="",0,O_Operating_Income!AH21)/1000 -> 0
A256: =IF(O_Operating_Income!B37="","",O_Operating_Income!B37) ->  | B256: =IF(O_Operating_Income!D22="",0,O_Operating_Income!D22)/1000 -> 0 | C256: =IF(O_Operating_Income!E22="",0,O_Operating_Income!E22)/1000 -> 0 | D256: =IF(O_Operating_Income!F22="",0,O_Operating_Income!F22)/1000 -> 0 | E256: =IF(O_Operating_Income!G22="",0,O_Operating_Income!G22)/1000 -> 0 | F256: =IF(O_Operating_Income!H22="",0,O_Operating_Income!H22)/1000 -> 0 | G256: =IF(O_Operating_Income!I22="",0,O_Operating_Income!I22)/1000 -> 0 | H256: =IF(O_Operating_Income!J22="",0,O_Operating_Income!J22)/1000 -> 0 | I256: =IF(O_Operating_Income!K22="",0,O_Operating_Income!K22)/1000 -> 0 | J256: =IF(O_Operating_Income!L22="",0,O_Operating_Income!L22)/1000 -> 0 | K256: =IF(O_Operating_Income!M22="",0,O_Operating_Income!M22)/1000 -> 0 | L256: =IF(O_Operating_Income!N22="",0,O_Operating_Income!N22)/1000 -> 0 | M256: =IF(O_Operating_Income!O22="",0,O_Operating_Income!O22)/1000 -> 0 | N256: =IF(O_Operating_Income!P22="",0,O_Operating_Income!P22)/1000 -> 0 | O256: =IF(O_Operating_Income!Q22="",0,O_Operating_Income!Q22)/1000 -> 0 | P256: =IF(O_Operating_Income!R22="",0,O_Operating_Income!R22)/1000 -> 0 | Q256: =IF(O_Operating_Income!S22="",0,O_Operating_Income!S22)/1000 -> 0 | R256: =IF(O_Operating_Income!T22="",0,O_Operating_Income!T22)/1000 -> 0 | S256: =IF(O_Operating_Income!U22="",0,O_Operating_Income!U22)/1000 -> 0 | T256: =IF(O_Operating_Income!V22="",0,O_Operating_Income!V22)/1000 -> 0 | U256: =IF(O_Operating_Income!W22="",0,O_Operating_Income!W22)/1000 -> 0 | V256: =IF(O_Operating_Income!X22="",0,O_Operating_Income!X22)/1000 -> 0 | W256: =IF(O_Operating_Income!Y22="",0,O_Operating_Income!Y22)/1000 -> 0 | X256: =IF(O_Operating_Income!Z22="",0,O_Operating_Income!Z22)/1000 -> 0 | Y256: =IF(O_Operating_Income!AA22="",0,O_Operating_Income!AA22)/1000 -> 0 | Z256: =IF(O_Operating_Income!AB22="",0,O_Operating_Income!AB22)/1000 -> 0 | AA256: =IF(O_Operating_Income!AC22="",0,O_Operating_Income!AC22)/1000 -> 0 | AB256: =IF(O_Operating_Income!AD22="",0,O_Operating_Income!AD22)/1000 -> 0 | AC256: =IF(O_Operating_Income!AE22="",0,O_Operating_Income!AE22)/1000 -> 0 | AD256: =IF(O_Operating_Income!AF22="",0,O_Operating_Income!AF22)/1000 -> 0 | AE256: =IF(O_Operating_Income!AG22="",0,O_Operating_Income!AG22)/1000 -> 0 | AF256: =IF(O_Operating_Income!AH22="",0,O_Operating_Income!AH22)/1000 -> 0
A257: =IF(O_Operating_Income!B38="","",O_Operating_Income!B38) ->  | B257: =IF(O_Operating_Income!D23="",0,O_Operating_Income!D23)/1000 -> 0 | C257: =IF(O_Operating_Income!E23="",0,O_Operating_Income!E23)/1000 -> 0 | D257: =IF(O_Operating_Income!F23="",0,O_Operating_Income!F23)/1000 -> 0 | E257: =IF(O_Operating_Income!G23="",0,O_Operating_Income!G23)/1000 -> 0 | F257: =IF(O_Operating_Income!H23="",0,O_Operating_Income!H23)/1000 -> 0 | G257: =IF(O_Operating_Income!I23="",0,O_Operating_Income!I23)/1000 -> 0 | H257: =IF(O_Operating_Income!J23="",0,O_Operating_Income!J23)/1000 -> 0 | I257: =IF(O_Operating_Income!K23="",0,O_Operating_Income!K23)/1000 -> 0 | J257: =IF(O_Operating_Income!L23="",0,O_Operating_Income!L23)/1000 -> 0 | K257: =IF(O_Operating_Income!M23="",0,O_Operating_Income!M23)/1000 -> 0 | L257: =IF(O_Operating_Income!N23="",0,O_Operating_Income!N23)/1000 -> 0 | M257: =IF(O_Operating_Income!O23="",0,O_Operating_Income!O23)/1000 -> 0 | N257: =IF(O_Operating_Income!P23="",0,O_Operating_Income!P23)/1000 -> 0 | O257: =IF(O_Operating_Income!Q23="",0,O_Operating_Income!Q23)/1000 -> 0 | P257: =IF(O_Operating_Income!R23="",0,O_Operating_Income!R23)/1000 -> 0 | Q257: =IF(O_Operating_Income!S23="",0,O_Operating_Income!S23)/1000 -> 0 | R257: =IF(O_Operating_Income!T23="",0,O_Operating_Income!T23)/1000 -> 0 | S257: =IF(O_Operating_Income!U23="",0,O_Operating_Income!U23)/1000 -> 0 | T257: =IF(O_Operating_Income!V23="",0,O_Operating_Income!V23)/1000 -> 0 | U257: =IF(O_Operating_Income!W23="",0,O_Operating_Income!W23)/1000 -> 0 | V257: =IF(O_Operating_Income!X23="",0,O_Operating_Income!X23)/1000 -> 0 | W257: =IF(O_Operating_Income!Y23="",0,O_Operating_Income!Y23)/1000 -> 0 | X257: =IF(O_Operating_Income!Z23="",0,O_Operating_Income!Z23)/1000 -> 0 | Y257: =IF(O_Operating_Income!AA23="",0,O_Operating_Income!AA23)/1000 -> 0 | Z257: =IF(O_Operating_Income!AB23="",0,O_Operating_Income!AB23)/1000 -> 0 | AA257: =IF(O_Operating_Income!AC23="",0,O_Operating_Income!AC23)/1000 -> 0 | AB257: =IF(O_Operating_Income!AD23="",0,O_Operating_Income!AD23)/1000 -> 0 | AC257: =IF(O_Operating_Income!AE23="",0,O_Operating_Income!AE23)/1000 -> 0 | AD257: =IF(O_Operating_Income!AF23="",0,O_Operating_Income!AF23)/1000 -> 0 | AE257: =IF(O_Operating_Income!AG23="",0,O_Operating_Income!AG23)/1000 -> 0 | AF257: =IF(O_Operating_Income!AH23="",0,O_Operating_Income!AH23)/1000 -> 0
A258: =IF(O_Operating_Income!B39="","",O_Operating_Income!B39) ->  | B258: =IF(O_Operating_Income!D24="",0,O_Operating_Income!D24)/1000 -> 0 | C258: =IF(O_Operating_Income!E24="",0,O_Operating_Income!E24)/1000 -> 0 | D258: =IF(O_Operating_Income!F24="",0,O_Operating_Income!F24)/1000 -> 0 | E258: =IF(O_Operating_Income!G24="",0,O_Operating_Income!G24)/1000 -> 0 | F258: =IF(O_Operating_Income!H24="",0,O_Operating_Income!H24)/1000 -> 0 | G258: =IF(O_Operating_Income!I24="",0,O_Operating_Income!I24)/1000 -> 0 | H258: =IF(O_Operating_Income!J24="",0,O_Operating_Income!J24)/1000 -> 0 | I258: =IF(O_Operating_Income!K24="",0,O_Operating_Income!K24)/1000 -> 0 | J258: =IF(O_Operating_Income!L24="",0,O_Operating_Income!L24)/1000 -> 0 | K258: =IF(O_Operating_Income!M24="",0,O_Operating_Income!M24)/1000 -> 0 | L258: =IF(O_Operating_Income!N24="",0,O_Operating_Income!N24)/1000 -> 0 | M258: =IF(O_Operating_Income!O24="",0,O_Operating_Income!O24)/1000 -> 0 | N258: =IF(O_Operating_Income!P24="",0,O_Operating_Income!P24)/1000 -> 0 | O258: =IF(O_Operating_Income!Q24="",0,O_Operating_Income!Q24)/1000 -> 0 | P258: =IF(O_Operating_Income!R24="",0,O_Operating_Income!R24)/1000 -> 0 | Q258: =IF(O_Operating_Income!S24="",0,O_Operating_Income!S24)/1000 -> 0 | R258: =IF(O_Operating_Income!T24="",0,O_Operating_Income!T24)/1000 -> 0 | S258: =IF(O_Operating_Income!U24="",0,O_Operating_Income!U24)/1000 -> 0 | T258: =IF(O_Operating_Income!V24="",0,O_Operating_Income!V24)/1000 -> 0 | U258: =IF(O_Operating_Income!W24="",0,O_Operating_Income!W24)/1000 -> 0 | V258: =IF(O_Operating_Income!X24="",0,O_Operating_Income!X24)/1000 -> 0 | W258: =IF(O_Operating_Income!Y24="",0,O_Operating_Income!Y24)/1000 -> 0 | X258: =IF(O_Operating_Income!Z24="",0,O_Operating_Income!Z24)/1000 -> 0 | Y258: =IF(O_Operating_Income!AA24="",0,O_Operating_Income!AA24)/1000 -> 0 | Z258: =IF(O_Operating_Income!AB24="",0,O_Operating_Income!AB24)/1000 -> 0 | AA258: =IF(O_Operating_Income!AC24="",0,O_Operating_Income!AC24)/1000 -> 0 | AB258: =IF(O_Operating_Income!AD24="",0,O_Operating_Income!AD24)/1000 -> 0 | AC258: =IF(O_Operating_Income!AE24="",0,O_Operating_Income!AE24)/1000 -> 0 | AD258: =IF(O_Operating_Income!AF24="",0,O_Operating_Income!AF24)/1000 -> 0 | AE258: =IF(O_Operating_Income!AG24="",0,O_Operating_Income!AG24)/1000 -> 0 | AF258: =IF(O_Operating_Income!AH24="",0,O_Operating_Income!AH24)/1000 -> 0
A259: =IF(O_Operating_Income!B40="","",O_Operating_Income!B40) ->  | B259: =IF(O_Operating_Income!D25="",0,O_Operating_Income!D25)/1000 -> 0 | C259: =IF(O_Operating_Income!E25="",0,O_Operating_Income!E25)/1000 -> 0 | D259: =IF(O_Operating_Income!F25="",0,O_Operating_Income!F25)/1000 -> 0 | E259: =IF(O_Operating_Income!G25="",0,O_Operating_Income!G25)/1000 -> 0 | F259: =IF(O_Operating_Income!H25="",0,O_Operating_Income!H25)/1000 -> 0 | G259: =IF(O_Operating_Income!I25="",0,O_Operating_Income!I25)/1000 -> 0 | H259: =IF(O_Operating_Income!J25="",0,O_Operating_Income!J25)/1000 -> 0 | I259: =IF(O_Operating_Income!K25="",0,O_Operating_Income!K25)/1000 -> 0 | J259: =IF(O_Operating_Income!L25="",0,O_Operating_Income!L25)/1000 -> 0 | K259: =IF(O_Operating_Income!M25="",0,O_Operating_Income!M25)/1000 -> 0 | L259: =IF(O_Operating_Income!N25="",0,O_Operating_Income!N25)/1000 -> 0 | M259: =IF(O_Operating_Income!O25="",0,O_Operating_Income!O25)/1000 -> 0 | N259: =IF(O_Operating_Income!P25="",0,O_Operating_Income!P25)/1000 -> 0 | O259: =IF(O_Operating_Income!Q25="",0,O_Operating_Income!Q25)/1000 -> 0 | P259: =IF(O_Operating_Income!R25="",0,O_Operating_Income!R25)/1000 -> 0 | Q259: =IF(O_Operating_Income!S25="",0,O_Operating_Income!S25)/1000 -> 0 | R259: =IF(O_Operating_Income!T25="",0,O_Operating_Income!T25)/1000 -> 0 | S259: =IF(O_Operating_Income!U25="",0,O_Operating_Income!U25)/1000 -> 0 | T259: =IF(O_Operating_Income!V25="",0,O_Operating_Income!V25)/1000 -> 0 | U259: =IF(O_Operating_Income!W25="",0,O_Operating_Income!W25)/1000 -> 0 | V259: =IF(O_Operating_Income!X25="",0,O_Operating_Income!X25)/1000 -> 0 | W259: =IF(O_Operating_Income!Y25="",0,O_Operating_Income!Y25)/1000 -> 0 | X259: =IF(O_Operating_Income!Z25="",0,O_Operating_Income!Z25)/1000 -> 0 | Y259: =IF(O_Operating_Income!AA25="",0,O_Operating_Income!AA25)/1000 -> 0 | Z259: =IF(O_Operating_Income!AB25="",0,O_Operating_Income!AB25)/1000 -> 0 | AA259: =IF(O_Operating_Income!AC25="",0,O_Operating_Income!AC25)/1000 -> 0 | AB259: =IF(O_Operating_Income!AD25="",0,O_Operating_Income!AD25)/1000 -> 0 | AC259: =IF(O_Operating_Income!AE25="",0,O_Operating_Income!AE25)/1000 -> 0 | AD259: =IF(O_Operating_Income!AF25="",0,O_Operating_Income!AF25)/1000 -> 0 | AE259: =IF(O_Operating_Income!AG25="",0,O_Operating_Income!AG25)/1000 -> 0 | AF259: =IF(O_Operating_Income!AH25="",0,O_Operating_Income!AH25)/1000 -> 0
A260: =IF(O_Operating_Income!B41="","",O_Operating_Income!B41) ->  | B260: =IF(O_Operating_Income!D26="",0,O_Operating_Income!D26)/1000 -> 0 | C260: =IF(O_Operating_Income!E26="",0,O_Operating_Income!E26)/1000 -> 0 | D260: =IF(O_Operating_Income!F26="",0,O_Operating_Income!F26)/1000 -> 0 | E260: =IF(O_Operating_Income!G26="",0,O_Operating_Income!G26)/1000 -> 0 | F260: =IF(O_Operating_Income!H26="",0,O_Operating_Income!H26)/1000 -> 0 | G260: =IF(O_Operating_Income!I26="",0,O_Operating_Income!I26)/1000 -> 0 | H260: =IF(O_Operating_Income!J26="",0,O_Operating_Income!J26)/1000 -> 0 | I260: =IF(O_Operating_Income!K26="",0,O_Operating_Income!K26)/1000 -> 0 | J260: =IF(O_Operating_Income!L26="",0,O_Operating_Income!L26)/1000 -> 0 | K260: =IF(O_Operating_Income!M26="",0,O_Operating_Income!M26)/1000 -> 0 | L260: =IF(O_Operating_Income!N26="",0,O_Operating_Income!N26)/1000 -> 0 | M260: =IF(O_Operating_Income!O26="",0,O_Operating_Income!O26)/1000 -> 0 | N260: =IF(O_Operating_Income!P26="",0,O_Operating_Income!P26)/1000 -> 0 | O260: =IF(O_Operating_Income!Q26="",0,O_Operating_Income!Q26)/1000 -> 0 | P260: =IF(O_Operating_Income!R26="",0,O_Operating_Income!R26)/1000 -> 0 | Q260: =IF(O_Operating_Income!S26="",0,O_Operating_Income!S26)/1000 -> 0 | R260: =IF(O_Operating_Income!T26="",0,O_Operating_Income!T26)/1000 -> 0 | S260: =IF(O_Operating_Income!U26="",0,O_Operating_Income!U26)/1000 -> 0 | T260: =IF(O_Operating_Income!V26="",0,O_Operating_Income!V26)/1000 -> 0 | U260: =IF(O_Operating_Income!W26="",0,O_Operating_Income!W26)/1000 -> 0 | V260: =IF(O_Operating_Income!X26="",0,O_Operating_Income!X26)/1000 -> 0 | W260: =IF(O_Operating_Income!Y26="",0,O_Operating_Income!Y26)/1000 -> 0 | X260: =IF(O_Operating_Income!Z26="",0,O_Operating_Income!Z26)/1000 -> 0 | Y260: =IF(O_Operating_Income!AA26="",0,O_Operating_Income!AA26)/1000 -> 0 | Z260: =IF(O_Operating_Income!AB26="",0,O_Operating_Income!AB26)/1000 -> 0 | AA260: =IF(O_Operating_Income!AC26="",0,O_Operating_Income!AC26)/1000 -> 0 | AB260: =IF(O_Operating_Income!AD26="",0,O_Operating_Income!AD26)/1000 -> 0 | AC260: =IF(O_Operating_Income!AE26="",0,O_Operating_Income!AE26)/1000 -> 0 | AD260: =IF(O_Operating_Income!AF26="",0,O_Operating_Income!AF26)/1000 -> 0 | AE260: =IF(O_Operating_Income!AG26="",0,O_Operating_Income!AG26)/1000 -> 0 | AF260: =IF(O_Operating_Income!AH26="",0,O_Operating_Income!AH26)/1000 -> 0
A261: =IF(O_Operating_Income!B42="","",O_Operating_Income!B42) ->  | B261: =IF(O_Operating_Income!D27="",0,O_Operating_Income!D27)/1000 -> 0 | C261: =IF(O_Operating_Income!E27="",0,O_Operating_Income!E27)/1000 -> 0 | D261: =IF(O_Operating_Income!F27="",0,O_Operating_Income!F27)/1000 -> 0 | E261: =IF(O_Operating_Income!G27="",0,O_Operating_Income!G27)/1000 -> 0 | F261: =IF(O_Operating_Income!H27="",0,O_Operating_Income!H27)/1000 -> 0 | G261: =IF(O_Operating_Income!I27="",0,O_Operating_Income!I27)/1000 -> 0 | H261: =IF(O_Operating_Income!J27="",0,O_Operating_Income!J27)/1000 -> 0 | I261: =IF(O_Operating_Income!K27="",0,O_Operating_Income!K27)/1000 -> 0 | J261: =IF(O_Operating_Income!L27="",0,O_Operating_Income!L27)/1000 -> 0 | K261: =IF(O_Operating_Income!M27="",0,O_Operating_Income!M27)/1000 -> 0 | L261: =IF(O_Operating_Income!N27="",0,O_Operating_Income!N27)/1000 -> 0 | M261: =IF(O_Operating_Income!O27="",0,O_Operating_Income!O27)/1000 -> 0 | N261: =IF(O_Operating_Income!P27="",0,O_Operating_Income!P27)/1000 -> 0 | O261: =IF(O_Operating_Income!Q27="",0,O_Operating_Income!Q27)/1000 -> 0 | P261: =IF(O_Operating_Income!R27="",0,O_Operating_Income!R27)/1000 -> 0 | Q261: =IF(O_Operating_Income!S27="",0,O_Operating_Income!S27)/1000 -> 0 | R261: =IF(O_Operating_Income!T27="",0,O_Operating_Income!T27)/1000 -> 0 | S261: =IF(O_Operating_Income!U27="",0,O_Operating_Income!U27)/1000 -> 0 | T261: =IF(O_Operating_Income!V27="",0,O_Operating_Income!V27)/1000 -> 0 | U261: =IF(O_Operating_Income!W27="",0,O_Operating_Income!W27)/1000 -> 0 | V261: =IF(O_Operating_Income!X27="",0,O_Operating_Income!X27)/1000 -> 0 | W261: =IF(O_Operating_Income!Y27="",0,O_Operating_Income!Y27)/1000 -> 0 | X261: =IF(O_Operating_Income!Z27="",0,O_Operating_Income!Z27)/1000 -> 0 | Y261: =IF(O_Operating_Income!AA27="",0,O_Operating_Income!AA27)/1000 -> 0 | Z261: =IF(O_Operating_Income!AB27="",0,O_Operating_Income!AB27)/1000 -> 0 | AA261: =IF(O_Operating_Income!AC27="",0,O_Operating_Income!AC27)/1000 -> 0 | AB261: =IF(O_Operating_Income!AD27="",0,O_Operating_Income!AD27)/1000 -> 0 | AC261: =IF(O_Operating_Income!AE27="",0,O_Operating_Income!AE27)/1000 -> 0 | AD261: =IF(O_Operating_Income!AF27="",0,O_Operating_Income!AF27)/1000 -> 0 | AE261: =IF(O_Operating_Income!AG27="",0,O_Operating_Income!AG27)/1000 -> 0 | AF261: =IF(O_Operating_Income!AH27="",0,O_Operating_Income!AH27)/1000 -> 0
A262: =IF(O_Operating_Income!B43="","",O_Operating_Income!B43) ->  | B262: =IF(O_Operating_Income!D28="",0,O_Operating_Income!D28)/1000 -> 0 | C262: =IF(O_Operating_Income!E28="",0,O_Operating_Income!E28)/1000 -> 0 | D262: =IF(O_Operating_Income!F28="",0,O_Operating_Income!F28)/1000 -> 0 | E262: =IF(O_Operating_Income!G28="",0,O_Operating_Income!G28)/1000 -> 0 | F262: =IF(O_Operating_Income!H28="",0,O_Operating_Income!H28)/1000 -> 0 | G262: =IF(O_Operating_Income!I28="",0,O_Operating_Income!I28)/1000 -> 0 | H262: =IF(O_Operating_Income!J28="",0,O_Operating_Income!J28)/1000 -> 0 | I262: =IF(O_Operating_Income!K28="",0,O_Operating_Income!K28)/1000 -> 0 | J262: =IF(O_Operating_Income!L28="",0,O_Operating_Income!L28)/1000 -> 0 | K262: =IF(O_Operating_Income!M28="",0,O_Operating_Income!M28)/1000 -> 0 | L262: =IF(O_Operating_Income!N28="",0,O_Operating_Income!N28)/1000 -> 0 | M262: =IF(O_Operating_Income!O28="",0,O_Operating_Income!O28)/1000 -> 0 | N262: =IF(O_Operating_Income!P28="",0,O_Operating_Income!P28)/1000 -> 0 | O262: =IF(O_Operating_Income!Q28="",0,O_Operating_Income!Q28)/1000 -> 0 | P262: =IF(O_Operating_Income!R28="",0,O_Operating_Income!R28)/1000 -> 0 | Q262: =IF(O_Operating_Income!S28="",0,O_Operating_Income!S28)/1000 -> 0 | R262: =IF(O_Operating_Income!T28="",0,O_Operating_Income!T28)/1000 -> 0 | S262: =IF(O_Operating_Income!U28="",0,O_Operating_Income!U28)/1000 -> 0 | T262: =IF(O_Operating_Income!V28="",0,O_Operating_Income!V28)/1000 -> 0 | U262: =IF(O_Operating_Income!W28="",0,O_Operating_Income!W28)/1000 -> 0 | V262: =IF(O_Operating_Income!X28="",0,O_Operating_Income!X28)/1000 -> 0 | W262: =IF(O_Operating_Income!Y28="",0,O_Operating_Income!Y28)/1000 -> 0 | X262: =IF(O_Operating_Income!Z28="",0,O_Operating_Income!Z28)/1000 -> 0 | Y262: =IF(O_Operating_Income!AA28="",0,O_Operating_Income!AA28)/1000 -> 0 | Z262: =IF(O_Operating_Income!AB28="",0,O_Operating_Income!AB28)/1000 -> 0 | AA262: =IF(O_Operating_Income!AC28="",0,O_Operating_Income!AC28)/1000 -> 0 | AB262: =IF(O_Operating_Income!AD28="",0,O_Operating_Income!AD28)/1000 -> 0 | AC262: =IF(O_Operating_Income!AE28="",0,O_Operating_Income!AE28)/1000 -> 0 | AD262: =IF(O_Operating_Income!AF28="",0,O_Operating_Income!AF28)/1000 -> 0 | AE262: =IF(O_Operating_Income!AG28="",0,O_Operating_Income!AG28)/1000 -> 0 | AF262: =IF(O_Operating_Income!AH28="",0,O_Operating_Income!AH28)/1000 -> 0
A263: =IF(O_Operating_Income!B44="","",O_Operating_Income!B44) ->  | B263: =IF(O_Operating_Income!D29="",0,O_Operating_Income!D29)/1000 -> 0 | C263: =IF(O_Operating_Income!E29="",0,O_Operating_Income!E29)/1000 -> 0 | D263: =IF(O_Operating_Income!F29="",0,O_Operating_Income!F29)/1000 -> 0 | E263: =IF(O_Operating_Income!G29="",0,O_Operating_Income!G29)/1000 -> 0 | F263: =IF(O_Operating_Income!H29="",0,O_Operating_Income!H29)/1000 -> 0 | G263: =IF(O_Operating_Income!I29="",0,O_Operating_Income!I29)/1000 -> 0 | H263: =IF(O_Operating_Income!J29="",0,O_Operating_Income!J29)/1000 -> 0 | I263: =IF(O_Operating_Income!K29="",0,O_Operating_Income!K29)/1000 -> 0 | J263: =IF(O_Operating_Income!L29="",0,O_Operating_Income!L29)/1000 -> 0 | K263: =IF(O_Operating_Income!M29="",0,O_Operating_Income!M29)/1000 -> 0 | L263: =IF(O_Operating_Income!N29="",0,O_Operating_Income!N29)/1000 -> 0 | M263: =IF(O_Operating_Income!O29="",0,O_Operating_Income!O29)/1000 -> 0 | N263: =IF(O_Operating_Income!P29="",0,O_Operating_Income!P29)/1000 -> 0 | O263: =IF(O_Operating_Income!Q29="",0,O_Operating_Income!Q29)/1000 -> 0 | P263: =IF(O_Operating_Income!R29="",0,O_Operating_Income!R29)/1000 -> 0 | Q263: =IF(O_Operating_Income!S29="",0,O_Operating_Income!S29)/1000 -> 0 | R263: =IF(O_Operating_Income!T29="",0,O_Operating_Income!T29)/1000 -> 0 | S263: =IF(O_Operating_Income!U29="",0,O_Operating_Income!U29)/1000 -> 0 | T263: =IF(O_Operating_Income!V29="",0,O_Operating_Income!V29)/1000 -> 0 | U263: =IF(O_Operating_Income!W29="",0,O_Operating_Income!W29)/1000 -> 0 | V263: =IF(O_Operating_Income!X29="",0,O_Operating_Income!X29)/1000 -> 0 | W263: =IF(O_Operating_Income!Y29="",0,O_Operating_Income!Y29)/1000 -> 0 | X263: =IF(O_Operating_Income!Z29="",0,O_Operating_Income!Z29)/1000 -> 0 | Y263: =IF(O_Operating_Income!AA29="",0,O_Operating_Income!AA29)/1000 -> 0 | Z263: =IF(O_Operating_Income!AB29="",0,O_Operating_Income!AB29)/1000 -> 0 | AA263: =IF(O_Operating_Income!AC29="",0,O_Operating_Income!AC29)/1000 -> 0 | AB263: =IF(O_Operating_Income!AD29="",0,O_Operating_Income!AD29)/1000 -> 0 | AC263: =IF(O_Operating_Income!AE29="",0,O_Operating_Income!AE29)/1000 -> 0 | AD263: =IF(O_Operating_Income!AF29="",0,O_Operating_Income!AF29)/1000 -> 0 | AE263: =IF(O_Operating_Income!AG29="",0,O_Operating_Income!AG29)/1000 -> 0 | AF263: =IF(O_Operating_Income!AH29="",0,O_Operating_Income!AH29)/1000 -> 0
A264: =IF(O_Operating_Income!B45="","",O_Operating_Income!B45) ->  | B264: =IF(O_Operating_Income!D30="",0,O_Operating_Income!D30)/1000 -> 0 | C264: =IF(O_Operating_Income!E30="",0,O_Operating_Income!E30)/1000 -> 0 | D264: =IF(O_Operating_Income!F30="",0,O_Operating_Income!F30)/1000 -> 0 | E264: =IF(O_Operating_Income!G30="",0,O_Operating_Income!G30)/1000 -> 0 | F264: =IF(O_Operating_Income!H30="",0,O_Operating_Income!H30)/1000 -> 0 | G264: =IF(O_Operating_Income!I30="",0,O_Operating_Income!I30)/1000 -> 0 | H264: =IF(O_Operating_Income!J30="",0,O_Operating_Income!J30)/1000 -> 0 | I264: =IF(O_Operating_Income!K30="",0,O_Operating_Income!K30)/1000 -> 0 | J264: =IF(O_Operating_Income!L30="",0,O_Operating_Income!L30)/1000 -> 0 | K264: =IF(O_Operating_Income!M30="",0,O_Operating_Income!M30)/1000 -> 0 | L264: =IF(O_Operating_Income!N30="",0,O_Operating_Income!N30)/1000 -> 0 | M264: =IF(O_Operating_Income!O30="",0,O_Operating_Income!O30)/1000 -> 0 | N264: =IF(O_Operating_Income!P30="",0,O_Operating_Income!P30)/1000 -> 0 | O264: =IF(O_Operating_Income!Q30="",0,O_Operating_Income!Q30)/1000 -> 0 | P264: =IF(O_Operating_Income!R30="",0,O_Operating_Income!R30)/1000 -> 0 | Q264: =IF(O_Operating_Income!S30="",0,O_Operating_Income!S30)/1000 -> 0 | R264: =IF(O_Operating_Income!T30="",0,O_Operating_Income!T30)/1000 -> 0 | S264: =IF(O_Operating_Income!U30="",0,O_Operating_Income!U30)/1000 -> 0 | T264: =IF(O_Operating_Income!V30="",0,O_Operating_Income!V30)/1000 -> 0 | U264: =IF(O_Operating_Income!W30="",0,O_Operating_Income!W30)/1000 -> 0 | V264: =IF(O_Operating_Income!X30="",0,O_Operating_Income!X30)/1000 -> 0 | W264: =IF(O_Operating_Income!Y30="",0,O_Operating_Income!Y30)/1000 -> 0 | X264: =IF(O_Operating_Income!Z30="",0,O_Operating_Income!Z30)/1000 -> 0 | Y264: =IF(O_Operating_Income!AA30="",0,O_Operating_Income!AA30)/1000 -> 0 | Z264: =IF(O_Operating_Income!AB30="",0,O_Operating_Income!AB30)/1000 -> 0 | AA264: =IF(O_Operating_Income!AC30="",0,O_Operating_Income!AC30)/1000 -> 0 | AB264: =IF(O_Operating_Income!AD30="",0,O_Operating_Income!AD30)/1000 -> 0 | AC264: =IF(O_Operating_Income!AE30="",0,O_Operating_Income!AE30)/1000 -> 0 | AD264: =IF(O_Operating_Income!AF30="",0,O_Operating_Income!AF30)/1000 -> 0 | AE264: =IF(O_Operating_Income!AG30="",0,O_Operating_Income!AG30)/1000 -> 0 | AF264: =IF(O_Operating_Income!AH30="",0,O_Operating_Income!AH30)/1000 -> 0
A265: =IF(O_Operating_Income!B46="","",O_Operating_Income!B46) -> State Production Incentive, Electricity | B265: =IF(O_Operating_Income!D31="",0,O_Operating_Income!D31)/1000 -> 0 | C265: =IF(O_Operating_Income!E31="",0,O_Operating_Income!E31)/1000 -> 0 | D265: =IF(O_Operating_Income!F31="",0,O_Operating_Income!F31)/1000 -> 0 | E265: =IF(O_Operating_Income!G31="",0,O_Operating_Income!G31)/1000 -> 0 | F265: =IF(O_Operating_Income!H31="",0,O_Operating_Income!H31)/1000 -> 0 | G265: =IF(O_Operating_Income!I31="",0,O_Operating_Income!I31)/1000 -> 0 | H265: =IF(O_Operating_Income!J31="",0,O_Operating_Income!J31)/1000 -> 0 | I265: =IF(O_Operating_Income!K31="",0,O_Operating_Income!K31)/1000 -> 0 | J265: =IF(O_Operating_Income!L31="",0,O_Operating_Income!L31)/1000 -> 0 | K265: =IF(O_Operating_Income!M31="",0,O_Operating_Income!M31)/1000 -> 0 | L265: =IF(O_Operating_Income!N31="",0,O_Operating_Income!N31)/1000 -> 0 | M265: =IF(O_Operating_Income!O31="",0,O_Operating_Income!O31)/1000 -> 0 | N265: =IF(O_Operating_Income!P31="",0,O_Operating_Income!P31)/1000 -> 0 | O265: =IF(O_Operating_Income!Q31="",0,O_Operating_Income!Q31)/1000 -> 0 | P265: =IF(O_Operating_Income!R31="",0,O_Operating_Income!R31)/1000 -> 0 | Q265: =IF(O_Operating_Income!S31="",0,O_Operating_Income!S31)/1000 -> 0 | R265: =IF(O_Operating_Income!T31="",0,O_Operating_Income!T31)/1000 -> 0 | S265: =IF(O_Operating_Income!U31="",0,O_Operating_Income!U31)/1000 -> 0 | T265: =IF(O_Operating_Income!V31="",0,O_Operating_Income!V31)/1000 -> 0 | U265: =IF(O_Operating_Income!W31="",0,O_Operating_Income!W31)/1000 -> 0 | V265: =IF(O_Operating_Income!X31="",0,O_Operating_Income!X31)/1000 -> 0 | W265: =IF(O_Operating_Income!Y31="",0,O_Operating_Income!Y31)/1000 -> 0 | X265: =IF(O_Operating_Income!Z31="",0,O_Operating_Income!Z31)/1000 -> 0 | Y265: =IF(O_Operating_Income!AA31="",0,O_Operating_Income!AA31)/1000 -> 0 | Z265: =IF(O_Operating_Income!AB31="",0,O_Operating_Income!AB31)/1000 -> 0 | AA265: =IF(O_Operating_Income!AC31="",0,O_Operating_Income!AC31)/1000 -> 0 | AB265: =IF(O_Operating_Income!AD31="",0,O_Operating_Income!AD31)/1000 -> 0 | AC265: =IF(O_Operating_Income!AE31="",0,O_Operating_Income!AE31)/1000 -> 0 | AD265: =IF(O_Operating_Income!AF31="",0,O_Operating_Income!AF31)/1000 -> 0 | AE265: =IF(O_Operating_Income!AG31="",0,O_Operating_Income!AG31)/1000 -> 0 | AF265: =IF(O_Operating_Income!AH31="",0,O_Operating_Income!AH31)/1000 -> 0
A266: =IF(O_Operating_Income!B47="","",O_Operating_Income!B47) -> State Production Incentive, Thermal Savings | B266: =IF(O_Operating_Income!D32="",0,O_Operating_Income!D32)/1000 -> 0 | C266: =IF(O_Operating_Income!E32="",0,O_Operating_Income!E32)/1000 -> 0 | D266: =IF(O_Operating_Income!F32="",0,O_Operating_Income!F32)/1000 -> 0 | E266: =IF(O_Operating_Income!G32="",0,O_Operating_Income!G32)/1000 -> 0 | F266: =IF(O_Operating_Income!H32="",0,O_Operating_Income!H32)/1000 -> 0 | G266: =IF(O_Operating_Income!I32="",0,O_Operating_Income!I32)/1000 -> 0 | H266: =IF(O_Operating_Income!J32="",0,O_Operating_Income!J32)/1000 -> 0 | I266: =IF(O_Operating_Income!K32="",0,O_Operating_Income!K32)/1000 -> 0 | J266: =IF(O_Operating_Income!L32="",0,O_Operating_Income!L32)/1000 -> 0 | K266: =IF(O_Operating_Income!M32="",0,O_Operating_Income!M32)/1000 -> 0 | L266: =IF(O_Operating_Income!N32="",0,O_Operating_Income!N32)/1000 -> 0 | M266: =IF(O_Operating_Income!O32="",0,O_Operating_Income!O32)/1000 -> 0 | N266: =IF(O_Operating_Income!P32="",0,O_Operating_Income!P32)/1000 -> 0 | O266: =IF(O_Operating_Income!Q32="",0,O_Operating_Income!Q32)/1000 -> 0 | P266: =IF(O_Operating_Income!R32="",0,O_Operating_Income!R32)/1000 -> 0 | Q266: =IF(O_Operating_Income!S32="",0,O_Operating_Income!S32)/1000 -> 0 | R266: =IF(O_Operating_Income!T32="",0,O_Operating_Income!T32)/1000 -> 0 | S266: =IF(O_Operating_Income!U32="",0,O_Operating_Income!U32)/1000 -> 0 | T266: =IF(O_Operating_Income!V32="",0,O_Operating_Income!V32)/1000 -> 0 | U266: =IF(O_Operating_Income!W32="",0,O_Operating_Income!W32)/1000 -> 0 | V266: =IF(O_Operating_Income!X32="",0,O_Operating_Income!X32)/1000 -> 0 | W266: =IF(O_Operating_Income!Y32="",0,O_Operating_Income!Y32)/1000 -> 0 | X266: =IF(O_Operating_Income!Z32="",0,O_Operating_Income!Z32)/1000 -> 0 | Y266: =IF(O_Operating_Income!AA32="",0,O_Operating_Income!AA32)/1000 -> 0 | Z266: =IF(O_Operating_Income!AB32="",0,O_Operating_Income!AB32)/1000 -> 0 | AA266: =IF(O_Operating_Income!AC32="",0,O_Operating_Income!AC32)/1000 -> 0 | AB266: =IF(O_Operating_Income!AD32="",0,O_Operating_Income!AD32)/1000 -> 0 | AC266: =IF(O_Operating_Income!AE32="",0,O_Operating_Income!AE32)/1000 -> 0 | AD266: =IF(O_Operating_Income!AF32="",0,O_Operating_Income!AF32)/1000 -> 0 | AE266: =IF(O_Operating_Income!AG32="",0,O_Operating_Income!AG32)/1000 -> 0 | AF266: =IF(O_Operating_Income!AH32="",0,O_Operating_Income!AH32)/1000 -> 0
A267: =IF(O_Operating_Income!B48="","",O_Operating_Income!B48) ->  | B267: =IF(O_Operating_Income!D33="",0,O_Operating_Income!D33)/1000 -> 0 | C267: =IF(O_Operating_Income!E33="",0,O_Operating_Income!E33)/1000 -> 0 | D267: =IF(O_Operating_Income!F33="",0,O_Operating_Income!F33)/1000 -> 0 | E267: =IF(O_Operating_Income!G33="",0,O_Operating_Income!G33)/1000 -> 0 | F267: =IF(O_Operating_Income!H33="",0,O_Operating_Income!H33)/1000 -> 0 | G267: =IF(O_Operating_Income!I33="",0,O_Operating_Income!I33)/1000 -> 0 | H267: =IF(O_Operating_Income!J33="",0,O_Operating_Income!J33)/1000 -> 0 | I267: =IF(O_Operating_Income!K33="",0,O_Operating_Income!K33)/1000 -> 0 | J267: =IF(O_Operating_Income!L33="",0,O_Operating_Income!L33)/1000 -> 0 | K267: =IF(O_Operating_Income!M33="",0,O_Operating_Income!M33)/1000 -> 0 | L267: =IF(O_Operating_Income!N33="",0,O_Operating_Income!N33)/1000 -> 0 | M267: =IF(O_Operating_Income!O33="",0,O_Operating_Income!O33)/1000 -> 0 | N267: =IF(O_Operating_Income!P33="",0,O_Operating_Income!P33)/1000 -> 0 | O267: =IF(O_Operating_Income!Q33="",0,O_Operating_Income!Q33)/1000 -> 0 | P267: =IF(O_Operating_Income!R33="",0,O_Operating_Income!R33)/1000 -> 0 | Q267: =IF(O_Operating_Income!S33="",0,O_Operating_Income!S33)/1000 -> 0 | R267: =IF(O_Operating_Income!T33="",0,O_Operating_Income!T33)/1000 -> 0 | S267: =IF(O_Operating_Income!U33="",0,O_Operating_Income!U33)/1000 -> 0 | T267: =IF(O_Operating_Income!V33="",0,O_Operating_Income!V33)/1000 -> 0 | U267: =IF(O_Operating_Income!W33="",0,O_Operating_Income!W33)/1000 -> 0 | V267: =IF(O_Operating_Income!X33="",0,O_Operating_Income!X33)/1000 -> 0 | W267: =IF(O_Operating_Income!Y33="",0,O_Operating_Income!Y33)/1000 -> 0 | X267: =IF(O_Operating_Income!Z33="",0,O_Operating_Income!Z33)/1000 -> 0 | Y267: =IF(O_Operating_Income!AA33="",0,O_Operating_Income!AA33)/1000 -> 0 | Z267: =IF(O_Operating_Income!AB33="",0,O_Operating_Income!AB33)/1000 -> 0 | AA267: =IF(O_Operating_Income!AC33="",0,O_Operating_Income!AC33)/1000 -> 0 | AB267: =IF(O_Operating_Income!AD33="",0,O_Operating_Income!AD33)/1000 -> 0 | AC267: =IF(O_Operating_Income!AE33="",0,O_Operating_Income!AE33)/1000 -> 0 | AD267: =IF(O_Operating_Income!AF33="",0,O_Operating_Income!AF33)/1000 -> 0 | AE267: =IF(O_Operating_Income!AG33="",0,O_Operating_Income!AG33)/1000 -> 0 | AF267: =IF(O_Operating_Income!AH33="",0,O_Operating_Income!AH33)/1000 -> 0
A269: =IF(O_Operating_Income!B50="","",O_Operating_Income!B50) -> 
B271: =B232 -> 0 | C271: =C232 -> 1 | D271: 2 | E271: 3 | F271: 4 | G271: 5 | H271: 6 | I271: 7 | J271: 8 | K271: 9 | L271: 10 | M271: 11 | N271: 12 | O271: 13 | P271: 14 | Q271: 15 | R271: 16 | S271: 17 | T271: 18 | U271: 19 | V271: 20 | W271: 21 | X271: 22 | Y271: 23 | Z271: 24 | AA271: 25 | AB271: 26 | AC271: 27 | AD271: 28 | AE271: 29 | AF271: =AF232 -> 30
A272: Net Worth | B272: ='O_BalanceSheet (Tax)'!B34/1000 -> 374.1211952 | C272: ='O_BalanceSheet (Tax)'!C34/1000 -> 426.0887915 | D272: ='O_BalanceSheet (Tax)'!D34/1000 -> 480.5528417 | E272: ='O_BalanceSheet (Tax)'!E34/1000 -> 537.5958482 | F272: ='O_BalanceSheet (Tax)'!F34/1000 -> 597.3029743 | G272: ='O_BalanceSheet (Tax)'!G34/1000 -> 659.7005336 | H272: ='O_BalanceSheet (Tax)'!H34/1000 -> 724.2150821 | I272: ='O_BalanceSheet (Tax)'!I34/1000 -> 790.733588 | J272: ='O_BalanceSheet (Tax)'!J34/1000 -> 859.3147236 | K272: ='O_BalanceSheet (Tax)'!K34/1000 -> 930.0187149 | L272: ='O_BalanceSheet (Tax)'!L34/1000 -> 1002.907375 | M272: ='O_BalanceSheet (Tax)'!M34/1000 -> 1078.044136 | N272: ='O_BalanceSheet (Tax)'!N34/1000 -> 1155.494085 | O272: ='O_BalanceSheet (Tax)'!O34/1000 -> 1235.323997 | P272: ='O_BalanceSheet (Tax)'!P34/1000 -> 1317.602366 | Q272: ='O_BalanceSheet (Tax)'!Q34/1000 -> 1402.399443 | R272: ='O_BalanceSheet (Tax)'!R34/1000 -> 1489.78727 | S272: ='O_BalanceSheet (Tax)'!S34/1000 -> 1579.83971 | T272: ='O_BalanceSheet (Tax)'!T34/1000 -> 1672.632486 | U272: ='O_BalanceSheet (Tax)'!U34/1000 -> 1768.243213 | V272: ='O_BalanceSheet (Tax)'!V34/1000 -> 1866.751432 | W272: ='O_BalanceSheet (Tax)'!W34/1000 -> 1968.238644 | X272: ='O_BalanceSheet (Tax)'!X34/1000 -> 2072.788343 | Y272: ='O_BalanceSheet (Tax)'!Y34/1000 -> 2180.486053 | Z272: ='O_BalanceSheet (Tax)'!Z34/1000 -> 2291.419356 | AA272: ='O_BalanceSheet (Tax)'!AA34/1000 -> 2405.677929 | AB272: ='O_BalanceSheet (Tax)'!AB34/1000 -> 2523.353572 | AC272: ='O_BalanceSheet (Tax)'!AC34/1000 -> 2644.540244 | AD272: ='O_BalanceSheet (Tax)'!AD34/1000 -> 2769.33409 | AE272: ='O_BalanceSheet (Tax)'!AE34/1000 -> 2897.833473 | AF272: ='O_BalanceSheet (Tax)'!AF34/1000 -> 3030.139004
A292: Cash Balance | B292: =+O_CashFlow!C31/1000 -> -243.74747 | C292: =+O_CashFlow!D31/1000 -> -210.5870388 | D292: =+O_CashFlow!E31/1000 -> -175.6963866 | E292: =+O_CashFlow!F31/1000 -> -139.0242286 | F292: =+O_CashFlow!G31/1000 -> -100.5178907 | G292: =+O_CashFlow!H31/1000 -> -49.04246636 | H292: =+O_CashFlow!I31/1000 -> 15.47208208 | I292: =+O_CashFlow!J31/1000 -> 81.990588 | J292: =+O_CashFlow!K31/1000 -> 150.5717236 | K292: =+O_CashFlow!L31/1000 -> 221.2757149 | L292: =+O_CashFlow!M31/1000 -> 294.1643747 | M292: =+O_CashFlow!N31/1000 -> 369.3011359 | N292: =+O_CashFlow!O31/1000 -> 446.7510851 | O292: =+O_CashFlow!P31/1000 -> 526.5809965 | P292: =+O_CashFlow!Q31/1000 -> 608.8593655 | Q292: =+O_CashFlow!R31/1000 -> 693.6564431 | R292: =+O_CashFlow!S31/1000 -> 781.0442698 | S292: =+O_CashFlow!T31/1000 -> 871.0967101 | T292: =+O_CashFlow!U31/1000 -> 963.8894864 | U292: =+O_CashFlow!V31/1000 -> 1059.500213 | V292: =+O_CashFlow!W31/1000 -> 1158.008432 | W292: =+O_CashFlow!X31/1000 -> 1259.495644 | X292: =+O_CashFlow!Y31/1000 -> 1364.045343 | Y292: =+O_CashFlow!Z31/1000 -> 1471.743053 | Z292: =+O_CashFlow!AA31/1000 -> 1582.676356 | AA292: =+O_CashFlow!AB31/1000 -> 1696.934929 | AB292: =+O_CashFlow!AC31/1000 -> 1814.610572 | AC292: =+O_CashFlow!AD31/1000 -> 1935.797244 | AD292: =+O_CashFlow!AE31/1000 -> 2060.59109 | AE292: =+O_CashFlow!AF31/1000 -> 2189.090473 | AF292: =+O_CashFlow!AG31/1000 -> 2321.396004
A293: Shareholder Funds | B293: =+'O_BalanceSheet (Tax)'!B31/1000 -> 374.1211952 | C293: =+'O_BalanceSheet (Tax)'!C31/1000 -> 426.0887915 | D293: =+'O_BalanceSheet (Tax)'!D31/1000 -> 480.5528417 | E293: =+'O_BalanceSheet (Tax)'!E31/1000 -> 537.5958482 | F293: =+'O_BalanceSheet (Tax)'!F31/1000 -> 597.3029743 | G293: =+'O_BalanceSheet (Tax)'!G31/1000 -> 659.7005336 | H293: =+'O_BalanceSheet (Tax)'!H31/1000 -> 724.2150821 | I293: =+'O_BalanceSheet (Tax)'!I31/1000 -> 790.733588 | J293: =+'O_BalanceSheet (Tax)'!J31/1000 -> 859.3147236 | K293: =+'O_BalanceSheet (Tax)'!K31/1000 -> 930.0187149 | L293: =+'O_BalanceSheet (Tax)'!L31/1000 -> 1002.907375 | M293: =+'O_BalanceSheet (Tax)'!M31/1000 -> 1078.044136 | N293: =+'O_BalanceSheet (Tax)'!N31/1000 -> 1155.494085 | O293: =+'O_BalanceSheet (Tax)'!O31/1000 -> 1235.323997 | P293: =+'O_BalanceSheet (Tax)'!P31/1000 -> 1317.602366 | Q293: =+'O_BalanceSheet (Tax)'!Q31/1000 -> 1402.399443 | R293: =+'O_BalanceSheet (Tax)'!R31/1000 -> 1489.78727 | S293: =+'O_BalanceSheet (Tax)'!S31/1000 -> 1579.83971 | T293: =+'O_BalanceSheet (Tax)'!T31/1000 -> 1672.632486 | U293: =+'O_BalanceSheet (Tax)'!U31/1000 -> 1768.243213 | V293: =+'O_BalanceSheet (Tax)'!V31/1000 -> 1866.751432 | W293: =+'O_BalanceSheet (Tax)'!W31/1000 -> 1968.238644 | X293: =+'O_BalanceSheet (Tax)'!X31/1000 -> 2072.788343 | Y293: =+'O_BalanceSheet (Tax)'!Y31/1000 -> 2180.486053 | Z293: =+'O_BalanceSheet (Tax)'!Z31/1000 -> 2291.419356 | AA293: =+'O_BalanceSheet (Tax)'!AA31/1000 -> 2405.677929 | AB293: =+'O_BalanceSheet (Tax)'!AB31/1000 -> 2523.353572 | AC293: =+'O_BalanceSheet (Tax)'!AC31/1000 -> 2644.540244 | AD293: =+'O_BalanceSheet (Tax)'!AD31/1000 -> 2769.33409 | AE293: =+'O_BalanceSheet (Tax)'!AE31/1000 -> 2897.833473 | AF293: =+'O_BalanceSheet (Tax)'!AF31/1000 -> 3030.139004
A296: =+O_Operating_Costs!B27 -> Debt Interest | B296: =+O_Operating_Costs!C27 -> 1949.554834 | C296: =+O_Operating_Costs!D27 -> 3355.143642 | D296: =+O_Operating_Costs!E27 -> 2591.456342 | E296: =+O_Operating_Costs!F27 -> 1796.655243 | F296: =+O_Operating_Costs!G27 -> 969.4727213 | G296: =+O_Operating_Costs!H27 -> 170.1828834 | H296: =+O_Operating_Costs!I27 -> 0 | I296: =+O_Operating_Costs!J27 -> 0 | J296: =+O_Operating_Costs!K27 -> 0 | K296: =+O_Operating_Costs!L27 -> 0 | L296: =+O_Operating_Costs!M27 -> 0 | M296: =+O_Operating_Costs!N27 -> 0 | N296: =+O_Operating_Costs!O27 -> 0 | O296: =+O_Operating_Costs!P27 -> 0 | P296: =+O_Operating_Costs!Q27 -> 0 | Q296: =+O_Operating_Costs!R27 -> 0 | R296: =+O_Operating_Costs!S27 -> 0 | S296: =+O_Operating_Costs!T27 -> 0 | T296: =+O_Operating_Costs!U27 -> 0 | U296: =+O_Operating_Costs!V27 -> 0 | V296: =+O_Operating_Costs!W27 -> 0 | W296: =+O_Operating_Costs!X27 -> 0 | X296: =+O_Operating_Costs!Y27 -> 0 | Y296: =+O_Operating_Costs!Z27 -> 0 | Z296: =+O_Operating_Costs!AA27 -> 0 | AA296: =+O_Operating_Costs!AB27 -> 0 | AB296: =+O_Operating_Costs!AC27 -> 0 | AC296: =+O_Operating_Costs!AD27 -> 0 | AD296: =+O_Operating_Costs!AE27 -> 0 | AE296: =+O_Operating_Costs!AF27 -> 0 | AF296: =+O_Operating_Costs!AG27 -> 0
A297: =+O_Operating_Costs!B25 ->  | B297: =+O_Operating_Costs!C25 -> 0 | C297: =+O_Operating_Costs!D25 -> 0 | D297: =+O_Operating_Costs!E25 -> 0 | E297: =+O_Operating_Costs!F25 -> 0 | F297: =+O_Operating_Costs!G25 -> 0 | G297: =+O_Operating_Costs!H25 -> 0 | H297: =+O_Operating_Costs!I25 -> 0 | I297: =+O_Operating_Costs!J25 -> 0 | J297: =+O_Operating_Costs!K25 -> 0 | K297: =+O_Operating_Costs!L25 -> 0 | L297: =+O_Operating_Costs!M25 -> 0 | M297: =+O_Operating_Costs!N25 -> 0 | N297: =+O_Operating_Costs!O25 -> 0 | O297: =+O_Operating_Costs!P25 -> 0 | P297: =+O_Operating_Costs!Q25 -> 0 | Q297: =+O_Operating_Costs!R25 -> 0 | R297: =+O_Operating_Costs!S25 -> 0 | S297: =+O_Operating_Costs!T25 -> 0 | T297: =+O_Operating_Costs!U25 -> 0 | U297: =+O_Operating_Costs!V25 -> 0 | V297: =+O_Operating_Costs!W25 -> 0 | W297: =+O_Operating_Costs!X25 -> 0 | X297: =+O_Operating_Costs!Y25 -> 0 | Y297: =+O_Operating_Costs!Z25 -> 0 | Z297: =+O_Operating_Costs!AA25 -> 0 | AA297: =+O_Operating_Costs!AB25 -> 0 | AB297: =+O_Operating_Costs!AC25 -> 0 | AC297: =+O_Operating_Costs!AD25 -> 0 | AD297: =+O_Operating_Costs!AE25 -> 0 | AE297: =+O_Operating_Costs!AF25 -> 0 | AF297: =+O_Operating_Costs!AG25 -> 0
A298: =+O_Operating_Costs!B23 ->  | B298: =+O_Operating_Costs!C23 -> 0 | C298: =+O_Operating_Costs!D23 -> 0 | D298: =+O_Operating_Costs!E23 -> 0 | E298: =+O_Operating_Costs!F23 -> 0 | F298: =+O_Operating_Costs!G23 -> 0 | G298: =+O_Operating_Costs!H23 -> 0 | H298: =+O_Operating_Costs!I23 -> 0 | I298: =+O_Operating_Costs!J23 -> 0 | J298: =+O_Operating_Costs!K23 -> 0 | K298: =+O_Operating_Costs!L23 -> 0 | L298: =+O_Operating_Costs!M23 -> 0 | M298: =+O_Operating_Costs!N23 -> 0 | N298: =+O_Operating_Costs!O23 -> 0 | O298: =+O_Operating_Costs!P23 -> 0 | P298: =+O_Operating_Costs!Q23 -> 0 | Q298: =+O_Operating_Costs!R23 -> 0 | R298: =+O_Operating_Costs!S23 -> 0 | S298: =+O_Operating_Costs!T23 -> 0 | T298: =+O_Operating_Costs!U23 -> 0 | U298: =+O_Operating_Costs!V23 -> 0 | V298: =+O_Operating_Costs!W23 -> 0 | W298: =+O_Operating_Costs!X23 -> 0 | X298: =+O_Operating_Costs!Y23 -> 0 | Y298: =+O_Operating_Costs!Z23 -> 0 | Z298: =+O_Operating_Costs!AA23 -> 0 | AA298: =+O_Operating_Costs!AB23 -> 0 | AB298: =+O_Operating_Costs!AC23 -> 0 | AC298: =+O_Operating_Costs!AD23 -> 0 | AD298: =+O_Operating_Costs!AE23 -> 0 | AE298: =+O_Operating_Costs!AF23 -> 0 | AF298: =+O_Operating_Costs!AG23 -> 0
A299: Principal | B299: =-'Funding Schedule'!B71 -> 9125.665198 | C299: =-'Funding Schedule'!C71 -> 18807.1651 | D299: =-'Funding Schedule'!D71 -> 19573.39802 | E299: =-'Funding Schedule'!E71 -> 20370.84846 | F299: =-'Funding Schedule'!F71 -> 21200.78826 | G299: =-'Funding Schedule'!G71 -> 10922.13496 | H299: =-'Funding Schedule'!H71 -> 0 | I299: =-'Funding Schedule'!I71 -> 0 | J299: =-'Funding Schedule'!J71 -> 0 | K299: =-'Funding Schedule'!K71 -> 0 | L299: =-'Funding Schedule'!L71 -> 0 | M299: =-'Funding Schedule'!M71 -> 0 | N299: =-'Funding Schedule'!N71 -> 0 | O299: =-'Funding Schedule'!O71 -> 0 | P299: =-'Funding Schedule'!P71 -> 0 | Q299: =-'Funding Schedule'!Q71 -> 0 | R299: =-'Funding Schedule'!R71 -> 0 | S299: =-'Funding Schedule'!S71 -> 0 | T299: =-'Funding Schedule'!T71 -> 0 | U299: =-'Funding Schedule'!U71 -> 0 | V299: =-'Funding Schedule'!V71 -> 0 | W299: =-'Funding Schedule'!W71 -> 0 | X299: =-'Funding Schedule'!X71 -> 0 | Y299: =-'Funding Schedule'!Y71 -> 0 | Z299: =-'Funding Schedule'!Z71 -> 0 | AA299: =-'Funding Schedule'!AA71 -> 0 | AB299: =-'Funding Schedule'!AB71 -> 0 | AC299: =-'Funding Schedule'!AC71 -> 0 | AD299: =-'Funding Schedule'!AD71 -> 0 | AE299: =-'Funding Schedule'!AE71 -> 0 | AF299: =-'Funding Schedule'!AF71 -> 0
A300: =+O_Operating_Costs!B24 ->  | B300: =+O_Operating_Costs!C24 -> 0 | C300: =+O_Operating_Costs!D24 -> 0 | D300: =+O_Operating_Costs!E24 -> 0 | E300: =+O_Operating_Costs!F24 -> 0 | F300: =+O_Operating_Costs!G24 -> 0 | G300: =+O_Operating_Costs!H24 -> 0 | H300: =+O_Operating_Costs!I24 -> 0 | I300: =+O_Operating_Costs!J24 -> 0 | J300: =+O_Operating_Costs!K24 -> 0 | K300: =+O_Operating_Costs!L24 -> 0 | L300: =+O_Operating_Costs!M24 -> 0 | M300: =+O_Operating_Costs!N24 -> 0 | N300: =+O_Operating_Costs!O24 -> 0 | O300: =+O_Operating_Costs!P24 -> 0 | P300: =+O_Operating_Costs!Q24 -> 0 | Q300: =+O_Operating_Costs!R24 -> 0 | R300: =+O_Operating_Costs!S24 -> 0 | S300: =+O_Operating_Costs!T24 -> 0 | T300: =+O_Operating_Costs!U24 -> 0 | U300: =+O_Operating_Costs!V24 -> 0 | V300: =+O_Operating_Costs!W24 -> 0 | W300: =+O_Operating_Costs!X24 -> 0 | X300: =+O_Operating_Costs!Y24 -> 0 | Y300: =+O_Operating_Costs!Z24 -> 0 | Z300: =+O_Operating_Costs!AA24 -> 0 | AA300: =+O_Operating_Costs!AB24 -> 0 | AB300: =+O_Operating_Costs!AC24 -> 0 | AC300: =+O_Operating_Costs!AD24 -> 0 | AD300: =+O_Operating_Costs!AE24 -> 0 | AE300: =+O_Operating_Costs!AF24 -> 0 | AF300: =+O_Operating_Costs!AG24 -> 0
A302: =+A296 -> Debt Interest | B302: =VLOOKUP(A302,Table_FixedCosts,$AJ$3+1)/1000 -> 0
A303: =+A297 ->  | B303: =VLOOKUP(A303,Table_FixedCosts,$AJ$3+1)/1000 -> 
A304: =+A298 ->  | B304: =VLOOKUP(A304,Table_FixedCosts,$AJ$3+1)/1000 -> 
A305: =+A299 -> Principal | B305: =VLOOKUP(A305,Table_FixedCosts,$AJ$3+1)/1000 -> 0
A306: =+A300 ->  | B306: =VLOOKUP(A306,Table_FixedCosts,$AJ$3+1)/1000 -> 
A307: =+O_Operating_Costs!B18 ->  | B307: =+O_Operating_Costs!C18 -> 0 | C307: =+O_Operating_Costs!D18 -> 0 | D307: =+O_Operating_Costs!E18 -> 0 | E307: =+O_Operating_Costs!F18 -> 0 | F307: =+O_Operating_Costs!G18 -> 0 | G307: =+O_Operating_Costs!H18 -> 0 | H307: =+O_Operating_Costs!I18 -> 0 | I307: =+O_Operating_Costs!J18 -> 0 | J307: =+O_Operating_Costs!K18 -> 0 | K307: =+O_Operating_Costs!L18 -> 0 | L307: =+O_Operating_Costs!M18 -> 0 | M307: =+O_Operating_Costs!N18 -> 0 | N307: =+O_Operating_Costs!O18 -> 0 | O307: =+O_Operating_Costs!P18 -> 0 | P307: =+O_Operating_Costs!Q18 -> 0 | Q307: =+O_Operating_Costs!R18 -> 0 | R307: =+O_Operating_Costs!S18 -> 0 | S307: =+O_Operating_Costs!T18 -> 0 | T307: =+O_Operating_Costs!U18 -> 0 | U307: =+O_Operating_Costs!V18 -> 0 | V307: =+O_Operating_Costs!W18 -> 0 | W307: =+O_Operating_Costs!X18 -> 0 | X307: =+O_Operating_Costs!Y18 -> 0 | Y307: =+O_Operating_Costs!Z18 -> 0 | Z307: =+O_Operating_Costs!AA18 -> 0 | AA307: =+O_Operating_Costs!AB18 -> 0 | AB307: =+O_Operating_Costs!AC18 -> 0 | AC307: =+O_Operating_Costs!AD18 -> 0 | AD307: =+O_Operating_Costs!AE18 -> 0 | AE307: =+O_Operating_Costs!AF18 -> 0 | AF307: =+O_Operating_Costs!AG18 -> 0
A308: =+O_Operating_Costs!B19 ->  | B308: =+O_Operating_Costs!C19 -> 0 | C308: =+O_Operating_Costs!D19 -> 0 | D308: =+O_Operating_Costs!E19 -> 0 | E308: =+O_Operating_Costs!F19 -> 0 | F308: =+O_Operating_Costs!G19 -> 0 | G308: =+O_Operating_Costs!H19 -> 0 | H308: =+O_Operating_Costs!I19 -> 0 | I308: =+O_Operating_Costs!J19 -> 0 | J308: =+O_Operating_Costs!K19 -> 0 | K308: =+O_Operating_Costs!L19 -> 0 | L308: =+O_Operating_Costs!M19 -> 0 | M308: =+O_Operating_Costs!N19 -> 0 | N308: =+O_Operating_Costs!O19 -> 0 | O308: =+O_Operating_Costs!P19 -> 0 | P308: =+O_Operating_Costs!Q19 -> 0 | Q308: =+O_Operating_Costs!R19 -> 0 | R308: =+O_Operating_Costs!S19 -> 0 | S308: =+O_Operating_Costs!T19 -> 0 | T308: =+O_Operating_Costs!U19 -> 0 | U308: =+O_Operating_Costs!V19 -> 0 | V308: =+O_Operating_Costs!W19 -> 0 | W308: =+O_Operating_Costs!X19 -> 0 | X308: =+O_Operating_Costs!Y19 -> 0 | Y308: =+O_Operating_Costs!Z19 -> 0 | Z308: =+O_Operating_Costs!AA19 -> 0 | AA308: =+O_Operating_Costs!AB19 -> 0 | AB308: =+O_Operating_Costs!AC19 -> 0 | AC308: =+O_Operating_Costs!AD19 -> 0 | AD308: =+O_Operating_Costs!AE19 -> 0 | AE308: =+O_Operating_Costs!AF19 -> 0 | AF308: =+O_Operating_Costs!AG19 -> 0
A309: =+O_Operating_Costs!B20 ->  | B309: =+O_Operating_Costs!C20 -> 0 | C309: =+O_Operating_Costs!D20 -> 0 | D309: =+O_Operating_Costs!E20 -> 0 | E309: =+O_Operating_Costs!F20 -> 0 | F309: =+O_Operating_Costs!G20 -> 0 | G309: =+O_Operating_Costs!H20 -> 0 | H309: =+O_Operating_Costs!I20 -> 0 | I309: =+O_Operating_Costs!J20 -> 0 | J309: =+O_Operating_Costs!K20 -> 0 | K309: =+O_Operating_Costs!L20 -> 0 | L309: =+O_Operating_Costs!M20 -> 0 | M309: =+O_Operating_Costs!N20 -> 0 | N309: =+O_Operating_Costs!O20 -> 0 | O309: =+O_Operating_Costs!P20 -> 0 | P309: =+O_Operating_Costs!Q20 -> 0 | Q309: =+O_Operating_Costs!R20 -> 0 | R309: =+O_Operating_Costs!S20 -> 0 | S309: =+O_Operating_Costs!T20 -> 0 | T309: =+O_Operating_Costs!U20 -> 0 | U309: =+O_Operating_Costs!V20 -> 0 | V309: =+O_Operating_Costs!W20 -> 0 | W309: =+O_Operating_Costs!X20 -> 0 | X309: =+O_Operating_Costs!Y20 -> 0 | Y309: =+O_Operating_Costs!Z20 -> 0 | Z309: =+O_Operating_Costs!AA20 -> 0 | AA309: =+O_Operating_Costs!AB20 -> 0 | AB309: =+O_Operating_Costs!AC20 -> 0 | AC309: =+O_Operating_Costs!AD20 -> 0 | AD309: =+O_Operating_Costs!AE20 -> 0 | AE309: =+O_Operating_Costs!AF20 -> 0 | AF309: =+O_Operating_Costs!AG20 -> 0
A310: =+O_Operating_Costs!B17 ->  | B310: =+O_Operating_Costs!C17 -> 0 | C310: =+O_Operating_Costs!D17 -> 0 | D310: =+O_Operating_Costs!E17 -> 0 | E310: =+O_Operating_Costs!F17 -> 0 | F310: =+O_Operating_Costs!G17 -> 0 | G310: =+O_Operating_Costs!H17 -> 0 | H310: =+O_Operating_Costs!I17 -> 0 | I310: =+O_Operating_Costs!J17 -> 0 | J310: =+O_Operating_Costs!K17 -> 0 | K310: =+O_Operating_Costs!L17 -> 0 | L310: =+O_Operating_Costs!M17 -> 0 | M310: =+O_Operating_Costs!N17 -> 0 | N310: =+O_Operating_Costs!O17 -> 0 | O310: =+O_Operating_Costs!P17 -> 0 | P310: =+O_Operating_Costs!Q17 -> 0 | Q310: =+O_Operating_Costs!R17 -> 0 | R310: =+O_Operating_Costs!S17 -> 0 | S310: =+O_Operating_Costs!T17 -> 0 | T310: =+O_Operating_Costs!U17 -> 0 | U310: =+O_Operating_Costs!V17 -> 0 | V310: =+O_Operating_Costs!W17 -> 0 | W310: =+O_Operating_Costs!X17 -> 0 | X310: =+O_Operating_Costs!Y17 -> 0 | Y310: =+O_Operating_Costs!Z17 -> 0 | Z310: =+O_Operating_Costs!AA17 -> 0 | AA310: =+O_Operating_Costs!AB17 -> 0 | AB310: =+O_Operating_Costs!AC17 -> 0 | AC310: =+O_Operating_Costs!AD17 -> 0 | AD310: =+O_Operating_Costs!AE17 -> 0 | AE310: =+O_Operating_Costs!AF17 -> 0 | AF310: =+O_Operating_Costs!AG17 -> 0
A311: =+O_Operating_Costs!B15 -> Franchise Fees | B311: =+O_Operating_Costs!C15 -> 0 | C311: =+O_Operating_Costs!D15 -> 0 | D311: =+O_Operating_Costs!E15 -> 0 | E311: =+O_Operating_Costs!F15 -> 0 | F311: =+O_Operating_Costs!G15 -> 0 | G311: =+O_Operating_Costs!H15 -> 0 | H311: =+O_Operating_Costs!I15 -> 0 | I311: =+O_Operating_Costs!J15 -> 0 | J311: =+O_Operating_Costs!K15 -> 0 | K311: =+O_Operating_Costs!L15 -> 0 | L311: =+O_Operating_Costs!M15 -> 0 | M311: =+O_Operating_Costs!N15 -> 0 | N311: =+O_Operating_Costs!O15 -> 0 | O311: =+O_Operating_Costs!P15 -> 0 | P311: =+O_Operating_Costs!Q15 -> 0 | Q311: =+O_Operating_Costs!R15 -> 0 | R311: =+O_Operating_Costs!S15 -> 0 | S311: =+O_Operating_Costs!T15 -> 0 | T311: =+O_Operating_Costs!U15 -> 0 | U311: =+O_Operating_Costs!V15 -> 0 | V311: =+O_Operating_Costs!W15 -> 0 | W311: =+O_Operating_Costs!X15 -> 0 | X311: =+O_Operating_Costs!Y15 -> 0 | Y311: =+O_Operating_Costs!Z15 -> 0 | Z311: =+O_Operating_Costs!AA15 -> 0 | AA311: =+O_Operating_Costs!AB15 -> 0 | AB311: =+O_Operating_Costs!AC15 -> 0 | AC311: =+O_Operating_Costs!AD15 -> 0 | AD311: =+O_Operating_Costs!AE15 -> 0 | AE311: =+O_Operating_Costs!AF15 -> 0 | AF311: =+O_Operating_Costs!AG15 -> 0
A312: =+O_Operating_Costs!B14 -> Major Expenses | B312: =+O_Operating_Costs!C14 -> 0 | C312: =+O_Operating_Costs!D14 -> 0 | D312: =+O_Operating_Costs!E14 -> 0 | E312: =+O_Operating_Costs!F14 -> 0 | F312: =+O_Operating_Costs!G14 -> 0 | G312: =+O_Operating_Costs!H14 -> 0 | H312: =+O_Operating_Costs!I14 -> 0 | I312: =+O_Operating_Costs!J14 -> 0 | J312: =+O_Operating_Costs!K14 -> 0 | K312: =+O_Operating_Costs!L14 -> 0 | L312: =+O_Operating_Costs!M14 -> 0 | M312: =+O_Operating_Costs!N14 -> 0 | N312: =+O_Operating_Costs!O14 -> 0 | O312: =+O_Operating_Costs!P14 -> 0 | P312: =+O_Operating_Costs!Q14 -> 0 | Q312: =+O_Operating_Costs!R14 -> 0 | R312: =+O_Operating_Costs!S14 -> 0 | S312: =+O_Operating_Costs!T14 -> 0 | T312: =+O_Operating_Costs!U14 -> 0 | U312: =+O_Operating_Costs!V14 -> 0 | V312: =+O_Operating_Costs!W14 -> 0 | W312: =+O_Operating_Costs!X14 -> 0 | X312: =+O_Operating_Costs!Y14 -> 0 | Y312: =+O_Operating_Costs!Z14 -> 0 | Z312: =+O_Operating_Costs!AA14 -> 0 | AA312: =+O_Operating_Costs!AB14 -> 0 | AB312: =+O_Operating_Costs!AC14 -> 0 | AC312: =+O_Operating_Costs!AD14 -> 0 | AD312: =+O_Operating_Costs!AE14 -> 0 | AE312: =+O_Operating_Costs!AF14 -> 0 | AF312: =+O_Operating_Costs!AG14 -> 0
A313: =+O_Operating_Costs!B12 -> Purchased Fuels | B313: =+O_Operating_Costs!C12 -> -58940 | C313: =+O_Operating_Costs!D12 -> -60765.84 | D313: =+O_Operating_Costs!E12 -> -62645.57024 | E313: =+O_Operating_Costs!F12 -> -64580.65717 | F313: =+O_Operating_Costs!G12 -> -66572.60108 | G313: =+O_Operating_Costs!H12 -> -68622.93659 | H313: =+O_Operating_Costs!I12 -> -70733.23305 | I313: =+O_Operating_Costs!J12 -> -72905.09501 | J313: =+O_Operating_Costs!K12 -> -75140.16262 | K313: =+O_Operating_Costs!L12 -> -77440.11204 | L313: =+O_Operating_Costs!M12 -> -79806.65577 | M313: =+O_Operating_Costs!N12 -> -82241.54307 | N313: =+O_Operating_Costs!O12 -> -84746.56022 | O313: =+O_Operating_Costs!P12 -> -87323.53085 | P313: =+O_Operating_Costs!Q12 -> -89974.31621 | Q313: =+O_Operating_Costs!R12 -> -92700.81536 | R313: =+O_Operating_Costs!S12 -> -95504.96544 | S313: =+O_Operating_Costs!T12 -> -98388.74174 | T313: =+O_Operating_Costs!U12 -> -101354.1579 | U313: =+O_Operating_Costs!V12 -> -104403.2659 | V313: =+O_Operating_Costs!W12 -> -107538.1561 | W313: =+O_Operating_Costs!X12 -> -110760.9573 | X313: =+O_Operating_Costs!Y12 -> -114073.8364 | Y313: =+O_Operating_Costs!Z12 -> -117478.9985 | Z313: =+O_Operating_Costs!AA12 -> -120978.6867 | AA313: =+O_Operating_Costs!AB12 -> -124575.1814 | AB313: =+O_Operating_Costs!AC12 -> -128270.8004 | AC313: =+O_Operating_Costs!AD12 -> -132067.8981 | AD313: =+O_Operating_Costs!AE12 -> -135968.8653 | AE313: =+O_Operating_Costs!AF12 -> -139976.1283 | AF313: =+O_Operating_Costs!AG12 -> -144092.1481
A314: Non-Fuel Purchases | B314: =+O_Operating_Costs!C13 -> 0 | C314: =+O_Operating_Costs!D13 -> 0 | D314: =+O_Operating_Costs!E13 -> 0 | E314: =+O_Operating_Costs!F13 -> 0 | F314: =+O_Operating_Costs!G13 -> 0 | G314: =+O_Operating_Costs!H13 -> 0 | H314: =+O_Operating_Costs!I13 -> 0 | I314: =+O_Operating_Costs!J13 -> 0 | J314: =+O_Operating_Costs!K13 -> 0 | K314: =+O_Operating_Costs!L13 -> 0 | L314: =+O_Operating_Costs!M13 -> 0 | M314: =+O_Operating_Costs!N13 -> 0 | N314: =+O_Operating_Costs!O13 -> 0 | O314: =+O_Operating_Costs!P13 -> 0 | P314: =+O_Operating_Costs!Q13 -> 0 | Q314: =+O_Operating_Costs!R13 -> 0 | R314: =+O_Operating_Costs!S13 -> 0 | S314: =+O_Operating_Costs!T13 -> 0 | T314: =+O_Operating_Costs!U13 -> 0 | U314: =+O_Operating_Costs!V13 -> 0 | V314: =+O_Operating_Costs!W13 -> 0 | W314: =+O_Operating_Costs!X13 -> 0 | X314: =+O_Operating_Costs!Y13 -> 0 | Y314: =+O_Operating_Costs!Z13 -> 0 | Z314: =+O_Operating_Costs!AA13 -> 0 | AA314: =+O_Operating_Costs!AB13 -> 0 | AB314: =+O_Operating_Costs!AC13 -> 0 | AC314: =+O_Operating_Costs!AD13 -> 0 | AD314: =+O_Operating_Costs!AE13 -> 0 | AE314: =+O_Operating_Costs!AF13 -> 0 | AF314: =+O_Operating_Costs!AG13 -> 0
A315: =+O_Operating_Costs!B16 ->  | B315: =+O_Operating_Costs!C16 -> 0 | C315: =+O_Operating_Costs!D16 -> 0 | D315: =+O_Operating_Costs!E16 -> 0 | E315: =+O_Operating_Costs!F16 -> 0 | F315: =+O_Operating_Costs!G16 -> 0 | G315: =+O_Operating_Costs!H16 -> 0 | H315: =+O_Operating_Costs!I16 -> 0 | I315: =+O_Operating_Costs!J16 -> 0 | J315: =+O_Operating_Costs!K16 -> 0 | K315: =+O_Operating_Costs!L16 -> 0 | L315: =+O_Operating_Costs!M16 -> 0 | M315: =+O_Operating_Costs!N16 -> 0 | N315: =+O_Operating_Costs!O16 -> 0 | O315: =+O_Operating_Costs!P16 -> 0 | P315: =+O_Operating_Costs!Q16 -> 0 | Q315: =+O_Operating_Costs!R16 -> 0 | R315: =+O_Operating_Costs!S16 -> 0 | S315: =+O_Operating_Costs!T16 -> 0 | T315: =+O_Operating_Costs!U16 -> 0 | U315: =+O_Operating_Costs!V16 -> 0 | V315: =+O_Operating_Costs!W16 -> 0 | W315: =+O_Operating_Costs!X16 -> 0 | X315: =+O_Operating_Costs!Y16 -> 0 | Y315: =+O_Operating_Costs!Z16 -> 0 | Z315: =+O_Operating_Costs!AA16 -> 0 | AA315: =+O_Operating_Costs!AB16 -> 0 | AB315: =+O_Operating_Costs!AC16 -> 0 | AC315: =+O_Operating_Costs!AD16 -> 0 | AD315: =+O_Operating_Costs!AE16 -> 0 | AE315: =+O_Operating_Costs!AF16 -> 0 | AF315: =+O_Operating_Costs!AG16 -> 0
A317: YEAR | B317: =AJ3 -> 10
A318: =+A307 ->  | B318: =VLOOKUP(A318,Table_VariableCosts,$B$317+1,FALSE)/1000 -> 0
B319: 0
B320: 0
B321: 0
A322: Franchise Fees | B322: 0
A323: Major Expenses | B323: 0
A324: =A313 -> Purchased Fuels | B324: -77.44011204
A325: =A314 -> Non-Fuel Purchases
A326: =+A315 ->  | B326: 0
A328: Net Profit After Taxes (Tax) | B328: =+'O_IncomeStatement (Tax)'!C$21/1000 -> 50.69044517 | C328: =+'O_IncomeStatement (Tax)'!D21/1000 -> 51.96759636 | D328: =+'O_IncomeStatement (Tax)'!E21/1000 -> 54.4640502 | E328: =+'O_IncomeStatement (Tax)'!F21/1000 -> 57.04300651 | F328: =+'O_IncomeStatement (Tax)'!G21/1000 -> 59.70712607 | G328: =+'O_IncomeStatement (Tax)'!H21/1000 -> 62.39755935 | H328: =+'O_IncomeStatement (Tax)'!I21/1000 -> 64.51454844 | I328: =+'O_IncomeStatement (Tax)'!J21/1000 -> 66.51850592 | J328: =+'O_IncomeStatement (Tax)'!K21/1000 -> 68.58113562 | K328: =+'O_IncomeStatement (Tax)'!L21/1000 -> 70.70399131 | L328: =+'O_IncomeStatement (Tax)'!M21/1000 -> 72.88865979 | M328: =+'O_IncomeStatement (Tax)'!N21/1000 -> 75.1367612 | N328: =+'O_IncomeStatement (Tax)'!O21/1000 -> 77.44994923 | O328: =+'O_IncomeStatement (Tax)'!P21/1000 -> 79.82991137 | P328: =+'O_IncomeStatement (Tax)'!Q21/1000 -> 82.278369 | Q328: =+'O_IncomeStatement (Tax)'!R21/1000 -> 84.79707758 | R328: =+'O_IncomeStatement (Tax)'!S21/1000 -> 87.38782673 | S328: =+'O_IncomeStatement (Tax)'!T21/1000 -> 90.05244029 | T328: =+'O_IncomeStatement (Tax)'!U21/1000 -> 92.79277631 | U328: =+'O_IncomeStatement (Tax)'!V21/1000 -> 95.610727 | V328: =+'O_IncomeStatement (Tax)'!W21/1000 -> 98.50821867 | W328: =+'O_IncomeStatement (Tax)'!X21/1000 -> 101.4872115 | X328: =+'O_IncomeStatement (Tax)'!Y21/1000 -> 104.5496995 | Y328: =+'O_IncomeStatement (Tax)'!Z21/1000 -> 107.69771 | Z328: =+'O_IncomeStatement (Tax)'!AA21/1000 -> 110.9333033 | AA328: =+'O_IncomeStatement (Tax)'!AB21/1000 -> 114.2585727 | AB328: =+'O_IncomeStatement (Tax)'!AC21/1000 -> 117.6756432 | AC328: =+'O_IncomeStatement (Tax)'!AD21/1000 -> 121.1866717 | AD328: =+'O_IncomeStatement (Tax)'!AE21/1000 -> 124.7938458 | AE328: =+'O_IncomeStatement (Tax)'!AF21/1000 -> 128.4993833 | AF328: =+'O_IncomeStatement (Tax)'!AG21/1000 -> 132.3055309
A329: Net Profit After Taxes (SH) | B329: =+'O_IncomeStatement (Tax)'!C$21/1000 -> 50.69044517 | C329: =+'O_IncomeStatement (Tax)'!D$21/1000 -> 51.96759636 | D329: =+'O_IncomeStatement (Tax)'!E$21/1000 -> 54.4640502 | E329: =+'O_IncomeStatement (Tax)'!F$21/1000 -> 57.04300651 | F329: =+'O_IncomeStatement (Tax)'!G$21/1000 -> 59.70712607 | G329: =+'O_IncomeStatement (Tax)'!H$21/1000 -> 62.39755935 | H329: =+'O_IncomeStatement (Tax)'!I$21/1000 -> 64.51454844 | I329: =+'O_IncomeStatement (Tax)'!J$21/1000 -> 66.51850592 | J329: =+'O_IncomeStatement (Tax)'!K$21/1000 -> 68.58113562 | K329: =+'O_IncomeStatement (Tax)'!L$21/1000 -> 70.70399131 | L329: =+'O_IncomeStatement (Tax)'!M$21/1000 -> 72.88865979 | M329: =+'O_IncomeStatement (Tax)'!N$21/1000 -> 75.1367612 | N329: =+'O_IncomeStatement (Tax)'!O$21/1000 -> 77.44994923 | O329: =+'O_IncomeStatement (Tax)'!P$21/1000 -> 79.82991137 | P329: =+'O_IncomeStatement (Tax)'!Q$21/1000 -> 82.278369 | Q329: =+'O_IncomeStatement (Tax)'!R$21/1000 -> 84.79707758 | R329: =+'O_IncomeStatement (Tax)'!S$21/1000 -> 87.38782673 | S329: =+'O_IncomeStatement (Tax)'!T$21/1000 -> 90.05244029 | T329: =+'O_IncomeStatement (Tax)'!U$21/1000 -> 92.79277631 | U329: =+'O_IncomeStatement (Tax)'!V$21/1000 -> 95.610727 | V329: =+'O_IncomeStatement (Tax)'!W$21/1000 -> 98.50821867 | W329: =+'O_IncomeStatement (Tax)'!X$21/1000 -> 101.4872115 | X329: =+'O_IncomeStatement (Tax)'!Y$21/1000 -> 104.5496995 | Y329: =+'O_IncomeStatement (Tax)'!Z$21/1000 -> 107.69771 | Z329: =+'O_IncomeStatement (Tax)'!AA$21/1000 -> 110.9333033 | AA329: =+'O_IncomeStatement (Tax)'!AB$21/1000 -> 114.2585727 | AB329: =+'O_IncomeStatement (Tax)'!AC$21/1000 -> 117.6756432 | AC329: =+'O_IncomeStatement (Tax)'!AD$21/1000 -> 121.1866717 | AD329: =+'O_IncomeStatement (Tax)'!AE$21/1000 -> 124.7938458 | AE329: =+'O_IncomeStatement (Tax)'!AF$21/1000 -> 128.4993833 | AF329: =+'O_IncomeStatement (Tax)'!AG$21/1000 -> 132.3055309
A330: Retained Earnings (Tax) | B330: =+'O_IncomeStatement (Tax)'!C23/1000 -> 50.69044517 | C330: =+'O_IncomeStatement (Tax)'!D23/1000 -> 51.96759636 | D330: =+'O_IncomeStatement (Tax)'!E23/1000 -> 54.4640502 | E330: =+'O_IncomeStatement (Tax)'!F23/1000 -> 57.04300651 | F330: =+'O_IncomeStatement (Tax)'!G23/1000 -> 59.70712607 | G330: =+'O_IncomeStatement (Tax)'!H23/1000 -> 62.39755935 | H330: =+'O_IncomeStatement (Tax)'!I23/1000 -> 64.51454844 | I330: =+'O_IncomeStatement (Tax)'!J23/1000 -> 66.51850592 | J330: =+'O_IncomeStatement (Tax)'!K23/1000 -> 68.58113562 | K330: =+'O_IncomeStatement (Tax)'!L23/1000 -> 70.70399131 | L330: =+'O_IncomeStatement (Tax)'!M23/1000 -> 72.88865979 | M330: =+'O_IncomeStatement (Tax)'!N23/1000 -> 75.1367612 | N330: =+'O_IncomeStatement (Tax)'!O23/1000 -> 77.44994923 | O330: =+'O_IncomeStatement (Tax)'!P23/1000 -> 79.82991137 | P330: =+'O_IncomeStatement (Tax)'!Q23/1000 -> 82.278369 | Q330: =+'O_IncomeStatement (Tax)'!R23/1000 -> 84.79707758 | R330: =+'O_IncomeStatement (Tax)'!S23/1000 -> 87.38782673 | S330: =+'O_IncomeStatement (Tax)'!T23/1000 -> 90.05244029 | T330: =+'O_IncomeStatement (Tax)'!U23/1000 -> 92.79277631 | U330: =+'O_IncomeStatement (Tax)'!V23/1000 -> 95.610727 | V330: =+'O_IncomeStatement (Tax)'!W23/1000 -> 98.50821867 | W330: =+'O_IncomeStatement (Tax)'!X23/1000 -> 101.4872115 | X330: =+'O_IncomeStatement (Tax)'!Y23/1000 -> 104.5496995 | Y330: =+'O_IncomeStatement (Tax)'!Z23/1000 -> 107.69771 | Z330: =+'O_IncomeStatement (Tax)'!AA23/1000 -> 110.9333033 | AA330: =+'O_IncomeStatement (Tax)'!AB23/1000 -> 114.2585727 | AB330: =+'O_IncomeStatement (Tax)'!AC23/1000 -> 117.6756432 | AC330: =+'O_IncomeStatement (Tax)'!AD23/1000 -> 121.1866717 | AD330: =+'O_IncomeStatement (Tax)'!AE23/1000 -> 124.7938458 | AE330: =+'O_IncomeStatement (Tax)'!AF23/1000 -> 128.4993833 | AF330: =+'O_IncomeStatement (Tax)'!AG23/1000 -> 132.3055309
A334: Gross Income (Profit) | B334: =VLOOKUP(A334,Table_IncomeStatement,$AJ$3+1)/1000 -> 70.70399131
A335: EBITDA | B335: =VLOOKUP(A335,Table_IncomeStatement,$AJ$3+1)/1000 -> 70.70399131
A336: Net Profit Before Taxes | B336: =VLOOKUP(A336,Table_IncomeStatement,$AJ$3+1)/1000 -> 70.70399131
... 57 more rows

Sheet Spider_Diagram
A1: RELCOST: Sensitivity Analysis | D1: =IF(ErrorLine1="","","ENABLE MACROS") ->  | I1: INPUT (Edit) | J1: RESULTS (No Edits)
K3: COMMENTS
I29: =Recalc_Message -> 
I30: =IF(SUM(K238:S238)>0,"Reselect a parameter below","") -> 
I31: =IF(IndicateStatusCell="",D241,"") -> 
I32: =IF(IndicateStatusCell="",D242,"") -> 
B34: FIGURE TITLE: | C34: =C35 -> Biomass heating, main hospital building only, wood pellets
B35: Selected Scenario Description: | C35: =IF(OR(WhatIf!G7="",WhatIf!G7=0),"",WhatIf!G7) -> Biomass heating, main hospital building only, wood pellets
A41: DEFINE SCENARIOS FOR SPIDER DIAGRAM
B43: Instructions:
B44: 1. Select the performance measure you would like to use; e.g. Equity IRR
B45: 2. Select up to 5 parameters whose variation you would like to examine; e.g. Capital Expenditures, Plant Operating Factor, etc.
B46: 3. Enter sensitivity factors for each parameter. A sensitivity factor of 100% corresponds to 0% variation from the expected value; 80% sensitivity indicates -20% variation from the expected value
B47: 4. Click the "Recalc Spider Diagram" button to redraw the spider diagram. This process may take a few minutes. In the meantime, results are updated in the cells below and on the diagram.
A49: Performance Measure=> | B49: Equity IRR
B50: =IF(B59="Don't inlcude","",IF(B52="","Blank Parameter Ignored",IF(J196=-1,"Select a different parameter",""))) ->  | D50: =IF(D59="Don't inlcude","",IF(D52="","Blank Parameter Ignored",IF(L196=-1,"Select a different parameter",""))) ->  | F50: =IF(F59="Don't inlcude","",IF(F52="","Blank Parameter Ignored",IF(N196=-1,"Select a different parameter",""))) ->  | H50: =IF(H59="Don't inlcude","",IF(H52="","Blank Parameter Ignored",IF(P196=-1,"Select a different parameter",""))) ->  | J50: =IF(J59="Don't inlcude","",IF(J52="","Blank Parameter Ignored",IF(R196=-1,"Select a different parameter",""))) ->  | U50: Series 1 | W50: Series 2 | Y50: Series 3 | AA50: Series 4 | AC50: Series 5
A51: Notes=>> | C51: Notes=>> | E51: Notes=>> | G51: Notes=>> | I51: Notes=>> | U51: =+A51 -> Notes=>> | V51: 1st year | W51: =+C51 -> Notes=>> | X51: Average 1st 10 years | Y51: =+E51 -> Notes=>> | Z51: Total over Life | AA51: =+G51 -> Notes=>> | AC51: =+I51 -> Notes=>>
A52: Parameter 1=> | B52: Diesel, Hospital HTG (savings) | C52: Parameter 2=> | D52: Biomass Fuel | E52: Parameter 3=> | F52: Capital Expenses | G52: Parameter 4=> | H52: USDA REAP Grant | I52: Parameter 5=> | U52: =+A52 -> Parameter 1=> | V52: =IF(B52="","",IF(B$59="Include",+B52,"")) -> Diesel, Hospital HTG (savings) | W52: =+C52 -> Parameter 2=> | X52: =IF(D52="","",IF(D$59="Include",+D52,"")) -> Biomass Fuel | Y52: =+E52 -> Parameter 3=> | Z52: =IF(F52="","",IF(F$59="Include",+F52,"")) -> Capital Expenses | AA52: =+G52 -> Parameter 4=> | AB52: =IF(H52="","",IF(H$59="Include",+H52,"")) -> USDA REAP Grant | AC52: =+I52 -> Parameter 5=> | AD52: =IF(J52="","",IF(J$59="Include",+J52,"")) -> 
A53: 0.8 | B53: 0.03972865877 | C53: 0.8 | D53: 0.2097043595 | E53: 0.8 | F53: 0.2143976154 | G53: 0 | H53: 0.09488062319 | I53: 0 | J53: 0.2191819958 | U53: =IF(AND(B$52<>"",B$59="Include"),A53-1,0) -> -0.2 | V53: =IF(V$52="",$T$242,IF(B$59="Include",+B53,$T$242)) -> 0.03972865877 | W53: =IF(AND(D$52<>"",D$59="Include"),C53-1,0) -> -0.2 | X53: =IF(X$52="",$T$242,IF(D$59="Include",+D53,$T$242)) -> 0.2097043595 | Y53: =IF(AND(F$52<>"",F$59="Include"),E53-1,0) -> -0.2 | Z53: =IF(Z$52="",$T$242,IF(F$59="Include",+F53,$T$242)) -> 0.2143976154 | AA53: =IF(AND(H$52<>"",H$59="Include"),G53-1,0) -> -1 | AB53: =IF(AB$52="",$T$242,IF(H$59="Include",+H53,$T$242)) -> 0.09488062319 | AC53: =IF(AND(J$52<>"",J$59="Include"),I53-1,0) -> 0 | AD53: =IF(AD$52="",$T$242,IF(J$59="Include",+J53,$T$242)) -> 0.1514549951
A54: 0.9 | B54: 0.098794121 | C54: 0.9 | D54: 0.1805989919 | E54: 0.9 | F54: 0.1782294544 | G54: 0.2 | H54: 0.1036577885 | I54: 0.2 | J54: 0.2385597603 | U54: -0.1 | V54: 0.098794121 | W54: -0.1 | X54: 0.1805989919 | Y54: -0.1 | Z54: 0.1782294544 | AA54: -0.8 | AB54: 0.1036577885 | AC54: 0 | AD54: 0.1514549951
A55: 1 | B55: 0.1514549951 | C55: 1 | D55: 0.1514549951 | E55: 1 | F55: 0.1514549951 | G55: 0.4 | H55: 0.113439163 | I55: 0.4 | J55: 0.2612896208 | U55: 0 | V55: 0.1514549951 | W55: 0 | X55: 0.1514549951 | Y55: 0 | Z55: 0.1514549951 | AA55: -0.6 | AB55: 0.113439163 | AC55: 0 | AD55: 0.1514549951
A56: 1.1 | B56: 0.2027258176 | C56: 1.1 | D56: 0.1217371015 | E56: 1.1 | F56: 0.1304965207 | G56: 0.6 | H56: 0.1244444158 | I56: 0.6 | J56: 0.2884083467 | U56: 0.1 | V56: 0.2027258176 | W56: 0.1 | X56: 0.1217371015 | Y56: 0.1 | Z56: 0.1304965207 | AA56: -0.4 | AB56: 0.1244444158 | AC56: 0 | AD56: 0.1514549951
A57: 1.2 | B57: 0.2551570354 | C57: 1.2 | D57: 0.09066025327 | E57: 1.2 | F57: 0.113439163 | G57: 0.8 | H57: 0.1369760662 | I57: 0.8 | J57: 0.3214502239 | U57: 0.2 | V57: 0.2551570354 | W57: 0.2 | X57: 0.09066025327 | Y57: 0.2 | Z57: 0.113439163 | AA57: -0.2 | AB57: 0.1369760662 | AC57: 0 | AD57: 0.1514549951
A58: 1.3 | B58: 0.3104626697 | C58: 1.3 | D58: 0.05692638041 | E58: 1.3 | F58: 0.09915377409 | G58: 1 | H58: 0.1514549951 | I58: 1 | J58: 0.3627545015 | U58: 0.3 | V58: 0.3104626697 | W58: 0.3 | X58: 0.05692638041 | Y58: 0.3 | Z58: 0.09915377409 | AA58: 0 | AB58: 0.1514549951 | AC58: 0 | AD58: 0.1514549951
B59: Include | D59: Include | F59: Include | H59: Include | J59: Don't inlcude
A61: Notes
A63: Note: | B63: The current version of RELCOST includes sensitivity logic for Funding Sources 1, 2 and 3 only.
B64: If you have more than three funding sources that you want to appear on the spider diagram, define User-Defined Sensitivity Factors on the WhatIf tab.
B65: If you do not need to show on spider diagram, see the "Other Sensitivity Factors" area on the Funding Plan tab.
A68: WORKSPACE (OPTIONAL)
A158: CALCULATION AREA
A159: Toggle_Comments | B159: Hidden
A160: RefreshingParameters | B160: Finished Refreshing
A164: GRAPHIC
A167: Minimums | B167: =IF(SpiderInclude1="Include",MIN(Spider_Results1),"") -> 0.03972865877 | D167: =IF(SpiderInclude2="Include",MIN(Spider_Results2),"") -> 0.05692638041 | F167: =IF(SpiderInclude3="Include",MIN(Spider_Results3),"") -> 0.09915377409 | H167: =IF(SpiderInclude4="Include",MIN(Spider_Results4),"") -> 0.09488062319 | J167: =IF(SpiderInclude5="Include",MIN(Spider_Results5),"") -> 
A168: Min All | B168: =MIN(B167:J167) -> 0.03972865877
A169: Maximums | B169: =IF(SpiderInclude1="Include",MAX(Spider_Results1),"") -> 0.3104626697 | D169: =IF(SpiderInclude2="Include",MAX(Spider_Results2),"") -> 0.2097043595 | F169: =IF(SpiderInclude3="Include",MAX(Spider_Results3),"") -> 0.2143976154 | H169: =IF(SpiderInclude4="Include",MAX(Spider_Results4),"") -> 0.1514549951 | J169: =IF(SpiderInclude5="Include",MAX(Spider_Results5),"") -> 
A170: Max All | B170: =MAX(B169:J169) -> 0.3104626697
A173: Min rounded down to 5% | B173: =MROUND(B168-0.05/2,0.05) -> 0
A174: Max Rounded Up to 5% | B174: =MROUND(B170+0.05/2,0.05) -> 0.35
A176: Min rounded down | B176: =ROUNDDOWN(B168,2) -> 0.03
A177: Max Rounded Up | B177: =ROUNDUP(B170, 2) -> 0.32
A179: Min rounded down | B179: =B176 -> 0.03 | C179: Minimum Axis
A180: Max Rounded Up | B180: =B177 -> 0.32 | C180: Maximum Axis
A191: CALCULATIONS
A193: Application.Caller | B193: Spider_Sheet_Activate
A197: Last Sens_Factors | B197: 36
A198: Current Sens_Factors | B198: =SUM(sens_Factors) -> 36
A201: Performance Measure
A202: =IFERROR(+WhatIf!F14,"") -> Equity IRR | B202: =IFERROR(+WhatIf!H14,"") -> 0.1514549951
A203: =IFERROR(+WhatIf!F15,"") -> Project IRR | B203: =IFERROR(+WhatIf!H15,"") -> 0.1862746754
A204: =IFERROR(+WhatIf!F16,"") -> Net Present Value | B204: =IFERROR(+WhatIf!H16,"") -> 522149.7568
A205: =IFERROR(+WhatIf!F17,"") -> Benefit Cost Ratio (After Tax) | B205: =IFERROR(+WhatIf!H17,"") -> 2.355134068
A206: =IFERROR(+WhatIf!F18,"") -> After-Tax Discounted Payback | B206: =IFERROR(+WhatIf!H18,"") -> 7.620242035 | E206: Start | G206: 1st Yr Unit Costs | L206: Test if included
A207: =IFERROR(+WhatIf!F20,"") -> Non-Discounted Payback | B207: =IFERROR(+WhatIf!H20,"") -> 5.576769141 | E207: =WhatIf!A30 -> Diesel, Hospital HTG (savings) | F207: =WhatIf!B30 -> 1 | G207: =WhatIf!C30 -> 3.4 | H207: 1 | J207: =B59 -> Include | K207: =B52 -> Diesel, Hospital HTG (savings) | L207: =IF(J207="Include",IFERROR(VLOOKUP(K207,ForecastParameters,1,FALSE),-1),"") -> Diesel, Hospital HTG (savings)
A208: =IFERROR(+WhatIf!F21,"") -> Simple Payback, First Year Operation | B208: =IFERROR(+WhatIf!H21,"") -> 7.414471267 | E208: =WhatIf!A31 -> Electricity, Medical Offices HTG (savings) | F208: =WhatIf!B31 -> 1 | G208: =WhatIf!C31 -> 0.040963 | H208: 1 | I208: 1 | J208: =D59 -> Include | K208: =D52 -> Biomass Fuel | L208: =IF(J208="Include",IFERROR(VLOOKUP(K208,ForecastParameters,1,FALSE),-1),"") -> Biomass Fuel
A209: =IFERROR(+WhatIf!F26,"") -> Gross Margin | B209: =IFERROR(+WhatIf!H26,"") -> N/A | E209: =WhatIf!A32 -> Heat Recovered from Industrial Facility | F209: =WhatIf!B32 -> 1 | G209: =WhatIf!C32 -> 13.65 | H209: 1 | I209: =I208+1 -> 2 | J209: =F59 -> Include | K209: =F52 -> Capital Expenses | L209: =IF(J209="Include",IFERROR(VLOOKUP(K209,ForecastParameters,1,FALSE),-1),"") -> Capital Expenses
A210: =IFERROR(+WhatIf!F27,"") -> Operating Margin | B210: =IFERROR(+WhatIf!H27,"") -> N/A | E210: =WhatIf!A33 -> Biomass Fuel | F210: =WhatIf!B33 -> 1 | G210: =WhatIf!C33 -> 185 | H210: 1 | I210: =I209+1 -> 3 | J210: =H59 -> Include | K210: =H52 -> USDA REAP Grant | L210: =IF(J210="Include",IFERROR(VLOOKUP(K210,ForecastParameters,1,FALSE),-1),"") -> USDA REAP Grant
A211: =IFERROR(+WhatIf!F28,"") -> Pre - Tax Margin | B211: =IFERROR(+WhatIf!H28,"") -> N/A | E211: =WhatIf!A41 -> Capital Expenses | F211: =WhatIf!B41 -> 1 | G211: =WhatIf!C41 -> 708743 | H211: 1 | I211: 4 | J211: =J59 -> Don't inlcude | K211: =J52 -> 0 | L211: =IF(J211="Include",IFERROR(VLOOKUP(K211,ForecastParameters,1,FALSE),-1),"") -> 
A212: =IFERROR(+WhatIf!F29,"") -> After - Tax Margin | B212: =IFERROR(+WhatIf!H29,"") -> N/A | E212: =WhatIf!A43 -> O&M Expenses (Cost of Sales) | F212: =WhatIf!B43 -> 1 | G212: =WhatIf!C43 -> -54774.44486 | H212: 1 | I212: 5
A213: =IFERROR(+WhatIf!F31,"") -> Current Ratio | B213: =IFERROR(+WhatIf!H31,"") -> N/A | E213: =WhatIf!A49 -> Plant Operating Factor | F213: =WhatIf!B49 -> 1 | G213: =WhatIf!C49 -> 1 | H213: 1 | I213: 6
A214: =IFERROR(+WhatIf!F32,"") -> Acid Test Ratio | B214: =IFERROR(+WhatIf!H32,"") -> N/A | E214: =WhatIf!A51 -> Low Interest Loan | F214: =WhatIf!B51 -> 1 | G214: =WhatIf!C51 -> 100000 | H214: 1 | I214: 7
A215: =IFERROR(+WhatIf!F34,"") -> Debt Service Coverage Ratio | B215: =IFERROR(+WhatIf!H34,"") -> N/A | E215: =WhatIf!A54 -> Interest Rate, Low Interest Loan | F215: =WhatIf!B54 -> 1 | G215: =WhatIf!C54 -> 0.04 | H215: 1 | I215: 8 | J215: DropDown_Include
A216: =IFERROR(+WhatIf!F36,"") -> Debt to Equity | B216: =IFERROR(+WhatIf!H36,"") -> N/A | E216: =WhatIf!A62 -> USDA REAP Grant | F216: =WhatIf!B62 -> 1 | G216: =WhatIf!C62 -> 177185.75 | H216: 1 | I216: 9 | J216: Include
A217: =IFERROR(+WhatIf!F37,"") -> Debt Ratio | B217: =IFERROR(+WhatIf!H37,"") -> NA | E217: =WhatIf!A63 -> SEP Grant | F217: =WhatIf!B63 -> 1 | G217: =WhatIf!C63 -> 100000 | H217: 1 | I217: 10 | J217: Don't inlcude
A218: =IFERROR(+WhatIf!F38,"") -> Equity Ratio | B218: =IFERROR(+WhatIf!H38,"") -> NA | E218: =WhatIf!A64 -> USFS Biomass Utilization Study Grant | F218: =WhatIf!B64 -> 1 | G218: =WhatIf!C64 -> 46245 | H218: 1 | I218: 11
A219: =IFERROR(+WhatIf!F39,"") -> Debt-Asset Ratio | B219: =IFERROR(+WhatIf!H39,"") -> -3.129381161e-17 | E219: =WhatIf!A66 -> Discount Rate | F219: =WhatIf!B66 -> 1 | G219: =WhatIf!C66 -> 0.05 | H219: 1 | I219: 12
A220: =IFERROR(+WhatIf!F40,"") -> Interest Coverage | B220: =IFERROR(+WhatIf!H40,"") -> N/A | E220: =WhatIf!A67 -> Inflation Rate | F220: =WhatIf!B67 -> 1 | G220: =WhatIf!C67 -> 0.027 | H220: 1 | I220: 13
A221: =IFERROR(+WhatIf!F42,"") -> Net Cash Flow (Discounted) | B221: =IFERROR(+WhatIf!H42,"") -> 45576.42321 | E221: =WhatIf!A68 -> Project Life | F221: =WhatIf!B68 -> 1 | G221: =WhatIf!C68 -> 20 | H221: 1 | I221: 14
A222: =IFERROR(+WhatIf!F43,"") -> Cash Balance | B222: =IFERROR(+WhatIf!H43,"") -> 221275.7149 | I222: 15
A223: =IFERROR(+WhatIf!F44,"") -> Gross Income (Profit) | B223: =IFERROR(+WhatIf!H44,"") -> 70703.99131 | I223: 16
A224: =IFERROR(+WhatIf!F45,"") -> Operating Income (EBIT) | B224: =IFERROR(+WhatIf!H45,"") -> 70703.99131 | I224: 17
A225: =IFERROR(+WhatIf!F46,"") -> Net Profit After Taxes | B225: =IFERROR(+WhatIf!H46,"") -> 70703.99131 | I225: 18
A226: =IFERROR(+WhatIf!F48,"") ->  | B226: =IFERROR(+WhatIf!H48,"") -> 0 | I226: 19
A227: =IFERROR(+WhatIf!F49,"") ->  | B227: =IFERROR(+WhatIf!H49,"") -> 0 | I227: 20
A228: =IFERROR(+WhatIf!F50,"") ->  | B228: =IFERROR(+WhatIf!H50,"") -> 0 | I228: 21
A229: =IFERROR(+WhatIf!F51,"") ->  | B229: =IFERROR(+WhatIf!H51,"") -> 0 | I229: 22
A230: =IFERROR(+WhatIf!F52,"") ->  | B230: =IFERROR(+WhatIf!H52,"") -> 0 | I230: 23
A231: =IFERROR(+WhatIf!F53,"") ->  | B231: =IFERROR(+WhatIf!H53,"") -> 0 | I231: 24
A232: =IFERROR(+WhatIf!F54,"") ->  | B232: =IFERROR(+WhatIf!H54,"") -> 0 | I232: 25
A233: =IFERROR(+WhatIf!F55,"") ->  | B233: =IFERROR(+WhatIf!H55,"") -> 0 | I233: 26
I234: 27 | J234: =IF(K263=1,"Recalc Spider Diagram","") -> 
I235: 28 | J235: Tests if diagram needs updating or parameters need reselecting
I236: 29 | J236: 1 | K236: =VLOOKUP($J$236,A53:B58,2,FALSE) -> 0.1514549951 | M236: =VLOOKUP($J$236,C53:D58,2,FALSE) -> 0.1514549951 | O236: =VLOOKUP($J$236,E53:F58,2,FALSE) -> 0.1514549951 | Q236: =VLOOKUP($J$236,G53:H58,2,FALSE) -> 0.1514549951 | S236: =VLOOKUP($J$236,I53:J58,2,FALSE) -> 0.3627545015
I237: 30 | J237: =VLOOKUP(Spider_Measure,$A$202:$B$233,2,FALSE) -> 0.1514549951 | K237: =IF(K236<>$J$237,1,0) -> 0 | M237: =IF(M236<>$J$237,1,0) -> 0 | O237: =IF(O236<>$J$237,1,0) -> 0 | Q237: =IF(Q236<>$J$237,1,0) -> 0 | S237: =IF(S236<>$J$237,1,0) -> 1
I238: 31 | K238: =IF(AND(B52<>"",B50<>""),1,0) -> 0 | M238: =IF(AND(D52<>"",D50<>""),1,0) -> 0 | O238: =IF(AND(F52<>"",F50<>""),1,0) -> 0 | Q238: =IF(AND(H52<>"",H50<>""),1,0) -> 0 | S238: =IF(AND(J52<>"",J50<>""),1,0) -> 0
I239: 32 | J239: if blank parameter=0 | K239: =IF(B52="",0,1) -> 1 | M239: =IF(D52="",0,1) -> 1 | O239: =IF(F52="",0,1) -> 1 | Q239: =IF(H52="",0,1) -> 1 | S239: =IF(J52="",0,1) -> 0
I240: 33 | K240: =K236*K239 -> 0.1514549951 | M240: =M236*M239 -> 0.1514549951 | O240: =O236*O239 -> 0.1514549951 | Q240: =Q236*Q239 -> 0.1514549951 | S240: =S236*S239 -> 0 | T240: =MAX(K240:S240) -> 0.1514549951
A241: Sensitivity Factors | D241: =IF(SUM($D$243:$D$311)>0,"Note: Not all sensitivity factors on the WhatIf tab are 100%","") ->  | I241: 34 | J241: sign | K241: =IFERROR(ABS(K240)/K240,0) -> 1 | M241: =IFERROR(ABS(M240)/M240,0) -> 1 | O241: =IFERROR(ABS(O240)/O240,0) -> 1 | Q241: =IFERROR(ABS(Q240)/Q240,0) -> 1 | S241: =IFERROR(ABS(S240)/S240,0) -> 0 | T241: =ABS(SUM(K241:S241))/SUM(K241:S241) -> 1
A242: Environmental Credits & Prod Incentives | D242: =IF(SUM($D$243:$D$312)>0,"X-intercept on spider diagram does not equal result on WhatIf","") ->  | I242: 35 | K242: =ABS(K240) -> 0.1514549951 | M242: =ABS(M240) -> 0.1514549951 | O242: =ABS(O240) -> 0.1514549951 | Q242: =ABS(Q240) -> 0.1514549951 | S242: =ABS(S240) -> 0 | T242: =MAX(K242:S242)*T241 -> 0.1514549951
A243: =WhatIf!A9 -> State Production Incentive, Electricity | B243: =WhatIf!B9 -> 1 | C243: =WhatIf!C9 -> 0 | D243: =IF(AND(A243<>"",A243<>0,C243<>0,B243<1),1,0) -> 0 | I243: 36
A244: =WhatIf!A10 -> State Production Incentive, Thermal Savings | B244: =WhatIf!B10 -> 1 | C244: =WhatIf!C10 -> 0 | D244: =IF(AND(A244<>"",A244<>0,C244<>0,B244<1),1,0) -> 0 | I244: 37
A245: =WhatIf!A11 -> Production Tax Credits | B245: =WhatIf!B11 -> 0 | C245: =WhatIf!C11 -> 1st Yr Unit Costs | I245: 38 | J245: if select warning | K245: =IF(B50="Select a different parameter",1,0) -> 0 | M245: =IF(D50="Select a different parameter",1,0) -> 0 | O245: =IF(F50="Select a different parameter",1,0) -> 0 | Q245: =IF(H50="Select a different parameter",1,0) -> 0 | S245: =IF(J50="Select a different parameter",1,0) -> 0
A246: =WhatIf!A12 -> Federal PTC | B246: =WhatIf!B12 -> 1 | C246: =WhatIf!C12 -> 0 | D246: 0 | I246: 39 | J246: if not all 100% | K246: =IF(SUM(D243:D301)>1,1,0) -> 0
A247: =WhatIf!A13 -> State PTC Electricity | B247: =WhatIf!B13 -> 1 | C247: =WhatIf!C13 -> 0 | D247: 0 | I247: 40
A248: =WhatIf!A14 -> State PTC Thermal | B248: =WhatIf!B14 -> 1 | C248: =WhatIf!C14 -> 0 | D248: 0 | I248: 41 | J248: PREVIOUS RESULTS | M248: Current Reults
A249: =WhatIf!A15 -> Investment Tax Credits | B249: =WhatIf!B15 -> 0 | C249: =WhatIf!C15 -> Total | I249: 42 | J249: Equity IRR | K249: G | L249: 0.1514549951 | M249: =WhatIf!H14 -> 0.1514549951 | N249: =IF(L249=M249,0,1) -> 0
A250: =WhatIf!A16 -> Federal ITC | B250: =WhatIf!B16 -> 1 | C250: =WhatIf!C16 -> 0 | D250: 0 | I250: 43 | J250: Project IRR | K250: G | L250: 0.1862746754 | M250: =WhatIf!H15 -> 0.1862746754 | N250: =IF(L250=M250,0,1) -> 0
A251: =WhatIf!A17 -> State ITC | B251: =WhatIf!B17 -> 1 | C251: =WhatIf!C17 -> 0 | D251: 0 | I251: 44 | J251: Net Present Value | K251: Y | L251: 522149.7568 | M251: =WhatIf!H16 -> 522149.7568 | N251: =IF(L251=M251,0,1) -> 0
A252: =WhatIf!A18 -> Local ITC | B252: =WhatIf!B18 -> 1 | C252: =WhatIf!C18 -> 0 | D252: 0 | I252: 45 | J252: Benefit Cost Ratio (After Tax) | K252: G | L252: 2.355134068 | M252: =WhatIf!H17 -> 2.355134068 | N252: =IF(L252=M252,0,1) -> 0
A253: =WhatIf!A19 -> Income | B253: =WhatIf!B19 -> 0 | C253: =WhatIf!C19 -> 1st Yr Unit Costs | I253: 46 | J253: After-Tax Discounted Payback | K253: Y | L253: 7.620242035 | M253: =WhatIf!H18 -> 7.620242035 | N253: =IF(L253=M253,0,1) -> 0
A254: =WhatIf!A20 ->  | B254: =WhatIf!B20 -> 1 | C254: =WhatIf!C20 -> 0 | D254: =IF(AND(A254<>"",A254<>0,C254<>0,B254<1),1,0) -> 0 | I254: 47 | M254: Change? | N254: =SUM(N249:N253) -> 0
A255: =WhatIf!A21 ->  | B255: =WhatIf!B21 -> 1 | C255: =WhatIf!C21 ->  | D255: 0 | I255: 48 | J255: Previous Performance Measure | K255: Equity IRR | L255: =Spider_Measure -> Equity IRR
A256: =WhatIf!A22 ->  | B256: =WhatIf!B22 -> 1 | C256: =WhatIf!C22 ->  | D256: 0 | I256: 49 | J256: Change? | K256: =IF(Spider_Measure_target<>L255,1,0) -> 0
A257: =WhatIf!A23 ->  | B257: =WhatIf!B23 -> 1 | C257: =WhatIf!C23 ->  | D257: 0 | I257: 50
A258: =WhatIf!A24 ->  | B258: =WhatIf!B24 -> 1 | C258: =WhatIf!C24 ->  | D258: 0 | I258: 51 | J258: Previous Parameters | K258: Diesel, Hospital HTG (savings) | L258: Parameter 2=> | M258: Biomass Fuel | N258: Parameter 3=> | O258: Capital Expenses | P258: Parameter 4=> | Q258: USDA REAP Grant | R258: Parameter 5=>
A259: =WhatIf!A25 ->  | B259: =WhatIf!B25 -> 1 | C259: =WhatIf!C25 ->  | D259: 0 | I259: 52 | J259: Current Parameters | K259: =IF(B52="","",B52) -> Diesel, Hospital HTG (savings) | L259: Parameter 2=> | M259: Biomass Fuel | N259: Parameter 3=> | O259: Capital Expenses | P259: Parameter 4=> | Q259: USDA REAP Grant | R259: Parameter 5=>
A260: =WhatIf!A26 ->  | B260: =WhatIf!B26 -> 1 | C260: =WhatIf!C26 ->  | D260: 0 | I260: 53 | J260: Comparison | K260: =IF(K258<>K259,1,0) -> 0 | L260: =IF(L258<>L259,1,0) -> 0 | M260: =IF(M258<>M259,1,0) -> 0 | N260: =IF(N258<>N259,1,0) -> 0 | O260: 0 | P260: 0 | Q260: 0 | R260: 0 | S260: 0
A261: =WhatIf!A27 ->  | B261: =WhatIf!B27 -> 1 | C261: =WhatIf!C27 ->  | D261: 0 | I261: 54 | J261: Change? | K261: =SUM(K260:S260) -> 0
A262: =WhatIf!A28 ->  | B262: =WhatIf!B28 -> 1 | C262: =WhatIf!C28 ->  | D262: 0 | I262: 55
A263: =WhatIf!A29 -> Purchased Quantities | B263: =WhatIf!B29 -> 0 | C263: =WhatIf!C29 -> 1st Yr Unit Costs | I263: 56 | J263: Any changes? | K263: =K256+N254+K261 -> 0
A264: =WhatIf!A30 -> Diesel, Hospital HTG (savings) | B264: =WhatIf!B30 -> 1 | C264: =WhatIf!C30 -> 3.4 | D264: 0
A265: =WhatIf!A31 -> Electricity, Medical Offices HTG (savings) | B265: =WhatIf!B31 -> 1 | C265: =WhatIf!C31 -> 0.040963 | D265: 0
A266: =WhatIf!A32 -> Heat Recovered from Industrial Facility | B266: =WhatIf!B32 -> 1 | C266: =WhatIf!C32 -> 13.65 | D266: 0
A267: =WhatIf!A33 -> Biomass Fuel | B267: =WhatIf!B33 -> 1 | C267: =WhatIf!C33 -> 185 | D267: 0
A268: =WhatIf!A34 ->  | B268: =WhatIf!B34 -> 1 | C268: =WhatIf!C34 -> 0 | D268: 0
A269: =WhatIf!A35 ->  | B269: =WhatIf!B35 -> 1 | C269: =WhatIf!C35 -> 0 | D269: 0
A270: =WhatIf!A36 ->  | B270: =WhatIf!B36 -> 1 | C270: =WhatIf!C36 -> 0 | D270: 0
A271: =WhatIf!A37 ->  | B271: =WhatIf!B37 -> 1 | C271: =WhatIf!C37 -> 0 | D271: 0
A272: =WhatIf!A38 ->  | B272: =WhatIf!B38 -> 1 | C272: =WhatIf!C38 -> 0 | D272: 0
A273: =WhatIf!A39 ->  | B273: =WhatIf!B39 -> 1 | C273: =WhatIf!C39 -> 0 | D273: 0
A274: =WhatIf!A40 -> Expenses | B274: =WhatIf!B40 -> 0 | C274: =WhatIf!C40 -> 1st 5 Years
A275: =WhatIf!A41 -> Capital Expenses | B275: =WhatIf!B41 -> 1 | C275: =WhatIf!C41 -> 708743 | D275: 0
A276: =WhatIf!A42 -> Major Expenses | B276: =WhatIf!B42 -> 1 | C276: =WhatIf!C42 -> 0 | D276: 0
A277: =WhatIf!A43 -> O&M Expenses (Cost of Sales) | B277: =WhatIf!B43 -> 1 | C277: =WhatIf!C43 -> -54774.44486 | D277: 0
A278: =WhatIf!A44 -> Operating Expenses, Other | B278: =WhatIf!B44 -> 1 | C278: =WhatIf!C44 ->  | D278: 0
A279: =WhatIf!A45 -> Operating Labor | B279: =WhatIf!B45 -> 1 | C279: =WhatIf!C45 -> 0 | D279: 0
A280: =WhatIf!A46 -> Insurance Expense | B280: =WhatIf!B46 -> 1 | C280: =WhatIf!C46 -> 0 | D280: 0
A281: =WhatIf!A47 -> Property Taxes | B281: =WhatIf!B47 -> 1 | C281: =WhatIf!C47 -> 0 | D281: 0
A282: =WhatIf!A48 -> Operation | B282: =WhatIf!B48 -> 0 | C282: =WhatIf!C48 -> 1st 5 Years
A283: =WhatIf!A49 -> Plant Operating Factor | B283: =WhatIf!B49 -> 1 | C283: =WhatIf!C49 -> 1 | D283: 0
A284: =WhatIf!A50 -> Borrowed Funds | B284: =WhatIf!B50 -> 0 | C284: =WhatIf!C50 -> 0
A285: =WhatIf!A51 -> Low Interest Loan | B285: =WhatIf!B51 -> 1 | C285: =WhatIf!C51 -> 100000 | D285: 0
A286: =WhatIf!A52 -> Loan 2 | B286: =WhatIf!B52 -> 1 | C286: =WhatIf!C52 -> 0 | D286: 0
A287: =WhatIf!A53 -> Loan 3 | B287: =WhatIf!B53 -> 1 | C287: =WhatIf!C53 -> 0 | D287: 0
A288: =WhatIf!A54 -> Interest Rate, Low Interest Loan | B288: =WhatIf!B54 -> 1 | C288: =WhatIf!C54 -> 0.04 | D288: 0
A289: =WhatIf!A55 -> Interest Rate, Loan 2 | B289: =WhatIf!B55 -> 1 | C289: =WhatIf!C55 -> 0 | D289: 0
A290: =WhatIf!A56 -> Interest Rate, Loan 3 | B290: =WhatIf!B56 -> 1 | C290: =WhatIf!C56 -> 0 | D290: 0
A291: =WhatIf!A57 -> Equity Investments | B291: =WhatIf!B57 -> 0 | C291: =WhatIf!C57 -> 0
A292: =WhatIf!A58 -> Equity Investment | B292: =WhatIf!B58 -> 1 | C292: =WhatIf!C58 -> 0 | D292: 0
A293: =WhatIf!A59 -> Equity Investment 2 | B293: =WhatIf!B59 -> 1 | C293: =WhatIf!C59 -> 0 | D293: 0
A294: =WhatIf!A60 -> Equity Investment 3 | B294: =WhatIf!B60 -> 1 | C294: =WhatIf!C60 -> 0 | D294: 0
A295: =WhatIf!A61 -> Grants | B295: =WhatIf!B61 -> 0 | C295: =WhatIf!C61 -> 0
A296: =WhatIf!A62 -> USDA REAP Grant | B296: =WhatIf!B62 -> 1 | C296: =WhatIf!C62 -> 177185.75 | D296: 0
A297: =WhatIf!A63 -> SEP Grant | B297: =WhatIf!B63 -> 1 | C297: =WhatIf!C63 -> 100000 | D297: 0
A298: =WhatIf!A64 -> USFS Biomass Utilization Study Grant | B298: =WhatIf!B64 -> 1 | C298: =WhatIf!C64 -> 46245 | D298: 0
A299: =WhatIf!A65 -> Financial Assumptions | B299: =WhatIf!B65 -> 0 | C299: =WhatIf!C65 -> 0
A300: =WhatIf!A66 -> Discount Rate | B300: =WhatIf!B66 -> 1 | C300: =WhatIf!C66 -> 0.05 | D300: 0
A301: =WhatIf!A67 -> Inflation Rate | B301: =WhatIf!B67 -> 1 | C301: =WhatIf!C67 -> 0.027 | D301: 0
A302: =WhatIf!A68 -> Project Life | B302: =WhatIf!B68 -> 1 | C302: =WhatIf!C68 -> 20 | D302: 0
A303: =WhatIf!A69 -> User-Defined Sensitivity Factors (Optional) | B303: =WhatIf!B69 -> 0 | C303: =WhatIf!C69 -> 1st Year
A304: =WhatIf!A70 -> 0 | B304: =WhatIf!B70 -> 0 | C304: =WhatIf!C70 -> 0 | D304: 0
A305: =WhatIf!A71 -> 0 | B305: =WhatIf!B71 -> 0 | C305: =WhatIf!C71 -> 0 | D305: 0
A306: =WhatIf!A72 -> 0 | B306: =WhatIf!B72 -> 0 | C306: =WhatIf!C72 -> 0 | D306: 0
A307: =WhatIf!A73 -> 0 | B307: =WhatIf!B73 -> 0 | C307: =WhatIf!C73 -> 0 | D307: 0
A308: =WhatIf!A74 -> 0 | B308: =WhatIf!B74 -> 0 | C308: =WhatIf!C74 -> 0 | D308: =IF(AND(A308<>"",A308<>0,C308<>0,B308<1),1,0) -> 0
A309: =WhatIf!A75 -> 0 | B309: =WhatIf!B75 -> 0 | C309: =WhatIf!C75 -> 0 | D309: 0
A310: =WhatIf!A76 -> 0 | B310: =WhatIf!B76 -> 0 | C310: =WhatIf!C76 -> 0 | D310: 0
A311: =WhatIf!A77 -> 0 | B311: =WhatIf!B77 -> 0 | C311: =WhatIf!C77 -> 0 | D311: 0

Sheet Incentive Summary
B1: RELCOST: Incentive Summary
C3: Scenario | D3: =WhatIf!G7 -> Biomass heating, main hospital building only, wood pellets
D4: A
B6: ENTER DISCOUNT RATES OF SOURCES OF INCENTIVES
D8: Discount Rate of Sources
C9: Federal | D9: 0.01
C10: State | D10: =Discount_Federal -> 0.01
C11: Local | D11: =Discount_Federal -> 0.01
C12: Utility | D12: 0.05
C13: Private | D13: 0.1
C14: Market | D14: 0.1
C15: Other | D15: 0.01
C16: Project Discount Rate | D16: =Discount_rate -> 0.05
B18: PRESENT VALUES OF INCENTIVES BY SOURCE
C20: Source | D20: Loans | E20: Grants | F20: Equity Investments | G20: ='Prod Incentives'!G121 -> State Production Incentive, Electricity | H20: =IF('Prod Incentives'!H121=0,"",'Prod Incentives'!H121) -> State Production Incentive, Thermal Savings | I20: Production Tax Credits | J20: Investment Tax Credits | K20: TOTALS (not incl loans) | L20: NPV Ratio
C21: Federal | D21: ='Funding Plan'!D58 -> 0 | E21: ='Funding Plan'!E58 -> 223430.75 | F21: ='Funding Plan'!F58 -> 0 | G21: =IFERROR('Prod Incentives'!G122,"") -> 0 | H21: ='Prod Incentives'!H122 -> 0 | I21: =IFERROR('Tax Credits'!C76,"") -> 0 | J21: =IFERROR('Tax Credits'!D76,"") -> 0 | K21: =SUM(E21:J21) -> 223430.75 | L21: =IF(SUM(E21:K21)=0,"",O103) -> 1
C22: State | D22: ='Funding Plan'!D59 -> 100000 | E22: ='Funding Plan'!E59 -> 100000 | F22: ='Funding Plan'!F59 -> 0 | G22: =IFERROR('Prod Incentives'!G123,"") -> 0 | H22: ='Prod Incentives'!H123 -> 0 | I22: =IFERROR('Tax Credits'!C77,"") -> 0 | J22: =IFERROR('Tax Credits'!D77,"") -> 0 | K22: =SUM(E22:J22) -> 100000 | L22: =IF(SUM(E22:K22)=0,"",P103) -> 1
C23: Local | D23: ='Funding Plan'!D60 -> 0 | E23: ='Funding Plan'!E60 -> 0 | F23: ='Funding Plan'!F60 -> 0 | G23: =IFERROR('Prod Incentives'!G124,"") -> 0 | H23: ='Prod Incentives'!H124 -> 0 | J23: =IFERROR('Tax Credits'!D78,"") -> 0 | K23: 0 | L23: =IF(SUM(E23:K23)=0,"",Q103) -> 
C24: Utility | D24: ='Funding Plan'!D61 -> 0 | E24: ='Funding Plan'!E61 -> 0 | F24: ='Funding Plan'!F61 -> 0 | G24: =IFERROR('Prod Incentives'!G125,"") -> 0 | H24: ='Prod Incentives'!H125 -> 0 | K24: 0 | L24: =R103 -> 
C25: Market | D25: ='Funding Plan'!D62 -> 0 | E25: ='Funding Plan'!E62 -> 0 | F25: ='Funding Plan'!F62 -> 0 | G25: =IFERROR('Prod Incentives'!G126,"") -> 0 | H25: ='Prod Incentives'!H127 -> 0 | K25: =SUM(E25:J25) -> 0 | L25: =IF(SUM(E25:K25)=0,"",S102) -> 
C26: Private | D26: ='Funding Plan'!D63 -> 0 | E26: ='Funding Plan'!E63 -> 0 | F26: ='Funding Plan'!F63 -> 0 | G26: =IFERROR('Prod Incentives'!G127,"") -> 0 | H26: ='Prod Incentives'!H126 -> 0 | K26: 0 | L26: =IF(SUM(E26:K26)=0,"",S103) -> 
C27: Other | D27: ='Funding Plan'!D64 -> 0 | E27: ='Funding Plan'!E64 -> 0 | F27: ='Funding Plan'!F64 -> 0 | G27: =IFERROR('Prod Incentives'!G128,"") -> 0 | H27: ='Prod Incentives'!H128 -> 0 | K27: 0 | L27: =IF(SUM(E27:K27)=0,"",U103) -> 
C28: TOTALS | D28: =SUM(D21:D27) -> 100000 | E28: =SUM(E21:E27) -> 323430.75 | F28: 0 | G28: 0 | H28: 0 | I28: 0 | J28: 0 | K28: 323430.75
B81: Copied | C81: No
C87: Year
B88: Present Value Factors for Source | C88: =FirstYear_0or1 -> 1 | D88: =C88+1 -> 2 | E88: 3 | F88: 4 | G88: 5 | H88: 6 | I88: 7 | J88: 8 | K88: 9 | L88: 10 | M88: 11 | N88: 12 | O88: 13 | P88: 14 | Q88: 15 | R88: 16 | S88: 17 | T88: 18 | U88: 19 | V88: 20 | W88: 21 | X88: 22 | Y88: 23 | Z88: 24 | AA88: 25 | AB88: 26 | AC88: 27 | AD88: 28 | AE88: 29 | AF88: 30 | AG88: 31 | AH88: 32
B89: =C9 -> Federal | C89: =1/(1+$D9)^(C$88-1) -> 1 | D89: 0.9900990099 | E89: 0.9802960494 | F89: 0.9705901479 | G89: 0.9609803445 | H89: 0.9514656876 | I89: 0.9420452353 | J89: 0.9327180547 | K89: 0.9234832225 | L89: 0.9143398242 | M89: 0.9052869547 | N89: 0.8963237175 | O89: 0.8874492253 | P89: 0.8786625993 | Q89: 0.8699629696 | R89: 0.8613494748 | S89: 0.8528212622 | T89: 0.8443774873 | U89: 0.8360173142 | V89: 0.827739915 | W89: 0.8195444703 | X89: 0.8114301687 | Y89: 0.8033962066 | Z89: 0.7954417887 | AA89: 0.7875661274 | AB89: 0.779768443 | AC89: 0.7720479634 | AD89: 0.7644039241 | AE89: 0.7568355684 | AF89: 0.749342147 | AG89: 0.7419229178 | AH89: 0.7345771463
B90: =C10 -> State | C90: =1/(1+$D10)^(C$88-1) -> 1 | D90: 0.9900990099 | E90: 0.9802960494 | F90: 0.9705901479 | G90: 0.9609803445 | H90: 0.9514656876 | I90: 0.9420452353 | J90: 0.9327180547 | K90: 0.9234832225 | L90: 0.9143398242 | M90: 0.9052869547 | N90: 0.8963237175 | O90: 0.8874492253 | P90: 0.8786625993 | Q90: 0.8699629696 | R90: 0.8613494748 | S90: 0.8528212622 | T90: 0.8443774873 | U90: 0.8360173142 | V90: 0.827739915 | W90: 0.8195444703 | X90: 0.8114301687 | Y90: 0.8033962066 | Z90: 0.7954417887 | AA90: 0.7875661274 | AB90: 0.779768443 | AC90: 0.7720479634 | AD90: 0.7644039241 | AE90: 0.7568355684 | AF90: 0.749342147 | AG90: 0.7419229178 | AH90: 0.7345771463
B91: =C11 -> Local | C91: =1/(1+$D11)^(C$88-1) -> 1 | D91: 0.9900990099 | E91: 0.9802960494 | F91: 0.9705901479 | G91: 0.9609803445 | H91: 0.9514656876 | I91: 0.9420452353 | J91: 0.9327180547 | K91: 0.9234832225 | L91: 0.9143398242 | M91: 0.9052869547 | N91: 0.8963237175 | O91: 0.8874492253 | P91: 0.8786625993 | Q91: 0.8699629696 | R91: 0.8613494748 | S91: 0.8528212622 | T91: 0.8443774873 | U91: 0.8360173142 | V91: 0.827739915 | W91: 0.8195444703 | X91: 0.8114301687 | Y91: 0.8033962066 | Z91: 0.7954417887 | AA91: 0.7875661274 | AB91: 0.779768443 | AC91: 0.7720479634 | AD91: 0.7644039241 | AE91: 0.7568355684 | AF91: 0.749342147 | AG91: 0.7419229178 | AH91: 0.7345771463
B92: Utility | C92: =1/(1+$D12)^(C$88-1) -> 1 | D92: 0.9523809524 | E92: 0.9070294785 | F92: 0.8638375985 | G92: 0.8227024748 | H92: 0.7835261665 | I92: 0.7462153966 | J92: 0.7106813301 | K92: 0.676839362 | L92: 0.6446089162 | M92: 0.6139132535 | N92: 0.5846792891 | O92: 0.5568374182 | P92: 0.5303213506 | Q92: 0.505067953 | R92: 0.4810170981 | S92: 0.458111522 | T92: 0.4362966876 | U92: 0.4155206549 | V92: 0.395733957 | W92: 0.3768894829 | X92: 0.3589423646 | Y92: 0.3418498711 | Z92: 0.3255713058 | AA92: 0.3100679103 | AB92: 0.2953027717 | AC92: 0.281240735 | AD92: 0.267848319 | AE92: 0.2550936371 | AF92: 0.2429463211 | AG92: 0.2313774487 | AH92: 0.2203594749
B93: =C13 -> Private | C93: =1/(1+$D13)^(C$88-1) -> 1 | D93: 0.9090909091 | E93: 0.826446281 | F93: 0.7513148009 | G93: 0.6830134554 | H93: 0.6209213231 | I93: 0.5644739301 | J93: 0.5131581182 | K93: 0.4665073802 | L93: 0.4240976184 | M93: 0.3855432894 | N93: 0.3504938995 | O93: 0.3186308177 | P93: 0.2896643797 | Q93: 0.2633312543 | R93: 0.2393920494 | S93: 0.2176291358 | T93: 0.1978446689 | U93: 0.1798587899 | V93: 0.1635079908 | W93: 0.148643628 | X93: 0.1351305709 | Y93: 0.1228459736 | Z93: 0.1116781578 | AA93: 0.101525598 | AB93: 0.09229599818 | AC93: 0.08390545289 | AD93: 0.07627768444 | AE93: 0.06934334949 | AF93: 0.06303940863 | AG93: 0.0573085533 | AH93: 0.05209868482
B94: =C14 -> Market | C94: =1/(1+$D14)^(C$88-1) -> 1 | D94: 0.9090909091 | E94: 0.826446281 | F94: 0.7513148009 | G94: 0.6830134554 | H94: 0.6209213231 | I94: 0.5644739301 | J94: 0.5131581182 | K94: 0.4665073802 | L94: 0.4240976184 | M94: 0.3855432894 | N94: 0.3504938995 | O94: 0.3186308177 | P94: 0.2896643797 | Q94: 0.2633312543 | R94: 0.2393920494 | S94: 0.2176291358 | T94: 0.1978446689 | U94: 0.1798587899 | V94: 0.1635079908 | W94: 0.148643628 | X94: 0.1351305709 | Y94: 0.1228459736 | Z94: 0.1116781578 | AA94: 0.101525598 | AB94: 0.09229599818 | AC94: 0.08390545289 | AD94: 0.07627768444 | AE94: 0.06934334949 | AF94: 0.06303940863 | AG94: 0.0573085533 | AH94: 0.05209868482
B95: =C15 -> Other | C95: =1/(1+$D15)^(C$88-1) -> 1 | D95: 0.9900990099 | E95: 0.9802960494 | F95: 0.9705901479 | G95: 0.9609803445 | H95: 0.9514656876 | I95: 0.9420452353 | J95: 0.9327180547 | K95: 0.9234832225 | L95: 0.9143398242 | M95: 0.9052869547 | N95: 0.8963237175 | O95: 0.8874492253 | P95: 0.8786625993 | Q95: 0.8699629696 | R95: 0.8613494748 | S95: 0.8528212622 | T95: 0.8443774873 | U95: 0.8360173142 | V95: 0.827739915 | W95: 0.8195444703 | X95: 0.8114301687 | Y95: 0.8033962066 | Z95: 0.7954417887 | AA95: 0.7875661274 | AB95: 0.779768443 | AC95: 0.7720479634 | AD95: 0.7644039241 | AE95: 0.7568355684 | AF95: 0.749342147 | AG95: 0.7419229178 | AH95: 0.7345771463
B96: Project | C96: ='_Calcs_Life_Cycle_Cost (2)'!K68 -> 1 | D96: ='_Calcs_Life_Cycle_Cost (2)'!L68 -> 0.9523809524 | E96: ='_Calcs_Life_Cycle_Cost (2)'!M68 -> 0.9070294785 | F96: ='_Calcs_Life_Cycle_Cost (2)'!N68 -> 0.8638375985 | G96: ='_Calcs_Life_Cycle_Cost (2)'!O68 -> 0.8227024748 | H96: ='_Calcs_Life_Cycle_Cost (2)'!P68 -> 0.7835261665 | I96: ='_Calcs_Life_Cycle_Cost (2)'!Q68 -> 0.7462153966 | J96: ='_Calcs_Life_Cycle_Cost (2)'!R68 -> 0.7106813301 | K96: ='_Calcs_Life_Cycle_Cost (2)'!S68 -> 0.676839362 | L96: ='_Calcs_Life_Cycle_Cost (2)'!T68 -> 0.6446089162 | M96: ='_Calcs_Life_Cycle_Cost (2)'!U68 -> 0.6139132535 | N96: ='_Calcs_Life_Cycle_Cost (2)'!V68 -> 0.5846792891 | O96: ='_Calcs_Life_Cycle_Cost (2)'!W68 -> 0.5568374182 | P96: ='_Calcs_Life_Cycle_Cost (2)'!X68 -> 0.5303213506 | Q96: ='_Calcs_Life_Cycle_Cost (2)'!Y68 -> 0.505067953 | R96: ='_Calcs_Life_Cycle_Cost (2)'!Z68 -> 0.4810170981 | S96: ='_Calcs_Life_Cycle_Cost (2)'!AA68 -> 0.458111522 | T96: ='_Calcs_Life_Cycle_Cost (2)'!AB68 -> 0.4362966876 | U96: ='_Calcs_Life_Cycle_Cost (2)'!AC68 -> 0.4155206549 | V96: ='_Calcs_Life_Cycle_Cost (2)'!AD68 -> 0.395733957 | W96: ='_Calcs_Life_Cycle_Cost (2)'!AE68 -> 0.3768894829 | X96: ='_Calcs_Life_Cycle_Cost (2)'!AF68 -> 0.3589423646 | Y96: ='_Calcs_Life_Cycle_Cost (2)'!AG68 -> 0.3418498711 | Z96: ='_Calcs_Life_Cycle_Cost (2)'!AH68 -> 0.3255713058 | AA96: ='_Calcs_Life_Cycle_Cost (2)'!AI68 -> 0.3100679103 | AB96: ='_Calcs_Life_Cycle_Cost (2)'!AJ68 -> 0.2953027717 | AC96: ='_Calcs_Life_Cycle_Cost (2)'!AK68 -> 0.281240735 | AD96: ='_Calcs_Life_Cycle_Cost (2)'!AL68 -> 0.267848319 | AE96: ='_Calcs_Life_Cycle_Cost (2)'!AM68 -> 0.2550936371 | AF96: ='_Calcs_Life_Cycle_Cost (2)'!AN68 -> 0.2429463211 | AG96: ='_Calcs_Life_Cycle_Cost (2)'!AO68 -> 0.2313774487 | AH96: ='_Calcs_Life_Cycle_Cost (2)'!AP68 -> 0
P101: =P105-M105 -> 100000 | R101: =R105-M105 -> 0
O102: NPV Ratios
O103: =IFERROR((O105-$M$105)/$K21,"") -> 1 | P103: =IFERROR((P105-$M$105)/$K22,"") -> 1 | Q103: =IFERROR((Q105-$M$105)/$K23,"") ->  | R103: =IFERROR((R105-$M$105)/$K24,"") ->  | S103: =IFERROR((S105-$M$105)/$K26,"") ->  | T103: =IFERROR((T105-$M$105)/#REF!,"") ->  | U103: =IFERROR((U105-$M$105)/$K27,"") -> 
D104: Net present values | F104: 2 | G104: 3 | H104: 4 | I104: 5 | J104: 6 | K104: 7 | L104: 8 | M104: 9 | N104: 10 | O104: 11 | P104: 12 | Q104: 13 | R104: 14 | S104: 15 | T104: 16 | U104: 17
D105: 522149.76 | M105: 198719.01 | O105: 422149.76 | P105: 298719.01 | Q105: 198719.01 | R105: 198719.01 | S105: 198719.01 | T105: 198719.01 | U105: 198719.01
F106: ZERO OUT INCENTIVES BY SOURCE | O106: ADD IN ONE-BY-ONE INCENTIVES BY SOURCE
D107: Saved | F107: Federal | G107: State | H107: Local | I107: Private | J107: Utility | K107: Market | L107: Other | M107: All Zero | O107: Federal | P107: State | Q107: Local | R107: Utility | S107: Private | T107: Market | U107: Other
C108: State Production Incentive, Electricity | D108: 1 | E108: ='Prod Incentives'!B16 -> Market | F108: =IF($D108="","",IF($E108=F$107,0,$D108)) -> 1 | G108: 1 | H108: 1 | I108: 1 | J108: 1 | K108: 0 | L108: 1 | M108: =IF($D108="","",IF($E108<>"",0,$D108)) -> 0 | O108: =IF($D108="","",IF($E108="",$D108,(IF($E108<>O$107,0,1)))) -> 0 | P108: =IF($D108="","",IF($E108="",$D108,(IF($E108<>P$107,0,1)))) -> 0 | Q108: 0 | R108: 0 | S108: 0 | T108: 1 | U108: 0
C109: State Production Incentive, Thermal Savings | D109: 1 | E109: ='Prod Incentives'!B24 -> State | F109: 1 | G109: 0 | H109: 1 | I109: 1 | J109: 1 | K109: 1 | L109: 1 | M109: =IF($D109="","",IF($E109<>"",0,$D109)) -> 0 | O109: =IF($D109="","",IF($E109="",$D109,(IF($E109<>O$107,0,1)))) -> 0 | P109: 1 | Q109: 0 | R109: 0 | S109: 0 | T109: 0 | U109: 0
C110: Production Tax Credits
C111: Federal PTC | D111: 1 | E111: Federal | F111: 0 | G111: 1 | H111: 1 | I111: 1 | J111: 1 | K111: 1 | L111: 1 | M111: 0 | O111: 1 | P111: 0 | Q111: 0 | R111: 0 | S111: 0 | T111: 0 | U111: 0
C112: State PTC Electricity | D112: 1 | E112: State | F112: 1 | G112: 0 | H112: 1 | I112: 1 | J112: 1 | K112: 1 | L112: 1 | M112: 0 | O112: 0 | P112: 1 | Q112: 0 | R112: 0 | S112: 0 | T112: 0 | U112: 0
C113: State PTC Thermal | D113: 1 | E113: State | F113: 1 | G113: 0 | H113: 1 | I113: 1 | J113: 1 | K113: 1 | L113: 1 | M113: 0 | O113: 0 | P113: 1 | Q113: 0 | R113: 0 | S113: 0 | T113: 0 | U113: 0
C114: Investment Tax Credits
C115: Federal ITC | D115: 1 | E115: Federal | F115: 0 | G115: 1 | H115: 1 | I115: 1 | J115: 1 | K115: 1 | L115: 1 | M115: 0 | O115: 1 | P115: 0 | Q115: 0 | R115: 0 | S115: 0 | T115: 0 | U115: 0
C116: State ITC | D116: 1 | E116: State | F116: 1 | G116: 0 | H116: 1 | I116: 1 | J116: 1 | K116: 1 | L116: 1 | M116: 0 | O116: 0 | P116: 1 | Q116: 0 | R116: 0 | S116: 0 | T116: 0 | U116: 0
C117: Local ITC | D117: 1 | E117: Local | F117: 1 | G117: 1 | H117: 0 | I117: 1 | J117: 1 | K117: 1 | L117: 1 | M117: 0 | O117: 0 | P117: 0 | Q117: 1 | R117: 0 | S117: 0 | T117: 0 | U117: 0
C118: Income | F118: =IF($D118="","",IF($E118=F$107,0,$D118)) ->  | R118: =IF($D118="","",IF($E118="",$D118,(IF($E118<>R$107,0,1)))) -> 
D119: 1 | F119: 1 | G119: 1 | H119: 1 | I119: 1 | J119: 1 | K119: 1 | L119: 1 | M119: 1 | O119: 1 | P119: 1 | Q119: 1 | R119: 1 | S119: 1 | T119: 1 | U119: 1
D120: 1 | F120: 1 | G120: 1 | H120: 1 | I120: 1 | J120: 1 | K120: 1 | L120: 1 | M120: 1 | O120: 1 | P120: 1 | Q120: 1 | R120: 1 | S120: 1 | T120: 1 | U120: 1
D121: 1 | F121: 1 | G121: 1 | H121: 1 | I121: 1 | J121: 1 | K121: 1 | L121: 1 | M121: 1 | O121: 1 | P121: 1 | Q121: 1 | R121: 1 | S121: 1 | T121: 1 | U121: 1
D122: 1 | F122: 1 | G122: 1 | H122: 1 | I122: 1 | J122: 1 | K122: 1 | L122: 1 | M122: 1 | O122: 1 | P122: 1 | Q122: 1 | R122: 1 | S122: 1 | T122: 1 | U122: 1
D123: 1 | F123: 1 | G123: 1 | H123: 1 | I123: 1 | J123: 1 | K123: 1 | L123: 1 | M123: 1 | O123: 1 | P123: 1 | Q123: 1 | R123: 1 | S123: 1 | T123: 1 | U123: 1
D124: 1 | F124: 1 | G124: 1 | H124: 1 | I124: 1 | J124: 1 | K124: 1 | L124: 1 | M124: 1 | O124: 1 | P124: 1 | Q124: 1 | R124: 1 | S124: 1 | T124: 1 | U124: 1
D125: 1 | F125: 1 | G125: 1 | H125: 1 | I125: 1 | J125: 1 | K125: 1 | L125: 1 | M125: 1 | O125: 1 | P125: 1 | Q125: 1 | R125: 1 | S125: 1 | T125: 1 | U125: 1
D126: 1 | F126: 1 | G126: 1 | H126: 1 | I126: 1 | J126: 1 | K126: 1 | L126: 1 | M126: 1 | O126: 1 | P126: 1 | Q126: 1 | R126: 1 | S126: 1 | T126: 1 | U126: 1
D127: 1 | F127: 1 | G127: 1 | H127: 1 | I127: 1 | J127: 1 | K127: 1 | L127: 1 | M127: 1 | O127: 1 | P127: 1 | Q127: 1 | R127: 1 | S127: 1 | T127: 1 | U127: 1
C128: Purchased Quantities | F128: =IF($D128="","",IF($E128=F$107,0,$D128)) -> 
C129: Diesel, Hospital HTG (savings) | D129: 1 | F129: 1 | G129: 1 | H129: 1 | I129: 1 | J129: 1 | K129: 1 | L129: 1 | M129: 1 | O129: =IF($D129="","",IF($E129="",$D129,(IF($E129<>O$107,0,1)))) -> 1 | P129: 1 | Q129: 1 | R129: 1 | S129: 1 | T129: 1 | U129: 1
C130: Electricity, Medical Offices HTG (savings) | D130: 1 | F130: 1 | G130: 1 | H130: 1 | I130: 1 | J130: 1 | K130: 1 | L130: 1 | M130: 1 | O130: 1 | P130: 1 | Q130: 1 | R130: 1 | S130: 1 | T130: 1 | U130: 1
C131: Heat Recovered from Industrial Facility | D131: 1 | F131: 1 | G131: 1 | H131: 1 | I131: 1 | J131: 1 | K131: 1 | L131: 1 | M131: 1 | O131: 1 | P131: 1 | Q131: 1 | R131: 1 | S131: 1 | T131: 1 | U131: 1
C132: Biomass Fuel | D132: 1 | F132: 1 | G132: 1 | H132: 1 | I132: 1 | J132: 1 | K132: 1 | L132: 1 | M132: 1 | O132: 1 | P132: 1 | Q132: 1 | R132: 1 | S132: 1 | T132: 1 | U132: 1
D133: 1 | F133: 1 | G133: 1 | H133: 1 | I133: 1 | J133: 1 | K133: 1 | L133: 1 | M133: 1 | O133: 1 | P133: 1 | Q133: 1 | R133: 1 | S133: 1 | T133: 1 | U133: 1
D134: 1 | F134: 1 | G134: 1 | H134: 1 | I134: 1 | J134: 1 | K134: 1 | L134: 1 | M134: 1 | O134: 1 | P134: 1 | Q134: 1 | R134: 1 | S134: 1 | T134: 1 | U134: 1
D135: 1 | F135: 1 | G135: 1 | H135: 1 | I135: 1 | J135: 1 | K135: 1 | L135: 1 | M135: 1 | O135: 1 | P135: 1 | Q135: 1 | R135: 1 | S135: 1 | T135: 1 | U135: 1
D136: 1 | F136: 1 | G136: 1 | H136: 1 | I136: 1 | J136: 1 | K136: 1 | L136: 1 | M136: 1 | O136: 1 | P136: 1 | Q136: 1 | R136: 1 | S136: 1 | T136: 1 | U136: 1
D137: 1 | F137: 1 | G137: 1 | H137: 1 | I137: 1 | J137: 1 | K137: 1 | L137: 1 | M137: 1 | O137: 1 | P137: 1 | Q137: 1 | R137: 1 | S137: 1 | T137: 1 | U137: 1
D138: 1 | F138: 1 | G138: 1 | H138: 1 | I138: 1 | J138: 1 | K138: 1 | L138: 1 | M138: 1 | O138: 1 | P138: 1 | Q138: 1 | R138: 1 | S138: 1 | T138: 1 | U138: 1
C139: Expenses
C140: Capital Expenses | D140: 1 | F140: 1 | G140: 1 | H140: 1 | I140: 1 | J140: 1 | K140: 1 | L140: 1 | M140: 1 | O140: 1 | P140: 1 | Q140: 1 | R140: 1 | S140: 1 | T140: 1 | U140: 1
C141: Major Expenses | D141: 1 | F141: 1 | G141: 1 | H141: 1 | I141: 1 | J141: 1 | K141: 1 | L141: 1 | M141: 1 | O141: 1 | P141: 1 | Q141: 1 | R141: 1 | S141: 1 | T141: 1 | U141: 1
C142: O&M Expenses (Cost of Sales) | D142: 1 | F142: 1 | G142: 1 | H142: 1 | I142: 1 | J142: 1 | K142: 1 | L142: 1 | M142: 1 | O142: 1 | P142: 1 | Q142: 1 | R142: 1 | S142: 1 | T142: 1 | U142: 1
C143: Operating Expenses, Other | D143: 1 | F143: 1 | G143: 1 | H143: 1 | I143: 1 | J143: 1 | K143: 1 | L143: 1 | M143: 1 | O143: 1 | P143: 1 | Q143: 1 | R143: 1 | S143: 1 | T143: 1 | U143: 1
C144: Operating Labor | D144: 1 | F144: 1 | G144: 1 | H144: 1 | I144: 1 | J144: 1 | K144: 1 | L144: 1 | M144: 1 | O144: 1 | P144: 1 | Q144: 1 | R144: 1 | S144: 1 | T144: 1 | U144: 1
C145: Insurance Expense | D145: 1 | F145: 1 | G145: 1 | H145: 1 | I145: 1 | J145: 1 | K145: 1 | L145: 1 | M145: 1 | O145: 1 | P145: 1 | Q145: 1 | R145: 1 | S145: 1 | T145: 1 | U145: 1
C146: Property Taxes | D146: 1 | F146: 1 | G146: 1 | H146: 1 | I146: 1 | J146: 1 | K146: 1 | L146: 1 | M146: 1 | O146: 1 | P146: 1 | Q146: 1 | R146: 1 | S146: 1 | T146: 1 | U146: 1
C147: Operation
C148: Plant Operating Factor | D148: 1 | F148: 1 | G148: 1 | H148: 1 | I148: 1 | J148: 1 | K148: 1 | L148: 1 | M148: 1 | O148: 1 | P148: 1 | Q148: 1 | R148: 1 | S148: 1 | T148: 1 | U148: 1
C149: Borrowed Funds
C150: Low Interest Loan | D150: 1 | E150: =IF('Funding Plan'!C21="","",'Funding Plan'!C21) -> State | F150: 1 | G150: 0 | H150: 1 | I150: 1 | J150: 1 | K150: 1 | L150: 1 | M150: 0 | O150: 0 | P150: 1 | Q150: 0 | R150: 0 | S150: 0 | T150: 0 | U150: 0
C151: Loan 2 | D151: 1 | E151: =IF('Funding Plan'!D21="","",'Funding Plan'!D21) ->  | F151: 1 | G151: 1 | H151: 1 | I151: 1 | J151: 1 | K151: 1 | L151: 1 | M151: 1 | O151: 1 | P151: 1 | Q151: 1 | R151: 1 | S151: 1 | T151: 1 | U151: 1
C152: Loan 3 | D152: 1 | E152: =IF('Funding Plan'!E21="","",'Funding Plan'!E21) ->  | F152: 1 | G152: 1 | H152: 1 | I152: 1 | J152: 1 | K152: 1 | L152: 1 | M152: 1 | O152: 1 | P152: 1 | Q152: 1 | R152: 1 | S152: 1 | T152: 1 | U152: 1
C153: Interest Rate, Low Interest Loan | D153: 1 | F153: 1 | G153: 1 | H153: 1 | I153: 1 | J153: 1 | K153: 1 | L153: 1 | M153: 1 | O153: 1 | P153: 1 | Q153: 1 | R153: 1 | S153: 1 | T153: 1 | U153: 1
C154: Interest Rate, Loan 2 | D154: 1 | F154: 1 | G154: 1 | H154: 1 | I154: 1 | J154: 1 | K154: 1 | L154: 1 | M154: 1 | O154: 1 | P154: 1 | Q154: 1 | R154: 1 | S154: 1 | T154: 1 | U154: 1
C155: Interest Rate, Loan 3 | D155: 1 | F155: 1 | G155: 1 | H155: 1 | I155: 1 | J155: 1 | K155: 1 | L155: 1 | M155: 1 | O155: 1 | P155: 1 | Q155: 1 | R155: 1 | S155: 1 | T155: 1 | U155: 1
C156: Equity Investments
C157: Equity Investment | D157: 1 | E157: =IF('Funding Plan'!C33="","",'Funding Plan'!C33) -> Private | F157: 1 | G157: 1 | H157: 1 | I157: 0 | J157: 1 | K157: 1 | L157: 1 | M157: 0 | O157: 0 | P157: 0 | Q157: 0 | R157: 0 | S157: 1 | T157: 0 | U157: 0
C158: Equity Investment 2 | D158: 1 | E158: =IF('Funding Plan'!D33="","",'Funding Plan'!D33) ->  | F158: 1 | G158: 1 | H158: 1 | I158: 1 | J158: 1 | K158: 1 | L158: 1 | M158: 1 | O158: 1 | P158: 1 | Q158: 1 | R158: 1 | S158: 1 | T158: 1 | U158: 1
C159: Equity Investment 3 | D159: 1 | E159: =IF('Funding Plan'!E33="","",'Funding Plan'!E33) ->  | F159: 1 | G159: 1 | H159: 1 | I159: 1 | J159: 1 | K159: 1 | L159: 1 | M159: 1 | O159: 1 | P159: 1 | Q159: 1 | R159: 1 | S159: 1 | T159: 1 | U159: 1
C160: Grants
C161: USDA REAP Grant | D161: 1 | E161: =IF('Funding Plan'!C41="","",'Funding Plan'!C41) -> Federal | F161: 0 | G161: 1 | H161: 1 | I161: 1 | J161: 1 | K161: 1 | L161: 1 | M161: 0 | O161: 1 | P161: 0 | Q161: 0 | R161: 0 | S161: 0 | T161: 0 | U161: 0
C162: SEP Grant | D162: 1 | E162: =IF('Funding Plan'!D41="","",'Funding Plan'!D41) -> State | F162: 1 | G162: 0 | H162: 1 | I162: 1 | J162: 1 | K162: 1 | L162: 1 | M162: 0 | O162: 0 | P162: 1 | Q162: 0 | R162: 0 | S162: 0 | T162: 0 | U162: 0
C163: USFS Biomass Utilization Study Grant | D163: 1 | E163: =IF('Funding Plan'!E41="","",'Funding Plan'!E41) -> Federal | F163: =IF($D163="","",IF($E163=F$107,0,$D163)) -> 0 | G163: 1 | H163: 1 | I163: 1 | J163: 1 | K163: 1 | L163: 1 | M163: 0 | O163: 1 | P163: 0 | Q163: 0 | R163: 0 | S163: 0 | T163: 0 | U163: 0
C164: Financial Assumptions
C165: Discount Rate | D165: 1 | F165: 1 | G165: 1 | H165: 1 | I165: 1 | J165: 1 | K165: 1 | L165: 1 | M165: 1 | O165: 1 | P165: 1 | Q165: 1 | R165: 1 | S165: 1 | T165: 1 | U165: 1
C166: Inflation Rate | D166: 1 | F166: 1 | G166: 1 | H166: 1 | I166: 1 | J166: 1 | K166: 1 | L166: 1 | M166: 1 | O166: 1 | P166: 1 | Q166: 1 | R166: 1 | S166: 1 | T166: 1 | U166: 1
C167: Project Life | D167: 1 | F167: 1 | G167: 1 | H167: 1 | I167: 1 | J167: 1 | K167: 1 | L167: 1 | M167: 1 | O167: 1 | P167: 1 | Q167: 1 | R167: 1 | S167: 1 | T167: 1 | U167: 1
C168: User-Defined Sensitivity Factors (Optional)
U170: =IF($D170="","",IF($E170="",$D170,(IF($E170<>U$107,0,1)))) -> 
O171: =IF($D171="","",IF($E171="",$D171,(IF($E171<>O$107,0,1)))) -> 

Sheet Decision Matrix
A1: RELCOST: Decision Matrix | E1: =IF(ErrorLine1="","","ENABLE MACROS") ->  | I1: INPUT (Edit) | J1: RESULTS (No Edits)
C3: Scenario | D3: 1
D4: =WhatIf!G7 -> Biomass heating, main hospital building only, wood pellets | I4: SENSITIVITY FACTORS OF BASE CASE | M4: COMMENTS
I5: =IF(AND(A243<>0,A243<>""),A243,"") -> Diesel, Hospital HTG (savings) | K5: =IF(B243<>"",B243,"") -> 1 | M5: Exploration of best and worst combinations of biofuel and diesel costs.
I6: Electricity, Medical Offices HTG (savings) | K6: 1
I7: Heat Recovered from Industrial Facility | K7: 1
I8: Biomass Fuel | K8: 1
B9: CASE | C9: SENSITIVITY FACTORS | F9: PERFORMANCE MEASURE | I9: Capital Expenses | K9: 1
I10: O&M Expenses (Cost of Sales) | K10: 1
C11: Diesel, Hospital HTG (savings) | D11: Biomass Fuel | F11: Equity IRR | I11: Plant Operating Factor | K11: 1
I12: Low Interest Loan | K12: 1
I13: Interest Rate, Low Interest Loan | K13: 1
B14: Base | C14: 1 | D14: 1 | F14: 0.1514549951 | I14: USDA REAP Grant | K14: 1
B15: 1 | C15: 0.8 | D15: 1.2 | F15: -0.06267804117 | I15: SEP Grant | K15: 1
B16: 2 | C16: 1 | D16: 1 | F16: 0.1514549951 | I16: USFS Biomass Utilization Study Grant | K16: 1
B17: 3 | C17: 1.2 | D17: 0.8 | F17: 0.3178548983 | I17: Discount Rate | K17: 1
B18: 4 | I18: Inflation Rate | K18: 1
B19: 5 | I19: Project Life | K19: 1
B20: 6
B21: 7
B22: 8
C23: =IF(C131=-1,"Select a different parameter","") ->  | D23: =IF(D131=-1,"Select a different parameter","") ->  | E23: =IF(E131=-1,"Select a different parameter","") -> 
B26: Instructions:
A27: 1. | B27: Select the performance measure you would like to use; e.g. Equity IRR
A28: 2. | B28: Select up to 3 forecast parameters whose variation you would like to examine; e.g. Capital Expenditures, Plant Operating Factor, etc.
A29: 3. | B29: Enter sensitivity factors for each parameter. A sensitivity factor of 100% corresponds to 0% variation from the expected value; 80% sensitivity indicates -20% variation from the expected value
A30: 4. | B30: Click the "Recalc Decision Matrix" button to update results in green cells after any change in scenearios, performance measures, or variation in parameters in yellow cells
A32: MAKE TABLE WITH UP TO FOUR PERFORMANCE MEASURES
F34: SELECT FOUR PERFORMANCE MEASURES
F35: Project IRR | G35: Equity IRR | H35: After-Tax Discounted Payback | I35: Benefit Cost Ratio (After Tax)
F36: Project IRR
F37: Project IRR
B39: =IF(SUM(C45:C53)+SUM(D45:D53)+SUM(E45:E53)<>SUM(C14:C22)+SUM(D14:D22)+SUM(E14:E22),"Variation in Parameters Changed.","") -> 
B40: SCENARIO: | C40: Biomass heating, main hospital building only, wood pellets
B41: CASE | C41: SENSITIVITY FACTORS | F41: MEASURE OF VIABILITY
C42: Diesel, Hospital HTG (savings) | D42: Biomass Fuel | F42: Project IRR | G42: Equity IRR | H42: After-Tax Discounted Payback | I42: Benefit Cost Ratio (After Tax)
F43: Project IRR
F44: Project IRR
B45: Base | C45: 1 | D45: 1 | F45: 0.1862746754 | G45: 0.1514549951 | H45: 7.620242035 | I45: 2.355134068
B46: 1 | C46: 0.8 | D46: 1.2 | F46: -0.03926091213 | G46: -0.06267804117 | H46: Exceeds 30 years | I46: 0.4341238208
B47: 2 | C47: 1 | D47: 1 | F47: 0.1862746754 | G47: 0.1514549951 | H47: 7.620242035 | I47: 2.355134068
B48: 3 | C48: 1.2 | D48: 0.8 | F48: 0.3708438736 | G48: 0.3178548983 | H48: 4.15444692 | I48: 4.276144315
B49: 4
B50: 5
B51: 6
B52: 7
B53: 8
A63: NOTES
C68: State PTC 1 Electricity | D68: State ITC | E68: SEP Grant
C70: 0 | D70: 0.05 | E70: 0
C71: 0.1 | D71: 0 | E71: 0.25
C72: 0.2 | D72: 0 | E72: 0.25
C73: 0.25 | D73: 0 | E73: 0.25
C74: 0.2 | D74: 0 | E74: 0.5
C75: 0 | D75: 0.05 | E75: 0.25
C76: 0 | D76: 0.05 | E76: 0.5
A124: CALCULATION AREA
A126: Copied | B126: No
B128: In-Process Results (changes while macro runs)
B129: =B9 -> CASE | C129: =Decision_Parameter1 -> Diesel, Hospital HTG (savings) | D129: =Decision_Parameter2 -> Biomass Fuel | E129: =Decision_Parameter3 -> 0 | F129: =#REF! -> 
B130: 8 | C130: =VLOOKUP(Decision_Parameter1,SensitivityFactors,2,FALSE) -> 1 | D130: =VLOOKUP(Decision_Parameter2,SensitivityFactors,2,FALSE) -> 1 | E130: =VLOOKUP(Decision_Parameter3,SensitivityFactors,2,FALSE) ->  | F130: =VLOOKUP(Decision_Measure,Results,3,FALSE) -> 0.1514549951
C131: =IFERROR(VLOOKUP(Decision_Parameter1,ForecastParameters,1,FALSE),"Select a Different Parameter") -> Diesel, Hospital HTG (savings) | D131: =IFERROR(VLOOKUP(Decision_Parameter2,ForecastParameters,1,FALSE),"Select a Different Parameter") -> Biomass Fuel | E131: =IFERROR(VLOOKUP(Decision_Parameter3,ForecastParameters,1,FALSE),"Select a Different Parameter") -> Select a Different Parameter
C135: ALL OR NOTHING
C136: 0 | D136: 0 | E136: 0
C137: 1 | D137: 0 | E137: 0
C138: 0 | D138: 1 | E138: 0
C139: 0 | D139: 0 | E139: 1
C140: 1 | D140: 1 | E140: 0
C141: 1 | D141: 0 | E141: 1
C142: 0 | D142: 1 | E142: 1
C143: 1 | D143: 1 | E143: 1
B145: Original Values
B148: RESULTS | G148: SENSITIVITY FACTORS
B149: =WhatIf!F12 -> Project Life | C149: =WhatIf!G12 -> 20 | D149: =WhatIf!H12 -> Years | G149: =WhatIf!A7 -> Escalation Forecast Type | H149: =WhatIf!B7 -> Likely
B150: =WhatIf!F13 -> Life Cycle Cost Analysis | C150: =WhatIf!G13 -> 0 | D150: =WhatIf!H13 -> Value | G150: =WhatIf!A8 -> Environmental Credits | H150: =WhatIf!B8 -> 0 | I150: =WhatIf!C8 -> 1st Yr Unit Costs | J150: =WhatIf!D8 -> 0
B151: =WhatIf!F14 -> Equity IRR | C151: =WhatIf!G14 -> G | D151: =WhatIf!H14 -> 0.1514549951 | G151: =WhatIf!A9 -> State Production Incentive, Electricity | H151: =WhatIf!B9 -> 1 | I151: =WhatIf!C9 -> 0 | J151: =WhatIf!D9 -> $/kWh | K151: 1
B152: =WhatIf!F15 -> Project IRR | C152: =WhatIf!G15 -> G | D152: =WhatIf!H15 -> 0.1862746754 | G152: =WhatIf!A10 -> State Production Incentive, Thermal Savings | H152: =WhatIf!B10 -> 1 | I152: =WhatIf!C10 -> 0 | J152: =WhatIf!D10 -> $/MMBtu | K152: =K151+1 -> 2
B153: =WhatIf!F16 -> Net Present Value | C153: =WhatIf!G16 -> Y | D153: =WhatIf!H16 -> 522149.7568 | G153: =WhatIf!A11 -> Production Tax Credits | H153: =WhatIf!B11 -> 0 | I153: =WhatIf!C11 -> 1st Yr Unit Costs | J153: =WhatIf!D11 -> 0 | K153: =K152+1 -> 3
B154: =WhatIf!F17 -> Benefit Cost Ratio (After Tax) | C154: =WhatIf!G17 -> G | D154: =WhatIf!H17 -> 2.355134068 | G154: =WhatIf!A12 -> Federal PTC | H154: =WhatIf!B12 -> 1 | I154: =WhatIf!C12 -> 0 | J154: =WhatIf!D12 -> $/kWh | K154: 4
B155: =WhatIf!F18 -> After-Tax Discounted Payback | C155: =WhatIf!G18 -> Y | D155: =WhatIf!H18 -> 7.620242035 | G155: =WhatIf!A13 -> State PTC Electricity | H155: =WhatIf!B13 -> 1 | I155: =WhatIf!C13 -> 0 | J155: =WhatIf!D13 -> $/kWh/yr | K155: 5
B156: =WhatIf!F19 -> Simple Payback | C156: =WhatIf!G19 -> 0 | D156: =WhatIf!H19 -> Value | G156: =WhatIf!A14 -> State PTC Thermal | H156: =WhatIf!B14 -> 1 | I156: =WhatIf!C14 -> 0 | J156: =WhatIf!D14 -> MMBtu/yr | K156: 6
B157: =WhatIf!F20 -> Non-Discounted Payback | C157: =WhatIf!G20 -> Y | D157: =WhatIf!H20 -> 5.576769141 | G157: =WhatIf!A15 -> Investment Tax Credits | H157: =WhatIf!B15 -> 0 | I157: =WhatIf!C15 -> Total | J157: =WhatIf!D15 -> 0 | K157: 7
B158: =WhatIf!F21 -> Simple Payback, First Year Operation | C158: =WhatIf!G21 -> Y | D158: =WhatIf!H21 -> 7.414471267 | G158: =WhatIf!A16 -> Federal ITC | H158: =WhatIf!B16 -> 1 | I158: =WhatIf!C16 -> 0 | J158: =WhatIf!D16 -> 0 | K158: 8
B159: =WhatIf!F22 -> 0 | C159: =WhatIf!G22 -> 0 | D159: =WhatIf!H22 -> 0 | G159: =WhatIf!A17 -> State ITC | H159: =WhatIf!B17 -> 1 | I159: =WhatIf!C17 -> 0 | J159: =WhatIf!D17 -> 0 | K159: 9
B160: =WhatIf!F23 -> FINANCIAL SCORECARD | C160: =WhatIf!G23 -> 0 | D160: =WhatIf!H23 -> 0 | G160: =WhatIf!A18 -> Local ITC | H160: =WhatIf!B18 -> 1 | I160: =WhatIf!C18 -> 0 | J160: =WhatIf!D18 -> 0 | K160: 10
B161: =WhatIf!F24 -> Scorecard Year | C161: =WhatIf!G24 -> 10 | D161: =WhatIf!H24 -> 0 | G161: =WhatIf!A19 -> Income | H161: =WhatIf!B19 -> 0 | I161: =WhatIf!C19 -> 1st Yr Unit Costs | J161: =WhatIf!D19 -> 0 | K161: 11
B162: =WhatIf!F25 -> Profitability Ratios (Margins) | C162: =WhatIf!G25 -> 0 | D162: =WhatIf!H25 -> Value | G162: =WhatIf!A20 ->  | H162: =WhatIf!B20 -> 1 | I162: =WhatIf!C20 -> 0 | J162: =WhatIf!D20 -> $/MWh | K162: 12
B163: =WhatIf!F26 -> Gross Margin | C163: =WhatIf!G26 -> N/A | D163: =WhatIf!H26 -> N/A | G163: =WhatIf!A21 ->  | H163: =WhatIf!B21 -> 1 | I163: =WhatIf!C21 ->  | J163: =WhatIf!D21 ->  | K163: 13
B164: =WhatIf!F27 -> Operating Margin | C164: =WhatIf!G27 -> N/A | D164: =WhatIf!H27 -> N/A | G164: =WhatIf!A22 ->  | H164: =WhatIf!B22 -> 1 | I164: =WhatIf!C22 ->  | J164: =WhatIf!D22 ->  | K164: 14
B165: =WhatIf!F28 -> Pre - Tax Margin | C165: =WhatIf!G28 -> N/A | D165: =WhatIf!H28 -> N/A | G165: =WhatIf!A23 ->  | H165: =WhatIf!B23 -> 1 | I165: =WhatIf!C23 ->  | J165: =WhatIf!D23 ->  | K165: 15
B166: =WhatIf!F29 -> After - Tax Margin | C166: =WhatIf!G29 -> N/A | D166: =WhatIf!H29 -> N/A | G166: =WhatIf!A24 ->  | H166: =WhatIf!B24 -> 1 | I166: =WhatIf!C24 ->  | J166: =WhatIf!D24 ->  | K166: 16
B167: =WhatIf!F30 -> Liquidity Measures | C167: =WhatIf!G30 -> 0 | D167: =WhatIf!H30 -> Value | G167: =WhatIf!A25 ->  | H167: =WhatIf!B25 -> 1 | I167: =WhatIf!C25 ->  | J167: =WhatIf!D25 ->  | K167: 17
B168: =WhatIf!F31 -> Current Ratio | C168: =WhatIf!G31 -> N/A | D168: =WhatIf!H31 -> N/A | G168: =WhatIf!A26 ->  | H168: =WhatIf!B26 -> 1 | I168: =WhatIf!C26 ->  | J168: =WhatIf!D26 ->  | K168: 18
B169: =WhatIf!F32 -> Acid Test Ratio | C169: =WhatIf!G32 -> N/A | D169: =WhatIf!H32 -> N/A | G169: =WhatIf!A27 ->  | H169: =WhatIf!B27 -> 1 | I169: =WhatIf!C27 ->  | J169: =WhatIf!D27 ->  | K169: 19
B170: =WhatIf!F33 -> Cash Flow Ratios | C170: =WhatIf!G33 -> 0 | D170: =WhatIf!H33 -> Value | G170: =WhatIf!A28 ->  | H170: =WhatIf!B28 -> 1 | I170: =WhatIf!C28 ->  | J170: =WhatIf!D28 ->  | K170: 20
B171: =WhatIf!F34 -> Debt Service Coverage Ratio | C171: =WhatIf!G34 -> N/A | D171: =WhatIf!H34 -> N/A | G171: =WhatIf!A29 -> Purchased Quantities | H171: =WhatIf!B29 -> 0 | I171: =WhatIf!C29 -> 1st Yr Unit Costs | J171: =WhatIf!D29 -> 0 | K171: 21
B172: =WhatIf!F35 -> Leverage Ratios | C172: =WhatIf!G35 -> 0 | D172: =WhatIf!H35 -> Value | G172: =WhatIf!A30 -> Diesel, Hospital HTG (savings) | H172: =WhatIf!B30 -> 1 | I172: =WhatIf!C30 -> 3.4 | J172: =WhatIf!D30 -> $/ gallons | K172: 22
B173: =WhatIf!F36 -> Debt to Equity | C173: =WhatIf!G36 -> N/A | D173: =WhatIf!H36 -> N/A | G173: =WhatIf!A31 -> Electricity, Medical Offices HTG (savings) | H173: =WhatIf!B31 -> 1 | I173: =WhatIf!C31 -> 0.040963 | J173: =WhatIf!D31 -> $/ kWh | K173: 23
B174: =WhatIf!F37 -> Debt Ratio | C174: =WhatIf!G37 -> R | D174: =WhatIf!H37 -> NA | G174: =WhatIf!A32 -> Heat Recovered from Industrial Facility | H174: =WhatIf!B32 -> 1 | I174: =WhatIf!C32 -> 13.65 | J174: =WhatIf!D32 -> $/MMBtu | K174: 24
B175: =WhatIf!F38 -> Equity Ratio | C175: =WhatIf!G38 -> G | D175: =WhatIf!H38 -> NA | G175: =WhatIf!A33 -> Biomass Fuel | H175: =WhatIf!B33 -> 1 | I175: =WhatIf!C33 -> 185 | J175: =WhatIf!D33 -> $/bdt | K175: 25
B176: =WhatIf!F39 -> Debt-Asset Ratio | C176: =WhatIf!G39 -> G | D176: =WhatIf!H39 -> -3.129381161e-17 | G176: =WhatIf!A34 ->  | H176: =WhatIf!B34 -> 1 | I176: =WhatIf!C34 -> 0 | J176: =WhatIf!D34 ->  | K176: 26
B177: =WhatIf!F40 -> Interest Coverage | C177: =WhatIf!G40 -> N/A | D177: =WhatIf!H40 -> N/A | G177: =WhatIf!A35 ->  | H177: =WhatIf!B35 -> 1 | I177: =WhatIf!C35 -> 0 | J177: =WhatIf!D35 ->  | K177: 27
B178: =WhatIf!F41 -> Cash Flow and Profit in Scorecard Year | C178: =WhatIf!G41 -> 0 | D178: =WhatIf!H41 -> Value | G178: =WhatIf!A36 ->  | H178: =WhatIf!B36 -> 1 | I178: =WhatIf!C36 -> 0 | J178: =WhatIf!D36 ->  | K178: 28
B179: =WhatIf!F42 -> Net Cash Flow (Discounted) | C179: =WhatIf!G42 -> 0 | D179: =WhatIf!H42 -> 45576.42321 | G179: =WhatIf!A37 ->  | H179: =WhatIf!B37 -> 1 | I179: =WhatIf!C37 -> 0 | J179: =WhatIf!D37 ->  | K179: 29
B180: =WhatIf!F43 -> Cash Balance | C180: =WhatIf!G43 -> 0 | D180: =WhatIf!H43 -> 221275.7149 | G180: =WhatIf!A38 ->  | H180: =WhatIf!B38 -> 1 | I180: =WhatIf!C38 -> 0 | J180: =WhatIf!D38 ->  | K180: 30
B181: =WhatIf!F44 -> Gross Income (Profit) | C181: =WhatIf!G44 -> 0 | D181: =WhatIf!H44 -> 70703.99131 | G181: =WhatIf!A39 ->  | H181: =WhatIf!B39 -> 1 | I181: =WhatIf!C39 -> 0 | J181: =WhatIf!D39 ->  | K181: 31
B182: =WhatIf!F45 -> Operating Income (EBIT) | C182: =WhatIf!G45 -> 0 | D182: =WhatIf!H45 -> 70703.99131 | G182: =WhatIf!A40 -> Expenses | H182: =WhatIf!B40 -> 0 | I182: =WhatIf!C40 -> 1st 5 Years | J182: =WhatIf!D40 -> 0 | K182: 32
B183: =WhatIf!F46 -> Net Profit After Taxes | C183: =WhatIf!G46 -> 0 | D183: =WhatIf!H46 -> 70703.99131 | G183: =WhatIf!A41 -> Capital Expenses | H183: =WhatIf!B41 -> 1 | I183: =WhatIf!C41 -> 708743 | J183: =WhatIf!D41 -> Total | K183: 33
B184: =WhatIf!F47 -> Levelized Costs (Taxes + franchise fees included) | C184: =WhatIf!G47 -> 0 | D184: =WhatIf!H47 -> 0 | G184: =WhatIf!A42 -> Major Expenses | H184: =WhatIf!B42 -> 1 | I184: =WhatIf!C42 -> 0 | J184: =WhatIf!D42 -> Total | K184: 34
B185: =WhatIf!F48 ->  | C185: =WhatIf!G48 -> G | D185: =WhatIf!H48 -> 0 | G185: =WhatIf!A43 -> O&M Expenses (Cost of Sales) | H185: =WhatIf!B43 -> 1 | I185: =WhatIf!C43 -> -54774.44486 | J185: =WhatIf!D43 -> Ave. | K185: 35
B186: =WhatIf!F49 ->  | C186: =WhatIf!G49 -> Y | D186: =WhatIf!H49 -> 0 | G186: =WhatIf!A44 -> Operating Expenses, Other | H186: =WhatIf!B44 -> 1 | I186: =WhatIf!C44 ->  | J186: =WhatIf!D44 -> Ave. | K186: 36
B187: =WhatIf!F50 ->  | C187: =WhatIf!G50 -> Y | D187: =WhatIf!H50 -> 0 | G187: =WhatIf!A45 -> Operating Labor | H187: =WhatIf!B45 -> 1 | I187: =WhatIf!C45 -> 0 | J187: =WhatIf!D45 -> Ave. | K187: 37
B188: =WhatIf!F51 ->  | C188: =WhatIf!G51 -> Y | D188: =WhatIf!H51 -> 0 | G188: =WhatIf!A46 -> Insurance Expense | H188: =WhatIf!B46 -> 1 | I188: =WhatIf!C46 -> 0 | J188: =WhatIf!D46 -> Ave | K188: 38
B189: =WhatIf!F52 ->  | C189: =WhatIf!G52 -> Y | D189: =WhatIf!H52 -> 0 | G189: =WhatIf!A47 -> Property Taxes | H189: =WhatIf!B47 -> 1 | I189: =WhatIf!C47 -> 0 | J189: =WhatIf!D47 -> Ave. | K189: 39
B190: =WhatIf!F53 ->  | C190: =WhatIf!G53 -> Y | D190: =WhatIf!H53 -> 0 | G190: =WhatIf!A48 -> Operation | H190: =WhatIf!B48 -> 0 | I190: =WhatIf!C48 -> 1st 5 Years | J190: =WhatIf!D48 -> 0 | K190: 40
B191: =WhatIf!F54 ->  | C191: =WhatIf!G54 -> Y | D191: =WhatIf!H54 -> 0 | G191: =WhatIf!A49 -> Plant Operating Factor | H191: =WhatIf!B49 -> 1 | I191: =WhatIf!C49 -> 1 | J191: =WhatIf!D49 -> Ave. | K191: 41
B192: =WhatIf!F55 ->  | C192: =WhatIf!G55 -> Y | D192: =WhatIf!H55 -> 0 | G192: =WhatIf!A50 -> Borrowed Funds | H192: =WhatIf!B50 -> 0 | I192: =WhatIf!C50 -> 0 | J192: =WhatIf!D50 -> 0 | K192: 42
B193: =WhatIf!F56 ->  | C193: =WhatIf!G56 -> Y | D193: =WhatIf!H56 -> 0 | G193: =WhatIf!A51 -> Low Interest Loan | H193: =WhatIf!B51 -> 1 | I193: =WhatIf!C51 -> 100000 | J193: =WhatIf!D51 -> Low Interest Loan | K193: 43
B194: Define red, yellow and green indicators defined on "Stop-Light Colors" tab | G194: =WhatIf!A52 -> Loan 2 | H194: =WhatIf!B52 -> 1 | I194: =WhatIf!C52 -> 0 | J194: =WhatIf!D52 ->  | K194: 44
G195: =WhatIf!A53 -> Loan 3 | H195: =WhatIf!B53 -> 1 | I195: =WhatIf!C53 -> 0 | J195: =WhatIf!D53 ->  | K195: 45
G196: =WhatIf!A54 -> Interest Rate, Low Interest Loan | H196: =WhatIf!B54 -> 1 | I196: =WhatIf!C54 -> 0.04 | J196: =WhatIf!D54 -> Low Interest Loan | K196: 46
G197: =WhatIf!A55 -> Interest Rate, Loan 2 | H197: =WhatIf!B55 -> 1 | I197: =WhatIf!C55 -> 0 | J197: =WhatIf!D55 ->  | K197: 47
G198: =WhatIf!A56 -> Interest Rate, Loan 3 | H198: =WhatIf!B56 -> 1 | I198: =WhatIf!C56 -> 0 | J198: =WhatIf!D56 ->  | K198: 48
G199: =WhatIf!A57 -> Equity Investments | H199: =WhatIf!B57 -> 0 | I199: =WhatIf!C57 -> 0 | J199: =WhatIf!D57 -> 0 | K199: 49
G200: =WhatIf!A58 -> Equity Investment | H200: =WhatIf!B58 -> 1 | I200: =WhatIf!C58 -> 0 | J200: =WhatIf!D58 -> Equity Investment | K200: 50
G201: =WhatIf!A59 -> Equity Investment 2 | H201: =WhatIf!B59 -> 1 | I201: =WhatIf!C59 -> 0 | J201: =WhatIf!D59 ->  | K201: 51
G202: =WhatIf!A60 -> Equity Investment 3 | H202: =WhatIf!B60 -> 1 | I202: =WhatIf!C60 -> 0 | J202: =WhatIf!D60 ->  | K202: 52
G203: =WhatIf!A61 -> Grants | H203: =WhatIf!B61 -> 0 | I203: =WhatIf!C61 -> 0 | J203: =WhatIf!D61 -> 0 | K203: 53
G204: =WhatIf!A62 -> USDA REAP Grant | H204: =WhatIf!B62 -> 1 | I204: =WhatIf!C62 -> 177185.75 | J204: =WhatIf!D62 -> USDA REAP Grant | K204: 54
G205: =WhatIf!A63 -> SEP Grant | H205: =WhatIf!B63 -> 1 | I205: =WhatIf!C63 -> 100000 | J205: =WhatIf!D63 -> SEP Grant | K205: 55
G206: =WhatIf!A64 -> USFS Biomass Utilization Study Grant | H206: =WhatIf!B64 -> 1 | I206: =WhatIf!C64 -> 46245 | J206: =WhatIf!D64 -> USFS Biomass Utilization Study Grant | K206: 56
G207: =WhatIf!A65 -> Financial Assumptions | H207: =WhatIf!B65 -> 0 | I207: =WhatIf!C65 -> 0 | J207: =WhatIf!D65 -> 0 | K207: 57
G208: =WhatIf!A66 -> Discount Rate | H208: =WhatIf!B66 -> 1 | I208: =WhatIf!C66 -> 0.05 | J208: =WhatIf!D66 -> 0 | K208: 58
G209: =WhatIf!A67 -> Inflation Rate | H209: =WhatIf!B67 -> 1 | I209: =WhatIf!C67 -> 0.027 | J209: =WhatIf!D67 -> 0 | K209: =K208+1 -> 59
A210: Future Development | G210: =WhatIf!A68 -> Project Life | H210: =WhatIf!B68 -> 1 | I210: =WhatIf!C68 -> 20 | J210: =WhatIf!D68 -> years | K210: 60
G211: =WhatIf!A69 -> User-Defined Sensitivity Factors (Optional) | H211: =WhatIf!B69 -> 0 | I211: =WhatIf!C69 -> 1st Year | J211: =WhatIf!D69 -> 0 | K211: 61
B212: To Do | G212: =WhatIf!A70 -> 0 | H212: =WhatIf!B70 -> 0 | I212: =WhatIf!C70 -> 0 | J212: =WhatIf!D70 -> 0 | K212: 62
B213: Indicate when recalc is needed | G213: =WhatIf!A71 -> 0 | H213: =WhatIf!B71 -> 0 | I213: =WhatIf!C71 -> 0 | J213: =WhatIf!D71 -> 0 | K213: 63
B214: Auto recalc on selection of new perf measure | G214: =WhatIf!A72 -> 0 | H214: =WhatIf!B72 -> 0 | I214: =WhatIf!C72 -> 0 | J214: =WhatIf!D72 -> 0 | K214: 64
B215: 3 selected discount rates | G215: =WhatIf!A73 -> 0 | H215: =WhatIf!B73 -> 0 | I215: =WhatIf!C73 -> 0 | J215: =WhatIf!D73 -> 0 | K215: 65
B217: Decision_AdditionalParameter | C217: Cell Name | D217: Initial Value | E217: Format
B219: Discount Rate | C219: Discount_rate | D219: =Discount_rate -> 0.05
B220: General Inflation Rate | C220: Inflation | D220: =Inflation -> 0.027
B221: Project Life | C221: ProjectLife | D221: =ProjectLife -> 20
B222: =IF(WhatIf!A79<>"",WhatIf!A79,"") ->  | C222: Multiplier1 | D222: =Multiplier1 -> 0
B223: =IF(WhatIf!A80<>"",WhatIf!A80,"") ->  | C223: Multiplier2 | D223: =Multiplier2 -> 0
B224: =IF(WhatIf!A81<>"",WhatIf!A81,"") ->  | C224: Multiplier3 | D224: =Multiplier3 -> 0
B225: =IF(WhatIf!A82<>"",WhatIf!A82,"") ->  | C225: Multiplier4 | D225: =Multiplier4 -> 0
B226: =IF(WhatIf!A83<>"",WhatIf!A83,"") ->  | C226: Multiplier5 | D226: =Multiplier5 -> 0
A242: Forecast parameters | B242: =WhatIf!B80 -> 0
A243: Diesel, Hospital HTG (savings) | B243: =IFERROR(VLOOKUP($A243,SensitivityFactorRange,2,FALSE),"") -> 1 | C243: =IFERROR(VLOOKUP($A243,SensitivityFactorRange,2,FALSE),"") -> 1 | D243: =IFERROR(VLOOKUP($A243,SensitivityFactorRange,4,FALSE),"") -> $/ gallons
A244: Electricity, Medical Offices HTG (savings) | B244: =IFERROR(VLOOKUP(A244,SensitivityFactorRange,2,FALSE),"") -> 1 | C244: =IFERROR(VLOOKUP($A244,SensitivityFactorRange,2,FALSE),"") -> 1 | D244: =IFERROR(VLOOKUP($A244,SensitivityFactorRange,4,FALSE),"") -> $/ kWh
A245: Heat Recovered from Industrial Facility | B245: 1 | C245: =IFERROR(VLOOKUP($A245,SensitivityFactorRange,2,FALSE),"") -> 1 | D245: =IFERROR(VLOOKUP($A245,SensitivityFactorRange,4,FALSE),"") -> $/MMBtu
A246: Biomass Fuel | B246: 1 | C246: =IFERROR(VLOOKUP($A246,SensitivityFactorRange,2,FALSE),"") -> 1 | D246: =IFERROR(VLOOKUP($A246,SensitivityFactorRange,4,FALSE),"") -> $/bdt
A247: Capital Expenses | B247: 1 | C247: 1 | D247: Total
A248: O&M Expenses (Cost of Sales) | B248: 1 | C248: 1 | D248: Ave.
A249: Plant Operating Factor | B249: 1 | C249: 1 | D249: Ave.
A250: Low Interest Loan | B250: 1 | C250: 1 | D250: Low Interest Loan
A251: Interest Rate, Low Interest Loan | B251: 1 | C251: 1 | D251: Low Interest Loan
A252: USDA REAP Grant | B252: 1 | C252: 1 | D252: USDA REAP Grant
A253: SEP Grant | B253: 1 | C253: 1 | D253: SEP Grant
A254: USFS Biomass Utilization Study Grant | B254: 1 | C254: 1 | D254: USFS Biomass Utilization Study Grant
A255: Discount Rate | B255: 1 | C255: 1 | D255: 0
A256: Inflation Rate | B256: 1 | C256: 1 | D256: 0
A257: Project Life | B257: 1 | C257: 1 | D257: years
D275: =IFERROR(VLOOKUP($A275,SensitivityFactorRange,4,FALSE),"") -> 
B276: =IFERROR(VLOOKUP(A276,SensitivityFactorRange,2,FALSE),"") ->  | C276: =IFERROR(VLOOKUP($A276,SensitivityFactorRange,2,FALSE),"") -> 

Sheet Scenarios
B1: RELCOST: Scenarios (Optional) | C1: =IF(ErrorLine1="","","ENABLE MACROS") ->  | L1: INPUT (Edit) | M1: RESULTS (No Edits)
B2: =+General!C9 -> Plant Name | C2: =+General!D9 -> Rural Hospital
B3: Project Description | C3: =IF(+General!$D$11="","",General!$D$11) -> Non-profit 28-bed 38,000 sf hospital with two adjacent electrically heated office buildings. Existing fuel oil boiler is 3.2 MMBtu/h. | AH3: Project Year | AJ3: =+Scorecard_Year -> 10
B5: SCENARIO DESCRIPTIONS: Describe scenarios and assign numbers for running them from the WhatIf tab. | F5: Do not cut and paste cells. Copy and paste to preserve cell references.
C7: =B275 -> 
B8: Scenario Description | C8: Scenario Number | D8: Notes
A9: =C$9 -> 1 | B9: Heat recovery from industrial facility, main hospital building only | C9: 1 | F9: Diesel | G9: 3.4 | H9: per gallon | J9: Contractor profit | K9: 0.3 | M9: Effectiveness of HR coils | N9: 0.7
A10: =C$10 -> 2 | B10: Heat recovery from industrial facility, medical campus | C10: 2 | F10: Electricity | G10: 0.040963 | H10: per kWh | J10: Contingency | K10: 0.1 | M10: Distribution losses | N10: 0.1
A11: =C$11 -> 3 | B11: Biomass heating, main hospital building only, wood pellets | C11: 3 | F11: Propane | G11: 2.5 | H11: per gallon | J11: Engineering & Design | K11: 0.15 | M11: Backup heating requirements (heat rec) | N11: 0.1
A12: =C$12 -> 4 | B12: Biomass heating, main hospital building only, wood chips | C12: 4 | F12: Recovered heat | G12: 13.65 | H12: per MMBtu (est as half cost of propane) | M12: Distance of industrial site from hospital | N12: 0.25 | O12: mile
A13: =C$13 -> 5 | B13: Biomass heating, medical campus, wood pellets | C13: 5 | F13: Diesel | G13: =G9/Conversion_DieselGallons_To_MMBtu -> 24.46043165 | H13: per MMBtu | J13: Current diesel use for hospital HTG | K13: 46000 | L13: gallons per year | M13: =K13*Conversion_DieselGallons_To_MMBtu -> 6394 | N13: MMBtu/yr
A14: =C$14 -> 6 | B14: Biomass heating, medical campus, wood chips | C14: 6 | F14: Electricity | G14: =G10/Conversion_ElectricitykWh_To_MMBtu -> 12.00205098 | H14: per MMBtu | J14: Medical bldg 1 HTG | K14: 60000 | L14: kWh/yr | M14: =K14*Conversion_ElectricitykWh_To_MMBtu -> 204.78 | N14: MMBtu/yr
A15: =C$15 -> 0 | F15: Propane | G15: =G11/Conversion_PropaneGallons_To_MMBtu -> 27.29257642 | H15: per MMBtu | J15: Medical bldg 2 HTG | K15: 57000 | L15: kWh/yr | M15: =K15*Conversion_ElectricitykWh_To_MMBtu -> 194.541 | N15: MMBtu/yr
A16: =C$16 -> 0 | J16: Wood to heat hospital | K16: 400 | L16: bone dry tons | M16: =K16*2000*8000/10^6 -> 6400 | N16: MMBtu/yr
A17: =C$17 -> 0 | J17: Trenching & pipe cost | K17: 100 | L17: per foot | M17: Distance of industrial site from hospital | N17: 0.25 | O17: mile
A18: =C$18 -> 0
B19: =B34 -> 3 Biomass heating, main hospital building only, wood pellets | C19: =IF(WhatIf!Project<>"",WhatIf!Project,"") -> 3
B22: CAPITAL EXPENDITURES: Enter parameters for each scenario. Use top row for headings. Create references to parameters on Capital Expenditure sheet. | O22: Notes
B23: Scenario Description | C23: Modifications at Hospital | D23: Modifications at Industrial Facility for Heat Rec Project | E23: Trench and Pipe from Industrial Facility to Site | F23: Interconnection to medical offices | G23: Wood-Fired Boiler | H23: Stack & Pollution Control Equipment | I23: Boiler House and/or Fuel Storage Silo | J23: Thermal Storage Tank | K23: Controls | L23: Fuel Handling & Screening | M23: Site Fuel Handling | N23: Easements and Permiting
A24: =C$9 -> 1 | B24: =IF(ISBLANK(B9)=FALSE,CONCATENATE(C9," ",B9),"") -> 1 Heat recovery from industrial facility, main hospital building only | C24: 50000 | D24: 50000 | E24: 132000 | G24: $ - | H24: $ - | I24: $ - | J24: $ - | K24: 10000 | L24: $ - | N24: 30000
A25: =C$10 -> 2 | B25: =IF(ISBLANK(B10)=FALSE,CONCATENATE(C10," ",B10),"") -> 2 Heat recovery from industrial facility, medical campus | C25: 50000 | D25: 50000 | E25: 132000 | F25: 200000 | G25: $ - | H25: $ - | I25: $ - | J25: $ - | K25: 10000 | L25: $ - | N25: 30000
A26: =C$11 -> 3 | B26: 3 Biomass heating, main hospital building only, wood pellets | C26: 50000 | D26: $ - | E26: $ - | F26: $ - | G26: 300000 | H26: $ - | I26: 80000 | J26: 20000 | K26: 10000 | L26: $ - | N26: $ -
A27: =C$12 -> 4 | B27: 4 Biomass heating, main hospital building only, wood chips | C27: 50000 | D27: $ - | E27: $ - | F27: $ - | G27: 300000 | H27: 80000 | I27: 110000 | J27: 20000 | K27: 10000 | L27: 25000 | M27: 20000 | N27: 10000
A28: =C$13 -> 5 | B28: 5 Biomass heating, medical campus, wood pellets | C28: 50000 | D28: $ - | E28: $ - | F28: 200000 | G28: 300000 | H28: $ - | I28: 80000 | J28: 20000 | K28: 10000 | L28: $ - | N28: $ -
A29: =C$14 -> 6 | B29: 6 Biomass heating, medical campus, wood chips | C29: 50000 | D29: $ - | E29: $ - | F29: 200000 | G29: 300000 | H29: 80000 | I29: 110000 | J29: 20000 | K29: 10000 | L29: 25000 | M29: 20000 | N29: 10000
A30: =C$15 -> 0
A31: =C$16 -> 0
A32: =C$17 -> 0
A33: =C$18 -> 0
A34: =$C$19 -> 3 | B34: =IFERROR(VLOOKUP($C$19,$A$24:$N$33,B233,FALSE),"") -> 3 Biomass heating, main hospital building only, wood pellets | C34: =IFERROR(VLOOKUP($C$19,$A$24:$N$33,C$233,FALSE),0) -> 50000 | D34: =IFERROR(VLOOKUP($C$19,$A$24:$N$33,D$233,FALSE),0) -> $ - | E34: $ - | F34: $ - | G34: 300000 | H34: $ - | I34: 80000 | J34: 20000 | K34: 10000 | L34: $ - | M34: 0 | N34: $ -
B35: Notes
B38: FUNDING PLAN: Enter parameters for each scenario. Use top row for headings. Create references to parameters on Funding Plan sheet. | O38: Notes
B39: Scenario Description | C39: Low Interest Loan, Interest Rate | D39: Max Loan Amount | E39: Loan as Percent CapEx | F39: Grant as Percent CapEx | G39: Maximum Grant (CapEx if no max) | H39: Maximum %, USDA REAP Grant | I39: % of Engineering & Design Costs, U.S. Forest Service Wood Biomass Study Grant | J39: Engineering & Design Costs
A40: =C$9 -> 1 | B40: =B24 -> 1 Heat recovery from industrial facility, main hospital building only | C40: 0.04 | D40: 100000 | E40: 0.5 | F40: 0.25 | G40: 100000 | H40: 0.25 | I40: 1 | J40: 46245
A41: =C$10 -> 2 | B41: =B25 -> 2 Heat recovery from industrial facility, medical campus | C41: 0.04 | D41: 100000 | E41: 0.5 | F41: 0.25 | G41: 100000 | H41: 0.25 | I41: 1 | J41: 46245
A42: =C$11 -> 3 | B42: 3 Biomass heating, main hospital building only, wood pellets | C42: 0.04 | D42: 100000 | E42: 0.5 | F42: 0.25 | G42: 100000 | H42: 0.25 | I42: 1 | J42: 46245
A43: =C$12 -> 4 | B43: 4 Biomass heating, main hospital building only, wood chips | C43: 0.04 | D43: 100000 | E43: 0.5 | F43: 0.25 | G43: 100000 | H43: 0.25 | I43: 1 | J43: 46245
A44: =C$13 -> 5 | B44: 5 Biomass heating, medical campus, wood pellets | C44: 0.04 | D44: 100000 | E44: 0.5 | F44: 0.25 | G44: 100000 | H44: 0.25 | I44: 1 | J44: 46245
A45: =C$14 -> 6 | B45: 6 Biomass heating, medical campus, wood chips | C45: 0.04 | D45: 100000 | E45: 0.5 | F45: 0.25 | G45: 100000 | H45: 0.25 | I45: 1 | J45: 46245
A46: =C$15 -> 0
A47: =C$16 -> 0
A48: =C$17 -> 0
A49: =C$18 -> 0
A50: =$C$19 -> 3 | B50: =IFERROR(VLOOKUP($C$19,$A$40:$N$49,B233,FALSE),"") -> 3 Biomass heating, main hospital building only, wood pellets | C50: =IFERROR(VLOOKUP($C$19,$A$40:$N$49,C$233,FALSE),0) -> 0.04 | D50: =IFERROR(VLOOKUP($C$19,$A$40:$N$49,D$233,FALSE),0) -> 100000 | E50: 0.5 | F50: 0.25 | G50: 100000 | H50: 0.25 | I50: 1 | J50: 46245 | K50: 0 | L50: 0 | M50: 0 | N50: 0
B51: Notes
B54: PURCHASES: Enter parameters for each scenario. Use top row for headings and second row for the base case. Create references to parameters on Purchases sheet. | O54: Notes
B55: Scenario Description | C55: Diesel, Hospital HTG (gallons per year) | D55: Electricity, Medical Office Bldg HTG | E55: Recovered Heat for Hospital (MMBtu) | F55: Recovered Heat for Medical Offices (MMBtu) | G55: Back Up Heat Requirements | H55: Wood, Hospital HTG (bdt) | I55: Wood, Medical Offices HTG | J55: Biomass Cost per BDT | K55: Diesel Cost ($/gallon) | L55: Electricity Cost ($/kWh) | M55: Cost of Recovered Heat ($ per MMBtu)
B56: BASE CASE | C56: =K13 -> 46000 | D56: =K14+K15 -> 117000 | E56: 0 | H56: 0 | I56: 0 | J56: 0
A57: =C$9 -> 1 | B57: =B24 -> 1 Heat recovery from industrial facility, main hospital building only | C57: =$K$13*G57 -> 4600 | D57: =D56 -> 117000 | E57: =M13/(1-N10) -> 7104.444444 | F57: 0 | G57: 0.1 | H57: 0 | I57: 0 | J57: 0 | K57: =G9 -> 3.4 | L57: =G10 -> 0.040963 | M57: =G12 -> 13.65
A58: =C$10 -> 2 | B58: =B25 -> 2 Heat recovery from industrial facility, medical campus | C58: =$K$13*G58 -> 4600 | D58: =$D$56*G58 -> 11700 | E58: =M13/(1-N10) -> 7104.444444 | F58: =(M14+M15)/N9/(1-N10) -> 633.8428571 | G58: 0.1 | H58: 0 | I58: 0 | J58: 0 | K58: =K57 -> 3.4 | L58: =L57 -> 0.040963 | M58: =M57 -> 13.65
A59: =C$11 -> 3 | B59: 3 Biomass heating, main hospital building only, wood pellets | C59: 6900 | D59: =$D$56 -> 117000 | E59: 0 | F59: 0 | G59: 0.15 | H59: 400 | I59: 0 | J59: 185 | K59: =K58 -> 3.4 | L59: =L58 -> 0.040963 | M59: =M58 -> 13.65
A60: =C$12 -> 4 | B60: 4 Biomass heating, main hospital building only, wood chips | C60: 6900 | D60: =$D$56 -> 117000 | E60: 0 | F60: 0 | G60: 0.15 | H60: 400 | I60: 0 | J60: 50 | K60: 3.4 | L60: 0.040963 | M60: =M59 -> 13.65
A61: =C$13 -> 5 | B61: 5 Biomass heating, medical campus, wood pellets | C61: 6900 | D61: =$D$56*G61 -> 17550 | E61: 0 | F61: 0 | G61: 0.15 | H61: 400 | I61: =H61/M13*(M14+M15)/N9 -> 35.68711739 | J61: 185 | K61: 3.4 | L61: 0.040963 | M61: =M60 -> 13.65
A62: =C$14 -> 6 | B62: 6 Biomass heating, medical campus, wood chips | C62: 6900 | D62: 17550 | E62: 0 | F62: 0 | G62: 0.15 | H62: 400 | I62: =H61/M13*(M14+M15)/N9 -> 35.68711739 | J62: 50 | K62: 3.4 | L62: 0.040963 | M62: =M61 -> 13.65
A63: =C$15 -> 0
A64: =C$16 -> 0
A65: =C$17 -> 0
A66: =C$18 -> 0
A67: =$C$19 -> 3 | B67: =IFERROR(VLOOKUP($C$19,$A$57:$N$66,B233,FALSE),"") -> 3 Biomass heating, main hospital building only, wood pellets | C67: =IFERROR(VLOOKUP($C$19,$A$57:$N$66,C$233,FALSE),0) -> 6900 | D67: =IFERROR(VLOOKUP($C$19,$A$57:$N$66,D233,FALSE),0) -> 117000 | E67: 0 | F67: 0 | G67: 0.15 | H67: 400 | I67: 0 | J67: 185 | K67: 3.4 | L67: 0.040963 | M67: 13.65 | N67: 0
B68: Notes
B71: SALES & SAVINGS -- PRODUCTION INCENTIVES | O71: Notes
B72: Scenario Description
B73: BASE CASE
A74: =C$9 -> 1 | B74: =B24 -> 1 Heat recovery from industrial facility, main hospital building only
A75: =C$10 -> 2 | B75: =B25 -> 2 Heat recovery from industrial facility, medical campus
A76: =C$11 -> 3 | B76: 3 Biomass heating, main hospital building only, wood pellets
A77: =C$12 -> 4 | B77: 4 Biomass heating, main hospital building only, wood chips
A78: =C$13 -> 5 | B78: 5 Biomass heating, medical campus, wood pellets
A79: =C$14 -> 6 | B79: 6 Biomass heating, medical campus, wood chips
A80: =C$15 -> 0
A81: =C$16 -> 0
A82: =C$17 -> 0
A83: =C$18 -> 0
A84: =$C$19 -> 3 | B84: =IFERROR(VLOOKUP($C$19,$A$74:$N$83,B233,FALSE),"") -> 3 Biomass heating, main hospital building only, wood pellets | C84: =IFERROR(VLOOKUP($C$19,$A$74:$N$83,C$233,FALSE),0) -> 0 | D84: =IFERROR(VLOOKUP($C$19,$A$74:$N$83,D233,FALSE),0) -> 0 | E84: 0 | F84: 0 | G84: 0 | H84: 0 | I84: 0 | J84: 0 | K84: 0 | L84: 0 | M84: 0 | N84: 0
B85: Notes
B88: O&M (Not including fuel costs) | O88: Notes
B89: Scenario Description | C89: Scheduled Annual Maintenace (Hours per Year) | D89: Routine Maintenance (Hours per Year) | E89: Annualized Major Expenses | F89: Fully loaded labor cost
B90: BASE CASE | C90: - | D90: -
A91: =C$9 -> 1 | B91: =B24 -> 1 Heat recovery from industrial facility, main hospital building only | C91: 10 | D91: 30 | E91: 1500 | F91: 75
A92: =C$10 -> 2 | B92: =B25 -> 2 Heat recovery from industrial facility, medical campus | C92: 10 | D92: 30 | E92: 1500 | F92: 75
A93: =C$11 -> 3 | B93: 3 Biomass heating, main hospital building only, wood pellets | C93: 10 | D93: 34 | E93: 2000 | F93: 75
A94: =C$12 -> 4 | B94: 4 Biomass heating, main hospital building only, wood chips | C94: 20 | D94: 240 | E94: 3000 | F94: 75
A95: =C$13 -> 5 | B95: 5 Biomass heating, medical campus, wood pellets | C95: 10 | D95: 34 | E95: 2000 | F95: 75
A96: =C$14 -> 6 | B96: 6 Biomass heating, medical campus, wood chips | C96: 20 | D96: 240 | E96: 3000 | F96: 75
A97: =C$15 -> 0
A98: =C$16 -> 0
A99: =C$17 -> 0
A100: =C$18 -> 0
A101: =$C$19 -> 3 | B101: =IFERROR(VLOOKUP($C$19,$A$91:$N$100,B233,FALSE),"") -> 3 Biomass heating, main hospital building only, wood pellets | C101: =IFERROR(VLOOKUP($C$19,$A$91:$N$100,C$233,FALSE),0) -> 10 | D101: =IFERROR(VLOOKUP($C$19,$A$91:$N$100,D233,FALSE),0) -> 34 | E101: 2000 | F101: 75 | G101: 0 | H101: 0 | I101: 0 | J101: 0 | K101: 0 | L101: 0 | M101: 0 | N101: 0
B102: Notes
B105: TAXES & FEES -- TAX CREDITS -- DEPRECIATION
B106: Scenario Description
A107: =C$9 -> 1 | B107: =B24 -> 1 Heat recovery from industrial facility, main hospital building only
A108: =C$10 -> 2 | B108: =B25 -> 2 Heat recovery from industrial facility, medical campus
A109: =C$11 -> 3 | B109: 3 Biomass heating, main hospital building only, wood pellets
A110: =C$12 -> 4 | B110: 4 Biomass heating, main hospital building only, wood chips
A111: =C$13 -> 5 | B111: 5 Biomass heating, medical campus, wood pellets
A112: =C$14 -> 6 | B112: 6 Biomass heating, medical campus, wood chips
A113: =C$15 -> 0
A114: =C$16 -> 0
A115: =C$17 -> 0
A116: =C$18 -> 0
A117: =$C$19 -> 3 | B117: =IFERROR(VLOOKUP($C$19,$A$107:$N$116,B$233,FALSE),"") -> 3 Biomass heating, main hospital building only, wood pellets | C117: =IFERROR(VLOOKUP($C$19,$A$107:$N$116,C$233,FALSE),0) -> 0 | D117: 0 | E117: 0 | F117: 0 | G117: 0 | H117: 0 | I117: 0 | J117: 0 | K117: 0 | L117: 0 | M117: 0 | N117: 0
B121: COST ESCALATION | O121: Notes
B122: Scenario Description | C122: Fossil Fuels Cost Escalation | D122: Biomass Cost Escalation
B123: BASE CASE
A124: =C$9 -> 1 | B124: =B24 -> 1 Heat recovery from industrial facility, main hospital building only | C124: 0.036 | D124: 0.04
A125: =C$10 -> 2 | B125: =B25 -> 2 Heat recovery from industrial facility, medical campus | C125: 0.036 | D125: 0.04
A126: =C$11 -> 3 | B126: 3 Biomass heating, main hospital building only, wood pellets | C126: 0.036 | D126: 0.04
A127: =C$12 -> 4 | B127: 4 Biomass heating, main hospital building only, wood chips | C127: 0.036 | D127: 0.04
A128: =C$13 -> 5 | B128: 5 Biomass heating, medical campus, wood pellets | C128: 0.036 | D128: 0.04
A129: =C$14 -> 6 | B129: 6 Biomass heating, medical campus, wood chips | C129: 0.036 | D129: 0.04
A130: =C$15 -> 0
A131: =C$16 -> 0
A132: =C$17 -> 0
A133: =C$18 -> 0
A134: =$C$19 -> 3 | B134: =IFERROR(VLOOKUP($C$19,$A$124:$N$133,B$233,FALSE),"") -> 3 Biomass heating, main hospital building only, wood pellets | C134: =IFERROR(VLOOKUP($C$19,$A$124:$N$133,C$233,FALSE),0) -> 0.036 | D134: 0.04 | E134: 0 | F134: 0 | G134: 0 | H134: 0 | I134: 0 | J134: 0 | K134: 0 | L134: 0 | M134: 0 | N134: 0
B135: Notes
B138: COST ALLOCATION | O138: Notes
B139: Scenario Description
B140: BASE CASE
A141: =C$9 -> 1 | B141: =B24 -> 1 Heat recovery from industrial facility, main hospital building only
A142: =C$10 -> 2 | B142: =B25 -> 2 Heat recovery from industrial facility, medical campus
A143: =C$11 -> 3 | B143: 3 Biomass heating, main hospital building only, wood pellets
A144: =C$12 -> 4 | B144: 4 Biomass heating, main hospital building only, wood chips
A145: =C$13 -> 5 | B145: 5 Biomass heating, medical campus, wood pellets
A146: =C$14 -> 6 | B146: 6 Biomass heating, medical campus, wood chips
A147: =C$15 -> 0
A148: =C$16 -> 0
A149: =C$17 -> 0
A150: =C$18 -> 0
A151: =C19 -> 3 | B151: =IFERROR(VLOOKUP($C$19,$A$141:$N$150,B$233,FALSE),"") -> 3 Biomass heating, main hospital building only, wood pellets | C151: =IFERROR(VLOOKUP($C$19,$A$141:$N$150,C$233,FALSE),0) -> 0 | D151: 0 | E151: 0 | F151: 0 | G151: 0 | H151: 0 | I151: 0 | J151: 0 | K151: 0 | L151: 0 | M151: 0 | N151: 0
B152: Notes
B157: WORKSPACE
A228: CALCULATION AREA
B229: Toggle_Comments_Scenarios | C229: Hidden
B230: CopyingFormats | C230: No
B231: StoreNumberFormat | C231: _(* #,##0_);_(* (#,##0);_(* "-"??_);_(@_)
A233: VLOOKUP LOOKUP COLUMN | B233: 2 | C233: =B233+1 -> 3 | D233: 4 | E233: 5 | F233: 6 | G233: 7 | H233: 8 | I233: 9 | J233: 10 | K233: 11 | L233: =K233+1 -> 12 | M233: =L233+1 -> 13 | N233: =M233+1 -> 14
A237: =ISBLANK(B9) -> FALSE | B237: =C9 -> 1 | C237: =IF(B9="","",B9) -> Heat recovery from industrial facility, main hospital building only
A238: FALSE | B238: 2 | C238: Heat recovery from industrial facility, medical campus
A239: FALSE | B239: 3 | C239: Biomass heating, main hospital building only, wood pellets
A240: FALSE | B240: 4 | C240: Biomass heating, main hospital building only, wood chips
A241: FALSE | B241: 5 | C241: Biomass heating, medical campus, wood pellets
A242: FALSE | B242: 6 | C242: Biomass heating, medical campus, wood chips
A243: TRUE | B243: 0
A244: TRUE | B244: 0
A245: =ISBLANK(B18) -> TRUE | B245: =C18 -> 0 | C245: =IF(B18="","",B18) -> 
B248: Message When Getting Scenario | C248: Changing Scenario
K261: NOT DONE
A262: SCENARIO MENUS | L262: 1 | M262: 2 | N262: 3 | O262: 4 | P262: 5 | Q262: 6 | R262: 7 | S262: 8 | T262: 9
C263: ERRORS INDICATE MENUS NEED UPDATING | E263: Copied menu | L263: =E264 -> 1 | M263: =E265 -> 2 | N263: =E266 -> 3 | O263: =E267 -> 4 | P263: =E268 -> 5 | Q263: =E269 -> 6 | R263: =E270 -> 0 | S263: =E271 -> 0 | T263: =E273 -> 0
A264: =IF(A237=TRUE,0,1) -> 1 | B264: =B9 -> Heat recovery from industrial facility, main hospital building only | C264: =IF(OR(B264="",B264=0),0,VLOOKUP(C9,DropDown_ProjectNumbers,1,FALSE)) -> 1 | D264: =IF(B264="",0,IF(E9<>0,VLOOKUP(E9,DropDown_OptionNumbers,1,FALSE),0)) -> 0 | E264: 1 | F264: =IF(E264<>"",VLOOKUP(E264,C$264:C$273,1,FALSE),"") -> 1 | H264: =IF(OR(G264<>"",G264<>0),VLOOKUP(G264,D$264:D$273,1,FALSE),"") ->  | J264: 1 | L264: =IF($C264=L$263,$D264,"") -> 0 | U264: =J264 -> 1
A265: =IF(A238=TRUE,0,1) -> 1 | B265: Heat recovery from industrial facility, medical campus | C265: 2 | D265: 0 | E265: 2 | F265: 2 | J265: 2 | M265: 0 | U265: =J265 -> 2
A266: =IF(A239=TRUE,0,1) -> 1 | B266: Biomass heating, main hospital building only, wood pellets | C266: 3 | D266: 0 | E266: 3 | F266: 3 | J266: 3 | N266: 0 | U266: 3
A267: =IF(A240=TRUE,0,1) -> 1 | B267: Biomass heating, main hospital building only, wood chips | C267: 4 | D267: 0 | E267: 4 | F267: 4 | J267: 4 | O267: 0 | U267: 4
A268: 1 | B268: Biomass heating, medical campus, wood pellets | C268: 5 | D268: 0 | E268: 5 | F268: 5 | J268: 5 | P268: 0 | U268: 5
A269: 1 | B269: Biomass heating, medical campus, wood chips | C269: 6 | D269: 0 | E269: 6 | F269: 6 | J269: 6 | Q269: 0 | U269: 6
A270: 0 | B270: 0 | C270: 0 | D270: 0 | J270: 7 | R270: 0 | S270: 0 | T270: 0 | U270: 7
A271: 0 | B271: 0 | C271: 0 | D271: 0 | J271: 8 | R271: 0 | S271: 0 | T271: 0 | U271: 8
A272: 0 | B272: 0 | C272: 0 | D272: 0 | J272: 8 | R272: 0 | S272: 0 | T272: 0 | U272: =J272 -> 8
A273: =IF(A245=TRUE,0,1) -> 0 | B273: 0 | C273: 0 | D273: 0 | J273: 9 | R273: 0 | S273: 0 | T273: 0 | U273: 9
A274: =SUM(A264:A273) -> 6 | B274: =SUM(C274:H274) -> 42 | C274: =SUM(C264:C273) -> 21 | D274: =SUM(D264:D273) -> 0 | F274: =SUM(F264:F273) -> 21 | H274: =SUM(H264:H273) -> 0 | L274: =IF($C274=L$263,$D274,"") ->  | M274: =IF($C274=M$263,$D274,"") ->  | N274: =IF($C274=N$263,$D274,"") ->  | O274: =IF($C274=O$263,$D274,"") -> 
B275: =IF(A274=0,"",IF(ISERROR(B274)=TRUE,"Update Menus","")) -> 
K277: SORT AREA
L278: =L263 -> 1 | M278: 2 | N278: 3 | O278: 4 | P278: 5 | Q278: 6 | R278: 0 | S278: 0 | T278: 0
J279: =J264 -> 1 | K279: =E264 -> 1
J280: 2 | K280: 2 | L280: A | M280: A | N280: A | O280: A
J281: 3 | K281: 3 | L281: B | N281: B | O281: B
J282: 4 | K282: 4 | N282: C
J283: 5 | K283: 5 | N283: D
J284: 6 | K284: 6
J285: 7 | K285: 0
J286: 8 | K286: 0
J287: =J273 -> 9 | K287: =E273 -> 0
D293: DropDown_ProjectNumbers, SandwichCell_ProjectMenuTop
D294: 1
D295: 2
D296: 3
D297: 4
D298: 5
B299: SHOW AND HIDE COMMENTS | D299: 6
D300: SandwichCell_ProjectMenuBottom
F310: DropDown_OptionNumbers,, SandwichCell_OptionMenuTop
F313: SandwichCell_OptionMenuBottom

Sheet Capital Expenditures
C1: RELCOST: Capital Expenditures | H1: =IF(ErrorLine1="","","ENABLE MACROS") ->  | J1: INPUT (Edit) | K1: RESULTS (No Edits)
I2: =Scenarios!$C$7 -> 
C3: LINKS TO SCENARIO SHEET (Optional) | E3: =IF(Scenarios!$A$274=0,"",IFERROR(IF(VLOOKUP(Project,Scenarios!$A$9:$B$18,2,FALSE)<>WhatIf!$G$7,MessageGettingScenario,WhatIf!$G$7),"Not Found")) -> Biomass heating, main hospital building only, wood pellets | P3: RELCOST Financial ©2009 Washington State University Extension Energy Program
E4: =IF(ISBLANK(Scenarios!C23)=FALSE,Scenarios!C23,"") -> Modifications at Hospital | F4: =IF(ISBLANK(Scenarios!D23)=FALSE,Scenarios!D23,"") -> Modifications at Industrial Facility for Heat Rec Project | G4: =IF(ISBLANK(Scenarios!E23)=FALSE,Scenarios!E23,"") -> Trench and Pipe from Industrial Facility to Site | H4: =IF(ISBLANK(Scenarios!F23)=FALSE,Scenarios!F23,"") -> Interconnection to medical offices | I4: =IF(ISBLANK(Scenarios!G23)=FALSE,Scenarios!G23,"") -> Wood-Fired Boiler | J4: =IF(ISBLANK(Scenarios!H23)=FALSE,Scenarios!H23,"") -> Stack & Pollution Control Equipment | K4: =IF(ISBLANK(Scenarios!I23)=FALSE,Scenarios!I23,"") -> Boiler House and/or Fuel Storage Silo | L4: =IF(ISBLANK(Scenarios!J23)=FALSE,Scenarios!J23,"") -> Thermal Storage Tank | M4: =IF(ISBLANK(Scenarios!K23)=FALSE,Scenarios!K23,"") -> Controls | N4: =IF(ISBLANK(Scenarios!L23)=FALSE,Scenarios!L23,"") -> Fuel Handling & Screening | O4: =IF(ISBLANK(Scenarios!M23)=FALSE,Scenarios!M23,"") -> Site Fuel Handling | P4: =IF(ISBLANK(Scenarios!N23)=FALSE,Scenarios!N23,"") -> Easements and Permiting
C5: Scenario | D5: 3 | E5: =IF(ISBLANK(Scenarios!C34)=FALSE,Scenarios!C34,"") -> 50000 | F5: =IF(ISBLANK(Scenarios!D34)=FALSE,Scenarios!D34,"") -> $ - | G5: =IF(ISBLANK(Scenarios!E34)=FALSE,Scenarios!E34,"") -> $ - | H5: =IF(ISBLANK(Scenarios!F34)=FALSE,Scenarios!F34,"") -> $ - | I5: =IF(ISBLANK(Scenarios!G34)=FALSE,Scenarios!G34,"") -> 300000 | J5: =IF(ISBLANK(Scenarios!H34)=FALSE,Scenarios!H34,"") -> $ - | K5: =IF(ISBLANK(Scenarios!I34)=FALSE,Scenarios!I34,"") -> 80000 | L5: =IF(ISBLANK(Scenarios!J34)=FALSE,Scenarios!J34,"") -> 20000 | M5: =IF(ISBLANK(Scenarios!K34)=FALSE,Scenarios!K34,"") -> 10000 | N5: =IF(ISBLANK(Scenarios!L34)=FALSE,Scenarios!L34,"") -> $ - | O5: =IF(ISBLANK(Scenarios!M34)=FALSE,Scenarios!M34,"") -> 0 | P5: =IF(ISBLANK(Scenarios!N34)=FALSE,Scenarios!N34,"") -> $ -
C8: WORKSPACE (Optional)
C10: Engineering and Design | D10: =Scenarios!J40 -> 46245
C13: DEFINE CATEGORIES FOR CAPITAL COSTS
C15: CATEGORY DESCRIPTIONS | D15: Include Category? | BD15: Option 1 | BE15: Option 2 | BF15: Option
C16: Equipment & Installation | D16: True
C17: Biomass Plant, Equipment & Installation | D17: True | BB17: 1
C18: Other | D18: True | BB18: 1
C21: ENTER CAPITAL COST ESTIMATES
D22: =+General!$D$21 -> 2014 | E22: =+D22+1 -> 2015 | F22: =+E22+1 -> 2016 | G22: 2017 | H22: 2018 | I22: 2019 | J22: 2020 | K22: 2021 | L22: 2022 | M22: 2023 | N22: =+M22+1 -> 2024 | O22: 2025 | P22: 2026 | Q22: 2027 | R22: 2028 | S22: 2029 | T22: 2030 | U22: 2031 | V22: 2032 | W22: 2033 | X22: 2034 | Y22: 2035 | Z22: 2036 | AA22: 2037 | AB22: 2038 | AC22: 2039 | AD22: 2040 | AE22: 2041 | AF22: 2042 | AG22: 2043 | AH22: 2044
C23: Project Year | D23: =FirstYear_0or1 -> 1 | E23: =+D23+1 -> 2 | F23: 3 | G23: 4 | H23: 5 | I23: 6 | J23: 7 | K23: 8 | L23: 9 | M23: 10 | N23: =+M23+1 -> 11 | O23: 12 | P23: 13 | Q23: 14 | R23: 15 | S23: 16 | T23: 17 | U23: 18 | V23: 19 | W23: 20 | X23: 21 | Y23: 22 | Z23: 23 | AA23: 24 | AB23: 25 | AC23: 26 | AD23: 27 | AE23: 28 | AF23: 29 | AG23: 30 | AH23: 31 | BB23: 1
C24: =IF(C16<>"",CONCATENATE("1. ",C16),"") -> 1. Equipment & Installation | BB24: 1
C25: =E4 -> Modifications at Hospital | D25: =E5 -> 50000 | BB25: 1
C26: =F4 -> Modifications at Industrial Facility for Heat Rec Project | D26: =H5 -> $ - | BB26: 1
C27: =G4 -> Trench and Pipe from Industrial Facility to Site | D27: =M5 -> 10000
C28: =H4 -> Interconnection to medical offices
C29: =M4 -> Controls
BB30: 1
BB31: 1
C32: Sub-Total | D32: =IF(D16="True",SUM(D25:D31),0) -> 60000 | E32: =SUM(E25:E31) -> 0 | F32: 0 | G32: 0 | H32: 0 | I32: 0 | J32: 0 | K32: 0 | L32: 0 | M32: 0 | N32: 0 | O32: 0 | P32: 0 | Q32: 0 | R32: 0 | S32: 0 | T32: 0 | U32: 0 | V32: 0 | W32: 0 | X32: 0 | Y32: 0 | Z32: 0 | AA32: 0 | AB32: 0 | AC32: 0 | AD32: 0 | AE32: 0 | AF32: 0 | AG32: 0 | AH32: 0
A33: S | C33: =IF(C17<>"",CONCATENATE("2. ",C17),"") -> 2. Biomass Plant, Equipment & Installation
A34: S | C34: =I4 -> Wood-Fired Boiler | D34: =I5 -> 300000
A35: S | C35: =J4 -> Stack & Pollution Control Equipment | D35: =J5 -> $ -
A36: S | C36: =K4 -> Boiler House and/or Fuel Storage Silo | D36: =K5 -> 80000
A37: S | C37: =L4 -> Thermal Storage Tank | D37: =L5 -> 20000
A38: S | C38: =N4 -> Fuel Handling & Screening | D38: =N5 -> $ -
A39: S | C39: =O4 -> Site Fuel Handling | D39: =O5 -> 0
A40: S
A41: S | C41: Sub-Total | D41: =IF(D17="True",SUM(D34:D40),0) -> 400000 | E41: =SUM(E34:E40) -> 0 | F41: =SUM(F34:F40) -> 0 | G41: 0 | H41: 0 | I41: 0 | J41: 0 | K41: 0 | L41: 0 | M41: 0 | N41: 0 | O41: 0 | P41: 0 | Q41: 0 | R41: 0 | S41: 0 | T41: 0 | U41: 0 | V41: 0 | W41: 0 | X41: 0 | Y41: 0 | Z41: 0 | AA41: 0 | AB41: 0 | AC41: 0 | AD41: 0 | AE41: 0 | AF41: 0 | AG41: 0 | AH41: 0
A42: S | C42: =IF(C18<>"",CONCATENATE("3. ",C18),"") -> 3. Other
A43: S | C43: =P4 -> Easements and Permiting | D43: =P5 -> $ -
A44: S | C44: Engineering & Design | D44: =D10 -> 46245
A45: S
A46: S
A47: S
A48: S
A49: S | C49: Sub-Total | D49: =IF(D18="True",SUM(D43:D48),0) -> 46245 | E49: =SUM(E43:E48) -> 0 | F49: 0 | G49: 0 | H49: 0 | I49: 0 | J49: 0 | K49: 0 | L49: 0 | M49: 0 | N49: 0 | O49: 0 | P49: 0 | Q49: 0 | R49: 0 | S49: 0 | T49: 0 | U49: 0 | V49: 0 | W49: 0 | X49: 0 | Y49: 0 | Z49: 0 | AA49: 0 | AB49: 0 | AC49: 0 | AD49: 0 | AE49: 0 | AF49: 0 | AG49: 0 | AH49: 0
A50: S | C50: Sub-Totals for the 3 categories of costs above
C51: Total | D51: =+D49+D41+D32 -> 506245 | E51: =+E49+E41+E32 -> 0 | F51: 0 | G51: 0 | H51: 0 | I51: 0 | J51: 0 | K51: 0 | L51: 0 | M51: 0 | N51: 0 | O51: 0 | P51: 0 | Q51: 0 | R51: 0 | S51: 0 | T51: 0 | U51: 0 | V51: 0 | W51: 0 | X51: 0 | Y51: 0 | Z51: 0 | AA51: 0 | AB51: 0 | AC51: 0 | AD51: 0 | AE51: 0 | AF51: 0 | AG51: 0 | AH51: 0
C53: ENTER BELOW THE LINE COSTS
C54: Contractor Profit Factor
C55: =IF(C16="","",C16) -> Equipment & Installation | D55: 0.3
C56: =IF(C17="","",C17) -> Biomass Plant, Equipment & Installation | D56: =D55 -> 0.3
C57: =IF(C18="","",C18) -> Other | D57: =D56 -> 0.3
C58: Contigencies
C59: =C55 -> Equipment & Installation | D59: 0.1
C60: =C56 -> Biomass Plant, Equipment & Installation | D60: =D59 -> 0.1
C61: =C57 -> Other | D61: =D60 -> 0.1
C62: Value Added Tax (includes contigency)
C63: VAT Rate
C64: =IF(C16="","",CONCATENATE("% ",C16)) -> % Equipment & Installation
C65: =IF(C17="","",CONCATENATE("% ",C17)) -> % Biomass Plant, Equipment & Installation
C66: =IF(C18="","",CONCATENATE("% ",C18)) -> % Other
C67: Other taxes (includes contigency)
C68: Other Tax Rate
C69: =C64 -> % Equipment & Installation
C70: =C65 -> % Biomass Plant, Equipment & Installation
C71: =C66 -> % Other
C72: Below-the-Line Totals
C73: Contractor Profit | D73: =+D55*D32+D56*D41+D57*D49 -> 151873.5 | E73: =+E55*E32+E56*E41+E57*E49 -> 0 | F73: 0 | G73: 0 | H73: 0 | I73: 0 | J73: 0 | K73: 0 | L73: 0 | M73: 0 | N73: 0 | O73: 0 | P73: 0 | Q73: 0 | R73: 0 | S73: 0 | T73: 0 | U73: 0 | V73: 0 | W73: 0 | X73: 0 | Y73: 0 | Z73: 0 | AA73: 0 | AB73: 0 | AC73: 0 | AD73: 0 | AE73: 0 | AF73: 0 | AG73: 0 | AH73: 0
C74: Contingency | D74: =+D59*D32+D60*D41+D61*D49 -> 50624.5 | E74: =+E59*E32+E60*E41+E61*E49 -> 0 | F74: 0 | G74: 0 | H74: 0 | I74: 0 | J74: 0 | K74: 0 | L74: 0 | M74: 0 | N74: 0 | O74: 0 | P74: 0 | Q74: 0 | R74: 0 | S74: 0 | T74: 0 | U74: 0 | V74: 0 | W74: 0 | X74: 0 | Y74: 0 | Z74: 0 | AA74: 0 | AB74: 0 | AC74: 0 | AD74: 0 | AE74: 0 | AF74: 0 | AG74: 0 | AH74: 0
C75: VAT | D75: =IFERROR(+((1+D59)*D32*D64+(1+D60)*D41*D65+(1+D61)*D49*D66)*D63,"") -> 0 | E75: =IFERROR(+((1+E59)*E32*E64+(1+E60)*E41*E65+(1+E61)*E49*E66)*E63,"") -> 0 | F75: 0 | G75: 0 | H75: 0 | I75: 0 | J75: 0 | K75: 0 | L75: 0 | M75: 0 | N75: 0 | O75: 0 | P75: 0 | Q75: 0 | R75: 0 | S75: 0 | T75: 0 | U75: 0 | V75: 0 | W75: 0 | X75: 0 | Y75: 0 | Z75: 0 | AA75: 0 | AB75: 0 | AC75: 0 | AD75: 0 | AE75: 0 | AF75: 0 | AG75: 0 | AH75: 0
C76: Other Taxes | D76: =IFERROR(+((1+D59)*D32*D69+(1+D60)*D41*D70+(1+D61)*D49*D71)*D68,"") -> 0 | E76: =IFERROR(+((1+E59)*E32*E69+(1+E60)*E41*E70+(1+E61)*E49*E71)*E68,"") -> 0 | F76: 0 | G76: 0 | H76: 0 | I76: 0 | J76: 0 | K76: 0 | L76: 0 | M76: 0 | N76: 0 | O76: 0 | P76: 0 | Q76: 0 | R76: 0 | S76: 0 | T76: 0 | U76: 0 | V76: 0 | W76: 0 | X76: 0 | Y76: 0 | Z76: 0 | AA76: 0 | AB76: 0 | AC76: 0 | AD76: 0 | AE76: 0 | AF76: 0 | AG76: 0 | AH76: 0
C77: Sub-Total | D77: =SUM(D73:D76) -> 202498 | E77: =SUM(E73:E76) -> 0 | F77: 0 | G77: 0 | H77: 0 | I77: 0 | J77: 0 | K77: 0 | L77: 0 | M77: 0 | N77: 0 | O77: 0 | P77: 0 | Q77: 0 | R77: 0 | S77: 0 | T77: 0 | U77: 0 | V77: 0 | W77: 0 | X77: 0 | Y77: 0 | Z77: 0 | AA77: 0 | AB77: 0 | AC77: 0 | AD77: 0 | AE77: 0 | AF77: 0 | AG77: 0 | AH77: 0
C79: Total Capital Expenditures
B80: H | C80: Total (Non-escalated, No Sensitivity) | D80: =+D32+D41+D49+D77 -> 708743 | E80: 0 | F80: 0 | G80: 0 | H80: 0 | I80: 0 | J80: 0 | K80: 0 | L80: 0 | M80: 0 | N80: 0 | O80: 0 | P80: 0 | Q80: 0 | R80: 0 | S80: 0 | T80: 0 | U80: 0 | V80: 0 | W80: 0 | X80: 0 | Y80: 0 | Z80: 0 | AA80: 0 | AB80: 0 | AC80: 0 | AD80: 0 | AE80: 0 | AF80: 0 | AG80: 0 | AH80: 0
B81: H | C81: Total (Non-escalated, w/sensitivity) | D81: =+D80*Sens_CapEx -> 708743 | E81: =+E80*Sens_CapEx -> 0 | F81: =+F80*Sens_CapEx -> 0 | G81: 0 | H81: 0 | I81: 0 | J81: 0 | K81: 0 | L81: 0 | M81: 0 | N81: 0 | O81: 0 | P81: 0 | Q81: 0 | R81: 0 | S81: 0 | T81: 0 | U81: 0 | V81: 0 | W81: 0 | X81: 0 | Y81: 0 | Z81: 0 | AA81: 0 | AB81: 0 | AC81: 0 | AD81: 0 | AE81: 0 | AF81: 0 | AG81: 0 | AH81: =+AH80*Sens_CapEx -> 0
C82: Total (Escalated + sensitivity) | D82: =+D81*'Cost Escalation'!B284 -> 708743 | E82: =+E81*'Cost Escalation'!C284 -> 0 | F82: =+F81*'Cost Escalation'!D284 -> 0 | G82: =+G81*'Cost Escalation'!E284 -> 0 | H82: =+H81*'Cost Escalation'!F284 -> 0 | I82: =+I81*'Cost Escalation'!G284 -> 0 | J82: =+J81*'Cost Escalation'!H284 -> 0 | K82: =+K81*'Cost Escalation'!I284 -> 0 | L82: =+L81*'Cost Escalation'!J284 -> 0 | M82: =+M81*'Cost Escalation'!K284 -> 0 | N82: =+N81*'Cost Escalation'!L284 -> 0 | O82: =+O81*'Cost Escalation'!M284 -> 0 | P82: =+P81*'Cost Escalation'!N284 -> 0 | Q82: =+Q81*'Cost Escalation'!O284 -> 0 | R82: =+R81*'Cost Escalation'!P284 -> 0 | S82: =+S81*'Cost Escalation'!Q284 -> 0 | T82: =+T81*'Cost Escalation'!R284 -> 0 | U82: =+U81*'Cost Escalation'!S284 -> 0 | V82: =+V81*'Cost Escalation'!T284 -> 0 | W82: =+W81*'Cost Escalation'!U284 -> 0 | X82: =+X81*'Cost Escalation'!V284 -> 0 | Y82: =+Y81*'Cost Escalation'!W284 -> 0 | Z82: =+Z81*'Cost Escalation'!X284 -> 0 | AA82: =+AA81*'Cost Escalation'!Y284 -> 0 | AB82: =+AB81*'Cost Escalation'!Z284 -> 0 | AC82: =+AC81*'Cost Escalation'!AA284 -> 0 | AD82: =+AD81*'Cost Escalation'!AB284 -> 0 | AE82: =+AE81*'Cost Escalation'!AC284 -> 0 | AF82: =+AF81*'Cost Escalation'!AD284 -> 0 | AG82: =+AG81*'Cost Escalation'!AE284 -> 0 | AH82: =+AH81*'Cost Escalation'!AF284 -> 0
B83: H | C83: Accumulated | D83: =+D82 -> 708743 | E83: =+E82+D83 -> 708743 | F83: =+F82+E83 -> 708743 | G83: =+G82+F83 -> 708743 | H83: 708743 | I83: 708743 | J83: 708743 | K83: 708743 | L83: 708743 | M83: 708743 | N83: 708743 | O83: 708743 | P83: 708743 | Q83: 708743 | R83: 708743 | S83: 708743 | T83: 708743 | U83: 708743 | V83: 708743 | W83: 708743 | X83: 708743 | Y83: 708743 | Z83: 708743 | AA83: 708743 | AB83: 708743 | AC83: 708743 | AD83: 708743 | AE83: 708743 | AF83: 708743 | AG83: 708743 | AH83: 708743
C84: Total | D84: =MAX(D83:AH83) -> 708743
C85: Plant size (optional) | E85: kW
C86: Accumulated ($/kW) | D86: =IFERROR(+D83/$D$85/1000,"") ->  | E86: =IFERROR(+E83/$D$85/1000,"") -> 
C89: REFERENCES
C90: EIA FAQ: How much does it cost to generate electricity with different types of power plants? | D90: http://www.eia.gov/tools/faqs/faq.cfm?id=19&t=3
C91: Updated Capital Cost Estimates for Utility Scale Electricity Generating Plants | D91: http://www.eia.gov/forecasts/capitalcost/
C92: Comparative Costs of California Central Station Electricity Generation, Cec, 2009 | D92: http://www.energy.ca.gov/2009publications/CEC-200-2009-017/CEC-200-2009-017-SD.PDF
C93: Renewable Energy Cost of Generation Update, KEMA Inc., August 2009 | D93: http://www.energy.ca.gov/2009publications/CEC-500-2009-084/CEC-500-2009-084.PDF
C94: "Commercial and Industrial CHP Technology, Cost and Performance Data, Analysis for EIA", 2010 | D94: http://www.meede.org/wp-content/uploads/Commercial-and-Industrial-CHP-Technology-Cost-and-Performance-Data-Analysis-for-EIA_June-2010.pdf
C95: "Technology Characterization: Steam Turbines", EPA, 2008 | D95: http://www.epa.gov/chp/documents/catalog_chptech_steam_turbines.pdf
C96: "Technology Characterization: Gas Turbines", EPA, 2013 | D96: http://www.epa.gov/chp/documents/catalog_chptech_gas_turbines.pdf
C97: "Technology Characterization: Reciprocating Engines", EPA, 2008 | D97: http://www.epa.gov/chp/documents/catalog_chptech_reciprocating_engines.pdf
C99: WORKSPACE
C147: Calculation Area
C148: Toggle_Comments | D148: Hidden
C149: Toggle_UserArea_CapEx | D149: Showing
C150: Toggle_ScenarioSection | D150: Showing
C151: Copied | D151: No

Sheet Depreciation
A1: RELCOST Financial Analysis of Energy Projects | C1: RELCOST: Depreciation | E1: =IF(ErrorLine1="","","ENABLE MACROS") ->  | L1: INPUT (Edit) | M1: RESULTS (No Edits)
C3: LINKS TO SCENARIO SHEET (Optional) | E3: =IF(Scenarios!$A$274=0,"",IFERROR(IF(VLOOKUP(Project,Scenarios!$A$9:$B$18,2,FALSE)<>WhatIf!$G$7,MessageGettingScenario,WhatIf!$G$7),"Not Found")) -> Biomass heating, main hospital building only, wood pellets | P3: RELCOST Financial ©2009 Washington State University Extension Energy Program
E4: =IF(ISBLANK(Scenarios!C106)=FALSE,Scenarios!C106,"") ->  | F4: =IF(ISBLANK(Scenarios!D106)=FALSE,Scenarios!D106,"") ->  | G4: =IF(ISBLANK(Scenarios!E106)=FALSE,Scenarios!E106,"") ->  | H4: =IF(ISBLANK(Scenarios!F106)=FALSE,Scenarios!F106,"") ->  | I4: =IF(ISBLANK(Scenarios!G106)=FALSE,Scenarios!G106,"") ->  | J4: =IF(ISBLANK(Scenarios!H106)=FALSE,Scenarios!H106,"") ->  | K4: =IF(ISBLANK(Scenarios!I106)=FALSE,Scenarios!I106,"") ->  | L4: =IF(ISBLANK(Scenarios!J106)=FALSE,Scenarios!J106,"") ->  | M4: =IF(ISBLANK(Scenarios!K106)=FALSE,Scenarios!K106,"") ->  | N4: =IF(ISBLANK(Scenarios!L106)=FALSE,Scenarios!L106,"") ->  | O4: =IF(ISBLANK(Scenarios!M106)=FALSE,Scenarios!M106,"") ->  | P4: =IF(ISBLANK(Scenarios!N106)=FALSE,Scenarios!N106,"") -> 
C5: Scenario | D5: 3 | E5: =IF(ISBLANK(Scenarios!C117)=FALSE,Scenarios!C117,"") -> 0 | F5: =IF(ISBLANK(Scenarios!D117)=FALSE,Scenarios!D117,"") -> 0 | G5: =IF(ISBLANK(Scenarios!E117)=FALSE,Scenarios!E117,"") -> 0 | H5: =IF(ISBLANK(Scenarios!F117)=FALSE,Scenarios!F117,"") -> 0 | I5: =IF(ISBLANK(Scenarios!G117)=FALSE,Scenarios!G117,"") -> 0 | J5: =IF(ISBLANK(Scenarios!H117)=FALSE,Scenarios!H117,"") -> 0 | K5: =IF(ISBLANK(Scenarios!I117)=FALSE,Scenarios!I117,"") -> 0 | L5: =IF(ISBLANK(Scenarios!J117)=FALSE,Scenarios!J117,"") -> 0 | M5: =IF(ISBLANK(Scenarios!K117)=FALSE,Scenarios!K117,"") -> 0 | N5: =IF(ISBLANK(Scenarios!L117)=FALSE,Scenarios!L117,"") -> 0 | O5: =IF(ISBLANK(Scenarios!M117)=FALSE,Scenarios!M117,"") -> 0 | P5: =IF(ISBLANK(Scenarios!N117)=FALSE,Scenarios!N117,"") -> 0
D6: Capital Expenditures | E6: ='Capital Expenditures'!D82 -> 708743 | F6: ='Capital Expenditures'!E82 -> 0 | G6: ='Capital Expenditures'!F82 -> 0 | H6: ='Capital Expenditures'!G82 -> 0 | I6: ='Capital Expenditures'!H82 -> 0 | J6: ='Capital Expenditures'!I82 -> 0 | K6: ='Capital Expenditures'!J82 -> 0 | L6: ='Capital Expenditures'!K82 -> 0 | M6: ='Capital Expenditures'!L82 -> 0 | N6: ='Capital Expenditures'!M82 -> 0 | O6: ='Capital Expenditures'!N82 -> 0 | P6: ='Capital Expenditures'!O82 -> 0
C8: WORKSPACE (Optional)
C13: ENTER DEPRECIATION FOR UP TO 3 CLASSES FOR TAX PURPOSES
D15: =+General!$D$21 -> 2014 | E15: =+D15+1 -> 2015 | F15: =+E15+1 -> 2016 | G15: 2017 | H15: 2018 | I15: 2019 | J15: 2020 | K15: 2021 | L15: 2022 | M15: 2023 | N15: 2024 | O15: 2025 | P15: 2026 | Q15: 2027 | R15: 2028 | S15: 2029 | T15: 2030 | U15: 2031 | V15: =+U15+1 -> 2032 | W15: 2033 | X15: 2034 | Y15: 2035 | Z15: 2036 | AA15: 2037 | AB15: 2038 | AC15: 2039 | AD15: 2040 | AE15: 2041 | AF15: 2042 | AG15: 2043 | AH15: 2044
C16: Project Year | D16: =FirstYear_0or1 -> 1 | E16: =+D16+1 -> 2 | F16: 3 | G16: 4 | H16: 5 | I16: 6 | J16: 7 | K16: 8 | L16: 9 | M16: 10 | N16: 11 | O16: 12 | P16: 13 | Q16: 14 | R16: 15 | S16: 16 | T16: 17 | U16: 18 | V16: =+U16+1 -> 19 | W16: 20 | X16: 21 | Y16: 22 | Z16: 23 | AA16: 24 | AB16: 25 | AC16: 26 | AD16: 27 | AE16: 28 | AF16: 29 | AG16: 30 | AH16: 31
C17: Depreciation for Tax Purposes (Tax)
C18: Class I
C19: Description
C20: Amount
C21: Salvage % | J21: 0 | K21: 0 | L21: 0 | M21: 0 | N21: 0 | O21: 0 | P21: 0 | Q21: 0 | R21: 0 | S21: 0 | T21: 0 | U21: 0 | V21: 0 | W21: 0 | X21: 0 | Y21: 0 | Z21: 0 | AA21: 0 | AB21: 0 | AC21: 0 | AD21: 0 | AE21: 0 | AF21: 0 | AG21: 0 | AH21: 0
C22: Depreciation Base | D22: =+D20*(1-D21) -> 0 | E22: =+E20*(1-E21) -> 0 | F22: 0 | G22: 0 | H22: 0 | I22: 0 | J22: 0 | K22: 0 | L22: 0 | M22: 0 | N22: 0 | O22: 0 | P22: 0 | Q22: 0 | R22: 0 | S22: 0 | T22: 0 | U22: 0 | V22: =+V20*(1-V21) -> 0 | W22: 0 | X22: 0 | Y22: 0 | Z22: 0 | AA22: 0 | AB22: 0 | AC22: 0 | AD22: 0 | AE22: 0 | AF22: 0 | AG22: 0 | AH22: =+AH20*(1-AH21) -> 0
C23: Depreciation Schedule | D23: 05YR~150DB~HY~ANY | E23: 25YR~SLINE~MQ~Q1 | F23: 07YR~150DB~HY~ANY | G23: 07YR~150DB~HY~ANY | H23: 25YR~SLINE~MQ~Q1 | I23: 07YR~150DB~HY~ANY | J23: 07YR~150DB~HY~ANY | K23: 07YR~150DB~HY~ANY | L23: 07YR~150DB~HY~ANY | M23: 07YR~150DB~HY~ANY | N23: 07YR~150DB~HY~ANY | O23: 07YR~150DB~HY~ANY | P23: 07YR~150DB~HY~ANY | Q23: 07YR~150DB~HY~ANY | R23: 07YR~150DB~HY~ANY | S23: 07YR~150DB~HY~ANY | T23: 07YR~150DB~HY~ANY | U23: 07YR~150DB~HY~ANY | V23: 07YR~150DB~HY~ANY | W23: 07YR~150DB~HY~ANY | X23: 07YR~150DB~HY~ANY | Y23: 07YR~150DB~HY~ANY | Z23: 07YR~150DB~HY~ANY | AA23: 07YR~150DB~HY~ANY | AB23: 07YR~150DB~HY~ANY | AC23: 07YR~150DB~HY~ANY | AD23: 07YR~150DB~HY~ANY | AE23: 07YR~150DB~HY~ANY | AF23: 07YR~150DB~HY~ANY | AG23: 07YR~150DB~HY~ANY | AH23: 07YR~150DB~HY~ANY
A24: S | C24: Class II
A25: S | C25: Description
A26: S | C26: Amount
A27: S | C27: Salvage %
A28: S | C28: Depreciation Base | D28: =+D26*(1-D27) -> 0 | E28: =+E26*(1-E27) -> 0 | F28: =+F26*(1-F27) -> 0 | G28: 0 | H28: 0 | I28: 0 | J28: 0 | K28: 0 | L28: 0 | M28: 0 | N28: 0 | O28: 0 | P28: 0 | Q28: 0 | R28: 0 | S28: 0 | T28: 0 | U28: 0 | V28: =+V26*(1-V27) -> 0 | W28: 0 | X28: 0 | Y28: 0 | Z28: 0 | AA28: 0 | AB28: 0 | AC28: 0 | AD28: 0 | AE28: 0 | AF28: 0 | AG28: 0 | AH28: =+AH26*(1-AH27) -> 0
A29: S | C29: Depreciation Schedule | D29: 01YR | E29: 10YR~200DB~HY~ANY | F29: 20YR~150DB~HY~ANY | G29: 20YR~150DB~HY~ANY | H29: 20YR~150DB~HY~ANY | I29: 20YR~150DB~HY~ANY | J29: 20YR~150DB~HY~ANY | K29: 20YR~150DB~HY~ANY | L29: 20YR~150DB~HY~ANY | M29: 20YR~150DB~HY~ANY | N29: 20YR~150DB~HY~ANY | O29: 20YR~150DB~HY~ANY | P29: 20YR~150DB~HY~ANY | Q29: 20YR~150DB~HY~ANY | R29: 20YR~150DB~HY~ANY | S29: 20YR~150DB~HY~ANY | T29: 20YR~150DB~HY~ANY | U29: 20YR~150DB~HY~ANY | V29: 20YR~150DB~HY~ANY | W29: 20YR~150DB~HY~ANY | X29: 20YR~150DB~HY~ANY | Y29: 20YR~150DB~HY~ANY | Z29: 20YR~150DB~HY~ANY | AA29: 20YR~150DB~HY~ANY | AB29: 20YR~150DB~HY~ANY | AC29: 20YR~150DB~HY~ANY | AD29: 20YR~150DB~HY~ANY | AE29: 20YR~150DB~HY~ANY | AF29: 20YR~150DB~HY~ANY | AG29: 20YR~150DB~HY~ANY | AH29: 20YR~150DB~HY~ANY
A30: S | C30: Class III
A31: S | C31: Description
A32: S | C32: Amount
A33: S | C33: Salvage %
A34: S | C34: Depreciation Base | D34: =+D32*(1-D33) -> 0 | E34: =+E32*(1-E33) -> 0 | F34: 0 | G34: 0 | H34: 0 | I34: 0 | J34: 0 | K34: 0 | L34: 0 | M34: 0 | N34: 0 | O34: 0 | P34: 0 | Q34: 0 | R34: 0 | S34: 0 | T34: 0 | U34: 0 | V34: =+V32*(1-V33) -> 0 | W34: 0 | X34: 0 | Y34: 0 | Z34: 0 | AA34: 0 | AB34: 0 | AC34: 0 | AD34: 0 | AE34: 0 | AF34: 0 | AG34: 0 | AH34: =+AH32*(1-AH33) -> 0
A35: S | C35: Depreciation Schedule | D35: 10YR~200DB~HY~ANY | E35: 10YR~200DB~HY~ANY | F35: 20YR~150DB~HY~ANY | G35: 20YR~150DB~HY~ANY | H35: 20YR~150DB~HY~ANY | I35: 20YR~150DB~HY~ANY | J35: 20YR~150DB~HY~ANY | K35: 20YR~150DB~HY~ANY | L35: 20YR~150DB~HY~ANY | M35: 20YR~150DB~HY~ANY | N35: 20YR~150DB~HY~ANY | O35: 20YR~150DB~HY~ANY | P35: 20YR~150DB~HY~ANY | Q35: 20YR~150DB~HY~ANY | R35: 20YR~150DB~HY~ANY | S35: 20YR~150DB~HY~ANY | T35: 20YR~150DB~HY~ANY | U35: 20YR~150DB~HY~ANY | V35: 20YR~150DB~HY~ANY | W35: 20YR~150DB~HY~ANY | X35: 20YR~150DB~HY~ANY | Y35: 20YR~150DB~HY~ANY | Z35: 20YR~150DB~HY~ANY | AA35: 20YR~150DB~HY~ANY | AB35: 20YR~150DB~HY~ANY | AC35: 20YR~150DB~HY~ANY | AD35: 20YR~150DB~HY~ANY | AE35: 20YR~150DB~HY~ANY | AF35: 20YR~150DB~HY~ANY | AG35: 20YR~150DB~HY~ANY | AH35: 20YR~150DB~HY~ANY
A36: S | C36: All Classes
C37: Salvage | D37: =+D21*D20+D27*D26+D33*D32 -> 0 | E37: =+E21*E20+E27*E26+E33*E32 -> 0 | F37: 0 | G37: 0 | H37: 0 | I37: 0 | J37: 0 | K37: 0 | L37: 0 | M37: 0 | N37: 0 | O37: 0 | P37: 0 | Q37: 0 | R37: 0 | S37: 0 | T37: 0 | U37: 0 | V37: =+V21*V20+V27*V26+V33*V32 -> 0 | W37: 0 | X37: 0 | Y37: 0 | Z37: 0 | AA37: 0 | AB37: 0 | AC37: 0 | AD37: 0 | AE37: 0 | AF37: 0 | AG37: 0 | AH37: =+AH21*AH20+AH27*AH26+AH33*AH32 -> 0
C38: Depreciation Base | D38: =+D22+D28+D34 -> 0 | E38: =+E22+E28+E34 -> 0 | F38: 0 | G38: 0 | H38: 0 | I38: 0 | J38: 0 | K38: 0 | L38: 0 | M38: 0 | N38: 0 | O38: 0 | P38: 0 | Q38: 0 | R38: 0 | S38: 0 | T38: 0 | U38: 0 | V38: =+V22+V28+V34 -> 0 | W38: 0 | X38: 0 | Y38: 0 | Z38: 0 | AA38: 0 | AB38: 0 | AC38: 0 | AD38: 0 | AE38: 0 | AF38: 0 | AG38: 0 | AH38: =+AH22+AH28+AH34 -> 0
C39: Total value | D39: =SUM(D37:D38) -> 0 | E39: =SUM(E37:E38) -> 0 | F39: 0 | G39: 0 | H39: 0 | I39: 0 | J39: 0 | K39: 0 | L39: 0 | M39: 0 | N39: 0 | O39: 0 | P39: 0 | Q39: 0 | R39: 0 | S39: 0 | T39: 0 | U39: 0 | V39: =SUM(V37:V38) -> 0 | W39: 0 | X39: 0 | Y39: 0 | Z39: 0 | AA39: 0 | AB39: 0 | AC39: 0 | AD39: 0 | AE39: 0 | AF39: 0 | AG39: 0 | AH39: =SUM(AH37:AH38) -> 0
C40: Calculated depreciation | D40: =+D320+D354+D387 -> 0 | E40: =+E320+E354+E387 -> 0 | F40: 0 | G40: 0 | H40: 0 | I40: 0 | J40: 0 | K40: 0 | L40: 0 | M40: 0 | N40: 0 | O40: 0 | P40: 0 | Q40: 0 | R40: 0 | S40: 0 | T40: 0 | U40: 0 | V40: =+V320+V354+V387 -> 0 | W40: 0 | X40: 0 | Y40: 0 | Z40: 0 | AA40: 0 | AB40: 0 | AC40: 0 | AD40: 0 | AE40: 0 | AF40: 0 | AG40: 0 | AH40: =+AH320+AH354+AH387 -> 0
B41: H | C41: Accumulated | D41: =+D40 -> 0 | E41: =+E40+D41 -> 0 | F41: 0 | G41: 0 | H41: 0 | I41: 0 | J41: 0 | K41: 0 | L41: 0 | M41: 0 | N41: 0 | O41: 0 | P41: 0 | Q41: 0 | R41: 0 | S41: 0 | T41: 0 | U41: 0 | V41: =+V40+U41 -> 0 | W41: 0 | X41: 0 | Y41: 0 | Z41: 0 | AA41: 0 | AB41: 0 | AC41: 0 | AD41: 0 | AE41: 0 | AF41: 0 | AG41: 0 | AH41: 0
C45: ENTER DEPRECIATION & AMORTIZATION FOR UP TO 3 CLASSES FOR INTERNAL& SHAREHOLDER PURPOSES
D46: =+General!$D$21 -> 2014 | E46: =+D46+1 -> 2015 | F46: =+E46+1 -> 2016 | G46: 2017 | H46: 2018 | I46: 2019 | J46: 2020 | K46: 2021 | L46: 2022 | M46: 2023 | N46: 2024 | O46: 2025 | P46: 2026 | Q46: 2027 | R46: 2028 | S46: 2029 | T46: 2030 | U46: 2031 | V46: =+U46+1 -> 2032 | W46: 2033 | X46: 2034 | Y46: 2035 | Z46: 2036 | AA46: 2037 | AB46: 2038 | AC46: 2039 | AD46: 2040 | AE46: 2041 | AF46: 2042 | AG46: 2043 | AH46: 2044
C47: Project Year | D47: 0 | E47: =+D47+1 -> 1 | F47: 2 | G47: 3 | H47: 4 | I47: 5 | J47: 6 | K47: 7 | L47: 8 | M47: 9 | N47: 10 | O47: 11 | P47: 12 | Q47: 13 | R47: 14 | S47: 15 | T47: 16 | U47: 17 | V47: =+U47+1 -> 18 | W47: 19 | X47: 20 | Y47: 21 | Z47: 22 | AA47: 23 | AB47: 24 | AC47: 25 | AD47: 26 | AE47: 27 | AF47: 28 | AG47: 29 | AH47: 30
C48: Depreciation & Amortization for Internal Purposes (SH) -- Used in life cycle cost analysis
C49: Class I
C50: Description | D50: =D19 -> 0 | F50: =+F19 -> 0 | G50: 0 | H50: 0 | I50: 0 | J50: 0 | K50: 0 | L50: 0 | M50: 0 | N50: 0 | O50: 0 | P50: 0 | Q50: 0 | R50: 0 | S50: 0 | T50: 0 | U50: 0 | V50: 0 | W50: 0 | X50: 0 | Y50: 0 | Z50: 0 | AA50: 0 | AB50: 0 | AC50: 0 | AD50: 0 | AE50: 0 | AF50: 0 | AG50: 0 | AH50: 0
C51: Amount | D51: =D20 -> 0 | F51: =+F20 -> 0 | G51: 0 | H51: 0 | I51: 0 | J51: 0 | K51: 0 | L51: 0 | M51: 0 | N51: 0 | O51: 0 | P51: 0 | Q51: 0 | R51: 0 | S51: 0 | T51: 0 | U51: 0 | V51: 0 | W51: 0 | X51: 0 | Y51: 0 | Z51: 0 | AA51: 0 | AB51: 0 | AC51: 0 | AD51: 0 | AE51: 0 | AF51: 0 | AG51: 0 | AH51: 0
C52: Salvage % | F52: =+F21 -> 0 | G52: 0 | H52: 0 | I52: 0 | J52: 0 | K52: 0 | L52: 0 | M52: 0 | N52: 0 | O52: 0 | P52: 0 | Q52: 0 | R52: 0 | S52: 0 | T52: 0 | U52: 0 | V52: 0 | W52: 0 | X52: 0 | Y52: 0 | Z52: 0 | AA52: 0 | AB52: 0 | AC52: 0 | AD52: 0 | AE52: 0 | AF52: 0 | AG52: 0 | AH52: 0
C53: Depreciation Base | D53: =+D22 -> 0 | E53: =+E22 -> 0 | F53: 0 | G53: 0 | H53: 0 | I53: 0 | J53: 0 | K53: 0 | L53: 0 | M53: 0 | N53: 0 | O53: 0 | P53: 0 | Q53: 0 | R53: 0 | S53: 0 | T53: 0 | U53: 0 | V53: 0 | W53: 0 | X53: 0 | Y53: 0 | Z53: 0 | AA53: 0 | AB53: 0 | AC53: 0 | AD53: 0 | AE53: 0 | AF53: 0 | AG53: 0 | AH53: 0
C54: Depreciation Schedule | D54: 20YR~SLINE~HY~ANY | E54: =+E23 -> 25YR~SLINE~MQ~Q1 | F54: 07YR~150DB~HY~ANY | G54: 07YR~150DB~HY~ANY | H54: 25YR~SLINE~MQ~Q1 | I54: 07YR~150DB~HY~ANY | J54: 07YR~150DB~HY~ANY | K54: 07YR~150DB~HY~ANY | L54: 07YR~150DB~HY~ANY | M54: 07YR~150DB~HY~ANY | N54: 07YR~150DB~HY~ANY | O54: 07YR~150DB~HY~ANY | P54: 07YR~150DB~HY~ANY | Q54: 07YR~150DB~HY~ANY | R54: 07YR~150DB~HY~ANY | S54: 07YR~150DB~HY~ANY | T54: 07YR~150DB~HY~ANY | U54: 07YR~150DB~HY~ANY | V54: 07YR~150DB~HY~ANY | W54: 07YR~150DB~HY~ANY | X54: 07YR~150DB~HY~ANY | Y54: 07YR~150DB~HY~ANY | Z54: 07YR~150DB~HY~ANY | AA54: 07YR~150DB~HY~ANY | AB54: 07YR~150DB~HY~ANY | AC54: 07YR~150DB~HY~ANY | AD54: 07YR~150DB~HY~ANY | AE54: 07YR~150DB~HY~ANY | AF54: 07YR~150DB~HY~ANY | AG54: 07YR~150DB~HY~ANY | AH54: 07YR~150DB~HY~ANY
A55: S | C55: Class II
A56: S | C56: Description | D56: =+D25 -> 0 | E56: 0 | F56: 0 | G56: 0 | H56: 0 | I56: 0 | J56: 0 | K56: 0 | L56: 0 | M56: 0 | N56: 0 | O56: 0 | P56: 0 | Q56: 0 | R56: 0 | S56: 0 | T56: 0 | U56: 0 | V56: 0 | W56: 0 | X56: 0 | Y56: 0 | Z56: 0 | AA56: 0 | AB56: 0 | AC56: 0 | AD56: 0 | AE56: 0 | AF56: 0 | AG56: 0 | AH56: 0
A57: S | C57: Amount | D57: =+D26 -> 0 | E57: 0 | F57: 0 | G57: 0 | H57: 0 | I57: 0 | J57: 0 | K57: 0 | L57: 0 | M57: 0 | N57: 0 | O57: 0 | P57: 0 | Q57: 0 | R57: 0 | S57: 0 | T57: 0 | U57: 0 | V57: 0 | W57: 0 | X57: 0 | Y57: 0 | Z57: 0 | AA57: 0 | AB57: 0 | AC57: 0 | AD57: 0 | AE57: 0 | AF57: 0 | AG57: 0 | AH57: 0
A58: S | C58: Salvage % | D58: =+D27 -> 0 | E58: 0 | F58: 0 | G58: 0 | H58: 0 | I58: 0 | J58: 0 | K58: 0 | L58: 0 | M58: 0 | N58: 0 | O58: 0 | P58: 0 | Q58: 0 | R58: 0 | S58: 0 | T58: 0 | U58: 0 | V58: 0 | W58: 0 | X58: 0 | Y58: 0 | Z58: 0 | AA58: 0 | AB58: 0 | AC58: 0 | AD58: 0 | AE58: 0 | AF58: 0 | AG58: 0 | AH58: 0
A59: S | C59: Depreciation Base | D59: =+D28 -> 0 | E59: 0 | F59: 0 | G59: 0 | H59: 0 | I59: 0 | J59: 0 | K59: 0 | L59: 0 | M59: 0 | N59: 0 | O59: 0 | P59: 0 | Q59: 0 | R59: 0 | S59: 0 | T59: 0 | U59: 0 | V59: 0 | W59: 0 | X59: 0 | Y59: 0 | Z59: 0 | AA59: 0 | AB59: 0 | AC59: 0 | AD59: 0 | AE59: 0 | AF59: 0 | AG59: 0 | AH59: 0
A60: S | C60: Depreciation Schedule | D60: =D29 -> 01YR | E60: =+E29 -> 10YR~200DB~HY~ANY | F60: 20YR~150DB~HY~ANY | G60: 20YR~150DB~HY~ANY | H60: 20YR~150DB~HY~ANY | I60: 20YR~150DB~HY~ANY | J60: 20YR~150DB~HY~ANY | K60: 20YR~150DB~HY~ANY | L60: 20YR~150DB~HY~ANY | M60: 20YR~150DB~HY~ANY | N60: 20YR~150DB~HY~ANY | O60: 20YR~150DB~HY~ANY | P60: 20YR~150DB~HY~ANY | Q60: 20YR~150DB~HY~ANY | R60: 20YR~150DB~HY~ANY | S60: 20YR~150DB~HY~ANY | T60: 20YR~150DB~HY~ANY | U60: 20YR~150DB~HY~ANY | V60: 20YR~150DB~HY~ANY | W60: 20YR~150DB~HY~ANY | X60: 20YR~150DB~HY~ANY | Y60: 20YR~150DB~HY~ANY | Z60: 20YR~150DB~HY~ANY | AA60: 20YR~150DB~HY~ANY | AB60: 20YR~150DB~HY~ANY | AC60: 20YR~150DB~HY~ANY | AD60: 20YR~150DB~HY~ANY | AE60: 20YR~150DB~HY~ANY | AF60: 20YR~150DB~HY~ANY | AG60: 20YR~150DB~HY~ANY | AH60: 20YR~150DB~HY~ANY
A61: S | C61: Class III
A62: S | C62: Description | D62: =+D31 -> 0 | E62: 0 | F62: 0 | G62: 0 | H62: 0 | I62: 0 | J62: 0 | K62: 0 | L62: 0 | M62: 0 | N62: 0 | O62: 0 | P62: 0 | Q62: 0 | R62: 0 | S62: 0 | T62: 0 | U62: 0 | V62: 0 | W62: 0 | X62: 0 | Y62: 0 | Z62: 0 | AA62: 0 | AB62: 0 | AC62: 0 | AD62: 0 | AE62: 0 | AF62: 0 | AG62: 0 | AH62: 0
A63: S | C63: Amount | D63: =+D32 -> 0 | E63: 0 | F63: 0 | G63: 0 | H63: 0 | I63: 0 | J63: 0 | K63: 0 | L63: 0 | M63: 0 | N63: 0 | O63: 0 | P63: 0 | Q63: 0 | R63: 0 | S63: 0 | T63: 0 | U63: 0 | V63: 0 | W63: 0 | X63: 0 | Y63: 0 | Z63: 0 | AA63: 0 | AB63: 0 | AC63: 0 | AD63: 0 | AE63: 0 | AF63: 0 | AG63: 0 | AH63: 0
A64: S | C64: Salvage % | D64: =+D33 -> 0 | E64: 0 | F64: 0 | G64: 0 | H64: 0 | I64: 0 | J64: 0 | K64: 0 | L64: 0 | M64: 0 | N64: 0 | O64: 0 | P64: 0 | Q64: 0 | R64: 0 | S64: 0 | T64: 0 | U64: 0 | V64: 0 | W64: 0 | X64: 0 | Y64: 0 | Z64: 0 | AA64: 0 | AB64: 0 | AC64: 0 | AD64: 0 | AE64: 0 | AF64: 0 | AG64: 0 | AH64: 0
A65: S | C65: Depreciation Base | D65: =+D34 -> 0 | E65: 0 | F65: 0 | G65: 0 | H65: 0 | I65: 0 | J65: 0 | K65: 0 | L65: 0 | M65: 0 | N65: 0 | O65: 0 | P65: 0 | Q65: 0 | R65: 0 | S65: 0 | T65: 0 | U65: 0 | V65: 0 | W65: 0 | X65: 0 | Y65: 0 | Z65: 0 | AA65: 0 | AB65: 0 | AC65: 0 | AD65: 0 | AE65: 0 | AF65: 0 | AG65: 0 | AH65: 0
A66: S | C66: Depreciation Schedule | D66: =+D35 -> 10YR~200DB~HY~ANY | E66: 10YR~200DB~HY~ANY | F66: 20YR~150DB~HY~ANY | G66: 20YR~150DB~HY~ANY | H66: 20YR~150DB~HY~ANY | I66: 20YR~150DB~HY~ANY | J66: 20YR~150DB~HY~ANY | K66: 20YR~150DB~HY~ANY | L66: 20YR~150DB~HY~ANY | M66: 20YR~150DB~HY~ANY | N66: 20YR~150DB~HY~ANY | O66: 20YR~150DB~HY~ANY | P66: 20YR~150DB~HY~ANY | Q66: 20YR~150DB~HY~ANY | R66: 20YR~150DB~HY~ANY | S66: 20YR~150DB~HY~ANY | T66: 20YR~150DB~HY~ANY | U66: 20YR~150DB~HY~ANY | V66: 20YR~150DB~HY~ANY | W66: 20YR~150DB~HY~ANY | X66: 20YR~150DB~HY~ANY | Y66: 20YR~150DB~HY~ANY | Z66: 20YR~150DB~HY~ANY | AA66: 20YR~150DB~HY~ANY | AB66: 20YR~150DB~HY~ANY | AC66: 20YR~150DB~HY~ANY | AD66: 20YR~150DB~HY~ANY | AE66: 20YR~150DB~HY~ANY | AF66: 20YR~150DB~HY~ANY | AG66: 20YR~150DB~HY~ANY | AH66: 20YR~150DB~HY~ANY
A67: S | C67: All Classes
C68: Salvage | D68: =+D52*D51+D58*D57+D64*D63 -> 0 | E68: 0 | F68: 0 | G68: 0 | H68: 0 | I68: 0 | J68: 0 | K68: 0 | L68: 0 | M68: 0 | N68: 0 | O68: 0 | P68: 0 | Q68: 0 | R68: 0 | S68: 0 | T68: 0 | U68: 0 | V68: =+V52*V51+V58*V57+V64*V63 -> 0 | W68: 0 | X68: 0 | Y68: 0 | Z68: 0 | AA68: 0 | AB68: 0 | AC68: 0 | AD68: 0 | AE68: 0 | AF68: 0 | AG68: 0 | AH68: =+AH52*AH51+AH58*AH57+AH64*AH63 -> 0
C69: Depreciation Base | D69: =+D53+D59+D65 -> 0 | E69: 0 | F69: 0 | G69: 0 | H69: 0 | I69: 0 | J69: 0 | K69: 0 | L69: 0 | M69: 0 | N69: 0 | O69: 0 | P69: 0 | Q69: 0 | R69: 0 | S69: 0 | T69: 0 | U69: 0 | V69: =+V53+V59+V65 -> 0 | W69: 0 | X69: 0 | Y69: 0 | Z69: 0 | AA69: 0 | AB69: 0 | AC69: 0 | AD69: 0 | AE69: 0 | AF69: 0 | AG69: 0 | AH69: =+AH53+AH59+AH65 -> 0
C70: Total value | D70: =SUM(D68:D69) -> 0 | E70: 0 | F70: 0 | G70: 0 | H70: 0 | I70: 0 | J70: 0 | K70: 0 | L70: 0 | M70: 0 | N70: 0 | O70: 0 | P70: 0 | Q70: 0 | R70: 0 | S70: 0 | T70: 0 | U70: 0 | V70: =SUM(V68:V69) -> 0 | W70: 0 | X70: 0 | Y70: 0 | Z70: 0 | AA70: 0 | AB70: 0 | AC70: 0 | AD70: 0 | AE70: 0 | AF70: 0 | AG70: 0 | AH70: =SUM(AH68:AH69) -> 0
C71: Calculated depreciation | D71: =+D522+D555+D588 -> 0 | E71: 0 | F71: 0 | G71: 0 | H71: 0 | I71: 0 | J71: 0 | K71: 0 | L71: 0 | M71: 0 | N71: 0 | O71: 0 | P71: 0 | Q71: 0 | R71: 0 | S71: 0 | T71: 0 | U71: 0 | V71: 0 | W71: 0 | X71: 0 | Y71: 0 | Z71: 0 | AA71: 0 | AB71: 0 | AC71: 0 | AD71: 0 | AE71: 0 | AF71: 0 | AG71: 0 | AH71: =+AH522+AH555+AH588 -> 0
B72: H | C72: Accumulated | D72: =+D71 -> 0 | E72: =+E71+D72 -> 0 | F72: 0 | G72: 0 | H72: 0 | I72: 0 | J72: 0 | K72: 0 | L72: 0 | M72: 0 | N72: 0 | O72: 0 | P72: 0 | Q72: 0 | R72: 0 | S72: 0 | T72: 0 | U72: 0 | V72: =+V71+U72 -> 0 | W72: 0 | X72: 0 | Y72: 0 | Z72: 0 | AA72: 0 | AB72: 0 | AC72: 0 | AD72: 0 | AE72: 0 | AF72: 0 | AG72: 0 | AH72: 0
B76: User Area | C76: WORKSPACE
C185: Calculation Area Below
C186: Toggle_Comments_Dep | D186: Hidden
C187: Toggle_UserArea_Dep | D187: Hidden
C188: Toggle_ScenarioSection | D188: Showing
C189: Copied | D189: No
C191: Depreciation for Tax Purposes
C192: Class I -- depreciation factors
C193: 1 | D193: =IF(D$23<>"",VLOOKUP(D$23,Table_Deprec,$C194),0) -> 0.15 | E193: =IF(E$23<>"",VLOOKUP(E$23,Table_Deprec,$C194),0) -> 0.035 | F193: =IF(F$23<>"",VLOOKUP(F$23,Table_Deprec,$C194),0) -> 0.1071 | G193: =IF(G$23<>"",VLOOKUP(G$23,Table_Deprec,$C194),0) -> 0.1071 | H193: =IF(H$23<>"",VLOOKUP(H$23,Table_Deprec,$C194),0) -> 0.035 | I193: =IF(I$23<>"",VLOOKUP(I$23,Table_Deprec,$C194),0) -> 0.1071 | J193: =IF(J$23<>"",VLOOKUP(J$23,Table_Deprec,$C194),0) -> 0.1071 | K193: =IF(K$23<>"",VLOOKUP(K$23,Table_Deprec,$C194),0) -> 0.1071 | L193: =IF(L$23<>"",VLOOKUP(L$23,Table_Deprec,$C194),0) -> 0.1071 | M193: =IF(M$23<>"",VLOOKUP(M$23,Table_Deprec,$C194),0) -> 0.1071 | N193: =IF(N$23<>"",VLOOKUP(N$23,Table_Deprec,$C194),0) -> 0.1071 | O193: =IF(O$23<>"",VLOOKUP(O$23,Table_Deprec,$C194),0) -> 0.1071 | P193: =IF(P$23<>"",VLOOKUP(P$23,Table_Deprec,$C194),0) -> 0.1071 | Q193: =IF(Q$23<>"",VLOOKUP(Q$23,Table_Deprec,$C194),0) -> 0.1071 | R193: =IF(R$23<>"",VLOOKUP(R$23,Table_Deprec,$C194),0) -> 0.1071 | S193: =IF(S$23<>"",VLOOKUP(S$23,Table_Deprec,$C194),0) -> 0.1071 | T193: =IF(T$23<>"",VLOOKUP(T$23,Table_Deprec,$C194),0) -> 0.1071 | U193: =IF(U$23<>"",VLOOKUP(U$23,Table_Deprec,$C194),0) -> 0.1071 | V193: =IF(V$23<>"",VLOOKUP(V$23,Table_Deprec,$C194),0) -> 0.1071 | W193: =IF(W$23<>"",VLOOKUP(W$23,Table_Deprec,$C194),0) -> 0.1071 | X193: =IF(X$23<>"",VLOOKUP(X$23,Table_Deprec,$C194),0) -> 0.1071 | Y193: =IF(Y$23<>"",VLOOKUP(Y$23,Table_Deprec,$C194),0) -> 0.1071 | Z193: =IF(Z$23<>"",VLOOKUP(Z$23,Table_Deprec,$C194),0) -> 0.1071 | AA193: =IF(AA$23<>"",VLOOKUP(AA$23,Table_Deprec,$C194),0) -> 0.1071 | AB193: =IF(AB$23<>"",VLOOKUP(AB$23,Table_Deprec,$C194),0) -> 0.1071 | AC193: =IF(AC$23<>"",VLOOKUP(AC$23,Table_Deprec,$C194),0) -> 0.1071 | AD193: =IF(AD$23<>"",VLOOKUP(AD$23,Table_Deprec,$C194),0) -> 0.1071 | AE193: =IF(AE$23<>"",VLOOKUP(AE$23,Table_Deprec,$C194),0) -> 0.1071 | AF193: =IF(AF$23<>"",VLOOKUP(AF$23,Table_Deprec,$C194),0) -> 0.1071 | AG193: =IF(AG$23<>"",VLOOKUP(AG$23,Table_Deprec,$C194),0) -> 0.1071
C194: =+C193+1 -> 2 | D194: 0.255 | E194: 0.04 | F194: 0.1913 | G194: 0.1913 | H194: 0.04 | I194: 0.1913 | J194: 0.1913 | K194: 0.1913 | L194: 0.1913 | M194: 0.1913 | N194: 0.1913 | O194: 0.1913 | P194: 0.1913 | Q194: 0.1913 | R194: 0.1913 | S194: 0.1913 | T194: 0.1913 | U194: 0.1913 | V194: 0.1913 | W194: 0.1913 | X194: 0.1913 | Y194: 0.1913 | Z194: 0.1913 | AA194: 0.1913 | AB194: 0.1913 | AC194: 0.1913 | AD194: 0.1913 | AE194: 0.1913 | AF194: 0.1913 | AG194: 0.1913
C195: 3 | D195: 0.1785 | E195: 0.04 | F195: 0.1503 | G195: 0.1503 | H195: 0.04 | I195: 0.1503 | J195: 0.1503 | K195: 0.1503 | L195: 0.1503 | M195: 0.1503 | N195: 0.1503 | O195: 0.1503 | P195: 0.1503 | Q195: 0.1503 | R195: 0.1503 | S195: 0.1503 | T195: 0.1503 | U195: 0.1503 | V195: 0.1503 | W195: 0.1503 | X195: 0.1503 | Y195: 0.1503 | Z195: 0.1503 | AA195: 0.1503 | AB195: 0.1503 | AC195: 0.1503 | AD195: 0.1503 | AE195: 0.1503 | AF195: 0.1503 | AG195: 0.1503
C196: 4 | D196: 0.1666 | E196: 0.04 | F196: 0.1225 | G196: 0.1225 | H196: 0.04 | I196: 0.1225 | J196: 0.1225 | K196: 0.1225 | L196: 0.1225 | M196: 0.1225 | N196: 0.1225 | O196: 0.1225 | P196: 0.1225 | Q196: 0.1225 | R196: 0.1225 | S196: 0.1225 | T196: 0.1225 | U196: 0.1225 | V196: 0.1225 | W196: 0.1225 | X196: 0.1225 | Y196: 0.1225 | Z196: 0.1225 | AA196: 0.1225 | AB196: 0.1225 | AC196: 0.1225 | AD196: 0.1225 | AE196: 0.1225 | AF196: 0.1225 | AG196: 0.1225
C197: 5 | D197: 0.1666 | E197: 0.04 | F197: 0.1225 | G197: 0.1225 | H197: 0.04 | I197: 0.1225 | J197: 0.1225 | K197: 0.1225 | L197: 0.1225 | M197: 0.1225 | N197: 0.1225 | O197: 0.1225 | P197: 0.1225 | Q197: 0.1225 | R197: 0.1225 | S197: 0.1225 | T197: 0.1225 | U197: 0.1225 | V197: 0.1225 | W197: 0.1225 | X197: 0.1225 | Y197: 0.1225 | Z197: 0.1225 | AA197: 0.1225 | AB197: 0.1225 | AC197: 0.1225 | AD197: 0.1225 | AE197: 0.1225 | AF197: 0.1225 | AG197: 0.1225
C198: 6 | D198: 0.0833 | E198: 0.04 | F198: 0.1225 | G198: 0.1225 | H198: 0.04 | I198: 0.1225 | J198: 0.1225 | K198: 0.1225 | L198: 0.1225 | M198: 0.1225 | N198: 0.1225 | O198: 0.1225 | P198: 0.1225 | Q198: 0.1225 | R198: 0.1225 | S198: 0.1225 | T198: 0.1225 | U198: 0.1225 | V198: 0.1225 | W198: 0.1225 | X198: 0.1225 | Y198: 0.1225 | Z198: 0.1225 | AA198: 0.1225 | AB198: 0.1225 | AC198: 0.1225 | AD198: 0.1225 | AE198: 0.1225 | AF198: 0.1225 | AG198: 0.1225
C199: 7 | D199: 0 | E199: 0.04 | F199: 0.1225 | G199: 0.1225 | H199: 0.04 | I199: 0.1225 | J199: 0.1225 | K199: 0.1225 | L199: 0.1225 | M199: 0.1225 | N199: 0.1225 | O199: 0.1225 | P199: 0.1225 | Q199: 0.1225 | R199: 0.1225 | S199: 0.1225 | T199: 0.1225 | U199: 0.1225 | V199: 0.1225 | W199: 0.1225 | X199: 0.1225 | Y199: 0.1225 | Z199: 0.1225 | AA199: 0.1225 | AB199: 0.1225 | AC199: 0.1225 | AD199: 0.1225 | AE199: 0.1225 | AF199: 0.1225 | AG199: 0.1225
C200: 8 | D200: 0 | E200: 0.04 | F200: 0.0613 | G200: 0.0613 | H200: 0.04 | I200: 0.0613 | J200: 0.0613 | K200: 0.0613 | L200: 0.0613 | M200: 0.0613 | N200: 0.0613 | O200: 0.0613 | P200: 0.0613 | Q200: 0.0613 | R200: 0.0613 | S200: 0.0613 | T200: 0.0613 | U200: 0.0613 | V200: 0.0613 | W200: 0.0613 | X200: 0.0613 | Y200: 0.0613 | Z200: 0.0613 | AA200: 0.0613 | AB200: 0.0613 | AC200: 0.0613 | AD200: 0.0613 | AE200: 0.0613 | AF200: 0.0613 | AG200: 0.0613
C201: 9 | D201: 0 | E201: 0.04 | F201: 0 | G201: 0 | H201: 0.04 | I201: 0 | J201: 0 | K201: 0 | L201: 0 | M201: 0 | N201: 0 | O201: 0 | P201: 0 | Q201: 0 | R201: 0 | S201: 0 | T201: 0 | U201: 0 | V201: 0 | W201: 0 | X201: 0 | Y201: 0 | Z201: 0 | AA201: 0 | AB201: 0 | AC201: 0 | AD201: 0 | AE201: 0 | AF201: 0 | AG201: 0
C202: 10 | D202: 0 | E202: 0.04 | F202: 0 | G202: 0 | H202: 0.04 | I202: 0 | J202: 0 | K202: 0 | L202: 0 | M202: 0 | N202: 0 | O202: 0 | P202: 0 | Q202: 0 | R202: 0 | S202: 0 | T202: 0 | U202: 0 | V202: 0 | W202: 0 | X202: 0 | Y202: 0 | Z202: 0 | AA202: 0 | AB202: 0 | AC202: 0 | AD202: 0 | AE202: 0 | AF202: 0 | AG202: 0
C203: 11 | D203: 0 | E203: 0.04 | F203: 0 | G203: 0 | H203: 0.04 | I203: 0 | J203: 0 | K203: 0 | L203: 0 | M203: 0 | N203: 0 | O203: 0 | P203: 0 | Q203: 0 | R203: 0 | S203: 0 | T203: 0 | U203: 0 | V203: 0 | W203: 0 | X203: 0 | Y203: 0 | Z203: 0 | AA203: 0 | AB203: 0 | AC203: 0 | AD203: 0 | AE203: 0 | AF203: 0 | AG203: 0
C204: 12 | D204: 0 | E204: 0.04 | F204: 0 | G204: 0 | H204: 0.04 | I204: 0 | J204: 0 | K204: 0 | L204: 0 | M204: 0 | N204: 0 | O204: 0 | P204: 0 | Q204: 0 | R204: 0 | S204: 0 | T204: 0 | U204: 0 | V204: 0 | W204: 0 | X204: 0 | Y204: 0 | Z204: 0 | AA204: 0 | AB204: 0 | AC204: 0 | AD204: 0 | AE204: 0 | AF204: 0 | AG204: 0
C205: 13 | D205: 0 | E205: 0.04 | F205: 0 | G205: 0 | H205: 0.04 | I205: 0 | J205: 0 | K205: 0 | L205: 0 | M205: 0 | N205: 0 | O205: 0 | P205: 0 | Q205: 0 | R205: 0 | S205: 0 | T205: 0 | U205: 0 | V205: 0 | W205: 0 | X205: 0 | Y205: 0 | Z205: 0 | AA205: 0 | AB205: 0 | AC205: 0 | AD205: 0 | AE205: 0 | AF205: 0 | AG205: 0
C206: 14 | D206: 0 | E206: 0.04 | F206: 0 | G206: 0 | H206: 0.04 | I206: 0 | J206: 0 | K206: 0 | L206: 0 | M206: 0 | N206: 0 | O206: 0 | P206: 0 | Q206: 0 | R206: 0 | S206: 0 | T206: 0 | U206: 0 | V206: 0 | W206: 0 | X206: 0 | Y206: 0 | Z206: 0 | AA206: 0 | AB206: 0 | AC206: 0 | AD206: 0 | AE206: 0 | AF206: 0 | AG206: 0
C207: 15 | D207: 0 | E207: 0.04 | F207: 0 | G207: 0 | H207: 0.04 | I207: 0 | J207: 0 | K207: 0 | L207: 0 | M207: 0 | N207: 0 | O207: 0 | P207: 0 | Q207: 0 | R207: 0 | S207: 0 | T207: 0 | U207: 0 | V207: 0 | W207: 0 | X207: 0 | Y207: 0 | Z207: 0 | AA207: 0 | AB207: 0 | AC207: 0 | AD207: 0 | AE207: 0 | AF207: 0 | AG207: 0
C208: 16 | D208: 0 | E208: 0.04 | F208: 0 | G208: 0 | H208: 0.04 | I208: 0 | J208: 0 | K208: 0 | L208: 0 | M208: 0 | N208: 0 | O208: 0 | P208: 0 | Q208: 0 | R208: 0 | S208: 0 | T208: 0 | U208: 0 | V208: 0 | W208: 0 | X208: 0 | Y208: 0 | Z208: 0 | AA208: 0 | AB208: 0 | AC208: 0 | AD208: 0 | AE208: 0 | AF208: 0 | AG208: 0
C209: 17 | D209: 0 | E209: 0.04 | F209: 0 | G209: 0 | H209: 0.04 | I209: 0 | J209: 0 | K209: 0 | L209: 0 | M209: 0 | N209: 0 | O209: 0 | P209: 0 | Q209: 0 | R209: 0 | S209: 0 | T209: 0 | U209: 0 | V209: 0 | W209: 0 | X209: 0 | Y209: 0 | Z209: 0 | AA209: 0 | AB209: 0 | AC209: 0 | AD209: 0 | AE209: 0 | AF209: 0 | AG209: 0
C210: 18 | D210: 0 | E210: 0.04 | F210: 0 | G210: 0 | H210: 0.04 | I210: 0 | J210: 0 | K210: 0 | L210: 0 | M210: 0 | N210: 0 | O210: 0 | P210: 0 | Q210: 0 | R210: 0 | S210: 0 | T210: 0 | U210: 0 | V210: 0 | W210: 0 | X210: 0 | Y210: 0 | Z210: 0 | AA210: 0 | AB210: 0 | AC210: 0 | AD210: 0 | AE210: 0 | AF210: 0 | AG210: 0
C211: 19 | D211: 0 | E211: 0.04 | F211: 0 | G211: 0 | H211: 0.04 | I211: 0 | J211: 0 | K211: 0 | L211: 0 | M211: 0 | N211: 0 | O211: 0 | P211: 0 | Q211: 0 | R211: 0 | S211: 0 | T211: 0 | U211: 0 | V211: 0 | W211: 0 | X211: 0 | Y211: 0 | Z211: 0 | AA211: 0 | AB211: 0 | AC211: 0 | AD211: 0 | AE211: 0 | AF211: 0 | AG211: 0
C212: 20 | D212: 0 | E212: 0.04 | F212: 0 | G212: 0 | H212: 0.04 | I212: 0 | J212: 0 | K212: 0 | L212: 0 | M212: 0 | N212: 0 | O212: 0 | P212: 0 | Q212: 0 | R212: 0 | S212: 0 | T212: 0 | U212: 0 | V212: 0 | W212: 0 | X212: 0 | Y212: 0 | Z212: 0 | AA212: 0 | AB212: 0 | AC212: 0 | AD212: 0 | AE212: 0 | AF212: 0 | AG212: 0
C213: 21 | D213: 0 | E213: 0.04 | F213: 0 | G213: 0 | H213: 0.04 | I213: 0 | J213: 0 | K213: 0 | L213: 0 | M213: 0 | N213: 0 | O213: 0 | P213: 0 | Q213: 0 | R213: 0 | S213: 0 | T213: 0 | U213: 0 | V213: 0 | W213: 0 | X213: 0 | Y213: 0 | Z213: 0 | AA213: 0 | AB213: 0 | AC213: 0 | AD213: 0 | AE213: 0 | AF213: 0 | AG213: 0
C214: 22 | D214: 0 | E214: 0.04 | F214: 0 | G214: 0 | H214: 0.04 | I214: 0 | J214: 0 | K214: 0 | L214: 0 | M214: 0 | N214: 0 | O214: 0 | P214: 0 | Q214: 0 | R214: 0 | S214: 0 | T214: 0 | U214: 0 | V214: 0 | W214: 0 | X214: 0 | Y214: 0 | Z214: 0 | AA214: 0 | AB214: 0 | AC214: 0 | AD214: 0 | AE214: 0 | AF214: 0 | AG214: 0
C215: 23 | D215: 0 | E215: 0.04 | F215: 0 | G215: 0 | H215: 0.04 | I215: 0 | J215: 0 | K215: 0 | L215: 0 | M215: 0 | N215: 0 | O215: 0 | P215: 0 | Q215: 0 | R215: 0 | S215: 0 | T215: 0 | U215: 0 | V215: 0 | W215: 0 | X215: 0 | Y215: 0 | Z215: 0 | AA215: 0 | AB215: 0 | AC215: 0 | AD215: 0 | AE215: 0 | AF215: 0 | AG215: 0
C216: 24 | D216: 0 | E216: 0.04 | F216: 0 | G216: 0 | H216: 0.04 | I216: 0 | J216: 0 | K216: 0 | L216: 0 | M216: 0 | N216: 0 | O216: 0 | P216: 0 | Q216: 0 | R216: 0 | S216: 0 | T216: 0 | U216: 0 | V216: 0 | W216: 0 | X216: 0 | Y216: 0 | Z216: 0 | AA216: 0 | AB216: 0 | AC216: 0 | AD216: 0 | AE216: 0 | AF216: 0 | AG216: 0
C217: 25 | D217: 0 | E217: 0.04 | F217: 0 | G217: 0 | H217: 0.04 | I217: 0 | J217: 0 | K217: 0 | L217: 0 | M217: 0 | N217: 0 | O217: 0 | P217: 0 | Q217: 0 | R217: 0 | S217: 0 | T217: 0 | U217: 0 | V217: 0 | W217: 0 | X217: 0 | Y217: 0 | Z217: 0 | AA217: 0 | AB217: 0 | AC217: 0 | AD217: 0 | AE217: 0 | AF217: 0 | AG217: 0
C218: 26 | D218: 0 | E218: 0.005 | F218: 0 | G218: 0 | H218: 0.005 | I218: 0 | J218: 0 | K218: 0 | L218: 0 | M218: 0 | N218: 0 | O218: 0 | P218: 0 | Q218: 0 | R218: 0 | S218: 0 | T218: 0 | U218: 0 | V218: 0 | W218: 0 | X218: 0 | Y218: 0 | Z218: 0 | AA218: 0 | AB218: 0 | AC218: 0 | AD218: 0 | AE218: 0 | AF218: 0 | AG218: 0
C219: 27 | D219: 0 | E219: 0 | F219: 0 | G219: 0 | H219: 0 | I219: 0 | J219: 0 | K219: 0 | L219: 0 | M219: 0 | N219: 0 | O219: 0 | P219: 0 | Q219: 0 | R219: 0 | S219: 0 | T219: 0 | U219: 0 | V219: 0 | W219: 0 | X219: 0 | Y219: 0 | Z219: 0 | AA219: 0 | AB219: 0 | AC219: 0 | AD219: 0 | AE219: 0 | AF219: 0 | AG219: 0
C220: 28 | D220: 0 | E220: 0 | F220: 0 | G220: 0 | H220: 0 | I220: 0 | J220: 0 | K220: 0 | L220: 0 | M220: 0 | N220: 0 | O220: 0 | P220: 0 | Q220: 0 | R220: 0 | S220: 0 | T220: 0 | U220: 0 | V220: 0 | W220: 0 | X220: 0 | Y220: 0 | Z220: 0 | AA220: 0 | AB220: 0 | AC220: 0 | AD220: 0 | AE220: 0 | AF220: 0 | AG220: 0
C221: 29 | D221: 0 | E221: 0 | F221: 0 | G221: 0 | H221: 0 | I221: 0 | J221: 0 | K221: 0 | L221: 0 | M221: 0 | N221: 0 | O221: 0 | P221: 0 | Q221: 0 | R221: 0 | S221: 0 | T221: 0 | U221: 0 | V221: 0 | W221: 0 | X221: 0 | Y221: 0 | Z221: 0 | AA221: 0 | AB221: 0 | AC221: 0 | AD221: 0 | AE221: 0 | AF221: 0 | AG221: 0
C222: 30 | D222: 0 | E222: 0 | F222: 0 | G222: 0 | H222: 0 | I222: 0 | J222: 0 | K222: 0 | L222: 0 | M222: 0 | N222: 0 | O222: 0 | P222: 0 | Q222: 0 | R222: 0 | S222: 0 | T222: 0 | U222: 0 | V222: 0 | W222: 0 | X222: 0 | Y222: 0 | Z222: 0 | AA222: 0 | AB222: 0 | AC222: 0 | AD222: 0 | AE222: 0 | AF222: 0 | AG222: 0
C223: 31
C224: Class II -- depreciation factors
C225: 1 | D225: =IF(D$29<>"",VLOOKUP(D$29,Table_Deprec,$C226),0) -> 1 | E225: =IF(E$29<>"",VLOOKUP(E$29,Table_Deprec,$C226),0) -> 0.1 | F225: =IF(F$29<>"",VLOOKUP(F$29,Table_Deprec,$C226),0) -> 0.0375 | G225: =IF(G$29<>"",VLOOKUP(G$29,Table_Deprec,$C226),0) -> 0.0375 | H225: =IF(H$29<>"",VLOOKUP(H$29,Table_Deprec,$C226),0) -> 0.0375 | I225: =IF(I$29<>"",VLOOKUP(I$29,Table_Deprec,$C226),0) -> 0.0375 | J225: =IF(J$29<>"",VLOOKUP(J$29,Table_Deprec,$C226),0) -> 0.0375 | K225: =IF(K$29<>"",VLOOKUP(K$29,Table_Deprec,$C226),0) -> 0.0375 | L225: =IF(L$29<>"",VLOOKUP(L$29,Table_Deprec,$C226),0) -> 0.0375 | M225: =IF(M$29<>"",VLOOKUP(M$29,Table_Deprec,$C226),0) -> 0.0375 | N225: =IF(N$29<>"",VLOOKUP(N$29,Table_Deprec,$C226),0) -> 0.0375 | O225: =IF(O$29<>"",VLOOKUP(O$29,Table_Deprec,$C226),0) -> 0.0375 | P225: =IF(P$29<>"",VLOOKUP(P$29,Table_Deprec,$C226),0) -> 0.0375 | Q225: =IF(Q$29<>"",VLOOKUP(Q$29,Table_Deprec,$C226),0) -> 0.0375 | R225: =IF(R$29<>"",VLOOKUP(R$29,Table_Deprec,$C226),0) -> 0.0375 | S225: =IF(S$29<>"",VLOOKUP(S$29,Table_Deprec,$C226),0) -> 0.0375 | T225: =IF(T$29<>"",VLOOKUP(T$29,Table_Deprec,$C226),0) -> 0.0375 | U225: =IF(U$29<>"",VLOOKUP(U$29,Table_Deprec,$C226),0) -> 0.0375 | V225: =IF(V$29<>"",VLOOKUP(V$29,Table_Deprec,$C226),0) -> 0.0375 | W225: =IF(W$29<>"",VLOOKUP(W$29,Table_Deprec,$C226),0) -> 0.0375 | X225: =IF(X$29<>"",VLOOKUP(X$29,Table_Deprec,$C226),0) -> 0.0375 | Y225: =IF(Y$29<>"",VLOOKUP(Y$29,Table_Deprec,$C226),0) -> 0.0375 | Z225: =IF(Z$29<>"",VLOOKUP(Z$29,Table_Deprec,$C226),0) -> 0.0375 | AA225: =IF(AA$29<>"",VLOOKUP(AA$29,Table_Deprec,$C226),0) -> 0.0375 | AB225: =IF(AB$29<>"",VLOOKUP(AB$29,Table_Deprec,$C226),0) -> 0.0375 | AC225: =IF(AC$29<>"",VLOOKUP(AC$29,Table_Deprec,$C226),0) -> 0.0375 | AD225: =IF(AD$29<>"",VLOOKUP(AD$29,Table_Deprec,$C226),0) -> 0.0375 | AE225: =IF(AE$29<>"",VLOOKUP(AE$29,Table_Deprec,$C226),0) -> 0.0375 | AF225: =IF(AF$29<>"",VLOOKUP(AF$29,Table_Deprec,$C226),0) -> 0.0375 | AG225: =IF(AG$29<>"",VLOOKUP(AG$29,Table_Deprec,$C226),0) -> 0.0375
C226: =+C225+1 -> 2 | D226: 0 | E226: 0.18 | F226: 0.07219 | G226: 0.07219 | H226: 0.07219 | I226: 0.07219 | J226: 0.07219 | K226: 0.07219 | L226: 0.07219 | M226: 0.07219 | N226: 0.07219 | O226: 0.07219 | P226: 0.07219 | Q226: 0.07219 | R226: 0.07219 | S226: 0.07219 | T226: 0.07219 | U226: 0.07219 | V226: 0.07219 | W226: 0.07219 | X226: 0.07219 | Y226: 0.07219 | Z226: 0.07219 | AA226: 0.07219 | AB226: 0.07219 | AC226: 0.07219 | AD226: 0.07219 | AE226: 0.07219 | AF226: 0.07219 | AG226: 0.07219
C227: 3 | D227: 0 | E227: 0.144 | F227: 0.06677 | G227: 0.06677 | H227: 0.06677 | I227: 0.06677 | J227: 0.06677 | K227: 0.06677 | L227: 0.06677 | M227: 0.06677 | N227: 0.06677 | O227: 0.06677 | P227: 0.06677 | Q227: 0.06677 | R227: 0.06677 | S227: 0.06677 | T227: 0.06677 | U227: 0.06677 | V227: 0.06677 | W227: 0.06677 | X227: 0.06677 | Y227: 0.06677 | Z227: 0.06677 | AA227: 0.06677 | AB227: 0.06677 | AC227: 0.06677 | AD227: 0.06677 | AE227: 0.06677 | AF227: 0.06677 | AG227: 0.06677
C228: 4 | D228: 0 | E228: 0.1152 | F228: 0.06177 | G228: 0.06177 | H228: 0.06177 | I228: 0.06177 | J228: 0.06177 | K228: 0.06177 | L228: 0.06177 | M228: 0.06177 | N228: 0.06177 | O228: 0.06177 | P228: 0.06177 | Q228: 0.06177 | R228: 0.06177 | S228: 0.06177 | T228: 0.06177 | U228: 0.06177 | V228: 0.06177 | W228: 0.06177 | X228: 0.06177 | Y228: 0.06177 | Z228: 0.06177 | AA228: 0.06177 | AB228: 0.06177 | AC228: 0.06177 | AD228: 0.06177 | AE228: 0.06177 | AF228: 0.06177 | AG228: 0.06177
C229: 5 | D229: 0 | E229: 0.0922 | F229: 0.05713 | G229: 0.05713 | H229: 0.05713 | I229: 0.05713 | J229: 0.05713 | K229: 0.05713 | L229: 0.05713 | M229: 0.05713 | N229: 0.05713 | O229: 0.05713 | P229: 0.05713 | Q229: 0.05713 | R229: 0.05713 | S229: 0.05713 | T229: 0.05713 | U229: 0.05713 | V229: 0.05713 | W229: 0.05713 | X229: 0.05713 | Y229: 0.05713 | Z229: 0.05713 | AA229: 0.05713 | AB229: 0.05713 | AC229: 0.05713 | AD229: 0.05713 | AE229: 0.05713 | AF229: 0.05713 | AG229: 0.05713
C230: 6 | D230: 0 | E230: 0.0737 | F230: 0.05285 | G230: 0.05285 | H230: 0.05285 | I230: 0.05285 | J230: 0.05285 | K230: 0.05285 | L230: 0.05285 | M230: 0.05285 | N230: 0.05285 | O230: 0.05285 | P230: 0.05285 | Q230: 0.05285 | R230: 0.05285 | S230: 0.05285 | T230: 0.05285 | U230: 0.05285 | V230: 0.05285 | W230: 0.05285 | X230: 0.05285 | Y230: 0.05285 | Z230: 0.05285 | AA230: 0.05285 | AB230: 0.05285 | AC230: 0.05285 | AD230: 0.05285 | AE230: 0.05285 | AF230: 0.05285 | AG230: 0.05285
C231: 7 | D231: 0 | E231: 0.0655 | F231: 0.04888 | G231: 0.04888 | H231: 0.04888 | I231: 0.04888 | J231: 0.04888 | K231: 0.04888 | L231: 0.04888 | M231: 0.04888 | N231: 0.04888 | O231: 0.04888 | P231: 0.04888 | Q231: 0.04888 | R231: 0.04888 | S231: 0.04888 | T231: 0.04888 | U231: 0.04888 | V231: 0.04888 | W231: 0.04888 | X231: 0.04888 | Y231: 0.04888 | Z231: 0.04888 | AA231: 0.04888 | AB231: 0.04888 | AC231: 0.04888 | AD231: 0.04888 | AE231: 0.04888 | AF231: 0.04888 | AG231: 0.04888
C232: 8 | D232: 0 | E232: 0.0655 | F232: 0.04522 | G232: 0.04522 | H232: 0.04522 | I232: 0.04522 | J232: 0.04522 | K232: 0.04522 | L232: 0.04522 | M232: 0.04522 | N232: 0.04522 | O232: 0.04522 | P232: 0.04522 | Q232: 0.04522 | R232: 0.04522 | S232: 0.04522 | T232: 0.04522 | U232: 0.04522 | V232: 0.04522 | W232: 0.04522 | X232: 0.04522 | Y232: 0.04522 | Z232: 0.04522 | AA232: 0.04522 | AB232: 0.04522 | AC232: 0.04522 | AD232: 0.04522 | AE232: 0.04522 | AF232: 0.04522 | AG232: 0.04522
C233: 9 | D233: 0 | E233: 0.0656 | F233: 0.04462 | G233: 0.04462 | H233: 0.04462 | I233: 0.04462 | J233: 0.04462 | K233: 0.04462 | L233: 0.04462 | M233: 0.04462 | N233: 0.04462 | O233: 0.04462 | P233: 0.04462 | Q233: 0.04462 | R233: 0.04462 | S233: 0.04462 | T233: 0.04462 | U233: 0.04462 | V233: 0.04462 | W233: 0.04462 | X233: 0.04462 | Y233: 0.04462 | Z233: 0.04462 | AA233: 0.04462 | AB233: 0.04462 | AC233: 0.04462 | AD233: 0.04462 | AE233: 0.04462 | AF233: 0.04462 | AG233: 0.04462
C234: 10 | D234: 0 | E234: 0.0655 | F234: 0.04461 | G234: 0.04461 | H234: 0.04461 | I234: 0.04461 | J234: 0.04461 | K234: 0.04461 | L234: 0.04461 | M234: 0.04461 | N234: 0.04461 | O234: 0.04461 | P234: 0.04461 | Q234: 0.04461 | R234: 0.04461 | S234: 0.04461 | T234: 0.04461 | U234: 0.04461 | V234: 0.04461 | W234: 0.04461 | X234: 0.04461 | Y234: 0.04461 | Z234: 0.04461 | AA234: 0.04461 | AB234: 0.04461 | AC234: 0.04461 | AD234: 0.04461 | AE234: 0.04461 | AF234: 0.04461 | AG234: 0.04461
C235: 11 | D235: 0 | E235: 0.0328 | F235: 0.04462 | G235: 0.04462 | H235: 0.04462 | I235: 0.04462 | J235: 0.04462 | K235: 0.04462 | L235: 0.04462 | M235: 0.04462 | N235: 0.04462 | O235: 0.04462 | P235: 0.04462 | Q235: 0.04462 | R235: 0.04462 | S235: 0.04462 | T235: 0.04462 | U235: 0.04462 | V235: 0.04462 | W235: 0.04462 | X235: 0.04462 | Y235: 0.04462 | Z235: 0.04462 | AA235: 0.04462 | AB235: 0.04462 | AC235: 0.04462 | AD235: 0.04462 | AE235: 0.04462 | AF235: 0.04462 | AG235: 0.04462
C236: 12 | D236: 0 | E236: 0 | F236: 0.04461 | G236: 0.04461 | H236: 0.04461 | I236: 0.04461 | J236: 0.04461 | K236: 0.04461 | L236: 0.04461 | M236: 0.04461 | N236: 0.04461 | O236: 0.04461 | P236: 0.04461 | Q236: 0.04461 | R236: 0.04461 | S236: 0.04461 | T236: 0.04461 | U236: 0.04461 | V236: 0.04461 | W236: 0.04461 | X236: 0.04461 | Y236: 0.04461 | Z236: 0.04461 | AA236: 0.04461 | AB236: 0.04461 | AC236: 0.04461 | AD236: 0.04461 | AE236: 0.04461 | AF236: 0.04461 | AG236: 0.04461
C237: 13 | D237: 0 | E237: 0 | F237: 0.04462 | G237: 0.04462 | H237: 0.04462 | I237: 0.04462 | J237: 0.04462 | K237: 0.04462 | L237: 0.04462 | M237: 0.04462 | N237: 0.04462 | O237: 0.04462 | P237: 0.04462 | Q237: 0.04462 | R237: 0.04462 | S237: 0.04462 | T237: 0.04462 | U237: 0.04462 | V237: 0.04462 | W237: 0.04462 | X237: 0.04462 | Y237: 0.04462 | Z237: 0.04462 | AA237: 0.04462 | AB237: 0.04462 | AC237: 0.04462 | AD237: 0.04462 | AE237: 0.04462 | AF237: 0.04462 | AG237: 0.04462
C238: 14 | D238: 0 | E238: 0 | F238: 0.04461 | G238: 0.04461 | H238: 0.04461 | I238: 0.04461 | J238: 0.04461 | K238: 0.04461 | L238: 0.04461 | M238: 0.04461 | N238: 0.04461 | O238: 0.04461 | P238: 0.04461 | Q238: 0.04461 | R238: 0.04461 | S238: 0.04461 | T238: 0.04461 | U238: 0.04461 | V238: 0.04461 | W238: 0.04461 | X238: 0.04461 | Y238: 0.04461 | Z238: 0.04461 | AA238: 0.04461 | AB238: 0.04461 | AC238: 0.04461 | AD238: 0.04461 | AE238: 0.04461 | AF238: 0.04461 | AG238: 0.04461
C239: 15 | D239: 0 | E239: 0 | F239: 0.04462 | G239: 0.04462 | H239: 0.04462 | I239: 0.04462 | J239: 0.04462 | K239: 0.04462 | L239: 0.04462 | M239: 0.04462 | N239: 0.04462 | O239: 0.04462 | P239: 0.04462 | Q239: 0.04462 | R239: 0.04462 | S239: 0.04462 | T239: 0.04462 | U239: 0.04462 | V239: 0.04462 | W239: 0.04462 | X239: 0.04462 | Y239: 0.04462 | Z239: 0.04462 | AA239: 0.04462 | AB239: 0.04462 | AC239: 0.04462 | AD239: 0.04462 | AE239: 0.04462 | AF239: 0.04462 | AG239: 0.04462
C240: 16 | D240: 0 | E240: 0 | F240: 0.04461 | G240: 0.04461 | H240: 0.04461 | I240: 0.04461 | J240: 0.04461 | K240: 0.04461 | L240: 0.04461 | M240: 0.04461 | N240: 0.04461 | O240: 0.04461 | P240: 0.04461 | Q240: 0.04461 | R240: 0.04461 | S240: 0.04461 | T240: 0.04461 | U240: 0.04461 | V240: 0.04461 | W240: 0.04461 | X240: 0.04461 | Y240: 0.04461 | Z240: 0.04461 | AA240: 0.04461 | AB240: 0.04461 | AC240: 0.04461 | AD240: 0.04461 | AE240: 0.04461 | AF240: 0.04461 | AG240: 0.04461
C241: 17 | D241: 0 | E241: 0 | F241: 0.04462 | G241: 0.04462 | H241: 0.04462 | I241: 0.04462 | J241: 0.04462 | K241: 0.04462 | L241: 0.04462 | M241: 0.04462 | N241: 0.04462 | O241: 0.04462 | P241: 0.04462 | Q241: 0.04462 | R241: 0.04462 | S241: 0.04462 | T241: 0.04462 | U241: 0.04462 | V241: 0.04462 | W241: 0.04462 | X241: 0.04462 | Y241: 0.04462 | Z241: 0.04462 | AA241: 0.04462 | AB241: 0.04462 | AC241: 0.04462 | AD241: 0.04462 | AE241: 0.04462 | AF241: 0.04462 | AG241: 0.04462
C242: 18 | D242: 0 | E242: 0 | F242: 0.04461 | G242: 0.04461 | H242: 0.04461 | I242: 0.04461 | J242: 0.04461 | K242: 0.04461 | L242: 0.04461 | M242: 0.04461 | N242: 0.04461 | O242: 0.04461 | P242: 0.04461 | Q242: 0.04461 | R242: 0.04461 | S242: 0.04461 | T242: 0.04461 | U242: 0.04461 | V242: 0.04461 | W242: 0.04461 | X242: 0.04461 | Y242: 0.04461 | Z242: 0.04461 | AA242: 0.04461 | AB242: 0.04461 | AC242: 0.04461 | AD242: 0.04461 | AE242: 0.04461 | AF242: 0.04461 | AG242: 0.04461
C243: 19 | D243: 0 | E243: 0 | F243: 0.04462 | G243: 0.04462 | H243: 0.04462 | I243: 0.04462 | J243: 0.04462 | K243: 0.04462 | L243: 0.04462 | M243: 0.04462 | N243: 0.04462 | O243: 0.04462 | P243: 0.04462 | Q243: 0.04462 | R243: 0.04462 | S243: 0.04462 | T243: 0.04462 | U243: 0.04462 | V243: 0.04462 | W243: 0.04462 | X243: 0.04462 | Y243: 0.04462 | Z243: 0.04462 | AA243: 0.04462 | AB243: 0.04462 | AC243: 0.04462 | AD243: 0.04462 | AE243: 0.04462 | AF243: 0.04462 | AG243: 0.04462
C244: 20 | D244: 0 | E244: 0 | F244: 0.04461 | G244: 0.04461 | H244: 0.04461 | I244: 0.04461 | J244: 0.04461 | K244: 0.04461 | L244: 0.04461 | M244: 0.04461 | N244: 0.04461 | O244: 0.04461 | P244: 0.04461 | Q244: 0.04461 | R244: 0.04461 | S244: 0.04461 | T244: 0.04461 | U244: 0.04461 | V244: 0.04461 | W244: 0.04461 | X244: 0.04461 | Y244: 0.04461 | Z244: 0.04461 | AA244: 0.04461 | AB244: 0.04461 | AC244: 0.04461 | AD244: 0.04461 | AE244: 0.04461 | AF244: 0.04461 | AG244: 0.04461
C245: 21 | D245: 0 | E245: 0 | F245: 0.02231 | G245: 0.02231 | H245: 0.02231 | I245: 0.02231 | J245: 0.02231 | K245: 0.02231 | L245: 0.02231 | M245: 0.02231 | N245: 0.02231 | O245: 0.02231 | P245: 0.02231 | Q245: 0.02231 | R245: 0.02231 | S245: 0.02231 | T245: 0.02231 | U245: 0.02231 | V245: 0.02231 | W245: 0.02231 | X245: 0.02231 | Y245: 0.02231 | Z245: 0.02231 | AA245: 0.02231 | AB245: 0.02231 | AC245: 0.02231 | AD245: 0.02231 | AE245: 0.02231 | AF245: 0.02231 | AG245: 0.02231
C246: 22 | D246: 0 | E246: 0 | F246: 0 | G246: 0 | H246: 0 | I246: 0 | J246: 0 | K246: 0 | L246: 0 | M246: 0 | N246: 0 | O246: 0 | P246: 0 | Q246: 0 | R246: 0 | S246: 0 | T246: 0 | U246: 0 | V246: 0 | W246: 0 | X246: 0 | Y246: 0 | Z246: 0 | AA246: 0 | AB246: 0 | AC246: 0 | AD246: 0 | AE246: 0 | AF246: 0 | AG246: 0
C247: 23 | D247: 0 | E247: 0 | F247: 0 | G247: 0 | H247: 0 | I247: 0 | J247: 0 | K247: 0 | L247: 0 | M247: 0 | N247: 0 | O247: 0 | P247: 0 | Q247: 0 | R247: 0 | S247: 0 | T247: 0 | U247: 0 | V247: 0 | W247: 0 | X247: 0 | Y247: 0 | Z247: 0 | AA247: 0 | AB247: 0 | AC247: 0 | AD247: 0 | AE247: 0 | AF247: 0 | AG247: 0
C248: 24 | D248: 0 | E248: 0 | F248: 0 | G248: 0 | H248: 0 | I248: 0 | J248: 0 | K248: 0 | L248: 0 | M248: 0 | N248: 0 | O248: 0 | P248: 0 | Q248: 0 | R248: 0 | S248: 0 | T248: 0 | U248: 0 | V248: 0 | W248: 0 | X248: 0 | Y248: 0 | Z248: 0 | AA248: 0 | AB248: 0 | AC248: 0 | AD248: 0 | AE248: 0 | AF248: 0 | AG248: 0
C249: 25 | D249: 0 | E249: 0 | F249: 0 | G249: 0 | H249: 0 | I249: 0 | J249: 0 | K249: 0 | L249: 0 | M249: 0 | N249: 0 | O249: 0 | P249: 0 | Q249: 0 | R249: 0 | S249: 0 | T249: 0 | U249: 0 | V249: 0 | W249: 0 | X249: 0 | Y249: 0 | Z249: 0 | AA249: 0 | AB249: 0 | AC249: 0 | AD249: 0 | AE249: 0 | AF249: 0 | AG249: 0
C250: 26 | D250: 0 | E250: 0 | F250: 0 | G250: 0 | H250: 0 | I250: 0 | J250: 0 | K250: 0 | L250: 0 | M250: 0 | N250: 0 | O250: 0 | P250: 0 | Q250: 0 | R250: 0 | S250: 0 | T250: 0 | U250: 0 | V250: 0 | W250: 0 | X250: 0 | Y250: 0 | Z250: 0 | AA250: 0 | AB250: 0 | AC250: 0 | AD250: 0 | AE250: 0 | AF250: 0 | AG250: 0
C251: 27 | D251: 0 | E251: 0 | F251: 0 | G251: 0 | H251: 0 | I251: 0 | J251: 0 | K251: 0 | L251: 0 | M251: 0 | N251: 0 | O251: 0 | P251: 0 | Q251: 0 | R251: 0 | S251: 0 | T251: 0 | U251: 0 | V251: 0 | W251: 0 | X251: 0 | Y251: 0 | Z251: 0 | AA251: 0 | AB251: 0 | AC251: 0 | AD251: 0 | AE251: 0 | AF251: 0 | AG251: 0
C252: 28 | D252: 0 | E252: 0 | F252: 0 | G252: 0 | H252: 0 | I252: 0 | J252: 0 | K252: 0 | L252: 0 | M252: 0 | N252: 0 | O252: 0 | P252: 0 | Q252: 0 | R252: 0 | S252: 0 | T252: 0 | U252: 0 | V252: 0 | W252: 0 | X252: 0 | Y252: 0 | Z252: 0 | AA252: 0 | AB252: 0 | AC252: 0 | AD252: 0 | AE252: 0 | AF252: 0 | AG252: 0
C253: 29 | D253: 0 | E253: 0 | F253: 0 | G253: 0 | H253: 0 | I253: 0 | J253: 0 | K253: 0 | L253: 0 | M253: 0 | N253: 0 | O253: 0 | P253: 0 | Q253: 0 | R253: 0 | S253: 0 | T253: 0 | U253: 0 | V253: 0 | W253: 0 | X253: 0 | Y253: 0 | Z253: 0 | AA253: 0 | AB253: 0 | AC253: 0 | AD253: 0 | AE253: 0 | AF253: 0 | AG253: 0
C254: 30 | D254: 0 | E254: 0 | F254: 0 | G254: 0 | H254: 0 | I254: 0 | J254: 0 | K254: 0 | L254: 0 | M254: 0 | N254: 0 | O254: 0 | P254: 0 | Q254: 0 | R254: 0 | S254: 0 | T254: 0 | U254: 0 | V254: 0 | W254: 0 | X254: 0 | Y254: 0 | Z254: 0 | AA254: 0 | AB254: 0 | AC254: 0 | AD254: 0 | AE254: 0 | AF254: 0 | AG254: 0
C255: 31
C256: Class III -- depreciation factors
C257: 1 | D257: =IF(D$35<>"",VLOOKUP(D$35,Table_Deprec,$C258),0) -> 0.1 | E257: =IF(E$35<>"",VLOOKUP(E$35,Table_Deprec,$C258),0) -> 0.1 | F257: =IF(F$35<>"",VLOOKUP(F$35,Table_Deprec,$C258),0) -> 0.0375 | G257: =IF(G$35<>"",VLOOKUP(G$35,Table_Deprec,$C258),0) -> 0.0375 | H257: =IF(H$35<>"",VLOOKUP(H$35,Table_Deprec,$C258),0) -> 0.0375 | I257: =IF(I$35<>"",VLOOKUP(I$35,Table_Deprec,$C258),0) -> 0.0375 | J257: =IF(J$35<>"",VLOOKUP(J$35,Table_Deprec,$C258),0) -> 0.0375 | K257: =IF(K$35<>"",VLOOKUP(K$35,Table_Deprec,$C258),0) -> 0.0375 | L257: =IF(L$35<>"",VLOOKUP(L$35,Table_Deprec,$C258),0) -> 0.0375 | M257: =IF(M$35<>"",VLOOKUP(M$35,Table_Deprec,$C258),0) -> 0.0375 | N257: =IF(N$35<>"",VLOOKUP(N$35,Table_Deprec,$C258),0) -> 0.0375 | O257: =IF(O$35<>"",VLOOKUP(O$35,Table_Deprec,$C258),0) -> 0.0375 | P257: =IF(P$35<>"",VLOOKUP(P$35,Table_Deprec,$C258),0) -> 0.0375 | Q257: =IF(Q$35<>"",VLOOKUP(Q$35,Table_Deprec,$C258),0) -> 0.0375 | R257: =IF(R$35<>"",VLOOKUP(R$35,Table_Deprec,$C258),0) -> 0.0375 | S257: =IF(S$35<>"",VLOOKUP(S$35,Table_Deprec,$C258),0) -> 0.0375 | T257: =IF(T$35<>"",VLOOKUP(T$35,Table_Deprec,$C258),0) -> 0.0375 | U257: =IF(U$35<>"",VLOOKUP(U$35,Table_Deprec,$C258),0) -> 0.0375 | V257: =IF(V$35<>"",VLOOKUP(V$35,Table_Deprec,$C258),0) -> 0.0375 | W257: =IF(W$35<>"",VLOOKUP(W$35,Table_Deprec,$C258),0) -> 0.0375 | X257: =IF(X$35<>"",VLOOKUP(X$35,Table_Deprec,$C258),0) -> 0.0375 | Y257: =IF(Y$35<>"",VLOOKUP(Y$35,Table_Deprec,$C258),0) -> 0.0375 | Z257: =IF(Z$35<>"",VLOOKUP(Z$35,Table_Deprec,$C258),0) -> 0.0375 | AA257: =IF(AA$35<>"",VLOOKUP(AA$35,Table_Deprec,$C258),0) -> 0.0375 | AB257: =IF(AB$35<>"",VLOOKUP(AB$35,Table_Deprec,$C258),0) -> 0.0375 | AC257: =IF(AC$35<>"",VLOOKUP(AC$35,Table_Deprec,$C258),0) -> 0.0375 | AD257: =IF(AD$35<>"",VLOOKUP(AD$35,Table_Deprec,$C258),0) -> 0.0375 | AE257: =IF(AE$35<>"",VLOOKUP(AE$35,Table_Deprec,$C258),0) -> 0.0375 | AF257: =IF(AF$35<>"",VLOOKUP(AF$35,Table_Deprec,$C258),0) -> 0.0375 | AG257: =IF(AG$35<>"",VLOOKUP(AG$35,Table_Deprec,$C258),0) -> 0.0375
C258: =+C257+1 -> 2 | D258: 0.18 | E258: 0.18 | F258: 0.07219 | G258: 0.07219 | H258: 0.07219 | I258: 0.07219 | J258: 0.07219 | K258: 0.07219 | L258: 0.07219 | M258: 0.07219 | N258: 0.07219 | O258: 0.07219 | P258: 0.07219 | Q258: 0.07219 | R258: 0.07219 | S258: 0.07219 | T258: 0.07219 | U258: 0.07219 | V258: 0.07219 | W258: 0.07219 | X258: 0.07219 | Y258: 0.07219 | Z258: 0.07219 | AA258: 0.07219 | AB258: 0.07219 | AC258: 0.07219 | AD258: 0.07219 | AE258: 0.07219 | AF258: 0.07219 | AG258: 0.07219
C259: 3 | D259: 0.144 | E259: 0.144 | F259: 0.06677 | G259: 0.06677 | H259: 0.06677 | I259: 0.06677 | J259: 0.06677 | K259: 0.06677 | L259: 0.06677 | M259: 0.06677 | N259: 0.06677 | O259: 0.06677 | P259: 0.06677 | Q259: 0.06677 | R259: 0.06677 | S259: 0.06677 | T259: 0.06677 | U259: 0.06677 | V259: 0.06677 | W259: 0.06677 | X259: 0.06677 | Y259: 0.06677 | Z259: 0.06677 | AA259: 0.06677 | AB259: 0.06677 | AC259: 0.06677 | AD259: 0.06677 | AE259: 0.06677 | AF259: 0.06677 | AG259: 0.06677
C260: 4 | D260: 0.1152 | E260: 0.1152 | F260: 0.06177 | G260: 0.06177 | H260: 0.06177 | I260: 0.06177 | J260: 0.06177 | K260: 0.06177 | L260: 0.06177 | M260: 0.06177 | N260: 0.06177 | O260: 0.06177 | P260: 0.06177 | Q260: 0.06177 | R260: 0.06177 | S260: 0.06177 | T260: 0.06177 | U260: 0.06177 | V260: 0.06177 | W260: 0.06177 | X260: 0.06177 | Y260: 0.06177 | Z260: 0.06177 | AA260: 0.06177 | AB260: 0.06177 | AC260: 0.06177 | AD260: 0.06177 | AE260: 0.06177 | AF260: 0.06177 | AG260: 0.06177
C261: 5 | D261: 0.0922 | E261: 0.0922 | F261: 0.05713 | G261: 0.05713 | H261: 0.05713 | I261: 0.05713 | J261: 0.05713 | K261: 0.05713 | L261: 0.05713 | M261: 0.05713 | N261: 0.05713 | O261: 0.05713 | P261: 0.05713 | Q261: 0.05713 | R261: 0.05713 | S261: 0.05713 | T261: 0.05713 | U261: 0.05713 | V261: 0.05713 | W261: 0.05713 | X261: 0.05713 | Y261: 0.05713 | Z261: 0.05713 | AA261: 0.05713 | AB261: 0.05713 | AC261: 0.05713 | AD261: 0.05713 | AE261: 0.05713 | AF261: 0.05713 | AG261: 0.05713
C262: 6 | D262: 0.0737 | E262: 0.0737 | F262: 0.05285 | G262: 0.05285 | H262: 0.05285 | I262: 0.05285 | J262: 0.05285 | K262: 0.05285 | L262: 0.05285 | M262: 0.05285 | N262: 0.05285 | O262: 0.05285 | P262: 0.05285 | Q262: 0.05285 | R262: 0.05285 | S262: 0.05285 | T262: 0.05285 | U262: 0.05285 | V262: 0.05285 | W262: 0.05285 | X262: 0.05285 | Y262: 0.05285 | Z262: 0.05285 | AA262: 0.05285 | AB262: 0.05285 | AC262: 0.05285 | AD262: 0.05285 | AE262: 0.05285 | AF262: 0.05285 | AG262: 0.05285
C263: 7 | D263: 0.0655 | E263: 0.0655 | F263: 0.04888 | G263: 0.04888 | H263: 0.04888 | I263: 0.04888 | J263: 0.04888 | K263: 0.04888 | L263: 0.04888 | M263: 0.04888 | N263: 0.04888 | O263: 0.04888 | P263: 0.04888 | Q263: 0.04888 | R263: 0.04888 | S263: 0.04888 | T263: 0.04888 | U263: 0.04888 | V263: 0.04888 | W263: 0.04888 | X263: 0.04888 | Y263: 0.04888 | Z263: 0.04888 | AA263: 0.04888 | AB263: 0.04888 | AC263: 0.04888 | AD263: 0.04888 | AE263: 0.04888 | AF263: 0.04888 | AG263: 0.04888
C264: 8 | D264: 0.0655 | E264: 0.0655 | F264: 0.04522 | G264: 0.04522 | H264: 0.04522 | I264: 0.04522 | J264: 0.04522 | K264: 0.04522 | L264: 0.04522 | M264: 0.04522 | N264: 0.04522 | O264: 0.04522 | P264: 0.04522 | Q264: 0.04522 | R264: 0.04522 | S264: 0.04522 | T264: 0.04522 | U264: 0.04522 | V264: 0.04522 | W264: 0.04522 | X264: 0.04522 | Y264: 0.04522 | Z264: 0.04522 | AA264: 0.04522 | AB264: 0.04522 | AC264: 0.04522 | AD264: 0.04522 | AE264: 0.04522 | AF264: 0.04522 | AG264: 0.04522
C265: 9 | D265: 0.0656 | E265: 0.0656 | F265: 0.04462 | G265: 0.04462 | H265: 0.04462 | I265: 0.04462 | J265: 0.04462 | K265: 0.04462 | L265: 0.04462 | M265: 0.04462 | N265: 0.04462 | O265: 0.04462 | P265: 0.04462 | Q265: 0.04462 | R265: 0.04462 | S265: 0.04462 | T265: 0.04462 | U265: 0.04462 | V265: 0.04462 | W265: 0.04462 | X265: 0.04462 | Y265: 0.04462 | Z265: 0.04462 | AA265: 0.04462 | AB265: 0.04462 | AC265: 0.04462 | AD265: 0.04462 | AE265: 0.04462 | AF265: 0.04462 | AG265: 0.04462
C266: 10 | D266: 0.0655 | E266: 0.0655 | F266: 0.04461 | G266: 0.04461 | H266: 0.04461 | I266: 0.04461 | J266: 0.04461 | K266: 0.04461 | L266: 0.04461 | M266: 0.04461 | N266: 0.04461 | O266: 0.04461 | P266: 0.04461 | Q266: 0.04461 | R266: 0.04461 | S266: 0.04461 | T266: 0.04461 | U266: 0.04461 | V266: 0.04461 | W266: 0.04461 | X266: 0.04461 | Y266: 0.04461 | Z266: 0.04461 | AA266: 0.04461 | AB266: 0.04461 | AC266: 0.04461 | AD266: 0.04461 | AE266: 0.04461 | AF266: 0.04461 | AG266: 0.04461
C267: 11 | D267: 0.0328 | E267: 0.0328 | F267: 0.04462 | G267: 0.04462 | H267: 0.04462 | I267: 0.04462 | J267: 0.04462 | K267: 0.04462 | L267: 0.04462 | M267: 0.04462 | N267: 0.04462 | O267: 0.04462 | P267: 0.04462 | Q267: 0.04462 | R267: 0.04462 | S267: 0.04462 | T267: 0.04462 | U267: 0.04462 | V267: 0.04462 | W267: 0.04462 | X267: 0.04462 | Y267: 0.04462 | Z267: 0.04462 | AA267: 0.04462 | AB267: 0.04462 | AC267: 0.04462 | AD267: 0.04462 | AE267: 0.04462 | AF267: 0.04462 | AG267: 0.04462
C268: 12 | D268: 0 | E268: 0 | F268: 0.04461 | G268: 0.04461 | H268: 0.04461 | I268: 0.04461 | J268: 0.04461 | K268: 0.04461 | L268: 0.04461 | M268: 0.04461 | N268: 0.04461 | O268: 0.04461 | P268: 0.04461 | Q268: 0.04461 | R268: 0.04461 | S268: 0.04461 | T268: 0.04461 | U268: 0.04461 | V268: 0.04461 | W268: 0.04461 | X268: 0.04461 | Y268: 0.04461 | Z268: 0.04461 | AA268: 0.04461 | AB268: 0.04461 | AC268: 0.04461 | AD268: 0.04461 | AE268: 0.04461 | AF268: 0.04461 | AG268: 0.04461
C269: 13 | D269: 0 | E269: 0 | F269: 0.04462 | G269: 0.04462 | H269: 0.04462 | I269: 0.04462 | J269: 0.04462 | K269: 0.04462 | L269: 0.04462 | M269: 0.04462 | N269: 0.04462 | O269: 0.04462 | P269: 0.04462 | Q269: 0.04462 | R269: 0.04462 | S269: 0.04462 | T269: 0.04462 | U269: 0.04462 | V269: 0.04462 | W269: 0.04462 | X269: 0.04462 | Y269: 0.04462 | Z269: 0.04462 | AA269: 0.04462 | AB269: 0.04462 | AC269: 0.04462 | AD269: 0.04462 | AE269: 0.04462 | AF269: 0.04462 | AG269: 0.04462
C270: 14 | D270: 0 | E270: 0 | F270: 0.04461 | G270: 0.04461 | H270: 0.04461 | I270: 0.04461 | J270: 0.04461 | K270: 0.04461 | L270: 0.04461 | M270: 0.04461 | N270: 0.04461 | O270: 0.04461 | P270: 0.04461 | Q270: 0.04461 | R270: 0.04461 | S270: 0.04461 | T270: 0.04461 | U270: 0.04461 | V270: 0.04461 | W270: 0.04461 | X270: 0.04461 | Y270: 0.04461 | Z270: 0.04461 | AA270: 0.04461 | AB270: 0.04461 | AC270: 0.04461 | AD270: 0.04461 | AE270: 0.04461 | AF270: 0.04461 | AG270: 0.04461
C271: 15 | D271: 0 | E271: 0 | F271: 0.04462 | G271: 0.04462 | H271: 0.04462 | I271: 0.04462 | J271: 0.04462 | K271: 0.04462 | L271: 0.04462 | M271: 0.04462 | N271: 0.04462 | O271: 0.04462 | P271: 0.04462 | Q271: 0.04462 | R271: 0.04462 | S271: 0.04462 | T271: 0.04462 | U271: 0.04462 | V271: 0.04462 | W271: 0.04462 | X271: 0.04462 | Y271: 0.04462 | Z271: 0.04462 | AA271: 0.04462 | AB271: 0.04462 | AC271: 0.04462 | AD271: 0.04462 | AE271: 0.04462 | AF271: 0.04462 | AG271: 0.04462
C272: 16 | D272: 0 | E272: 0 | F272: 0.04461 | G272: 0.04461 | H272: 0.04461 | I272: 0.04461 | J272: 0.04461 | K272: 0.04461 | L272: 0.04461 | M272: 0.04461 | N272: 0.04461 | O272: 0.04461 | P272: 0.04461 | Q272: 0.04461 | R272: 0.04461 | S272: 0.04461 | T272: 0.04461 | U272: 0.04461 | V272: 0.04461 | W272: 0.04461 | X272: 0.04461 | Y272: 0.04461 | Z272: 0.04461 | AA272: 0.04461 | AB272: 0.04461 | AC272: 0.04461 | AD272: 0.04461 | AE272: 0.04461 | AF272: 0.04461 | AG272: 0.04461
C273: 17 | D273: 0 | E273: 0 | F273: 0.04462 | G273: 0.04462 | H273: 0.04462 | I273: 0.04462 | J273: 0.04462 | K273: 0.04462 | L273: 0.04462 | M273: 0.04462 | N273: 0.04462 | O273: 0.04462 | P273: 0.04462 | Q273: 0.04462 | R273: 0.04462 | S273: 0.04462 | T273: 0.04462 | U273: 0.04462 | V273: 0.04462 | W273: 0.04462 | X273: 0.04462 | Y273: 0.04462 | Z273: 0.04462 | AA273: 0.04462 | AB273: 0.04462 | AC273: 0.04462 | AD273: 0.04462 | AE273: 0.04462 | AF273: 0.04462 | AG273: 0.04462
C274: 18 | D274: 0 | E274: 0 | F274: 0.04461 | G274: 0.04461 | H274: 0.04461 | I274: 0.04461 | J274: 0.04461 | K274: 0.04461 | L274: 0.04461 | M274: 0.04461 | N274: 0.04461 | O274: 0.04461 | P274: 0.04461 | Q274: 0.04461 | R274: 0.04461 | S274: 0.04461 | T274: 0.04461 | U274: 0.04461 | V274: 0.04461 | W274: 0.04461 | X274: 0.04461 | Y274: 0.04461 | Z274: 0.04461 | AA274: 0.04461 | AB274: 0.04461 | AC274: 0.04461 | AD274: 0.04461 | AE274: 0.04461 | AF274: 0.04461 | AG274: 0.04461
C275: 19 | D275: 0 | E275: 0 | F275: 0.04462 | G275: 0.04462 | H275: 0.04462 | I275: 0.04462 | J275: 0.04462 | K275: 0.04462 | L275: 0.04462 | M275: 0.04462 | N275: 0.04462 | O275: 0.04462 | P275: 0.04462 | Q275: 0.04462 | R275: 0.04462 | S275: 0.04462 | T275: 0.04462 | U275: 0.04462 | V275: 0.04462 | W275: 0.04462 | X275: 0.04462 | Y275: 0.04462 | Z275: 0.04462 | AA275: 0.04462 | AB275: 0.04462 | AC275: 0.04462 | AD275: 0.04462 | AE275: 0.04462 | AF275: 0.04462 | AG275: 0.04462
C276: 20 | D276: 0 | E276: 0 | F276: 0.04461 | G276: 0.04461 | H276: 0.04461 | I276: 0.04461 | J276: 0.04461 | K276: 0.04461 | L276: 0.04461 | M276: 0.04461 | N276: 0.04461 | O276: 0.04461 | P276: 0.04461 | Q276: 0.04461 | R276: 0.04461 | S276: 0.04461 | T276: 0.04461 | U276: 0.04461 | V276: 0.04461 | W276: 0.04461 | X276: 0.04461 | Y276: 0.04461 | Z276: 0.04461 | AA276: 0.04461 | AB276: 0.04461 | AC276: 0.04461 | AD276: 0.04461 | AE276: 0.04461 | AF276: 0.04461 | AG276: 0.04461
C277: 21 | D277: 0 | E277: 0 | F277: 0.02231 | G277: 0.02231 | H277: 0.02231 | I277: 0.02231 | J277: 0.02231 | K277: 0.02231 | L277: 0.02231 | M277: 0.02231 | N277: 0.02231 | O277: 0.02231 | P277: 0.02231 | Q277: 0.02231 | R277: 0.02231 | S277: 0.02231 | T277: 0.02231 | U277: 0.02231 | V277: 0.02231 | W277: 0.02231 | X277: 0.02231 | Y277: 0.02231 | Z277: 0.02231 | AA277: 0.02231 | AB277: 0.02231 | AC277: 0.02231 | AD277: 0.02231 | AE277: 0.02231 | AF277: 0.02231 | AG277: 0.02231
C278: 22 | D278: 0 | E278: 0 | F278: 0 | G278: 0 | H278: 0 | I278: 0 | J278: 0 | K278: 0 | L278: 0 | M278: 0 | N278: 0 | O278: 0 | P278: 0 | Q278: 0 | R278: 0 | S278: 0 | T278: 0 | U278: 0 | V278: 0 | W278: 0 | X278: 0 | Y278: 0 | Z278: 0 | AA278: 0 | AB278: 0 | AC278: 0 | AD278: 0 | AE278: 0 | AF278: 0 | AG278: 0
C279: 23 | D279: 0 | E279: 0 | F279: 0 | G279: 0 | H279: 0 | I279: 0 | J279: 0 | K279: 0 | L279: 0 | M279: 0 | N279: 0 | O279: 0 | P279: 0 | Q279: 0 | R279: 0 | S279: 0 | T279: 0 | U279: 0 | V279: 0 | W279: 0 | X279: 0 | Y279: 0 | Z279: 0 | AA279: 0 | AB279: 0 | AC279: 0 | AD279: 0 | AE279: 0 | AF279: 0 | AG279: 0
C280: 24 | D280: 0 | E280: 0 | F280: 0 | G280: 0 | H280: 0 | I280: 0 | J280: 0 | K280: 0 | L280: 0 | M280: 0 | N280: 0 | O280: 0 | P280: 0 | Q280: 0 | R280: 0 | S280: 0 | T280: 0 | U280: 0 | V280: 0 | W280: 0 | X280: 0 | Y280: 0 | Z280: 0 | AA280: 0 | AB280: 0 | AC280: 0 | AD280: 0 | AE280: 0 | AF280: 0 | AG280: 0
C281: 25 | D281: 0 | E281: 0 | F281: 0 | G281: 0 | H281: 0 | I281: 0 | J281: 0 | K281: 0 | L281: 0 | M281: 0 | N281: 0 | O281: 0 | P281: 0 | Q281: 0 | R281: 0 | S281: 0 | T281: 0 | U281: 0 | V281: 0 | W281: 0 | X281: 0 | Y281: 0 | Z281: 0 | AA281: 0 | AB281: 0 | AC281: 0 | AD281: 0 | AE281: 0 | AF281: 0 | AG281: 0
C282: 26 | D282: 0 | E282: 0 | F282: 0 | G282: 0 | H282: 0 | I282: 0 | J282: 0 | K282: 0 | L282: 0 | M282: 0 | N282: 0 | O282: 0 | P282: 0 | Q282: 0 | R282: 0 | S282: 0 | T282: 0 | U282: 0 | V282: 0 | W282: 0 | X282: 0 | Y282: 0 | Z282: 0 | AA282: 0 | AB282: 0 | AC282: 0 | AD282: 0 | AE282: 0 | AF282: 0 | AG282: 0
C283: 27 | D283: 0 | E283: 0 | F283: 0 | G283: 0 | H283: 0 | I283: 0 | J283: 0 | K283: 0 | L283: 0 | M283: 0 | N283: 0 | O283: 0 | P283: 0 | Q283: 0 | R283: 0 | S283: 0 | T283: 0 | U283: 0 | V283: 0 | W283: 0 | X283: 0 | Y283: 0 | Z283: 0 | AA283: 0 | AB283: 0 | AC283: 0 | AD283: 0 | AE283: 0 | AF283: 0 | AG283: 0
C284: 28 | D284: 0 | E284: 0 | F284: 0 | G284: 0 | H284: 0 | I284: 0 | J284: 0 | K284: 0 | L284: 0 | M284: 0 | N284: 0 | O284: 0 | P284: 0 | Q284: 0 | R284: 0 | S284: 0 | T284: 0 | U284: 0 | V284: 0 | W284: 0 | X284: 0 | Y284: 0 | Z284: 0 | AA284: 0 | AB284: 0 | AC284: 0 | AD284: 0 | AE284: 0 | AF284: 0 | AG284: 0
C285: 29 | D285: 0 | E285: 0 | F285: 0 | G285: 0 | H285: 0 | I285: 0 | J285: 0 | K285: 0 | L285: 0 | M285: 0 | N285: 0 | O285: 0 | P285: 0 | Q285: 0 | R285: 0 | S285: 0 | T285: 0 | U285: 0 | V285: 0 | W285: 0 | X285: 0 | Y285: 0 | Z285: 0 | AA285: 0 | AB285: 0 | AC285: 0 | AD285: 0 | AE285: 0 | AF285: 0 | AG285: 0
C286: 30 | D286: 0 | E286: 0 | F286: 0 | G286: 0 | H286: 0 | I286: 0 | J286: 0 | K286: 0 | L286: 0 | M286: 0 | N286: 0 | O286: 0 | P286: 0 | Q286: 0 | R286: 0 | S286: 0 | T286: 0 | U286: 0 | V286: 0 | W286: 0 | X286: 0 | Y286: 0 | Z286: 0 | AA286: 0 | AB286: 0 | AC286: 0 | AD286: 0 | AE286: 0 | AF286: 0 | AG286: 0
C287: 31
C288: Class I -- calculated depreciation
C289: 1 | D289: =+D193*D$22 -> 0 | AH289: =SUM(D289:AG289) -> 0
C290: =+C289+1 -> 2 | D290: 0 | E290: =+E193*E$22 -> 0 | AH290: =SUM(D290:AG290) -> 0
C291: 3 | D291: 0 | E291: 0 | F291: =+F193*F$22 -> 0 | AH291: 0
C292: 4 | D292: 0 | E292: 0 | F292: 0 | G292: =+G193*G$22 -> 0 | AH292: 0
C293: 5 | D293: 0 | E293: 0 | F293: 0 | G293: 0 | H293: =+H193*H$22 -> 0 | AH293: 0
C294: 6 | D294: 0 | E294: 0 | F294: 0 | G294: 0 | H294: 0 | I294: =+I193*I$22 -> 0 | AH294: 0
C295: 7 | D295: 0 | E295: 0 | F295: 0 | G295: 0 | H295: 0 | I295: 0 | J295: =+J193*J$22 -> 0 | AH295: 0
C296: 8 | D296: 0 | E296: 0 | F296: 0 | G296: 0 | H296: 0 | I296: 0 | J296: 0 | K296: =+K193*K$22 -> 0 | AH296: 0
C297: 9 | D297: 0 | E297: 0 | F297: 0 | G297: 0 | H297: 0 | I297: 0 | J297: 0 | K297: =+K194*K$22 -> 0 | L297: =+L193*L$22 -> 0 | AH297: 0
C298: 10 | D298: 0 | E298: 0 | F298: 0 | G298: 0 | H298: 0 | I298: 0 | J298: 0 | K298: =+K195*K$22 -> 0 | L298: =+L194*L$22 -> 0 | M298: =+M193*M$22 -> 0 | AH298: 0
C299: 11 | D299: 0 | E299: 0 | F299: 0 | G299: 0 | H299: 0 | I299: 0 | J299: 0 | K299: =+K196*K$22 -> 0 | L299: =+L195*L$22 -> 0 | M299: =+M194*M$22 -> 0 | N299: =+N193*N$22 -> 0 | AH299: 0
C300: 12 | D300: 0 | E300: 0 | F300: 0 | G300: 0 | H300: 0 | I300: 0 | J300: 0 | K300: =+K197*K$22 -> 0 | L300: =+L196*L$22 -> 0 | M300: =+M195*M$22 -> 0 | N300: =+N194*N$22 -> 0 | O300: =+O193*O$22 -> 0 | AH300: 0
C301: 13 | D301: 0 | E301: 0 | F301: 0 | G301: 0 | H301: 0 | I301: 0 | J301: 0 | K301: =+K198*K$22 -> 0 | L301: =+L197*L$22 -> 0 | M301: =+M196*M$22 -> 0 | N301: =+N195*N$22 -> 0 | O301: =+O194*O$22 -> 0 | P301: =+P193*P$22 -> 0 | AH301: 0
C302: 14 | D302: 0 | E302: 0 | F302: 0 | G302: 0 | H302: 0 | I302: 0 | J302: 0 | K302: 0 | L302: 0 | M302: 0 | N302: 0 | O302: 0 | P302: =+P194*P$22 -> 0 | Q302: =+Q193*Q$22 -> 0 | AH302: 0
C303: 15 | D303: 0 | E303: 0 | F303: 0 | G303: 0 | H303: 0 | I303: 0 | J303: 0 | K303: 0 | L303: 0 | M303: 0 | N303: 0 | O303: 0 | P303: =+P195*P$22 -> 0 | Q303: =+Q194*Q$22 -> 0 | R303: =+R193*R$22 -> 0 | AH303: 0
C304: 16 | D304: 0 | E304: 0 | F304: 0 | G304: 0 | H304: 0 | I304: 0 | J304: 0 | K304: 0 | L304: 0 | M304: 0 | N304: 0 | O304: 0 | P304: =+P196*P$22 -> 0 | Q304: =+Q195*Q$22 -> 0 | R304: =+R194*R$22 -> 0 | S304: =+S193*S$22 -> 0 | AH304: 0
C305: 17 | D305: 0 | E305: 0 | F305: 0 | G305: 0 | H305: 0 | I305: 0 | J305: 0 | K305: 0 | L305: 0 | M305: 0 | N305: 0 | O305: 0 | P305: =+P197*P$22 -> 0 | Q305: =+Q196*Q$22 -> 0 | R305: =+R195*R$22 -> 0 | S305: =+S194*S$22 -> 0 | T305: =+T193*T$22 -> 0 | AH305: 0
C306: 18 | D306: 0 | E306: 0 | F306: 0 | G306: 0 | H306: 0 | I306: 0 | J306: 0 | K306: 0 | L306: 0 | M306: 0 | N306: 0 | O306: 0 | P306: =+P198*P$22 -> 0 | Q306: =+Q197*Q$22 -> 0 | R306: =+R196*R$22 -> 0 | S306: =+S195*S$22 -> 0 | T306: 0 | U306: =+U193*U$22 -> 0 | AH306: 0
C307: 19 | D307: 0 | E307: 0 | F307: 0 | G307: 0 | H307: 0 | I307: 0 | J307: 0 | K307: 0 | L307: 0 | M307: 0 | N307: 0 | O307: 0 | P307: 0 | Q307: 0 | R307: 0 | S307: 0 | T307: 0 | U307: 0 | V307: =+V193*V$22 -> 0 | AH307: 0
C308: 20 | D308: 0 | E308: 0 | F308: 0 | G308: 0 | H308: 0 | I308: 0 | J308: 0 | K308: 0 | L308: 0 | M308: 0 | N308: 0 | O308: 0 | P308: 0 | Q308: 0 | R308: 0 | S308: 0 | T308: 0 | U308: 0 | V308: 0 | W308: =+W193*W$22 -> 0 | AH308: 0
C309: 21 | D309: 0 | E309: 0 | F309: 0 | G309: 0 | H309: 0 | I309: 0 | J309: 0 | K309: 0 | L309: 0 | M309: 0 | N309: 0 | O309: 0 | P309: 0 | Q309: 0 | R309: 0 | S309: 0 | T309: 0 | U309: 0 | V309: 0 | W309: =+W194*W$22 -> 0 | X309: =+X193*X$22 -> 0 | AH309: 0
C310: 22 | D310: 0 | E310: 0 | F310: 0 | G310: 0 | H310: 0 | I310: 0 | J310: 0 | K310: 0 | L310: 0 | M310: 0 | N310: 0 | O310: 0 | P310: 0 | Q310: 0 | R310: 0 | S310: 0 | T310: 0 | U310: 0 | V310: 0 | W310: =+W195*W$22 -> 0 | X310: =+X194*X$22 -> 0 | Y310: =+Y193*Y$22 -> 0 | AH310: 0
C311: 23 | D311: 0 | E311: 0 | F311: 0 | G311: 0 | H311: 0 | I311: 0 | J311: 0 | K311: 0 | L311: 0 | M311: 0 | N311: 0 | O311: 0 | P311: 0 | Q311: 0 | R311: 0 | S311: 0 | T311: 0 | U311: 0 | V311: 0 | W311: =+W196*W$22 -> 0 | X311: =+X195*X$22 -> 0 | Y311: =+Y194*Y$22 -> 0 | Z311: =+Z193*Z$22 -> 0 | AH311: 0
C312: 24 | D312: 0 | E312: 0 | F312: 0 | G312: 0 | H312: 0 | I312: 0 | J312: 0 | K312: 0 | L312: 0 | M312: 0 | N312: 0 | O312: 0 | P312: 0 | Q312: 0 | R312: 0 | S312: 0 | T312: 0 | U312: 0 | V312: 0 | W312: =+W197*W$22 -> 0 | X312: =+X196*X$22 -> 0 | Y312: =+Y195*Y$22 -> 0 | Z312: 0 | AA312: =+AA193*AA$22 -> 0 | AH312: 0
C313: 25 | D313: 0 | E313: 0 | F313: 0 | G313: 0 | H313: 0 | I313: 0 | J313: 0 | K313: 0 | L313: 0 | M313: 0 | N313: 0 | O313: 0 | P313: 0 | Q313: 0 | R313: 0 | S313: 0 | T313: =+T201*T$22 -> 0 | U313: =+U200*U$22 -> 0 | V313: =+V199*V$22 -> 0 | W313: =+W198*W$22 -> 0 | X313: =+X197*X$22 -> 0 | Y313: =+Y196*Y$22 -> 0 | Z313: 0 | AA313: =+AA194*AA$22 -> 0 | AB313: =+AB193*AB$22 -> 0 | AH313: 0
C314: 26 | D314: 0 | E314: 0 | F314: 0 | G314: 0 | H314: 0 | I314: 0 | J314: 0 | K314: 0 | L314: 0 | M314: 0 | N314: 0 | O314: 0 | P314: 0 | Q314: 0 | R314: 0 | S314: 0 | T314: 0 | U314: 0 | V314: 0 | W314: 0 | X314: 0 | Y314: 0 | Z314: 0 | AA314: =+AA195*AA$22 -> 0 | AB314: =+AB194*AB$22 -> 0 | AC314: =+AC193*AC$22 -> 0 | AH314: 0
C315: 27 | D315: 0 | E315: 0 | F315: 0 | G315: 0 | H315: 0 | I315: 0 | J315: 0 | K315: 0 | L315: 0 | M315: 0 | N315: 0 | O315: 0 | P315: 0 | Q315: 0 | R315: 0 | S315: 0 | T315: 0 | U315: 0 | V315: 0 | W315: 0 | X315: 0 | Y315: 0 | Z315: 0 | AB315: =+AB195*AB$22 -> 0 | AC315: =+AC194*AC$22 -> 0 | AD315: =+AD193*AD$22 -> 0 | AH315: 0
C316: 28 | D316: 0 | E316: 0 | F316: 0 | G316: 0 | H316: 0 | I316: 0 | J316: 0 | K316: 0 | L316: 0 | M316: 0 | N316: 0 | O316: 0 | P316: 0 | Q316: 0 | R316: 0 | S316: 0 | T316: 0 | U316: 0 | V316: 0 | W316: 0 | X316: 0 | Y316: 0 | Z316: 0 | AC316: =+AC195*AC$22 -> 0 | AD316: =+AD194*AD$22 -> 0 | AE316: =+AE193*AE$22 -> 0 | AH316: 0
C317: 29 | D317: 0 | E317: 0 | F317: 0 | G317: 0 | H317: 0 | I317: 0 | J317: 0 | K317: 0 | L317: 0 | M317: 0 | N317: 0 | O317: 0 | P317: 0 | Q317: 0 | R317: 0 | S317: 0 | T317: 0 | U317: 0 | V317: 0 | W317: 0 | X317: 0 | Y317: 0 | Z317: 0 | AD317: =+AD195*AD$22 -> 0 | AE317: =+AE194*AE$22 -> 0 | AF317: =+AF193*AF$22 -> 0 | AH317: 0
C318: 30 | D318: 0 | E318: 0 | F318: 0 | G318: 0 | H318: 0 | I318: 0 | J318: 0 | K318: 0 | L318: 0 | M318: 0 | N318: 0 | O318: 0 | P318: 0 | Q318: 0 | R318: 0 | S318: 0 | T318: 0 | U318: 0 | V318: 0 | W318: 0 | X318: 0 | Y318: 0 | Z318: 0 | AE318: =+AE195*AE$22 -> 0 | AF318: =+AF194*AF$22 -> 0 | AG318: =+AG193*AG$22 -> 0 | AH318: =SUM(D318:AG318) -> 0
C320: Horizontal totals | D320: =+SUM(D289:AG289) -> 0 | E320: =+SUM(D290:AG290) -> 0 | F320: =+SUM(D291:AG291) -> 0 | G320: =+SUM(D292:AG292) -> 0 | H320: =+SUM(D293:AG293) -> 0 | I320: =+SUM(D294:AG294) -> 0 | J320: =+SUM(D295:AG295) -> 0 | K320: =+SUM(D296:AG296) -> 0 | L320: =+SUM(D297:AG297) -> 0 | M320: =+SUM(D298:AG298) -> 0 | N320: =+SUM(D299:AG299) -> 0 | O320: =+SUM(D300:AG300) -> 0 | P320: =+SUM(D301:AG301) -> 0 | Q320: =+SUM(D302:AG302) -> 0 | R320: =+SUM(D303:AG303) -> 0 | S320: =+SUM(D304:AG304) -> 0 | T320: =+SUM(D305:AG305) -> 0 | U320: =+SUM(D306:AG306) -> 0 | V320: =+SUM(D307:AG307) -> 0 | W320: =+SUM(D308:AG308) -> 0 | X320: =+SUM(D309:AG309) -> 0 | Y320: =+SUM($D310:$AG310) -> 0 | Z320: =+SUM($D311:$AG311) -> 0 | AA320: =+SUM($D312:$AG312) -> 0 | AB320: =+SUM($D313:$AG313) -> 0 | AC320: =+SUM($D314:$AG314) -> 0 | AD320: =+SUM($D315:$AG315) -> 0 | AE320: =+SUM($D316:$AG316) -> 0 | AF320: =+SUM($D317:$AG317) -> 0 | AG320: =+SUM($D318:$AG318) -> 0 | AH320: =SUM(D320:AG320) -> 0
D321: 1 | E321: =1+D321 -> 2 | F321: 3 | G321: 4 | H321: 5 | I321: 6 | J321: 7 | K321: 8 | L321: 9 | M321: 10 | N321: 11 | O321: 12 | P321: 13 | Q321: 14 | R321: 15 | S321: 16 | T321: 17 | U321: 18 | V321: =1+U321 -> 19 | W321: 20 | X321: 21 | Y321: 22 | Z321: 23 | AA321: 24 | AB321: 25 | AC321: 26 | AD321: 27 | AE321: 28 | AF321: 29 | AG321: 30
C322: Class II -- calculated depreciation
C323: 1 | D323: =+D225*D$28 -> 0 | AH323: =SUM(D323:AG323) -> 0
... 261 more rows

Sheet Funding Plan
A1: RELCOST Financial Analysis of Energy Projects | B1: RELCOST: Funding Plan | D1: =IF(ErrorLine1="","","ENABLE MACROS") ->  | L1: INPUT (Edit) | M1: RESULTS (No Edits)
K2: =Scenarios!$C$7 -> 
B3: ='Capital Expenditures'!C3 -> LINKS TO SCENARIO SHEET (Optional) | D3: =IF(Scenarios!$A$274=0,"",IFERROR(IF(VLOOKUP(Project,Scenarios!$A$9:$B$18,2,FALSE)<>WhatIf!$G$7,MessageGettingScenario,WhatIf!$G$7),"Not Found")) -> Biomass heating, main hospital building only, wood pellets
D4: =IF(ISBLANK(Scenarios!C39)=FALSE,Scenarios!C39,"") -> Low Interest Loan, Interest Rate | E4: =IF(ISBLANK(Scenarios!D39)=FALSE,Scenarios!D39,"") -> Max Loan Amount | F4: =IF(ISBLANK(Scenarios!E39)=FALSE,Scenarios!E39,"") -> Loan as Percent CapEx | G4: =IF(ISBLANK(Scenarios!F39)=FALSE,Scenarios!F39,"") -> Grant as Percent CapEx | H4: =IF(ISBLANK(Scenarios!G39)=FALSE,Scenarios!G39,"") -> Maximum Grant (CapEx if no max) | I4: =IF(ISBLANK(Scenarios!H39)=FALSE,Scenarios!H39,"") -> Maximum %, USDA REAP Grant | J4: =IF(ISBLANK(Scenarios!I39)=FALSE,Scenarios!I39,"") -> % of Engineering & Design Costs, U.S. Forest Service Wood Biomass Study Grant | K4: =IF(ISBLANK(Scenarios!J39)=FALSE,Scenarios!J39,"") -> Engineering & Design Costs | L4: =IF(ISBLANK(Scenarios!K39)=FALSE,Scenarios!K39,"") ->  | M4: =IF(ISBLANK(Scenarios!L39)=FALSE,Scenarios!L39,"") ->  | N4: =IF(ISBLANK(Scenarios!M39)=FALSE,Scenarios!M39,"") ->  | O4: =IF(ISBLANK(Scenarios!N39)=FALSE,Scenarios!N39,"") -> 
B5: Scenario | C5: 3 | D5: =IF(ISBLANK(Scenarios!C50)=FALSE,Scenarios!C50,"") -> 0.04 | E5: =IF(ISBLANK(Scenarios!D50)=FALSE,Scenarios!D50,"") -> 100000 | F5: =IF(ISBLANK(Scenarios!E50)=FALSE,Scenarios!E50,"") -> 0.5 | G5: =IF(ISBLANK(Scenarios!F50)=FALSE,Scenarios!F50,"") -> 0.25 | H5: =IF(ISBLANK(Scenarios!G50)=FALSE,Scenarios!G50,"") -> 100000 | I5: =IF(ISBLANK(Scenarios!H50)=FALSE,Scenarios!H50,"") -> 0.25 | J5: =IF(ISBLANK(Scenarios!I50)=FALSE,Scenarios!I50,"") -> 1 | K5: =IF(ISBLANK(Scenarios!J50)=FALSE,Scenarios!J50,"") -> 46245 | L5: =IF(ISBLANK(Scenarios!K50)=FALSE,Scenarios!K50,"") -> 0 | M5: =IF(ISBLANK(Scenarios!L50)=FALSE,Scenarios!L50,"") -> 0 | N5: =IF(ISBLANK(Scenarios!M50)=FALSE,Scenarios!M50,"") -> 0 | O5: =IF(ISBLANK(Scenarios!N50)=FALSE,Scenarios!N50,"") -> 0
C6: Capital Expenditures | D6: ='Capital Expenditures'!D82 -> 708743
B8: WORKSPACE (Optional)
B9: Required Capital | C9: =D6-C27-C43-D43-E43 -> 285312.25
B10: Max Loan | C10: =IF(F5*D6>E5,E5,F5*D6) -> 100000
B13: ENTER UP TO TEN SOURCES FOR BORROWED FUNDS, EQUITY, AND GRANTS
B15: =WhatIf!F9 -> 0
B17: Source # | C17: 1 | D17: =+C17+1 -> 2 | E17: =+D17+1 -> 3 | F17: 4 | G17: 5 | H17: 6 | I17: 7 | J17: 8 | K17: 9 | L17: 10
B18: Borrowed Funds
B19: Institution | C19: State Energy Program
B20: Description (for Spider Diagram) | C20: Low Interest Loan
B21: Source Type | C21: State
B22: Loan Type | C22: Equal Payment
B23: Interest payment menthod (bonds only)
B24: Project Year | C24: 1
B25: Loan Begin Month | C25: 6
B26: Loan Fees (% amount) | C26: 0.01
B27: Amount ($) | C27: =MIN(C10,D6-C43-D43-E43) -> 100000
B28: Annual Interest Rate | C28: =D5 -> 0.04
B29: Term (months) | C29: 60
B30: Equity
B31: Investor | C31: Hospital Capital Expense Budget
B32: Description (for Spider Diagram) | C32: Equity Investment
B33: Source Type | C33: Private
B34: Project Year | C34: 1
B35: Amount ($)
B36: Investment method | C36: Lump Sum
B37: Investment Period (Annual pmt method ony)
B38: Grants
B39: Funder | C39: USDA | D39: SEP | E39: US Forest Service
B40: Description (for Spider Diagram) | C40: USDA REAP Grant | D40: SEP Grant | E40: USFS Biomass Utilization Study Grant
B41: Source Type | C41: Federal | D41: State | E41: Federal
B42: Project Year | C42: 1 | D42: 1 | E42: 1
B43: Amount ($) | C43: =I5*D6 -> 177185.75 | D43: =IF(G5*D6>H5,H5,G5*D6) -> 100000 | E43: =J5*K5 -> 46245
B44: Grant method | C44: Lump Sum | D44: Lump Sum | E44: Lump Sum
B45: Grant Period (years) (Annual pmt method ony)
B46: Taxable (Federal)? | C46: False | D46: False | E46: False
B47: Taxable (State)? | C47: False | D47: False | E47: False
B50: Sensitivity Factors for More Funding Sources | C50: On WhatIF | F50: =F17 -> 4 | G50: 5 | H50: 6 | I50: 7 | J50: 8 | K50: 9 | L50: 10
B51: Borrowed Funding | F51: 1 | G51: 1 | H51: 1 | I51: 1 | J51: 1 | K51: 1 | L51: 1
B52: Equity Funding | F52: 1 | G52: 1 | H52: 1 | I52: 1 | J52: 1 | K52: 1 | L52: 1
B53: Grant Funding | F53: 1 | G53: 1 | H53: 1 | I53: 1 | J53: 1 | K53: 1 | L53: 1
B54: Annual Interest Rates | F54: 1 | G54: 1 | H54: 1 | I54: 1 | J54: 1 | K54: 1 | L54: 1
F55: =Spider_Diagram!B64 -> If you have more than three funding sources that you want to appear on the spider diagram, define User-Defined Sensitivity Factors on the WhatIf tab.
B57: TOTAL PRESENT VALUES BY SOURCE | D57: Loans | E57: Grants | F57: Equity
B58: Federal | D58: =M160 -> 0 | E58: =M180 -> 223430.75 | F58: =M170 -> 0
B59: State | D59: =M161 -> 100000 | E59: 100000 | F59: 0
B60: Local | D60: 0 | E60: 0 | F60: 0
B61: Utility | D61: 0 | E61: 0 | F61: 0
B62: Market | D62: 0 | E62: 0 | F62: 0
B63: Private | D63: 0 | E63: 0 | F63: 0
B64: Other | D64: 0 | E64: 0 | F64: 0
B67: DETAIL
B69: With Sensitivity -- Caution: sources 3+ are not included on spider diagram and decision matrix analyses
B70: Source # | C70: 1 | D70: =+C70+1 -> 2 | E70: =+D70+1 -> 3 | F70: =+E70+1 -> 4 | G70: =+F70+1 -> 5 | H70: =+G70+1 -> 6 | I70: =+H70+1 -> 7 | J70: =+I70+1 -> 8 | K70: =+J70+1 -> 9 | L70: =+K70+1 -> 10
B71: Borrowed Funding (with sensitivity) | C71: =C27*WhatIf!B51 -> 100000 | D71: =+D27*WhatIf!B52 -> 0 | E71: =E27*WhatIf!B53 -> 0 | F71: =F27*F51 -> 0 | G71: 0 | H71: 0 | I71: 0 | J71: 0 | K71: 0 | L71: 0
B72: Equity Funding (with sensitivity) | C72: =+C35*WhatIf!B58 -> 0 | D72: =+D35*WhatIf!B59 -> 0 | E72: =E35*WhatIf!B60 -> 0 | F72: =F35*F52 -> 0 | G72: 0 | H72: 0 | I72: 0 | J72: 0 | K72: 0 | L72: 0
B73: Grant Funding (with sensitivity and taxes) | C73: =+C43*WhatIf!B62*(1-C254) -> 177185.75 | D73: =+D43*WhatIf!B63*(1-D254) -> 100000 | E73: =+E43*(1-E254)*WhatIf!B64 -> 46245 | F73: =+F43*(1-F254)*F53 -> 0 | G73: 0 | H73: 0 | I73: 0 | J73: 0 | K73: 0 | L73: 0
B74: Annual Interest Rates (with sensitivity) | C74: =+C28*WhatIf!B54 -> 0.04 | D74: =+D28*WhatIf!B55 -> 0 | E74: =E28*WhatIf!B56 -> 0 | F74: =F28*F54 -> 0 | G74: 0 | H74: 0 | I74: 0 | J74: 0 | K74: 0 | L74: 0
B78: Capital Expenditures (Reference Only)
C79: =+General!$D$21 -> 2014 | D79: =+C79+1 -> 2015 | E79: =+D79+1 -> 2016 | F79: 2017 | G79: 2018 | H79: 2019 | I79: 2020 | J79: 2021 | K79: 2022 | L79: 2023 | M79: 2024 | N79: 2025 | O79: 2026 | P79: 2027 | Q79: 2028 | R79: 2029 | S79: 2030 | T79: 2031 | U79: 2032 | V79: 2033
B80: Year | C80: 0 | D80: =+C80+1 -> 1 | E80: =+D80+1 -> 2 | F80: 3 | G80: 4 | H80: 5 | I80: 6 | J80: 7 | K80: 8 | L80: 9 | M80: 10 | N80: 11 | O80: 12 | P80: 13 | Q80: 14 | R80: 15 | S80: 16 | T80: 17 | U80: 18 | V80: 19
B81: Cap Ex (non-escalated w/sensitivity) | C81: =+'Capital Expenditures'!D81 -> 708743 | D81: =+'Capital Expenditures'!E81 -> 0 | E81: =+'Capital Expenditures'!F81 -> 0 | F81: =+'Capital Expenditures'!G81 -> 0 | G81: =+'Capital Expenditures'!H81 -> 0 | H81: =+'Capital Expenditures'!I81 -> 0 | I81: =+'Capital Expenditures'!J81 -> 0 | J81: =+'Capital Expenditures'!K81 -> 0 | K81: =+'Capital Expenditures'!L81 -> 0 | L81: =+'Capital Expenditures'!M81 -> 0 | M81: =+'Capital Expenditures'!N81 -> 0 | N81: =+'Capital Expenditures'!O81 -> 0 | O81: =+'Capital Expenditures'!P81 -> 0 | P81: =+'Capital Expenditures'!Q81 -> 0 | Q81: =+'Capital Expenditures'!R81 -> 0 | R81: =+'Capital Expenditures'!S81 -> 0 | S81: =+'Capital Expenditures'!T81 -> 0 | T81: =+'Capital Expenditures'!U81 -> 0 | U81: =+'Capital Expenditures'!V81 -> 0 | V81: =+'Capital Expenditures'!W81 -> 0
B82: Cap Ex (Accumulated each year) | C82: =+C81 -> 708743 | D82: =+C82+D81 -> 708743 | E82: =+D82+E81 -> 708743 | F82: 708743 | G82: 708743 | H82: 708743 | I82: 708743 | J82: 708743 | K82: 708743 | L82: 708743 | M82: 708743 | N82: 708743 | O82: 708743 | P82: 708743 | Q82: 708743 | R82: 708743 | S82: 708743 | T82: 708743 | U82: 708743 | V82: 708743
B83: Cap Ex (escalated w/sensitivity) | C83: =+'Capital Expenditures'!D82 -> 708743 | D83: =+'Capital Expenditures'!E82 -> 0 | E83: =+'Capital Expenditures'!F82 -> 0 | F83: =+'Capital Expenditures'!G82 -> 0 | G83: =+'Capital Expenditures'!H82 -> 0 | H83: =+'Capital Expenditures'!I82 -> 0 | I83: =+'Capital Expenditures'!J82 -> 0 | J83: =+'Capital Expenditures'!K82 -> 0 | K83: =+'Capital Expenditures'!L82 -> 0 | L83: =+'Capital Expenditures'!M82 -> 0 | M83: =+'Capital Expenditures'!N82 -> 0 | N83: =+'Capital Expenditures'!O82 -> 0 | O83: =+'Capital Expenditures'!P82 -> 0 | P83: =+'Capital Expenditures'!Q82 -> 0 | Q83: =+'Capital Expenditures'!R82 -> 0 | R83: =+'Capital Expenditures'!S82 -> 0 | S83: =+'Capital Expenditures'!T82 -> 0 | T83: =+'Capital Expenditures'!U82 -> 0 | U83: =+'Capital Expenditures'!V82 -> 0 | V83: =+'Capital Expenditures'!W82 -> 0
B87: REFERENCES
B88: Database of State Incentives for Renewables and Efficiency (DSIRE) | D88: www.dsireusa.org
B89: The U.S. Department of Agriculture’s online A Guide to Funding Resources | D89: http://www.nal.usda.gov/ric/ricpubs/fundguide.html
B90: Municipal Research and Services Center of Washington | D90: http://www.mrsc.org/subjects/finance/grants/grants.aspx
B91: U.S. Department of Energy’s Office of Energy Efficiency and Renewable Energy (EERE) | D91: http://apps3.eere.energy.gov/greenpower/financial/index.shtml
B92: FASB Standard No. 13, Accounting for Leases | D92: http://www.fasb.org/pdf/fas13.pdf
B93: “The economics of energy service contracts” by Steve Sorrell published in Energy Policy (2007, Volume 35). | D93: http://linkinghub.elsevier.com/retrieve/pii/S0301421505003411
B97: WORKSPACE (Optional)
B100: Notes and calculation space (optional)
B101: Equity Investment Amount | C101: 0.3
B142: Source | C142: 1 | D142: =C142+1 -> 2 | E142: =D142+1 -> 3 | F142: 4 | G142: 5 | H142: 6 | I142: 7 | J142: 8 | K142: 9 | L142: 10
B143: Loan Years | C143: =C24-FirstYear_0or1+1 -> 1 | D143: 0 | E143: 0 | F143: 0 | G143: 0 | H143: 0 | I143: 0 | J143: 0 | K143: 0 | L143: 0
B144: Equity Years | C144: =C34-FirstYear_0or1+1 -> 1 | D144: 0 | E144: 0 | F144: 0 | G144: 0 | H144: 0 | I144: 0 | J144: 0 | K144: 0 | L144: 0
